Workbook

Sheet Portada

Sheet Indice
S1: 265
B3: Consejo Monetario Centroamericano
B4: Secretaría Ejecutiva
B5: www.secmca.org
B13: REPORTE EJECUTIVO MENSUAL
B14: DE INDICADORES MACROECONÓMICOS
B15: DE CENTROAMÉRICA, PANAMÁ Y REPÚBLICA DOMINICANA
J18: Con cifras al mes de:
B23: CONTENIDO
B26: INDICADORES REGIONALES
D27: Principales indicadores macroeconómicos región CARD y CAPARD
D28: CARD: evolución de los principales indicadores macroeconómicos
D29: CAPARD: evolución de los principales indicadores macroeconómicos
B31: INDICADORES POR PAÍS
D32: Cuadro comparativo por país
D33: Proyecciones 2022-2023
D34: Seguimiento de las proyecciones en 2022
D35: Evolución de indicadores macroeconómicos seleccionados (series mensuales)
D36: Nota técnica
J46: Nº265
B47: Elaborado con información recibida al | G47: 2022-07-28 | J47: REM N° 265
J48: 2022-06-19 | K48: 2022
B52: ADVERTENCIA El Consejo Monetario Centroamericano y su Secretaría Ejecutiva autorizan la reproducción total, gráficos y cifras de esta publicación, siempre que se mencione la fuente. No obstante, no asumen responsabilidad legal alguna o de cualquier otra índole, por la manipulación, interpretación personal y uso de dicha información. Derechos Reservados © 2020

Sheet Regional-cuadro
A1: Consejo Monetario Centroamericano | G1: =CONCATENATE(Indice!$J$47,",") -> REM N° 265, | H1: =Indice!$J$48 -> 2022-06-19
A2: Secretaría Ejecutiva
A3: PRINCIPALES INDICADORES MACROECONÓMICOS REGIONALES
B5: Agregados Regionales | D5: Región CARD 1/ | G5: Región CAPARD 1/
B7: I. SECTOR REAL
B8: 1. Indice de Precios al Consumidor (IPC) | D8: =IF([1]EJECUTIVO!$J$7=[1]EJECUTIVO!$J$5,[1]EJECUTIVO!$G$7,CONCATENATE([1]EJECUTIVO!$G$7," ",2021," ",2022)) -> JUNIO 2021 2022 | G8: =IF([1]EJECUTIVO!$J$7=[1]EJECUTIVO!$J$5,[1]EJECUTIVO!$G$8,CONCATENATE([1]EJECUTIVO!$G$8," ",[1]EJECUTIVO!$I$5," ",[1]EJECUTIVO!$J$5)) -> JUNIO 2021 2022
B9: 1.1 Variación interanual | D9: =CONCATENATE(ROUND([1]EJECUTIVO!$I$7,1)," %") -> 5.2 % | E9: =CONCATENATE(ROUND([1]EJECUTIVO!$J$7,1)," 0%") -> 9 0% | G9: =CONCATENATE(ROUND([1]EJECUTIVO!$I$8,1)," %") -> 4.7 % | H9: =CONCATENATE(ROUND([1]EJECUTIVO!$J$8,1)," %") -> 8.5 %
B11: 2. Índice Mensual de Actividad Económica (IMAE) | D11: =IF([1]EJECUTIVO!$J$12=[1]EJECUTIVO!$J$10,[1]EJECUTIVO!$G$10,CONCATENATE([1]EJECUTIVO!$G$12," ",[1]EJECUTIVO!$I$10," ",[1]EJECUTIVO!$J$10)) -> ABRIL 2021 2022 | G11: =IF([1]EJECUTIVO!$J$12=[1]EJECUTIVO!$J$10,[1]EJECUTIVO!$G$10,CONCATENATE([1]EJECUTIVO!$G$12," ",[1]EJECUTIVO!$I$10," ",[1]EJECUTIVO!$J$10)) -> ABRIL 2021 2022
B12: 2.1 Variación acumulada de la tendencia-ciclo | D12: =CONCATENATE(ROUND([1]EJECUTIVO!$I$12,1)," %") -> 8.1 % | E12: =CONCATENATE(ROUND([1]EJECUTIVO!$J$12,1)," %") -> 5.7 % | G12: =CONCATENATE(ROUND([1]EJECUTIVO!$I$13,1)," %") -> 6.7 % | H12: =CONCATENATE(ROUND([1]EJECUTIVO!$J$13,1)," %") -> 6.5 %
B14: 3. Producto Interno Bruto Trimestral (PIB) | D14: =CONCATENATE([1]EJECUTIVO!$G$17," TRIMESTRE "," ",[1]EJECUTIVO!$I$15," ",[1]EJECUTIVO!$J$15) -> I TRIMESTRE 2021 2022 | G14: =CONCATENATE([1]EJECUTIVO!$G$17," TRIMESTRE "," ",[1]EJECUTIVO!$I$15," ",[1]EJECUTIVO!$J$15) -> I TRIMESTRE 2021 2022
B15: 3.1 PIB nominal (millones de US$) | D15: =[1]EJECUTIVO!$I$17 -> 75059.08177 | E15: =[1]EJECUTIVO!$J$17 -> 85266.6091 | G15: =[1]EJECUTIVO!$I$18 -> 90053.15577 | H15: =[1]EJECUTIVO!$J$17 -> 85266.6091
B16: 3.2 PIB real, tasa de variación interanual | D16: =CONCATENATE(ROUND([1]EJECUTIVO!$I$22,1)," %") -> 2.6 % | E16: =CONCATENATE(ROUND([1]EJECUTIVO!$J$22,1)," %") -> 5.7 % | G16: =CONCATENATE(ROUND([1]EJECUTIVO!$I$23,1)," %") -> 0.9 % | H16: =CONCATENATE(ROUND([1]EJECUTIVO!$J$23,1)," %") -> 7 %
B18: 4. Producto Interno Bruto anual (PIB) | D18: =IF([1]EJECUTIVO!$J$5=[1]EJECUTIVO!$J$25-1," ANUAL",CONCATENATE(" ANUAL"," ",[1]EJECUTIVO!$I$30," ",[1]EJECUTIVO!$J$30)) -> ANUAL 2021 2022 | G18: =IF([1]EJECUTIVO!$J$25-1=[1]EJECUTIVO!$J$5," ANUAL",CONCATENATE(" ANUAL"," ",[1]EJECUTIVO!$I$25," ",[1]EJECUTIVO!$J$25)) -> ANUAL 2021 2022
B19: 4.1 PIB nominal (millones de US$) | D19: =[1]EJECUTIVO!$I$27 -> 315762.7966 | E19: =[1]EJECUTIVO!$J$27 -> n.d. | G19: =[1]EJECUTIVO!$I$28 -> 379367.8623 | H19: =[1]EJECUTIVO!$J$28 -> n.d.
B20: 4.2 PIB real, tasa de variación interanual | D20: =CONCATENATE(ROUND([1]EJECUTIVO!$I$32,1)," %") -> 10.1 % | E20: =CONCATENATE(ROUND([1]EJECUTIVO!$J$32,1)," %") -> 4.2 % | G20: =CONCATENATE(ROUND([1]EJECUTIVO!$I$33,1)," %") -> 10.9 % | H20: n.d.
B22: II. SECTOR EXTERNO
B23: 1. Comercio Exterior 2/ | D23: =CONCATENATE("ACUMULADO A ",[1]EJECUTIVO!$G$55," ",[1]EJECUTIVO!$I$37," ",[1]EJECUTIVO!$J$37) -> ACUMULADO A MARZO 2021 2022 | G23: =CONCATENATE("ACUMULADO A ",[1]EJECUTIVO!$G$55," ",[1]EJECUTIVO!$I$37," ",[1]EJECUTIVO!$J$37) -> ACUMULADO A MARZO 2021 2022
B24: 1.1 Balanza de bienes (millones de US$) | D24: =[1]EJECUTIVO!$I$55 -> -9498.450352 | E24: =[1]EJECUTIVO!$J$55 -> -15157.17211 | G24: =[1]EJECUTIVO!$I$56 -> -11246.37035 | H24: =[1]EJECUTIVO!$J$56 -> -17810.67211
B25: 1.2 Exportaciones totales FOB (millones de US$) | D25: =[1]EJECUTIVO!$I$40 -> 14485.18579 | E25: =[1]EJECUTIVO!$J$40 -> 17249.99483 | G25: =[1]EJECUTIVO!$I$42 -> 17270.47579 | H25: =[1]EJECUTIVO!$J$42 -> 20820.19483
B26: 1.2.1 Tasa crecimiento interanual | D26: =CONCATENATE(ROUND([1]EJECUTIVO!$I$41,1)," %") -> 9.3 % | E26: =CONCATENATE(ROUND([1]EJECUTIVO!$J$41,1)," %") -> 19.1 % | G26: =CONCATENATE(ROUND([1]EJECUTIVO!$I$43,1)," %") -> 9 % | H26: =CONCATENATE(ROUND([1]EJECUTIVO!$J$43,1)," %") -> 20.6 %
B27: 1.3 Importaciones totales CIF (millones de US$) | D27: =[1]EJECUTIVO!$I$48 -> 23983.63614 | E27: =[1]EJECUTIVO!$J$48 -> 32407.16694 | G27: =[1]EJECUTIVO!$I$50 -> 28516.84614 | H27: =[1]EJECUTIVO!$J$50 -> 38630.86694
B28: 1.3.1 Tasa crecimiento interanual | D28: =CONCATENATE(ROUND([1]EJECUTIVO!$I$49,1)," %") -> 14.2 % | E28: =CONCATENATE(ROUND([1]EJECUTIVO!$J$49,1)," %") -> 35.1 % | G28: =CONCATENATE(ROUND([1]EJECUTIVO!$I$51,1)," %") -> 13.9 % | H28: =CONCATENATE(ROUND([1]EJECUTIVO!$J$51,1)," %") -> 35.5 %
B30: 2. Ingreso de Remesas familiares | C30: sin Costa Rica | D30: =CONCATENATE("ACUMULADO A ",[1]EJECUTIVO!$G$72," ",[1]EJECUTIVO!$I$63," ",[1]EJECUTIVO!$J$63) -> ACUMULADO A MAYO 2021 2022 | G30: =CONCATENATE("ACUMULADO A ",[1]EJECUTIVO!$G$71," ",2020," ",2021) -> ACUMULADO A DICIEMBRE 2020 2021
B31: 2.1 Ingreso de Remesas familiares (millones de US$) | D31: =[1]EJECUTIVO!$I$72 -> 16747.10802 | E31: =[1]EJECUTIVO!$J$72 -> 18821.64454 | G31: =[1]EJECUTIVO!$I$71 -> 33975.65526 | H31: =[1]EJECUTIVO!$J$71 -> 43803.76661
B33: 3. Inversión Extranjera Directa (IED) | D33: =CONCATENATE("ACUMULADO AL"," ",[1]EJECUTIVO!$G$81," ","TRIMESTRE") -> ACUMULADO AL I TRIMESTRE | G33: =CONCATENATE("ACUMULADO AL"," ",[1]EJECUTIVO!$G$82," ","TRIMESTRE") -> ACUMULADO AL IV TRIMESTRE
D34: =[1]EJECUTIVO!$I$84 -> 2021 | E34: =[1]EJECUTIVO!$J$84 -> 2022 | G34: =[1]EJECUTIVO!$I$84 -> 2021 | H34: =[1]EJECUTIVO!$J$84 -> 2022
B35: 3.1. IED en la economía declarante, acumulado (millones de US$) | D35: =[1]EJECUTIVO!$I$86 -> 2961.490598 | E35: =[1]EJECUTIVO!$J$86 -> 3094.624848 | G35: =[1]EJECUTIVO!$I$87 -> 7321.690031 | H35: =[1]EJECUTIVO!$J$87 -> 13847.77747
B36: 3.2. Tasa de Variación interanual | D36: =CONCATENATE(ROUND((([1]EJECUTIVO!$I$86/[1]EJECUTIVO!$H$86)-1)*100,1)," %") -> 27.9 % | E36: =CONCATENATE(ROUND((([1]EJECUTIVO!$J$86/[1]EJECUTIVO!$I$86)-1)*100,1)," %") -> 4.5 % | G36: =CONCATENATE(ROUND((([1]EJECUTIVO!$I$87/[1]EJECUTIVO!$H$87)-1)*100,1)," %") -> -41.5 % | H36: =CONCATENATE(ROUND((([1]EJECUTIVO!$J$87/[1]EJECUTIVO!$I$87)-1)*100,1)," %") -> 89.1 %
B38: 4. Cuenta Corriente | D38: =CONCATENATE("ACUMULADO AL"," ",[1]EJECUTIVO!$G$76," ","TRIMESTRE") -> ACUMULADO AL I TRIMESTRE | G38: =CONCATENATE("ACUMULADO AL"," ",[1]EJECUTIVO!$G$77," ","TRIMESTRE") -> ACUMULADO AL IV TRIMESTRE
D39: =[1]EJECUTIVO!$I$74 -> 2021 | E39: =[1]EJECUTIVO!$J$74 -> 2022 | G39: =[1]EJECUTIVO!$I$74 -> 2021 | H39: =[1]EJECUTIVO!$J$74 -> 2022
B40: 4.1. Cuenta Corriente (millones de US$) | D40: =[1]EJECUTIVO!$I$76 -> 96.04885876 | E40: =[1]EJECUTIVO!$J$76 -> -2685.0599 | G40: =[1]EJECUTIVO!$I$77 -> 4565.70864 | H40: =[1]EJECUTIVO!$J$77 -> -6561.314562
B42: 5. Reservas Internacionales Netas del Banco Central (RIN) 3/ | D42: =CONCATENATE("SALDO A ",[1]EJECUTIVO!$G$65," ",2021," ",2022) -> SALDO A JUNIO 2021 2022 | G42: =CONCATENATE("SALDO A ",[1]EJECUTIVO!$G$66," ",[1]EJECUTIVO!$I$63," ",[1]EJECUTIVO!$J$63) -> SALDO A MAYO 2021 2022
B43: 5.1 RIN del Banco Central (millones de US$) | D43: =[1]EJECUTIVO!$I$65 -> 53244.15979 | E43: =[1]EJECUTIVO!$J$65 -> 56642.63304 | G43: =[1]EJECUTIVO!$I$66 -> 61499.47303 | H43: =[1]EJECUTIVO!$J$66 -> 66498.7584
D44: =CONCATENATE("ACUMULADO A ",[1]EJECUTIVO!$G$60," ",[1]EJECUTIVO!$I$58," ",[1]EJECUTIVO!$J$58) -> ACUMULADO A MARZO 2021 2022 | G44: =CONCATENATE("ACUMULADO A ",[1]EJECUTIVO!$G$61," ",[1]EJECUTIVO!$I$58," ",[1]EJECUTIVO!$J$58) -> ACUMULADO A MARZO 2021 2022
B45: 5.2 RIN Banco Central/ Importaciones (meses de importación promedio) | D45: =[1]EJECUTIVO!$I$60 -> 6.500825111 | E45: =[1]EJECUTIVO!$J$60 -> 6.020435809 | G45: =[1]EJECUTIVO!$I$61 -> 6.297587074 | H45: =[1]EJECUTIVO!$J$61 -> 5.856057618
B47: III. SECTOR FISCAL
B48: 1. Resultado del Gobierno Central | D48: =CONCATENATE("ACUMULADO A ",[1]EJECUTIVO!$G$93," ",[1]EJECUTIVO!$I$91," ",[1]EJECUTIVO!$J$91) -> ACUMULADO A MARZO 2021 2022 | G48: =CONCATENATE("ACUMULADO A ",[1]EJECUTIVO!$G$94," ",[1]EJECUTIVO!$I$91," ",[1]EJECUTIVO!$J$91) -> ACUMULADO A MARZO 2021 2022
B49: 1.1 Ingresos totales del Gobierno Central, incluye donaciones (millones US$) | D49: =[1]EJECUTIVO!$I$93 -> 11740.80878 | E49: =[1]EJECUTIVO!$J$93 -> 13560.44685 | G49: =[1]EJECUTIVO!$I$94 -> 13242.20878 | H49: =[1]EJECUTIVO!$J$94 -> 15333.64685
B50: 1.2 Gastos totales del Gobierno Central (millones US$) | D50: =[1]EJECUTIVO!$I$98 -> 12837.88907 | E50: =[1]EJECUTIVO!$J$98 -> 14136.07172 | G50: =[1]EJECUTIVO!$I$99 -> 15525.38907 | H50: =[1]EJECUTIVO!$J$99 -> 17379.37172
B51: 1.3 Donaciones recibidas (millones US$) | D51: =[1]EJECUTIVO!$I$103 -> 71.89001088 | E51: =[1]EJECUTIVO!$J$103 -> 30.06208304 | G51: =[1]EJECUTIVO!$I$104 -> 71.89001088 | H51: =[1]EJECUTIVO!$J$104 -> 30.06208304
B52: 1.4 Resultado del Gobierno Central (millones US$) | D52: =[1]EJECUTIVO!$I$108 -> -1025.190274 | E52: =[1]EJECUTIVO!$J$108 -> -545.5627889 | G52: =[1]EJECUTIVO!$I$109 -> -2211.290274 | H52: =[1]EJECUTIVO!$J$109 -> -2015.662789
B53: 1.5 Resultado del Gobierno Central / PIB | D53: =[1]EJECUTIVO!$I$113 -> -0.003246710141 | E53: =[1]EJECUTIVO!$J$113 -> -0.001602039234 | G53: =[1]EJECUTIVO!$I$114 -> -0.005828881393 | H53: =[1]EJECUTIVO!$J$114 -> -0.004903873961
B56: 2. Deuda Pública | D56: =IF([1]EJECUTIVO!$J$49=[1]EJECUTIVO!$J$5,[1]EJECUTIVO!$G$118,CONCATENATE([1]EJECUTIVO!$G$118," ",[1]EJECUTIVO!$I$116," ",[1]EJECUTIVO!$J$116)) -> ABRIL 2021 2022 | G56: =IF([1]EJECUTIVO!$J$49=[1]EJECUTIVO!$J$5,[1]EJECUTIVO!$G$119,CONCATENATE([1]EJECUTIVO!$G$119," ",[1]EJECUTIVO!$I$116," ",[1]EJECUTIVO!$J$116)) -> ABRIL 2021 2022
B57: 2.1 Deuda Interna (millones de US$) 4/ | D57: =[1]EJECUTIVO!$I$118 -> 96972.55643 | E57: =[1]EJECUTIVO!$J$118 -> 99870.62021 | G57: =[1]EJECUTIVO!$I$119 -> 103614.9264 | H57: =[1]EJECUTIVO!$J$119 -> 107524.3502
B58: 2.2 Deuda Externa (millones de US$) | D58: =[1]EJECUTIVO!$I$123 -> 84302.40613 | E58: =[1]EJECUTIVO!$J$123 -> 92012.80457 | G58: =[1]EJECUTIVO!$I$124 -> 116054.0461 | H58: =[1]EJECUTIVO!$J$124 -> 127298.9646
B59: 2.3 Deuda Total (millones de US$) 4/ | D59: =[1]EJECUTIVO!$I$128 -> 181274.9626 | E59: =[1]EJECUTIVO!$J$128 -> 191883.4248 | G59: =[1]EJECUTIVO!$I$129 -> 219668.9726 | H59: =[1]EJECUTIVO!$J$129 -> 234823.3148
B60: 2.4 Deuda Total / PIB 4/ | D60: =IF(ISERROR([1]EJECUTIVO!$I$133/100),"n.d.",[1]EJECUTIVO!$I$133/100) -> 0.5740858788 | E60: =IF(ISERROR([1]EJECUTIVO!$J$133/100),"n.d.",[1]EJECUTIVO!$J$133/100) -> 0.5634636034 | G60: =IF(ISERROR([1]EJECUTIVO!$I$134/100),"n.d.",[1]EJECUTIVO!$I$134/100) -> 0.5790394874 | H60: =IF(ISERROR([1]EJECUTIVO!$J$134/100),"n.d.",[1]EJECUTIVO!$J$134/100) -> 0.5712979101
B62: Agregados Regionales | C62: Región CARD | F62: Región CAPARD
B63: IV. SECTOR MONETARIO | C63: =+[1]EJECUTIVO!$J$138 -> 2022 | D63: =+[1]EJECUTIVO!$I$138 -> 2021 | E63: =+[1]EJECUTIVO!$J$138 -> 2022 | F63: =+[1]EJECUTIVO!$J$146 -> 2022 | G63: =+[1]EJECUTIVO!$I$146 -> 2021 | H63: =+[1]EJECUTIVO!$J$146 -> 2022
B64: 1. Agregados Monetarios | C64: =CONCATENATE("Porcentaje respecto a M3 a ",[1]EJECUTIVO!$G$141) -> Porcentaje respecto a M3 a FEBRERO | D64: =CONCATENATE("Variación Interanual a ",[1]EJECUTIVO!$G$141) -> Variación Interanual a FEBRERO | F64: =CONCATENATE("Porcentaje respecto a M3 a ",[1]EJECUTIVO!$G$141) -> Porcentaje respecto a M3 a FEBRERO | G64: =CONCATENATE("Variación Interanual a ",[1]EJECUTIVO!$G$141) -> Variación Interanual a FEBRERO
B65: 1.1 M1 5/ | C65: =INDEX('[1]MONE(M)CARD'!$FA:$FJ,[1]EJECUTIVO!$E$149+6,3)/100 -> 0.3454942462 | D65: =INDEX('[1]MONE(M)CARD'!$EQ:$EZ,[1]EJECUTIVO!$E$149-6,3)/100 -> 0.22761502 | E65: =INDEX('[1]MONE(M)CARD'!$EQ:$EZ,[1]EJECUTIVO!$E$149+6,3)/100 -> 0.1050602188 | F65: =INDEX('[1]MONE(M)CAPARD'!$FW:$GF,[1]EJECUTIVO!$E$149+6,3)/100 -> 0.3269569856 | G65: =INDEX('[1]MONE(M)CAPARD'!$FM:$FV,[1]EJECUTIVO!$E$149-6,3)/100 -> 0.2173589272 | H65: =INDEX('[1]MONE(M)CAPARD'!$FM:$FV,[1]EJECUTIVO!$E$149+6,3)/100 -> 0.09397456713
B66: 1.2 M2 6/ | C66: =INDEX('[1]MONE(M)CARD'!$FA:$FJ,[1]EJECUTIVO!$E$149+6,6)/100 -> 0.7537636054 | D66: =INDEX('[1]MONE(M)CARD'!$EQ:$EZ,[1]EJECUTIVO!$E$149-6,6)/100 -> 0.1306802809 | E66: =INDEX('[1]MONE(M)CARD'!$EQ:$EZ,[1]EJECUTIVO!$E$149+6,6)/100 -> 0.08006723032 | F66: =INDEX('[1]MONE(M)CAPARD'!$FW:$GF,[1]EJECUTIVO!$E$149+6,6)/100 -> 0.7991049261 | G66: =INDEX('[1]MONE(M)CAPARD'!$FM:$FV,[1]EJECUTIVO!$E$149-6,6)/100 -> 0.1167918038 | H66: =INDEX('[1]MONE(M)CAPARD'!$FM:$FV,[1]EJECUTIVO!$E$149+6,6)/100 -> 0.01153258999
B67: 1.3 M3 7/ | C67: =INDEX('[1]MONE(M)CARD'!$FA:$FJ,[1]EJECUTIVO!$E$149+6,10)/100 -> 1 | D67: =INDEX('[1]MONE(M)CARD'!$EQ:$EZ,[1]EJECUTIVO!$E$149-6,10)/100 -> 0.138337585 | E67: =INDEX('[1]MONE(M)CARD'!$EQ:$EZ,[1]EJECUTIVO!$E$149+6,10)/100 -> 0.08071728283 | F67: =INDEX('[1]MONE(M)CAPARD'!$FW:$GF,[1]EJECUTIVO!$E$149+6,10)/100 -> 1 | G67: =INDEX('[1]MONE(M)CAPARD'!$FM:$FV,[1]EJECUTIVO!$E$149-6,10)/100 -> 0.1252059302 | H67: =INDEX('[1]MONE(M)CAPARD'!$FM:$FV,[1]EJECUTIVO!$E$149+6,10)/100 -> 0.02507091552
B68: 1.4 Base Monetaria Amplia 8/ | C68: =INDEX('[1]MONE(M)CARD'!$FM:$FM,[1]EJECUTIVO!$E$149+6,1)/100 -> 0.3220057498 | D68: =INDEX('[1]MONE(M)CARD'!$FN:$FN,[1]EJECUTIVO!$E$149-6,1)/100 -> 0.1667979298 | E68: =INDEX('[1]MONE(M)CARD'!$FN:$FN,[1]EJECUTIVO!$E$149+6,1)/100 -> 0.07682155932 | F68: =INDEX('[1]MONE(M)CAPARD'!$GI:$GI,[1]EJECUTIVO!$E$149+6,1)/100 -> 0.2741947197 | G68: =INDEX('[1]MONE(M)CAPARD'!$GJ:$GJ,[1]EJECUTIVO!$E$149-6,1)/100 -> 0.1650788461 | H68: =INDEX('[1]MONE(M)CAPARD'!$GJ:$GJ,[1]EJECUTIVO!$E$149+6,1)/100 -> 0.07564838241
B70: 2. Crédito Neto de las OSD 9/ con el Sector Público | C70: =CONCATENATE("Saldo en millones de US$ a ",[1]EJECUTIVO!$G$141) -> Saldo en millones de US$ a FEBRERO | D70: =CONCATENATE("Variación Interanual a ",[1]EJECUTIVO!$G$141) -> Variación Interanual a FEBRERO | F70: =CONCATENATE("Saldo en millones de US$ a ",[1]EJECUTIVO!$G$141) -> Saldo en millones de US$ a FEBRERO | G70: =CONCATENATE("Variación Interanual a ",[1]EJECUTIVO!$G$141) -> Variación Interanual a FEBRERO
B71: 2.1 Total Activos | C71: =INDEX('[1]MONE(M)CARD'!$FO:$FW,[1]EJECUTIVO!$E$149+6,9) -> 35041.07053 | D71: =INDEX('[1]MONE(M)CARD'!$GX:$HE,[1]EJECUTIVO!$E$149-6,8)/100 -> 0.2794503805 | E71: =INDEX('[1]MONE(M)CARD'!$GX:$HE,[1]EJECUTIVO!$E$149+6,8)/100 -> 0.1581928932 | F71: =INDEX('[1]MONE(M)CAPARD'!$GK:$GS,[1]EJECUTIVO!$E$149+6,9) -> 38771.82238 | G71: =INDEX('[1]MONE(M)CAPARD'!$HT:$IA,[1]EJECUTIVO!$E$149-6,8)/100 -> 0.2857506437 | H71: =INDEX('[1]MONE(M)CAPARD'!$HT:$IA,[1]EJECUTIVO!$E$149+6,8)/100 -> 0.1482144925
B72: 2.2 Total Pasivos | C72: =INDEX('[1]MONE(M)CARD'!$FX:$GF,[1]EJECUTIVO!$E$149+6,8) -> 17226.60291 | D72: =INDEX('[1]MONE(M)CARD'!$HF:$HN,[1]EJECUTIVO!$E$149-6,8)/100 -> 0.1072061825 | E72: =INDEX('[1]MONE(M)CARD'!$HF:$HN,[1]EJECUTIVO!$E$149+6,8)/100 -> 0.1598038737 | F72: =INDEX('[1]MONE(M)CAPARD'!$GT:$HB,[1]EJECUTIVO!$E$149+6,8) -> 19047.35197 | G72: =INDEX('[1]MONE(M)CAPARD'!$IB:$IJ,[1]EJECUTIVO!$E$149-6,8)/100 -> 0.08500508358 | H72: =INDEX('[1]MONE(M)CAPARD'!$IB:$IJ,[1]EJECUTIVO!$E$149+6,8)/100 -> 0.1169591825
B73: 2.3 Crédito neto | C73: =INDEX('[1]MONE(M)CARD'!$FX:$GF,[1]EJECUTIVO!$E$149+6,9) -> 17814.46762 | D73: =INDEX('[1]MONE(M)CARD'!$HF:$HN,[1]EJECUTIVO!$E$149-6,9)/100 -> 0.5052755228 | E73: =INDEX('[1]MONE(M)CARD'!$HF:$HN,[1]EJECUTIVO!$E$149+6,9)/100 -> 0.1566393244 | F73: =INDEX('[1]MONE(M)CAPARD'!$GT:$HB,[1]EJECUTIVO!$E$149+6,9) -> 19724.47042 | G73: =INDEX('[1]MONE(M)CAPARD'!$IB:$IJ,[1]EJECUTIVO!$E$149-6,9)/100 -> 0.5849338608 | H73: =INDEX('[1]MONE(M)CAPARD'!$IB:$IJ,[1]EJECUTIVO!$E$149+6,9)/100 -> 0.1801031121
B75: 3. Crédito 10/ de las OSD 9/ con el Sector Privado | C75: =CONCATENATE("Saldo en millones de US$ a ",[1]EJECUTIVO!$G$141) -> Saldo en millones de US$ a FEBRERO | D75: =CONCATENATE("Variación Interanual a ",[1]EJECUTIVO!$G$141) -> Variación Interanual a FEBRERO | F75: =CONCATENATE("Saldo en millones de US$ a ",[1]EJECUTIVO!$G$141) -> Saldo en millones de US$ a FEBRERO | G75: =CONCATENATE("Variación Interanual a ",[1]EJECUTIVO!$G$141) -> Variación Interanual a FEBRERO
B76: 3.1 Otras Sociedades No Financieras 11/ | C76: =INDEX('Datos_Regional (M)'!AF:AK,[1]EJECUTIVO!$E$149-1,5) -> 62431.53712 | D76: =INDEX('Datos_Regional (M)'!AL:AR,[1]EJECUTIVO!$E$149-13,2)/100 -> 0.01574673621 | E76: =INDEX('Datos_Regional (M)'!AL:AR,[1]EJECUTIVO!$E$149-1,2)/100 -> 0.09154240483 | F76: =INDEX('Datos_Regional (M)'!AW:BB,[1]EJECUTIVO!$E$149-1,5) -> 86431.15544 | G76: =INDEX('Datos_Regional (M)'!BC:BI,[1]EJECUTIVO!$E$149-13,2)/100 -> -0.003491842499 | H76: =INDEX('Datos_Regional (M)'!BC:CI,[1]EJECUTIVO!$E$149-1,2)/100 -> 0.05993598141
B77: 3.2 Hogares e ISFLSH 12/ | C77: =INDEX('Datos_Regional (M)'!AF:AK,[1]EJECUTIVO!$E$149-1,4) -> 67131.52684 | D77: =INDEX('Datos_Regional (M)'!AL:AR,[1]EJECUTIVO!$E$149-13,5)/100 -> -0.009455173108 | E77: =INDEX('Datos_Regional (M)'!AL:AR,[1]EJECUTIVO!$E$149-1,5)/100 -> 0.08817454158 | F77: =INDEX('Datos_Regional (M)'!AW:BB,[1]EJECUTIVO!$E$149-1,4) -> 94868.67254 | G77: =INDEX('Datos_Regional (M)'!BC:BI,[1]EJECUTIVO!$E$149-13,5)/100 -> -0.004769556293 | H77: =INDEX('Datos_Regional (M)'!BC:CI,[1]EJECUTIVO!$E$149-1,5)/100 -> 0.07600333936
B78: 3.3 Otros 13/ | C78: =INDEX('Datos_Regional (M)'!AF:AK,[1]EJECUTIVO!$E$149-1,2) -> 1795.273716 | D78: =INDEX('Datos_Regional (M)'!AL:AR,[1]EJECUTIVO!$E$149-13,3)/100 -> 0.0425546186 | E78: =INDEX('Datos_Regional (M)'!AL:AR,[1]EJECUTIVO!$E$149-1,3)/100 -> 0.4661361534 | F78: =INDEX('Datos_Regional (M)'!AW:BB,[1]EJECUTIVO!$E$149-1,2) -> 2546.133982 | G78: =INDEX('Datos_Regional (M)'!BC:BI,[1]EJECUTIVO!$E$149-13,3)/100 -> -0.002746908673 | H78: =INDEX('Datos_Regional (M)'!BC:CI,[1]EJECUTIVO!$E$149-1,3)/100 -> 0.4567167821
B79: 3.4 Total | C79: =INDEX('Datos_Regional (M)'!AF:AK,[1]EJECUTIVO!$E$149-1,6) -> 131358.3377 | D79: =INDEX('Datos_Regional (M)'!AL:AR,[1]EJECUTIVO!$E$149-13,6)/100 -> 0.002903945589 | E79: =INDEX('Datos_Regional (M)'!AL:AR,[1]EJECUTIVO!$E$149-1,6)/100 -> 0.09363143459 | F79: =INDEX('Datos_Regional (M)'!AW:BB,[1]EJECUTIVO!$E$149-1,6) -> 183845.962 | G79: =INDEX('Datos_Regional (M)'!BC:CI,[1]EJECUTIVO!$E$149-13,6)/100 -> -0.004141698723 | H79: =INDEX('Datos_Regional (M)'!BC:CI,[1]EJECUTIVO!$E$149-1,6)/100 -> 0.07224291445
B80: Fuente: Cálculos de la Secretaría Ejecutiva con base en la información proporcionada por los Bancos Centrales de la región.
B81: */ No incluye las remesas de Costa Rica debido a que se compilan trimestralmente. En 2013 Costa Rica recibió 229 millones de US$ de remesas netas (ingresos-egresos).
B82: Notas:
B83: 1/ La región CARD incluye a los países centroamericanos y a la República Dominicana. La región CAPARD incluye a los países centroamericanos, Panamá y la República Dominicana.
B84: 2/ Incluye comercio intrarregional. No incluye la maquila en el caso de Honduras. En Panamá incluye: exportación de mercancías generales, reexportaciones nacionales y reexportaciones de la Zona Libre de Colón.
B85: 3/ En Panamá, al no tener banco central, las RIN son administradas por el Banco Nacional de Panamá (BNP).
B86: 4/ Incluye la deuda interna consolidada en los casos de Guatemala, Honduras y República Dominicana, tal como lo recomienda la versión del 2001 del Manual de Estadísticas de Finanzas Públicas del FMI. En el resto de países se considera únicamente la deuda interna bruta.
B87: 5/ M1: incluye billetes y monedas en poder del público más los depósitos transferibles en MN.
B88: 6/ M2: incluye M1 más otros depósitos en MN, más valores distintos de acciones emitidos por las sociedades de depósito en moneda nacional.
B89: 7/ M3: incluye M2 más depósitos transferibles en ME, más otros depósitos en ME, más valores distintos de acciones emitidos por las sociedades de depósito en ME.
B90: 8/ Base Monetaria Amplia: incluye billetes y monedas en circulación, más depósitos transferibles por concepto de encaje en MN, más valores por concepto de encaje en MN, más pasivos frente a OSD de encaje legal en ME, más otros pasivos frente a OSD a corto plazo, más depósitos y valores de otros sectores.
B91: 9/ OSD corresponde a otras sociedades de depósito, por ejemplo: Bancos comerciales, cooperativas, y otras sociedades de depósito que reciben dinero de público.
B92: 10/ Incluye valores distintos de acciones y préstamos.
B93: 11/ Otras sociedades no Financieras abarca las sociedades y cuasisociedades que se dedican principalmente a la producción de bienes y servicios no financieros.
B94: 12/ ISFLSH corresponde a Instituciones sin fines de lucro que dan servicios a los hogares, en estas podemos encontrar organizaciones del tipo ONG´s.
B95: 13/ Incluye otros sectores residentes, por ejemplo otras sociedades financieras.

Sheet Región CARD-graficos
B1: Consejo Monetario Centroamericano | P1: =CONCATENATE(Indice!$J$47,",") -> REM N° 265, | Q1: =Indice!$J$48 -> 2022-06-19
B2: Secretaría Ejecutiva
B3: REGIÓN CARD: EVOLUCIÓN DE LOS PRINCIPALES INDICADORES MACROECONÓMICOS
B5: Región CARD: Inflación, serie original y tendencia de largo plazo | K5: Región CARD: Ciclo de crecimiento de la Actividad Económica
B6: (cálculos basados en el IPC, variación interanual) | K6: (cálculos basados en el IMAE, variación interanual)
B21: Región CARD: | K21: Región CARD:
B22: Reservas Internacionales Netas del Banco Central | K22: Flujos trimestrales de Inversión Extranjera Directa (IED) en la economía declarante
K36: Los flujos negativos observados en El Salvador y Honduras surgen debido a amortizaciones netas de préstamos con el inversionista directo, mayores a lo registrado por acciones u otras aportaciones de capital, los cuales por metodología deben sumarse al valor de la IED. El valor de Guatemala del IV trimestre de 2021 corresponde a la venta de una empresa de telecomunicaciones a un no residente.
B38: =CONCATENATE("Región CARD:") -> Región CARD: | K38: Región CARD:
B39: Flujos mensuales de comercio exterior | K39: Ingreso de Remesas, sin acumular
B55: Región CARD: | K55: Región CARD: Saldo Operacional (con donaciones) del Gobierno Central con respecto al PIB
B56: Deuda Pública Bruta Total, Interna y Externa | K56: =CONCATENATE("Datos a ",'Saldo Operacional'!C4," de cada año") -> Datos a marzo de cada año
B69: Incluye la deuda interna consolidada en los casos de Guatemala, Honduras y República Dominicana, tal como lo recomienda la versión del 2001 del Manual de Estadísticas de Finanzas Públicas del FMI. En el resto de países se considera únicamente la deuda interna bruta. A partir de 2019 se dispone únicamente de datos trimestrales de Nicaragua.
B71: Región CARD: | K71: Región CARD:
B72: =CONCATENATE("Agregados Monetarios (Millones US$)"," ","y variación interanual") -> Agregados Monetarios (Millones US$) y variación interanual | K72: =CONCATENATE("Crédito Total (Millones US$)"," ","y variación interanual") -> Crédito Total (Millones US$) y variación interanual
B90: OJO, REVISAR AÑO DE INICIO DE TODOS ESTOS GRAFICOS PARA ARMONIZAR !!!
C92: deuda: a partir de diciembre 2011 mensual
C93: remesas: desde 2006
C94: ied:2008
C95: agregados monetarios:2002
C96: crédito osd:2003
C98: ***la serie mas corta es la de remesas 2008, la extensión se puede evaluar a partir de esta fecha para que se armonizado pero se perdería información en otras series
K101: OSD: Corresponde a Otras Sociedades de Depósito, por ejemplo: bancos comerciales y cooperativas.
B103: La región CARD la conforman los países de Centroamérica y República Dominicana

Sheet Región CAPARD-graficos
B1: Consejo Monetario Centroamericano | P1: =CONCATENATE(Indice!$J$47,",") -> REM N° 265, | Q1: =Indice!$J$48 -> 2022-06-19
B2: Secretaría Ejecutiva
B3: REGIÓN CAPARD: EVOLUCIÓN DE LOS PRINCIPALES INDICADORES MACROECONÓMICOS
B5: Región CAPARD: Inflación, serie original y tendencia de largo plazo | K5: Región CAPARD: Ciclo de crecimiento de la Actividad Económica
B6: (cálculos basados en el IPC, variación interanual) | K6: (cálculos basados en el IMAE, variación interanual)
B21: Región CAPARD: | K21: Región CAPARD:
B22: Reservas Internacionales Netas del Banco Central | K22: Flujos trimestrales de Inversión Extranjera Directa (IED) en la economía declarante
B35: En Panamá, el Banco Nacional de Panamá (BNP) funciona como receptor y gestor de las RIN que corresponden a los activos externos de reserva menos los pasivos de corto plazo frente a no residentes. Los primeros se componen de: billetes y depósitos en moneda extranjera e inversiones en títulos (incluidos los títulos de deuda y participaciones de capital); los pasivos se componen de los depósitos transferibles de no residentes en moneda extranjera. | K35: Los flujos negativos observados en El Salvador, Honduras y Panamá surgen debido a amortizaciones netas de préstamos con el inversionista directo, mayores a lo registrado por acciones u otras aportaciones de capital, los cuales por metodología deben sumarse al valor de la IED.
B38: =CONCATENATE("Región CAPARD:") -> Región CAPARD: | K38: Región CAPARD:
B39: Flujos mensuales de comercio exterior | K39: Ingreso de Remesas, sin acumular
B55: Región CAPARD: | K55: Región CAPARD: Saldo Operacional (con donaciones) del Gobierno Central con respecto al PIB
B56: Deuda Pública Bruta Total, Interna y Externa | K56: =CONCATENATE("Datos a ",'Saldo Operacional'!G4," de cada año") -> Datos a marzo de cada año
B69: Incluye la deuda interna consolidada en los casos de Guatemala, Honduras y República Dominicana, tal como lo recomienda la versión del 2001 del Manual de Estadísticas de Finanzas Públicas del FMI. En el resto de países se considera únicamente la deuda interna bruta. A partir de 2019 se dispone únicamente de datos trimestrales de Nicaragua.
B71: Región CAPARD: | K71: Región CAPARD:
B72: =CONCATENATE("Agregados Monetarios (Millones US$)"," ","y variación interanual") -> Agregados Monetarios (Millones US$) y variación interanual | K72: =CONCATENATE("Crédito Total (Millones US$)"," ","y variación interanual") -> Crédito Total (Millones US$) y variación interanual
B90: OJO, REVISAR AÑO DE INICIO DE TODOS ESTOS GRAFICOS PARA ARMONIZAR !!!
C92: deuda: a partir de diciembre 2011 mensual
C93: remesas: desde 2006
C94: ied:2008
C95: agregados monetarios:2002
C96: crédito osd:2003
C98: ***la serie mas corta es la de remesas 2008, la extensión se puede evaluar a partir de esta fecha para que se armonizado pero se perdería información en otras series
K100: OSD: Corresponde a Otras Sociedades de Depósito, por ejemplo: bancos comerciales y cooperativas.
B103: La región CAPARD la conforman los países de Centroamérica, Panamá y República Dominicana.

Sheet Comparativo
A1: Consejo Monetario Centroamericano
A2: Secretaría Ejecutiva
A3: CUADRO COMPARATIVO POR PAIS
E4: =CONCATENATE(Indice!$J$47,",") -> REM N° 265, | F4: =Indice!$J$48 -> 2022-06-19
A6: Indicadores | B6: Costa Rica | D6: El Salvador | F6: Guatemala | H6: Honduras | J6: Nicaragua | L6: Rep. Dominicana | N6: Panamá
A8: I. SECTOR REAL
A9: 1. Precios al Consumidor | B9: =IF([2]EJECUTIVO!$J$4=[2]EJECUTIVO!$J$8,[2]EJECUTIVO!$G$10,CONCATENATE([2]EJECUTIVO!$G$5," ",[2]EJECUTIVO!$I$4," ",[2]EJECUTIVO!$J$4)) -> JUNIO 2021 2022 | D9: =IF([3]EJECUTIVO!$J$4=[3]EJECUTIVO!$J$8,[3]EJECUTIVO!$G$10,CONCATENATE([3]EJECUTIVO!$G$6," ",[3]EJECUTIVO!$I$4," ",[3]EJECUTIVO!$J$4)) -> JUNIO 2021 2022 | F9: =IF([4]EJECUTIVO!$J$4=[4]EJECUTIVO!$J$8,[4]EJECUTIVO!$G$10,CONCATENATE([4]EJECUTIVO!$G$5," ",[4]EJECUTIVO!$I$4," ",[4]EJECUTIVO!$J$4)) -> JUNIO 2021 2022 | H9: =IF([5]EJECUTIVO!$J$4=[5]EJECUTIVO!$J$8,[5]EJECUTIVO!$G$10,CONCATENATE([5]EJECUTIVO!$G$5," ",[5]EJECUTIVO!$I$4," ",[5]EJECUTIVO!$J$4)) -> JUNIO 2021 2022 | J9: =IF([6]EJECUTIVO!$J$4=[6]EJECUTIVO!$J$8,[6]EJECUTIVO!$G$10,CONCATENATE([6]EJECUTIVO!$G$5," ",[6]EJECUTIVO!$I$4," ",[6]EJECUTIVO!$J$4)) -> JUNIO 2021 2022 | L9: =IF([7]EJECUTIVO!$J$4=[7]EJECUTIVO!$J$8,[7]EJECUTIVO!$G$10,CONCATENATE([7]EJECUTIVO!$G$5," ",[7]EJECUTIVO!$I$4," ",[7]EJECUTIVO!$J$4)) -> JUNIO 2021 2022 | N9: =IF([8]EJECUTIVO!$J$4=[8]EJECUTIVO!$J$8,[8]EJECUTIVO!$G$10,CONCATENATE([8]EJECUTIVO!$G$5," ",[8]EJECUTIVO!$I$4," ",[8]EJECUTIVO!$J$4)) -> JUNIO 2021 2022
A10: 1.1 Tasa de variación interanual en el mes indicado | B10: =[2]EJECUTIVO!$I$6 -> 1.908033632 | C10: =[2]EJECUTIVO!$J$6 -> 10.05560568 | D10: =[3]EJECUTIVO!$I$6 -> 2.587451689 | E10: =[3]EJECUTIVO!$J$6 -> 7.759211947 | F10: =[4]EJECUTIVO!$I$6 -> 3.907220765 | G10: =[4]EJECUTIVO!$J$6 -> 7.553813447 | H10: =[5]EJECUTIVO!$I$6 -> 4.670975323 | I10: =[5]EJECUTIVO!$J$6 -> 10.21611002 | J10: =[6]EJECUTIVO!$I$6 -> 3.942224917 | K10: =[6]EJECUTIVO!$J$6 -> 10.3704852 | L10: =[7]EJECUTIVO!$I$6 -> 9.319367674 | M10: =[7]EJECUTIVO!$J$6 -> 9.478288898 | N10: =[8]EJECUTIVO!$I$6 -> 1.58007618 | O10: =[8]EJECUTIVO!$J$6 -> 5.19844021
A11: 1.2 Tasa de variación acumulada al mes indicado respecto a diciembre | B11: =[2]EJECUTIVO!$I$7 -> 0.76192321 | C11: =[2]EJECUTIVO!$J$7 -> 7.352678865 | D11: =[3]EJECUTIVO!$I$7 -> 2.952467009 | E11: =[3]EJECUTIVO!$J$7 -> 4.547867569 | F11: =[4]EJECUTIVO!$I$7 -> 1.264800861 | G11: =[4]EJECUTIVO!$J$7 -> 5.67232376 | H11: =[5]EJECUTIVO!$I$7 -> 1.829094027 | I11: =[5]EJECUTIVO!$J$7 -> 6.567164179 | J11: =[6]EJECUTIVO!$I$7 -> 2.242197331 | K11: =[6]EJECUTIVO!$J$7 -> 5.256168443 | L11: =[7]EJECUTIVO!$I$7 -> 4.01459854 | M11: =[7]EJECUTIVO!$J$7 -> 4.956605423 | N11: =[8]EJECUTIVO!$I$7 -> 1.854373723 | O11: =[8]EJECUTIVO!$J$7 -> 4.40915071
A12: =CONCATENATE(" 1.3 Tasa de variación de los precios en el 2021 y proyectado para el 2022") -> 1.3 Tasa de variación de los precios en el 2021 y proyectado para el 2022 | B12: =[2]METAS!$H$7 -> 3.29890791 | C12: =[2]METAS!$K$7 -> 3.0 ± 1 | D12: =[3]METAS!$H$7 -> 6.114806269 | E12: =[3]METAS!$K$7 -> 5.8 | F12: =[4]METAS!$H$7 -> 3.067814855 | G12: =[4]METAS!$K$7 -> 4.0 ± 1 | H12: =[5]METAS!$H$7 -> 5.315804516 | I12: =[5]METAS!$K$7 -> 5.0 - 6.19 | J12: =[6]METAS!$H$7 -> 7.210067535 | K12: =[6]METAS!$K$7 -> 6.0 -7.0 | L12: =[7]METAS!$H$7 -> 8.495698987 | M12: =[7]METAS!$K$7 -> 4.0 ± 1 | N12: =[8]METAS!$H$7 -> 2.624350178 | O12: =[8]METAS!$K$7 -> n.d.
A13: 1.4 Tasa de variación interanual del índice subyacente de inflación | B13: =[2]EJECUTIVO!$I$5 -> 0.50593333 | C13: =[2]EJECUTIVO!$J$5 -> 5.691649682 | D13: =[3]EJECUTIVO!$I$5 -> 1.768579492 | E13: =[3]EJECUTIVO!$J$5 -> 5.130338325 | F13: =[4]EJECUTIVO!$I$5 -> 3.054840305 | G13: =[4]EJECUTIVO!$J$5 -> 4.34 | H13: =[5]EJECUTIVO!$I$5 -> 4.92137449 | I13: =[5]EJECUTIVO!$J$5 -> 8.687205107 | J13: =[6]EJECUTIVO!$I$5 -> 4.695554413 | K13: =[6]EJECUTIVO!$J$5 -> 8.095596423 | L13: =[7]EJECUTIVO!$I$5 -> 5.995380935 | M13: =[7]EJECUTIVO!$J$5 -> 7.112352786 | N13: =[8]EJECUTIVO!$H$5 -> n.d. | O13: =[8]EJECUTIVO!$I$5 -> n.d.
A14: 2. Producción | B14: =IF([2]EJECUTIVO!$J$9=[2]EJECUTIVO!$J$2,[2]EJECUTIVO!$G$10,CONCATENATE([2]EJECUTIVO!$G$10," ",[2]EJECUTIVO!$I$9," ",[2]EJECUTIVO!$J$9)) -> MAYO 2021 2022 | D14: =IF([3]EJECUTIVO!$J$9=[3]EJECUTIVO!$J$2,[3]EJECUTIVO!$G$10,CONCATENATE([3]EJECUTIVO!$G$10," ",[3]EJECUTIVO!$I$9," ",[3]EJECUTIVO!$J$9)) -> ABRIL 2021 2022 | F14: =IF([4]EJECUTIVO!$J$9=[4]EJECUTIVO!$J$2,[4]EJECUTIVO!$G$10,CONCATENATE([4]EJECUTIVO!$G$10," ",[4]EJECUTIVO!$I$9," ",[4]EJECUTIVO!$J$9)) -> MAYO 2021 2022 | H14: =IF([5]EJECUTIVO!$J$9=[5]EJECUTIVO!$J$2,[5]EJECUTIVO!$G$10,CONCATENATE([5]EJECUTIVO!$G$10," ",[5]EJECUTIVO!$I$9," ",[5]EJECUTIVO!$J$9)) -> MAYO 2021 2022 | J14: =IF([6]EJECUTIVO!$J$9=[6]EJECUTIVO!$J$2,[6]EJECUTIVO!$G$10,CONCATENATE([6]EJECUTIVO!$G$10," ",[6]EJECUTIVO!$I$9," ",[6]EJECUTIVO!$J$9)) -> MAYO 2021 2022 | L14: =IF([7]EJECUTIVO!$J$9=[7]EJECUTIVO!$J$2,[7]EJECUTIVO!$G$10,CONCATENATE([7]EJECUTIVO!$G$10," ",[7]EJECUTIVO!$I$9," ",[7]EJECUTIVO!$J$9)) -> MAYO 2021 2022 | N14: =IF([8]EJECUTIVO!$J$9=[8]EJECUTIVO!$J$2,[8]EJECUTIVO!$G$10,CONCATENATE([8]EJECUTIVO!$G$10," ",[8]EJECUTIVO!$I$9," ",[8]EJECUTIVO!$J$9)) -> MAYO 2021 2022
A15: 2.1 IMAE (variación acumulada Tendencia-Ciclo en el mes indicado) | B15: =[2]EJECUTIVO!$I$10 -> 4.505619472 | C15: =[2]EJECUTIVO!$J$10 -> 7.245875831 | D15: =[3]EJECUTIVO!$I$10 -> 8.029440164 | E15: =[3]EJECUTIVO!$J$10 -> 2.64454248 | F15: =[4]EJECUTIVO!$I$10 -> 9.140686981 | G15: =[4]EJECUTIVO!$J$10 -> 4.288209307 | H15: =[5]EJECUTIVO!$I$10 -> 6.331549836 | I15: =[5]EJECUTIVO!$J$10 -> 5.044328203 | J15: =[6]EJECUTIVO!$I$10 -> 5.199333189 | K15: =[6]EJECUTIVO!$J$10 -> 4.634576502 | L15: =[7]EJECUTIVO!$I$10 -> 10.88743973 | M15: =[7]EJECUTIVO!$J$10 -> 6.329785324 | N15: =[8]EJECUTIVO!$I$10 -> 5.489606978 | O15: =[8]EJECUTIVO!$J$10 -> 14.24011784
A16: 2.2 Tasa de variación del PIB real estimado para 2021 y 2022 | B16: =[2]METAS!$H$12 -> 7.763901025 | C16: =[2]METAS!$K$12 -> 3.4 | D16: =[3]METAS!$H$12 -> 10.26831037 | E16: =[3]METAS!$K$12 -> 2.6 | F16: =[4]METAS!$H$12 -> 7.980769679 | G16: =[4]METAS!$K$12 -> 3.0 - 5.0 | H16: =[5]METAS!$H$12 -> 12.53414578 | I16: =[5]METAS!$K$12 -> 3.5 - 4.5 | J16: =[6]METAS!$H$12 -> 10.34464734 | K16: =[6]METAS!$K$12 -> 4.0 - 5.0 | L16: =[7]METAS!$H$12 -> 12.27199024 | M16: =[7]METAS!$K$12 -> 5 | N16: =[8]METAS!$H$12 -> 15.33581786 | O16: =[8]METAS!$K$12 -> n.d.
A17: 2.3 Tasa de variación interanual del PIB trimestral, a precios constantes a/ | B17: =CONCATENATE(" ",[2]EJECUTIVO!$G$11," ","TRIMESTRE 2021 2022") -> I TRIMESTRE 2021 2022 | D17: =CONCATENATE(" ",[3]EJECUTIVO!$G$11," ","TRIMESTRE 2021 2022") -> I TRIMESTRE 2021 2022 | F17: =CONCATENATE(" ",[4]EJECUTIVO!$G$11," ","TRIMESTRE 2020 2021") -> I TRIMESTRE 2020 2021 | H17: =CONCATENATE(" ",[5]EJECUTIVO!$G$11," ","TRIMESTRE 2021 2022") -> I TRIMESTRE 2021 2022 | J17: =CONCATENATE(" ",[6]EJECUTIVO!$G$11," ","TRIMESTRE 2021 2022") -> I TRIMESTRE 2021 2022 | L17: =CONCATENATE(" ",[7]EJECUTIVO!$G$11," ","TRIMESTRE 2021 2022") -> I TRIMESTRE 2021 2022 | N17: =CONCATENATE(" ",[8]EJECUTIVO!$G$11," ","TRIMESTRE 2021 2022") -> I TRIMESTRE 2021 2022
B18: =[2]EJECUTIVO!I$11 -> -0.7587681194 | C18: =[2]EJECUTIVO!J$11 -> 7.898195153 | D18: =[3]EJECUTIVO!I$11 -> 2.456594016 | E18: =[3]EJECUTIVO!J$11 -> 2.713178295 | F18: =[4]EJECUTIVO!I$11 -> 4.510131373 | G18: =[4]EJECUTIVO!J$11 -> 4.47788927 | H18: =[5]EJECUTIVO!I$11 -> 2.103886952 | I18: =[5]EJECUTIVO!J$11 -> 5.924970713 | J18: =[6]EJECUTIVO!I$11 -> 3.846219404 | K18: =[6]EJECUTIVO!J$11 -> 5.760195112 | L18: =[7]EJECUTIVO!I$11 -> 3.139660726 | M18: =[7]EJECUTIVO!J$11 -> 6.146941029 | N18: =[8]EJECUTIVO!I$11 -> -8.380690621 | O18: =[8]EJECUTIVO!J$11 -> 13.59180902
A19: 2.4 PIB a precios corrientes en millones de US dólares b/(estimado) | B19: 2021 | C19: 2022 | D19: 2021 | E19: 2022 | F19: 2021 | G19: 2022 | H19: 2021 | I19: 2022 | J19: 2021 | K19: 2022 | L19: 2021 | M19: 2022 | N19: 2021 | O19: 2022
B20: =[2]METAS!$H$14 -> 64423.47623 | C20: =[2]METAS!$K$14 -> 66212.96561 | D20: =[3]METAS!$H$14 -> 28736.94 | E20: =[3]METAS!$K$14 -> 30429.8 | F20: =[4]METAS!$H$14 -> 85985.87902 | G20: =[4]METAS!$K$14 -> 91875.54083 | H20: =[5]METAS!$H$14 -> 28489.7389 | I20: =[5]METAS!$K$14 -> 30402.78434 | J20: =[6]METAS!$H$14 -> 14013.08462 | K20: =[6]METAS!$K$14 -> n.d. | L20: =[7]METAS!$H$14 -> 94113.6778 | M20: =[7]METAS!$K$14 -> 107032.2 | N20: =[8]METAS!$H$14 -> 63605.06578 | O20: =[8]METAS!$K$14 -> 70492.0729
A22: II. SECTOR EXTERNO
A23: 1.Indicadores de Balanza de Pagos y del comercio exterior
A24: 1.1 Comercio exterior, acumulado en millones de US$ c/ | B24: =IF([2]EJECUTIVO!$J$16=[2]EJECUTIVO!$J$4,[2]EJECUTIVO!$G$16,(CONCATENATE([2]EJECUTIVO!$G$16," ",[2]EJECUTIVO!$I$15," ",[2]EJECUTIVO!$J$15))) -> MARZO 2021 2022 | D24: =IF([3]EJECUTIVO!$J$16=[3]EJECUTIVO!$J$4,[3]EJECUTIVO!$G$16,(CONCATENATE([3]EJECUTIVO!$G$16," ",[3]EJECUTIVO!$I$15," ",[3]EJECUTIVO!$J$15))) -> JUNIO 2021 2022 | F24: =IF([4]EJECUTIVO!$J$16=[4]EJECUTIVO!$J$4,[4]EJECUTIVO!$G$16,(CONCATENATE([4]EJECUTIVO!$G$16," ",[4]EJECUTIVO!$I$15," ",[4]EJECUTIVO!$J$15))) -> ABRIL 2021 2022 | H24: =IF([5]EJECUTIVO!$J$16=[5]EJECUTIVO!$J$4,[5]EJECUTIVO!$G$16,(CONCATENATE([5]EJECUTIVO!$G$16," ",[5]EJECUTIVO!$I$15," ",[5]EJECUTIVO!$J$15))) -> MAYO 2021 2022 | J24: =IF([6]EJECUTIVO!$J$16=[6]EJECUTIVO!$J$4,[6]EJECUTIVO!$G$16,(CONCATENATE([6]EJECUTIVO!$G$16," ",[6]EJECUTIVO!$I$15," ",[6]EJECUTIVO!$J$15))) -> ABRIL 2021 2022 | L24: =IF([7]EJECUTIVO!$J$16=[7]EJECUTIVO!$J$4,[7]EJECUTIVO!$G$16,(CONCATENATE([7]EJECUTIVO!$G$16," ",[7]EJECUTIVO!$I$15," ",[7]EJECUTIVO!$J$15))) -> MARZO 2021 2022 | N24: =IF([8]EJECUTIVO!$J$16=[8]EJECUTIVO!$J$4,[8]EJECUTIVO!$G$16,(CONCATENATE([8]EJECUTIVO!$G$16," ",[8]EJECUTIVO!$I$15," ",[8]EJECUTIVO!$J$15))) -> MAYO 2021 2022
A25: 1.1.1 Exportaciones totales de bienes FOB | B25: =[2]EJECUTIVO!$I$17 -> 3783.286679 | C25: =[2]EJECUTIVO!$J$17 -> 4339.59379 | D25: =[3]EJECUTIVO!$I$17 -> 3255.75 | E25: =[3]EJECUTIVO!$J$17 -> 3802.32 | F25: =[4]EJECUTIVO!$I$17 -> 4335.6 | G25: =[4]EJECUTIVO!$J$17 -> 5368.3 | H25: =[5]EJECUTIVO!$I$17 -> 2176.431033 | I25: =[5]EJECUTIVO!$J$17 -> 2792.204027 | J25: =[6]EJECUTIVO!$I$17 -> 2230.230637 | K25: =[6]EJECUTIVO!$J$17 -> 2671.428519 | L25: =[7]EJECUTIVO!$I$17 -> 2905.3 | M25: =[7]EJECUTIVO!$J$17 -> 3328 | N25: =[8]EJECUTIVO!$I$17 -> 4673.5 | O25: =[8]EJECUTIVO!$J$17 -> 5935.98
A26: 1.1.2 Importaciones totales de bienes CIF | B26: =[2]EJECUTIVO!$I$18 -> 5322.289929 | C26: =[2]EJECUTIVO!$J$18 -> 7170.68 | D26: =[3]EJECUTIVO!$I$18 -> 7025.83 | E26: =[3]EJECUTIVO!$J$18 -> 8934.39 | F26: =[4]EJECUTIVO!$I$18 -> 7694 | G26: =[4]EJECUTIVO!$J$18 -> 10463 | H26: =[5]EJECUTIVO!$I$18 -> 4925.456058 | I26: =[5]EJECUTIVO!$J$18 -> 6095.475581 | J26: =[6]EJECUTIVO!$I$18 -> 2719.186447 | K26: =[6]EJECUTIVO!$J$18 -> 3451.904176 | L26: =[7]EJECUTIVO!$I$18 -> 4988.3 | M26: =[7]EJECUTIVO!$J$18 -> 6946 | N26: =[8]EJECUTIVO!$I$18 -> 7645.25 | O26: =[8]EJECUTIVO!$J$18 -> 10305.02
A27: 1.1.3 Saldo acumulado (exportaciones - importaciones) | B27: =[2]EJECUTIVO!$I$16 -> -1539.00325 | C27: =[2]EJECUTIVO!$J$16 -> -2831.08621 | D27: =[3]EJECUTIVO!$I$16 -> -3770.08 | E27: =[3]EJECUTIVO!$J$16 -> -5132.07 | F27: =[4]EJECUTIVO!$I$16 -> -3358.4 | G27: =[4]EJECUTIVO!$J$16 -> -5094.7 | H27: =[5]EJECUTIVO!$I$16 -> -2749.025026 | I27: =[5]EJECUTIVO!$J$16 -> -3303.271554 | J27: =[6]EJECUTIVO!$I$16 -> -488.9558098 | K27: =[6]EJECUTIVO!$J$16 -> -780.4756577 | L27: =[7]EJECUTIVO!$I$16 -> -2083 | M27: =[7]EJECUTIVO!$J$16 -> -3618 | N27: =[8]EJECUTIVO!$I$16 -> -2971.75 | O27: =[8]EJECUTIVO!$J$16 -> -4369.04
A28: 1.1.4 Saldo en el 2021 (preliminar) y proyectado para el 2022 | B28: =[2]METAS!$H$22 -> -8830.923047 | C28: =[2]METAS!$K$22 -> n.d. | D28: =[3]METAS!$H$22 -> -8447.17 | E28: =[3]METAS!$K$22 -> n.d. | F28: =[4]METAS!$H$22 -> -12986.1 | G28: =[4]METAS!$K$22 -> -14817.966 | H28: =[5]METAS!$H$22 -> -8018.991857 | I28: =[5]METAS!$K$22 -> -8956.165035 | J28: =[6]METAS!$H$22 -> -2026.615324 | K28: =[6]METAS!$K$22 -> n.d. | L28: =[7]METAS!$H$22 -> -11681.2 | M28: =[7]METAS!$K$22 -> n.d. | N28: =[8]METAS!$H$22 -> -7694.82 | O28: =[8]METAS!$K$22 -> n.d.
A29: 2.5 Saldo RIN/ Importaciones (meses de importación promedio) | B29: =[2]EJECUTIVO!$I$19 -> 4.040952511 | C29: =[2]EJECUTIVO!$J$19 -> 2.951226383 | D29: =[3]EJECUTIVO!$I$19 -> 2.224067477 | E29: =[3]EJECUTIVO!$J$19 -> 2.339367321 | F29: =[4]EJECUTIVO!$I$19 -> 9.780192358 | G29: =[4]EJECUTIVO!$J$19 -> 7.968536749 | H29: =[5]EJECUTIVO!$I$19 -> 8.669407886 | I29: =[5]EJECUTIVO!$J$19 -> 6.93959715 | J29: =[6]EJECUTIVO!$I$19 -> 4.934512214 | K29: =[6]EJECUTIVO!$J$19 -> 4.919846392 | L29: =[7]EJECUTIVO!$I$19 -> 7.321641216 | M29: =[7]EJECUTIVO!$J$19 -> 6.30404198 | N29: =[7]EJECUTIVO!$I$19 -> 7.321641216 | O29: =[7]EJECUTIVO!$J$19 -> 6.30404198
A30: 1.2 Transferencias Corrientes, acumulado en millones de US$ | B30: =IF([2]EJECUTIVO!$J$38=[2]EJECUTIVO!$J$4,CONCATENATE([2]EJECUTIVO!$G$38," TRIMESTRE"," "),CONCATENATE([2]EJECUTIVO!$G$38," TRIMESTRE ",[2]EJECUTIVO!$I$37," ",[2]EJECUTIVO!$J$37)) -> I TRIMESTRE 2021 2022 | D30: =IF([3]EJECUTIVO!$J$38=[3]EJECUTIVO!$J$4,[3]EJECUTIVO!$G$38,(CONCATENATE([3]EJECUTIVO!$G$38," ",[3]EJECUTIVO!$I$37," ",[3]EJECUTIVO!$J$37))) -> JUNIO 2021 2022 | F30: =IF([4]EJECUTIVO!$J$38=[4]EJECUTIVO!$J$4,[4]EJECUTIVO!$G$38,(CONCATENATE([4]EJECUTIVO!$G$38," ",[4]EJECUTIVO!$I$37," ",[4]EJECUTIVO!$J$37))) -> MAYO 2021 2022 | H30: =IF([5]EJECUTIVO!$J$38=[5]EJECUTIVO!$J$4,[5]EJECUTIVO!$G$38,(CONCATENATE([5]EJECUTIVO!$G$38," ",[5]EJECUTIVO!$I$37," ",[5]EJECUTIVO!$J$37))) -> JUNIO 2021 2022 | J30: =IF([6]EJECUTIVO!$J$38=[6]EJECUTIVO!$J$4,[6]EJECUTIVO!$G$38,(CONCATENATE([6]EJECUTIVO!$G$38," ",[6]EJECUTIVO!$I$37," ",[6]EJECUTIVO!$J$37))) -> MAYO 2021 2022 | L30: =IF([7]EJECUTIVO!$J$38=[7]EJECUTIVO!$J$4,[7]EJECUTIVO!$G$38,(CONCATENATE([7]EJECUTIVO!$G$38," ",[7]EJECUTIVO!$I$37," ",[7]EJECUTIVO!$J$37))) -> JUNIO 2021 2022 | N30: =IF([8]EJECUTIVO!$J$38=[8]EJECUTIVO!$J$4,CONCATENATE([8]EJECUTIVO!$G$38," TRIMESTRE"," "),CONCATENATE([8]EJECUTIVO!$G$38," TRIMESTRE ",[8]EJECUTIVO!$I$37," ",[8]EJECUTIVO!$J$37)) -> IV TRIMESTRE 2020 2021
A31: 1.2.1 Ingreso de remesas familiares d/ | B31: =[2]EJECUTIVO!$I$38 -> 126.5553296 | C31: =[2]EJECUTIVO!$J$38 -> 141.1735632 | D31: =[3]EJECUTIVO!$I$38 -> 3649.65 | E31: =[3]EJECUTIVO!$J$38 -> 3778.67 | F31: =[4]EJECUTIVO!$I$38 -> 5603.7 | G31: =[4]EJECUTIVO!$J$38 -> 7045.1 | H31: =[5]EJECUTIVO!$I$38 -> 3483.0781 | I31: =[5]EJECUTIVO!$J$38 -> 4175.556 | J31: =[6]EJECUTIVO!$I$38 -> 858.3 | K31: =[6]EJECUTIVO!$J$38 -> 1132.5 | L31: =[7]EJECUTIVO!$I$38 -> 5263.071784 | M31: =[7]EJECUTIVO!$J$38 -> 4861.056273 | N31: =[8]EJECUTIVO!$I$38 -> 398.2450001 | O31: =[8]EJECUTIVO!$J$38 -> 512.7098688
A32: 1.2.2 Saldo en el 2021 (preliminar) y proyectado para el 2022 | B32: =+[2]METAS!$H$27 -> 558.8144439 | C32: =[2]METAS!$K$27 -> n.d. | D32: =+[3]METAS!$H$27 -> 7517.14 | E32: =[3]METAS!$K$27 -> n.d. | F32: =+[4]METAS!$H$27 -> 15295.7 | G32: =[4]METAS!$K$27 -> 17590.038 | H32: =+[5]METAS!$H$27 -> 7370.0331 | I32: =[5]METAS!$K$27 -> 8190.216 | J32: =+[6]METAS!$H$27 -> 2146.9 | K32: =[6]METAS!$K$27 -> n.d. | L32: =+[7]METAS!$H$27 -> 10402.4692 | M32: =+[7]METAS!$K$27 -> n.d. | N32: =+[8]METAS!$H$27 -> 512.7098688 | O32: =[8]METAS!$K$27 -> n.d.
A33: 1.3 Inversión directa, saldo en millones de US$ | B33: =CONCATENATE([2]EJECUTIVO!$G$44," ","TRIMESTRE 2021 2022") -> I TRIMESTRE 2021 2022 | D33: =CONCATENATE([3]EJECUTIVO!$G$44," ","TRIMESTRE 2021 2022") -> I TRIMESTRE 2021 2022 | F33: =CONCATENATE([4]EJECUTIVO!$G$44," ","TRIMESTRE 2021 2022") -> I TRIMESTRE 2021 2022 | H33: =CONCATENATE([5]EJECUTIVO!$G$44," ","TRIMESTRE 2021 2022") -> I TRIMESTRE 2021 2022 | J33: =CONCATENATE([6]EJECUTIVO!$G$44," ","TRIMESTRE 2021 2022") -> I TRIMESTRE 2021 2022 | L33: =CONCATENATE([7]EJECUTIVO!$G$44," ","TRIMESTRE 2021 2022") -> I TRIMESTRE 2021 2022 | N33: =CONCATENATE([8]EJECUTIVO!$G$44," ","TRIMESTRE 2020 2021") -> IV TRIMESTRE 2020 2021
A34: 1.3.1 Inversión Extranjera Directa en la economía declarante e/ | B34: =+[2]EJECUTIVO!$I$44 -> 747.1862673 | C34: =+[2]EJECUTIVO!$J$44 -> 853.6225693 | D34: =+[3]EJECUTIVO!$I$44 -> 175.9225914 | E34: =+[3]EJECUTIVO!$J$44 -> 165.7189538 | F34: =+[4]EJECUTIVO!$I$44 -> 305.56872 | G34: =+[4]EJECUTIVO!$J$44 -> 236.23506 | H34: =+[5]EJECUTIVO!$I$44 -> 287.313019 | I34: =+[5]EJECUTIVO!$J$44 -> 330.5482648 | J34: =+[6]EJECUTIVO!$I$44 -> 549.1 | K34: =+[6]EJECUTIVO!$J$44 -> 480.8 | L34: =+[7]EJECUTIVO!$I$44 -> 896.4 | M34: =+[7]EJECUTIVO!$J$44 -> 1027.7 | N34: =+[8]EJECUTIVO!$I$44 -> 606.6993933 | O34: =+[8]EJECUTIVO!$J$44 -> 1843.805911
A35: 1.4 Balanza en cuenta corriente, saldo en millones de US$ | B35: =CONCATENATE([2]EJECUTIVO!$G$41," ","TRIMESTRE 2021 2022") -> I TRIMESTRE 2021 2022 | D35: =CONCATENATE([3]EJECUTIVO!$G$41," ","TRIMESTRE 2021 2022") -> I TRIMESTRE 2021 2022 | F35: =CONCATENATE([4]EJECUTIVO!$G$41," ","TRIMESTRE 2021 2022") -> I TRIMESTRE 2021 2022 | H35: =CONCATENATE([5]EJECUTIVO!$G$41," ","TRIMESTRE 2021 2022") -> I TRIMESTRE 2021 2022 | J35: =CONCATENATE([6]EJECUTIVO!$G$41," ","TRIMESTRE 2021 2022") -> I TRIMESTRE 2021 2022 | L35: =CONCATENATE([7]EJECUTIVO!$G$41," ","TRIMESTRE 2021 2022") -> I TRIMESTRE 2021 2022 | N35: =CONCATENATE([8]EJECUTIVO!$G$41," ","TRIMESTRE 2020 2021") -> IV TRIMESTRE 2020 2021
A36: 1.4.1 Saldo de Balanza en Cuenta Corriente | B36: =[2]EJECUTIVO!$I$41 -> -261.7653475 | C36: =[2]EJECUTIVO!$J$41 -> -897.8357994 | D36: =[3]EJECUTIVO!$I$41 -> -245.1126926 | E36: =[3]EJECUTIVO!$J$41 -> -703.3341497 | F36: =[4]EJECUTIVO!$I$41 -> 777.35173 | G36: =[4]EJECUTIVO!$J$41 -> 151.89466 | H36: =[5]EJECUTIVO!$I$41 -> 26.17516887 | I36: =[5]EJECUTIVO!$J$41 -> -90.48461053 | J36: =[6]EJECUTIVO!$I$41 -> 177.4 | K36: =[6]EJECUTIVO!$J$41 -> -116.1 | L36: =[7]EJECUTIVO!$I$41 -> -378 | M36: =[7]EJECUTIVO!$J$41 -> -1029.2 | N36: =[8]EJECUTIVO!$I$41 -> 1096.837987 | O36: =[8]EJECUTIVO!$J$41 -> -1412.323342
A37: 1.4.2 Saldo en el 2021 (preliminar) y proyectado para 2022 | B37: =+[2]METAS!$H$23 -> -2135.735614 | C37: =+[2]METAS!$K$23 -> n.d. | D37: =+[3]METAS!$H$23 -> -1456.501017 | E37: =+[3]METAS!$K$23 -> n.d. | F37: =+[4]METAS!$H$23 -> 2177.28947 | G37: =+[4]METAS!$K$23 -> 1144.8 | H37: =+[5]METAS!$H$23 -> -728.7440588 | I37: =+[5]METAS!$K$23 -> n.d. | J37: =+[6]METAS!$H$23 -> -316.6 | K37: =+[6]METAS!$K$23 -> n.d. | L37: =+[7]METAS!$H$23 -> -2688.7 | M37: =+[7]METAS!$K$23 -> n.d. | N37: =+[8]METAS!$H$23 -> -1412.323342 | O37: =+[8]METAS!$K$23 -> n.d.
A39: 1.5 Saldo RIN del Banco Central, en millones de US$ | B39: =IF([2]EJECUTIVO!$G$22=[2]EJECUTIVO!$J$4,[2]EJECUTIVO!$G$22,(CONCATENATE([2]EJECUTIVO!$G$22," ",[2]EJECUTIVO!$I$21," ",[2]EJECUTIVO!$J$21))) -> JUNIO 2021 2022 | D39: =IF([3]EJECUTIVO!$G$22=[3]EJECUTIVO!$J$4,[3]EJECUTIVO!$G$22,(CONCATENATE([3]EJECUTIVO!$G$22," ",[3]EJECUTIVO!$I$21," ",[3]EJECUTIVO!$J$21))) -> JUNIO 2021 2022 | F39: =IF([4]EJECUTIVO!$G$22=[4]EJECUTIVO!$J$4,[4]EJECUTIVO!$G$22,(CONCATENATE([4]EJECUTIVO!$G$22," ",[4]EJECUTIVO!$I$21," ",[4]EJECUTIVO!$J$21))) -> JUNIO 2021 2022 | H39: =IF([2]EJECUTIVO!$G$22=[5]EJECUTIVO!$J$4,[5]EJECUTIVO!$G$22,(CONCATENATE([5]EJECUTIVO!$G$22," ",[5]EJECUTIVO!$I$21," ",[5]EJECUTIVO!$J$21))) -> JUNIO 2021 2022 | J39: =IF([2]EJECUTIVO!$G$22=[6]EJECUTIVO!$J$4,[6]EJECUTIVO!$G$22,(CONCATENATE([6]EJECUTIVO!$G$22," ",[6]EJECUTIVO!$I$21," ",[6]EJECUTIVO!$J$21))) -> JUNIO 2021 2022 | L39: =IF([2]EJECUTIVO!$G$22=[7]EJECUTIVO!$J$4,[7]EJECUTIVO!$G$22,(CONCATENATE([7]EJECUTIVO!$G$22," ",[7]EJECUTIVO!$I$21," ",[7]EJECUTIVO!$J$21))) -> JUNIO 2021 2022 | N39: =IF([2]EJECUTIVO!$G$22=[8]EJECUTIVO!$J$4,[8]EJECUTIVO!$G$22,(CONCATENATE([8]EJECUTIVO!$G$22," ",[8]EJECUTIVO!$I$21," ",[8]EJECUTIVO!$J$21))) -> MAYO 2021 2022
A40: 1.5.1 Saldo RIN a fines de mes | B40: =[2]EJECUTIVO!$I$22 -> 7137.056672 | C40: =ROUND([2]EJECUTIVO!$J$22,0) -> 6197 | D40: =[3]EJECUTIVO!$I$22 -> 2604.32 | E40: =[3]EJECUTIVO!$J$22 -> 3483.47 | F40: =[4]EJECUTIVO!$I$22 -> 18748.8 | G40: =ROUND([4]EJECUTIVO!$J$22,0) -> 19876 | H40: =[5]EJECUTIVO!$I$22 -> 8645.384492 | I40: =ROUND([5]EJECUTIVO!$J$22,0) -> 8352 | J40: =[6]EJECUTIVO!$I$22 -> 3497.034952 | K40: =ROUND([6]EJECUTIVO!$J$22,0) -> 4278 | L40: =[7]EJECUTIVO!$I$22 -> 12611.56367 | M40: =ROUND([7]EJECUTIVO!$J$22,0) -> 14455 | N40: =[8]EJECUTIVO!$I$22 -> 8286.662784 | O40: =ROUND([8]EJECUTIVO!$J$22,0) -> 8251
A41: 1.5.2 Saldo en el 2021 y proyectado para el 2022 | B41: =+[2]METAS!$H$25 -> 6918.14017 | C41: =+[2]METAS!$K$25 -> n.d. | D41: =+[3]METAS!$H$25 -> 3342.39 | E41: =+[3]METAS!$K$25 -> n.d. | F41: =+[4]METAS!$H$25 -> 20939.6 | G41: =+[4]METAS!$K$25 -> 22439.6 | H41: =+[5]METAS!$H$25 -> 8677.556815 | I41: =+[5]METAS!$K$25 -> n.d. | J41: =+[6]METAS!$H$25 -> 3954.552242 | K41: =+[6]METAS!$K$25 -> n.d. | L41: =+[7]METAS!$H$25 -> 13033.91743 | M41: =+[7]METAS!$K$25 -> n.d. | N41: =+[8]METAS!$H$25 -> 8099.465384 | O41: =+[8]METAS!$K$25 -> n.d.
B42: =IF([2]EJECUTIVO!$J$16=[2]EJECUTIVO!$J$4,[2]EJECUTIVO!$G$16,(CONCATENATE([2]EJECUTIVO!$G$16," ",[2]EJECUTIVO!$I$15," ",[2]EJECUTIVO!$J$15))) -> MARZO 2021 2022 | D42: =IF([3]EJECUTIVO!$J$16=[3]EJECUTIVO!$J$4,[3]EJECUTIVO!$G$16,(CONCATENATE([3]EJECUTIVO!$G$16," ",[3]EJECUTIVO!$I$15," ",[3]EJECUTIVO!$J$15))) -> JUNIO 2021 2022 | F42: =IF([4]EJECUTIVO!$J$16=[4]EJECUTIVO!$J$4,[4]EJECUTIVO!$G$16,(CONCATENATE([4]EJECUTIVO!$G$16," ",[4]EJECUTIVO!$I$15," ",[4]EJECUTIVO!$J$15))) -> ABRIL 2021 2022 | H42: =IF([5]EJECUTIVO!$J$16=[5]EJECUTIVO!$J$4,[5]EJECUTIVO!$G$16,(CONCATENATE([5]EJECUTIVO!$G$16," ",[5]EJECUTIVO!$I$15," ",[5]EJECUTIVO!$J$15))) -> MAYO 2021 2022 | J42: =IF([6]EJECUTIVO!$J$16=[6]EJECUTIVO!$J$4,[6]EJECUTIVO!$G$16,(CONCATENATE([6]EJECUTIVO!$G$16," ",[6]EJECUTIVO!$I$15," ",[6]EJECUTIVO!$J$15))) -> ABRIL 2021 2022 | L42: =IF([7]EJECUTIVO!$J$16=[7]EJECUTIVO!$J$4,[7]EJECUTIVO!$G$16,(CONCATENATE([7]EJECUTIVO!$G$16," ",[7]EJECUTIVO!$I$15," ",[7]EJECUTIVO!$J$15))) -> MARZO 2021 2022 | N42: =IF([8]EJECUTIVO!$J$16=[8]EJECUTIVO!$J$4,[8]EJECUTIVO!$G$16,(CONCATENATE([8]EJECUTIVO!$G$16," ",[8]EJECUTIVO!$I$15," ",[8]EJECUTIVO!$J$15))) -> MAYO 2021 2022
A43: 1.5.3 Saldo RIN/ Importaciones (importación promedio al mes indicado) | B43: =[2]EJECUTIVO!$I$19 -> 4.040952511 | C43: =[2]EJECUTIVO!$J$19 -> 2.951226383 | D43: =[3]EJECUTIVO!$I$19 -> 2.224067477 | E43: =[3]EJECUTIVO!$J$19 -> 2.339367321 | F43: =[4]EJECUTIVO!$I$19 -> 9.780192358 | G43: =[4]EJECUTIVO!$J$19 -> 7.968536749 | H43: =[5]EJECUTIVO!$I$19 -> 8.669407886 | I43: =[5]EJECUTIVO!$J$19 -> 6.93959715 | J43: =[6]EJECUTIVO!$I$19 -> 4.934512214 | K43: =[6]EJECUTIVO!$J$19 -> 4.919846392 | L43: =[7]EJECUTIVO!$I$19 -> 7.321641216 | M43: =[7]EJECUTIVO!$J$19 -> 6.30404198 | N43: =[8]EJECUTIVO!$I$19 -> 5.419484506 | O43: =[8]EJECUTIVO!$J$19 -> 4.003278543
A44: 1.5.3 Saldo RIN/ Importaciones (importación promedio al mes indicado) | B44: =IF([2]EJECUTIVO!$J$37=[2]EJECUTIVO!$J$4,CONCATENATE([2]EJECUTIVO!$G$38," TRIMESTRE"," "),CONCATENATE([2]EJECUTIVO!$G$38," TRIMESTRE ",[2]EJECUTIVO!$I$37," ",[2]EJECUTIVO!$J$37)) -> I TRIMESTRE | D44: =IF([3]EJECUTIVO!$J$37=[3]EJECUTIVO!$J$4,[3]EJECUTIVO!$G$38,(CONCATENATE([3]EJECUTIVO!$G$38," ",[3]EJECUTIVO!$I$37," ",[3]EJECUTIVO!$J$37))) -> JUNIO | F44: =IF([4]EJECUTIVO!$J$37=[4]EJECUTIVO!$J$4,CONCATENATE([4]EJECUTIVO!$G$38," TRIMESTRE"," "),CONCATENATE([4]EJECUTIVO!$G$38," TRIMESTRE ",[4]EJECUTIVO!$I$37," ",[4]EJECUTIVO!$J$37)) -> MAYO TRIMESTRE | H44: =IF([5]EJECUTIVO!$J$37=[5]EJECUTIVO!$J$4,CONCATENATE([5]EJECUTIVO!$G$38," TRIMESTRE"," "),CONCATENATE([5]EJECUTIVO!$G$38," TRIMESTRE ",[5]EJECUTIVO!$I$37," ",[5]EJECUTIVO!$J$37)) -> JUNIO TRIMESTRE | J44: =IF([6]EJECUTIVO!$J$37=[6]EJECUTIVO!$J$4,CONCATENATE([6]EJECUTIVO!$G$38," TRIMESTRE"," "),CONCATENATE([6]EJECUTIVO!$G$38," TRIMESTRE ",[6]EJECUTIVO!$I$37," ",[6]EJECUTIVO!$J$37)) -> MAYO TRIMESTRE | L44: =IF([7]EJECUTIVO!$J$37=[7]EJECUTIVO!$J$4,CONCATENATE([7]EJECUTIVO!$G$38," TRIMESTRE"," "),CONCATENATE([7]EJECUTIVO!$G$38," TRIMESTRE ",[7]EJECUTIVO!$I$37," ",[7]EJECUTIVO!$J$37)) -> JUNIO TRIMESTRE | N44: =IF([7]EJECUTIVO!$J$37=[7]EJECUTIVO!$J$4,CONCATENATE([7]EJECUTIVO!$G$38," TRIMESTRE"," "),CONCATENATE([7]EJECUTIVO!$G$38," TRIMESTRE ",[7]EJECUTIVO!$I$37," ",[7]EJECUTIVO!$J$37)) -> JUNIO TRIMESTRE
A45: 1.5.3 Saldo RIN/ Importaciones (importación promedio al mes indicado) | B45: =[2]EJECUTIVO!$I$38 -> 126.5553296 | C45: =[2]EJECUTIVO!$J$38 -> 141.1735632 | D45: =[3]EJECUTIVO!$I$38 -> 3649.65 | E45: =[3]EJECUTIVO!$J$38 -> 3778.67 | F45: =[4]EJECUTIVO!$I$38 -> 5603.7 | G45: =[4]EJECUTIVO!$J$38 -> 7045.1 | H45: =[5]EJECUTIVO!$I$38 -> 3483.0781 | I45: =[5]EJECUTIVO!$J$38 -> 4175.556 | J45: =[6]EJECUTIVO!$I$38 -> 858.3 | K45: =[6]EJECUTIVO!$J$38 -> 1132.5 | L45: =[7]EJECUTIVO!$I$38 -> 5263.071784 | M45: =[7]EJECUTIVO!$J$38 -> 4861.056273 | N45: =[7]EJECUTIVO!$I$38 -> 5263.071784 | O45: =[7]EJECUTIVO!$J$38 -> 4861.056273
A46: 1.5.3 Saldo RIN/ Importaciones (importación promedio al mes indicado) | B46: =[2]METAS!$H$27 -> 558.8144439 | C46: =[2]METAS!$M$27 -> n.d. | D46: =[3]METAS!$H$27 -> 7517.14 | E46: =[3]METAS!$M$27 -> n.d. | F46: =[4]METAS!$H$27 -> 15295.7 | G46: =[4]METAS!$M$27 -> 17590.038 | H46: =[5]METAS!$H$27 -> 7370.0331 | I46: =[5]METAS!$M$27 -> 8190.216 | J46: =[6]METAS!$H$27 -> 2146.9 | K46: =[6]METAS!$M$27 -> n.d. | L46: =[7]METAS!$H$27 -> 10402.4692 | M46: =[7]METAS!$M$27 -> n.d. | N46: =[7]METAS!$H$27 -> 10402.4692 | O46: =[7]METAS!$M$27 -> n.d.
A47: 2. Tipo de Cambio | B47: =IF([2]EJECUTIVO!$J$4=[2]EJECUTIVO!$J$8,[2]EJECUTIVO!$G$10,CONCATENATE([2]EJECUTIVO!$G$31," ",[2]EJECUTIVO!$I$30," ",[2]EJECUTIVO!$J$30)) -> JUNIO 2021 2022 | D47: =IF([3]EJECUTIVO!$J$4=[3]EJECUTIVO!$J$8,[3]EJECUTIVO!$G$10,CONCATENATE([3]EJECUTIVO!$G$31," ",[3]EJECUTIVO!$I$30," ",[3]EJECUTIVO!$J$30)) -> JUNIO 2021 2022 | F47: =IF([4]EJECUTIVO!$J$4=[4]EJECUTIVO!$J$8,[4]EJECUTIVO!$G$10,CONCATENATE([4]EJECUTIVO!$G$31," ",[4]EJECUTIVO!$I$30," ",[4]EJECUTIVO!$J$30)) -> JUNIO 2021 2022 | H47: =IF([5]EJECUTIVO!$J$4=[5]EJECUTIVO!$J$8,[5]EJECUTIVO!$G$10,CONCATENATE([5]EJECUTIVO!$G$31," ",[5]EJECUTIVO!$I$30," ",[5]EJECUTIVO!$J$30)) -> JUNIO 2021 2022 | J47: =IF([6]EJECUTIVO!$J$4=[6]EJECUTIVO!$J$8,[6]EJECUTIVO!$G$10,CONCATENATE([6]EJECUTIVO!$G$31," ",[6]EJECUTIVO!$I$30," ",[6]EJECUTIVO!$J$30)) -> MAYO 2021 2022 | L47: =IF([7]EJECUTIVO!$J$4=[7]EJECUTIVO!$J$8,[7]EJECUTIVO!$G$10,CONCATENATE([7]EJECUTIVO!$G$31," ",[7]EJECUTIVO!$I$30," ",[7]EJECUTIVO!$J$30)) -> ABRIL 2021 2022 | N47: =IF([8]EJECUTIVO!$J$4=[8]EJECUTIVO!$J$8,[8]EJECUTIVO!$G$10,CONCATENATE([8]EJECUTIVO!$G$31," ",[8]EJECUTIVO!$I$30," ",[8]EJECUTIVO!$J$30)) -> JUNIO 2021 2022
A48: 2.1 Unidades Moneda Nacional por US$, promedio compra | B48: =[2]EJECUTIVO!$I$31 -> 614.183 | C48: =[2]EJECUTIVO!$J$31 -> 685.4343333 | D48: =[3]EJECUTIVO!$I$31 -> 8.75 | E48: =[3]EJECUTIVO!$J$31 -> 8.75 | F48: =[4]EJECUTIVO!$I$31 -> 7.71909 | G48: =[4]EJECUTIVO!$J$31 -> 7.71854 | H48: =[5]EJECUTIVO!$I$31 -> 23.96450455 | I48: =[5]EJECUTIVO!$J$31 -> 24.39289091 | J48: =[6]EJECUTIVO!$I$31 -> 34.93232821 | K48: =[6]EJECUTIVO!$J$31 -> 35.67660983 | L48: =[7]EJECUTIVO!$I$31 -> 56.7968 | M48: =[7]EJECUTIVO!$J$31 -> 54.9475 | N48: =[8]EJECUTIVO!$I$31 -> 1 | O48: =[8]EJECUTIVO!$J$31 -> 1
A49: 2.2 ITCER-USA, 2000=100, tasa de variación interanual | B49: =[2]EJECUTIVO!$I$32 -> 10.61938083 | C49: =[2]EJECUTIVO!$J$32 -> 10.52571918 | D49: =[3]EJECUTIVO!$I$32 -> 2.684113727 | E49: =[3]EJECUTIVO!$J$32 -> 1.147009744 | F49: =[4]EJECUTIVO!$I$32 -> 1.877050952 | G49: =[4]EJECUTIVO!$J$32 -> 1.332952312 | H49: =[5]EJECUTIVO!$I$32 -> -2.654066418 | I49: =[5]EJECUTIVO!$J$32 -> 0.6600622756 | J49: =[6]EJECUTIVO!$I$32 -> 3.350680189 | K49: =[6]EJECUTIVO!$J$32 -> 0.1974063218 | L49: =[7]EJECUTIVO!$I$32 -> -0.3133908775 | M49: =[7]EJECUTIVO!$J$32 -> -4.508033478 | N49: =[8]EJECUTIVO!$I$32 -> 3.702438041 | O49: =[8]EJECUTIVO!$J$32 -> 3.609160355
A50: 2.3 ITCER-Global f/, 2000=100, tasa de variación interanual | B50: =[2]EJECUTIVO!$I$33 -> 12.63555522 | C50: =[2]EJECUTIVO!$J$33 -> 6.348630328 | D50: =[3]EJECUTIVO!$I$33 -> 4.487048502 | E50: =[3]EJECUTIVO!$J$33 -> -2.010530154 | F50: =[4]EJECUTIVO!$I$33 -> 3.497072527 | G50: =[4]EJECUTIVO!$J$33 -> -1.765663494 | H50: =[5]EJECUTIVO!$I$33 -> -0.5677311259 | I50: =[5]EJECUTIVO!$J$33 -> -1.52483163 | J50: =[6]EJECUTIVO!$I$33 -> 5.556838401 | K50: =[6]EJECUTIVO!$J$33 -> -4.060643911 | L50: =[7]EJECUTIVO!$I$33 -> 3.644896733 | M50: =[7]EJECUTIVO!$J$33 -> -6.054602769 | N50: =[8]EJECUTIVO!$I$33 -> 5.890511059 | O50: =[8]EJECUTIVO!$J$33 -> -2.76538422
A51: 2.4 ITCER-Región g/, 2000=100, tasa de variación interanual | B51: =[2]EJECUTIVO!$I$34 -> 9.628019704 | C51: =[2]EJECUTIVO!$J$34 -> 9.508228918 | D51: =[3]EJECUTIVO!$I$34 -> 1.1850045 | E51: =[3]EJECUTIVO!$J$34 -> -0.5479822616 | F51: =[4]EJECUTIVO!$I$34 -> -0.4899806581 | G51: =[4]EJECUTIVO!$J$34 -> -1.024457188 | H51: =[5]EJECUTIVO!$I$34 -> -4.116664703 | I51: =[5]EJECUTIVO!$J$34 -> 1.308514887 | J51: =[6]EJECUTIVO!$I$34 -> -0.2088973157 | K51: =[6]EJECUTIVO!$J$34 -> -1.741659096 | L51: =[7]EJECUTIVO!$I$34 -> -3.157635085 | M51: =[7]EJECUTIVO!$J$34 -> -8.701967097 | N51: =[8]EJECUTIVO!$I$34 -> -1.53736648 | O51: =[8]EJECUTIVO!$J$34 -> -1.276783029
A52: 2.5 ITCER-Global f/, tasa de variación con el año base (2000) | B52: =[2]EJECUTIVO!$I$35 -> -6.077161652 | C52: =[2]EJECUTIVO!$J$35 -> -0.1143478516 | D52: =[3]EJECUTIVO!$I$35 -> 12.50048832 | E52: =[3]EJECUTIVO!$J$35 -> 10.23863208 | F52: =[4]EJECUTIVO!$I$35 -> -45.44958317 | G52: =[4]EJECUTIVO!$J$35 -> -46.41275997 | H52: =[5]EJECUTIVO!$I$35 -> -17.99459621 | I52: =[5]EJECUTIVO!$J$35 -> -19.24504054 | J52: =[6]EJECUTIVO!$I$35 -> 20.16532219 | K52: =[6]EJECUTIVO!$J$35 -> 15.28583635 | L52: =[7]EJECUTIVO!$I$35 -> 26.30167311 | M52: =[7]EJECUTIVO!$J$35 -> 18.65460851 | N52: =[8]EJECUTIVO!$I$35 -> 4.35417034 | O52: =[8]EJECUTIVO!$J$35 -> 1.46837658
A54: III. SECTOR FISCAL
A55: 1. Resultado del Gobierno Central, en millones de US$ | B55: =IF([2]EJECUTIVO!$J$49=[2]EJECUTIVO!$J$4,[2]EJECUTIVO!$G$49,(CONCATENATE([2]EJECUTIVO!$G$49," ",[2]EJECUTIVO!$I$48," ",[2]EJECUTIVO!$J$48))) -> MARZO 2021 2022 | D55: =IF([3]EJECUTIVO!$J$49=[3]EJECUTIVO!$J$4,[3]EJECUTIVO!$G$49,(CONCATENATE([3]EJECUTIVO!$G$49," ",[3]EJECUTIVO!$I$48," ",[3]EJECUTIVO!$J$48))) -> MAYO 2021 2022 | F55: =IF([4]EJECUTIVO!$J$49=[4]EJECUTIVO!$J$4,[4]EJECUTIVO!$G$49,(CONCATENATE([4]EJECUTIVO!$G$49," ",[4]EJECUTIVO!$I$48," ",[4]EJECUTIVO!$J$48))) -> MAYO 2021 2022 | H55: =IF([5]EJECUTIVO!$J$49=[5]EJECUTIVO!$J$4,[5]EJECUTIVO!$G$49,(CONCATENATE([5]EJECUTIVO!$G$49," ",[5]EJECUTIVO!$I$48," ",[5]EJECUTIVO!$J$48))) -> MAYO 2021 2022 | J55: =IF([6]EJECUTIVO!$J$49=[6]EJECUTIVO!$J$4,[6]EJECUTIVO!$G$49,(CONCATENATE([6]EJECUTIVO!$G$49," ",[6]EJECUTIVO!$I$48," ",[6]EJECUTIVO!$J$48))) -> ABRIL 2021 2022 | L55: =IF([7]EJECUTIVO!$J$49=[7]EJECUTIVO!$J$4,[7]EJECUTIVO!$G$49,(CONCATENATE([7]EJECUTIVO!$G$49," ",[7]EJECUTIVO!$I$48," ",[7]EJECUTIVO!$J$48))) -> ABRIL 2021 2022 | N55: =IF([8]EJECUTIVO!$J$49=[8]EJECUTIVO!$J$4,[8]EJECUTIVO!$G$49,(CONCATENATE([8]EJECUTIVO!$G$49," ",[8]EJECUTIVO!$I$48," ",[8]EJECUTIVO!$J$48))) -> MARZO 2021 2022
A56: 1.1 Ingresos totales, acumulado | B56: =[2]EJECUTIVO!$I49 -> 2859.737435 | C56: =[2]EJECUTIVO!$J49 -> 3022.058552 | D56: =[3]EJECUTIVO!$I49 -> 2720.151575 | E56: =[3]EJECUTIVO!$J49 -> 3251.375904 | F56: =[4]EJECUTIVO!$I49 -> 4192.122816 | G56: =[4]EJECUTIVO!$J49 -> 4932.011081 | H56: =[5]EJECUTIVO!$I49 -> 2108.878594 | I56: =[5]EJECUTIVO!$J49 -> 2420.839762 | J56: =[6]EJECUTIVO!$I49 -> 1020.060629 | K56: =[6]EJECUTIVO!$J49 -> 1208.128034 | L56: =[7]EJECUTIVO!$I49 -> 4599.763451 | M56: =[7]EJECUTIVO!$J49 -> 5504.634198 | N56: =[8]EJECUTIVO!$I49 -> 1501.4 | O56: =[8]EJECUTIVO!$J49 -> 1773.2
A57: 1.2 Ingresos tributarios, acumulado | B57: =[2]EJECUTIVO!$I50 -> 2406.266633 | C57: =[2]EJECUTIVO!$J50 -> 2709.489287 | D57: =[3]EJECUTIVO!$I50 -> 2617.195408 | E57: =[3]EJECUTIVO!$J50 -> 3156.817045 | F57: =[4]EJECUTIVO!$I50 -> 3998.221901 | G57: =[4]EJECUTIVO!$J50 -> 4695.881009 | H57: =[5]EJECUTIVO!$I50 -> 1956.162149 | I57: =[5]EJECUTIVO!$J50 -> 2264.692563 | J57: =[6]EJECUTIVO!$I50 -> 950.0049376 | K57: =[6]EJECUTIVO!$J50 -> 1122.714409 | L57: =[7]EJECUTIVO!$I50 -> 4315.956546 | M57: =[7]EJECUTIVO!$J50 -> 5091.673559 | N57: =[8]EJECUTIVO!$I50 -> 1058.1 | O57: =[8]EJECUTIVO!$J50 -> 1434.7
A58: 1.3 Gastos totales, acumulado | B58: =[2]EJECUTIVO!$I51 -> 3510.296248 | C58: =[2]EJECUTIVO!$J51 -> 3543.068433 | D58: =[3]EJECUTIVO!$I51 -> 2932.456794 | E58: =[3]EJECUTIVO!$J51 -> 3041.573221 | F58: =[4]EJECUTIVO!$I51 -> 4257.804867 | G58: =[4]EJECUTIVO!$J51 -> 4905.31573 | H58: =[5]EJECUTIVO!$I51 -> 2161.689351 | I58: =[5]EJECUTIVO!$J51 -> 1945.748537 | J58: =[6]EJECUTIVO!$I51 -> 910.3481292 | K58: =[6]EJECUTIVO!$J51 -> 996.2537746 | L58: =[7]EJECUTIVO!$I51 -> 4783.962075 | M58: =[7]EJECUTIVO!$J51 -> 5702.868703 | N58: =[8]EJECUTIVO!$I51 -> 2687.5 | O58: =[8]EJECUTIVO!$J51 -> 3243.3
A59: 1.4 Donaciones, acumulado | B59: =[2]EJECUTIVO!$I52 -> 0 | C59: =[2]EJECUTIVO!$J52 -> 0 | D59: =[3]EJECUTIVO!$I52 -> 4.28811257 | E59: =[3]EJECUTIVO!$J52 -> 7.1050527 | F59: =[4]EJECUTIVO!$I52 -> 6.952312676 | G59: =[4]EJECUTIVO!$J52 -> 3.503402317 | H59: =[5]EJECUTIVO!$I52 -> 46.4437774 | I59: =[5]EJECUTIVO!$J52 -> 31.62091309 | J59: =[6]EJECUTIVO!$I52 -> 10.34648064 | K59: =[6]EJECUTIVO!$J52 -> 4.84322141 | L59: =[7]EJECUTIVO!$I52 -> 31.4582037 | M59: =[7]EJECUTIVO!$J52 -> 6.753860617 | N59: =[8]EJECUTIVO!$I52 -> 0 | O59: =[8]EJECUTIVO!$J52 -> 0
A60: 1.5 Déficit (-) superávit (+) con donaciones | B60: =[2]EJECUTIVO!$I56 -> -650.5588133 | C60: =[2]EJECUTIVO!$J56 -> -521.009881 | D60: =[3]EJECUTIVO!$I56 -> -208.0171063 | E60: =[3]EJECUTIVO!$J56 -> 216.9077353 | F60: =[4]EJECUTIVO!$I56 -> -58.72973868 | G60: =[4]EJECUTIVO!$J56 -> 30.1987525 | H60: =[5]EJECUTIVO!$I56 -> -6.366979259 | I60: =[5]EJECUTIVO!$J56 -> 506.7121374 | J60: =[6]EJECUTIVO!$I56 -> 120.0589807 | K60: =[6]EJECUTIVO!$J56 -> 216.7174807 | L60: =[7]EJECUTIVO!$I56 -> -152.7404204 | M60: =[7]EJECUTIVO!$J56 -> -191.4806447 | N60: =[8]EJECUTIVO!$I56 -> -1186.1 | O60: =[8]EJECUTIVO!$J56 -> -1470.1
A61: 1.5.1 Financiamiento interno | B61: =[2]EJECUTIVO!$I57 -> 602.8915262 | C61: =[2]EJECUTIVO!$J57 -> -62.11115422 | D61: =[3]EJECUTIVO!$I57 -> 30.82173337 | E61: =[3]EJECUTIVO!$J57 -> -329.0129375 | F61: =[4]EJECUTIVO!$I57 -> 210.8696356 | G61: =[4]EJECUTIVO!$J57 -> 105.3320699 | H61: =[5]EJECUTIVO!$I57 -> 35.26996018 | I61: =[5]EJECUTIVO!$J57 -> -462.6663409 | J61: =[6]EJECUTIVO!$I57 -> -243.1178068 | K61: =[6]EJECUTIVO!$J57 -> -302.5664873 | L61: =[7]EJECUTIVO!$I57 -> -2267.435863 | M61: =[7]EJECUTIVO!$J57 -> -2821.903346 | N61: =[8]EJECUTIVO!$I57 -> n.d. | O61: =[8]EJECUTIVO!$J57 -> n.d.
A62: 1.5.2 Financiamiento externo | B62: =[2]EJECUTIVO!$I58 -> 47.66727411 | C62: =[2]EJECUTIVO!$J58 -> 583.1209465 | D62: =[3]EJECUTIVO!$I58 -> 177.195373 | E62: =[3]EJECUTIVO!$J58 -> 112.1052022 | F62: =[4]EJECUTIVO!$I58 -> -152.1398969 | G62: =[4]EJECUTIVO!$J58 -> -135.5308224 | H62: =[5]EJECUTIVO!$I58 -> -28.90298092 | I62: =[5]EJECUTIVO!$J58 -> -44.04579652 | J62: =[6]EJECUTIVO!$I58 -> 123.0588262 | K62: =[6]EJECUTIVO!$J58 -> 85.84861472 | L62: =[7]EJECUTIVO!$I58 -> 2430.025773 | M62: =[7]EJECUTIVO!$J58 -> 2906.727745 | N62: =[8]EJECUTIVO!$I58 -> n.d. | O62: =[8]EJECUTIVO!$J58 -> n.d.
A63: 1.6 Déficit (-) superávit (+) en el 2021 y estimado 2022, con donaciones | B63: =[2]METAS!$H$39 -> -3245.705714 | C63: =[2]METAS!$K$39 -> n.d. | D63: =[3]METAS!$H$39 -> -1416.764698 | E63: =[3]METAS!$K$39 -> n.d. | F63: =[4]METAS!$H$39 -> -1007.729443 | G63: =[4]METAS!$K$39 -> -2067.259175 | H63: =[5]METAS!$H$39 -> -1408.959243 | I63: =[5]METAS!$K$39 -> n.d. | J63: =[6]METAS!$H$39 -> -100.9259332 | K63: =[6]METAS!$K$39 -> n.d. | L63: =[7]METAS!$H$39 -> -2872.331159 | M63: =[7]METAS!$K$39 -> n.d. | N63: =[8]METAS!$H$39 -> -3981.3 | O63: =[8]METAS!$K$39 -> n.d.
A64: 1.7 Ingresos Corrientes, tasa de variación interanual | B64: =[2]EJECUTIVO!$I53 -> 26.72024127 | C64: =[2]EJECUTIVO!$J53 -> 11.8684678 | D64: =[3]EJECUTIVO!$I53 -> 29.03458273 | E64: =[3]EJECUTIVO!$J53 -> 19.52921793 | F64: =[4]EJECUTIVO!$I53 -> 22.18058126 | G64: =[4]EJECUTIVO!$J53 -> 17.01008672 | H64: =[5]EJECUTIVO!$I53 -> 35.93798941 | I64: =[5]EJECUTIVO!$J53 -> 15.94291044 | J64: =[6]EJECUTIVO!$I53 -> 24.20804623 | K64: =[6]EJECUTIVO!$J53 -> 20.79669112 | L64: =[7]EJECUTIVO!$I53 -> 35.48492159 | M64: =[7]EJECUTIVO!$J53 -> 16.5018557 | N64: =[8]EJECUTIVO!$I53 -> 5.000350165 | O64: =[8]EJECUTIVO!$J53 -> 18.25518575
A65: 1.8 Relación Gasto Capital / Gasto Total, en porcentajes | B65: =[2]EJECUTIVO!$I54 -> 5.607418254 | C65: =[2]EJECUTIVO!$J54 -> 4.692639296 | D65: =[3]EJECUTIVO!$I54 -> 13.85334392 | E65: =[3]EJECUTIVO!$J54 -> 9.178021816 | F65: =[4]EJECUTIVO!$I54 -> 15.964905 | G65: =[4]EJECUTIVO!$J54 -> 16.81534628 | H65: =[5]EJECUTIVO!$I54 -> 17.51002538 | I65: =[5]EJECUTIVO!$J54 -> 7.296135083 | J65: =[6]EJECUTIVO!$I54 -> 24.929661 | K65: =[6]EJECUTIVO!$J54 -> 17.05161951 | L65: =[7]EJECUTIVO!$I54 -> 6.395720407 | M65: =[7]EJECUTIVO!$J54 -> 8.021832463 | N65: =[8]EJECUTIVO!$I54 -> 22.16186047 | O65: =[8]EJECUTIVO!$J54 -> 36.45669534
A66: 1.9 Ahorro Corriente, en millones de US$ | B66: =[2]EJECUTIVO!$I55 -> -458.0062016 | C66: =[2]EJECUTIVO!$J55 -> -348.7624517 | D66: =[3]EJECUTIVO!$I55 -> 193.8949213 | E66: =[3]EJECUTIVO!$J55 -> 488.9589364 | F66: =[4]EJECUTIVO!$I55 -> 607.3050036 | G66: =[4]EJECUTIVO!$J55 -> 847.0157205 | H66: =[5]EJECUTIVO!$I55 -> 318.9480272 | I66: =[5]EJECUTIVO!$J55 -> 599.0401919 | J66: =[6]EJECUTIVO!$I55 -> 336.6505236 | K66: =[6]EJECUTIVO!$J55 -> 381.7160379 | L66: =[7]EJECUTIVO!$I55 -> 122.9437785 | M66: =[7]EJECUTIVO!$J55 -> 261.4130361 | N66: =[8]EJECUTIVO!$I55 -> -592.6 | O66: =[8]EJECUTIVO!$J55 -> -287.9
A67: 2. Saldo Deuda Pública, en millones de US$ | B67: =IF([2]EJECUTIVO!$J$62=[2]EJECUTIVO!$J$4,[2]EJECUTIVO!$G$62,CONCATENATE([2]EJECUTIVO!$G$62," ",[2]EJECUTIVO!$I$61," ",[2]EJECUTIVO!$J$61)) -> ABRIL 2021 2022 | D67: =IF([3]EJECUTIVO!$J$62=[3]EJECUTIVO!$J$4,[3]EJECUTIVO!$G$62,CONCATENATE([3]EJECUTIVO!$G$62," ",[3]EJECUTIVO!$I$61," ",[3]EJECUTIVO!$J$61)) -> MAYO 2021 2022 | F67: =IF([4]EJECUTIVO!$J$62=[4]EJECUTIVO!$J$4,[4]EJECUTIVO!$G$62,CONCATENATE([4]EJECUTIVO!$G$62," ",[4]EJECUTIVO!$I$61," ",[4]EJECUTIVO!$J$61)) -> MAYO 2021 2022 | H67: =IF([5]EJECUTIVO!$J$62=[5]EJECUTIVO!$J$4,[5]EJECUTIVO!$G$62,CONCATENATE([5]EJECUTIVO!$G$62," ",[5]EJECUTIVO!$I$61," ",[5]EJECUTIVO!$J$61)) -> MAYO 2021 2022 | J67: =IF([6]EJECUTIVO!$J$62=[6]EJECUTIVO!$J$4,[6]EJECUTIVO!$G$62,CONCATENATE([6]EJECUTIVO!$G$62," ",[6]EJECUTIVO!$I$61," ",[6]EJECUTIVO!$J$61)) -> ABRIL 2021 2022 | L67: =IF([7]EJECUTIVO!$J$62=[7]EJECUTIVO!$J$4,[7]EJECUTIVO!$G$62,CONCATENATE([7]EJECUTIVO!$G$62," ",[7]EJECUTIVO!$I$61," ",[7]EJECUTIVO!$J$61)) -> ABRIL 2021 2022 | N67: =IF([8]EJECUTIVO!$J$62=[8]EJECUTIVO!$J$4,[8]EJECUTIVO!$G$62,CONCATENATE([8]EJECUTIVO!$G$62," ",[8]EJECUTIVO!$I$61," ",[8]EJECUTIVO!$J$61)) -> JUNIO 2021 2022
A68: 2.1 Saldo Deuda Pública Total h/ | B68: =[2]EJECUTIVO!$I$62 -> 50127.09362 | C68: =[2]EJECUTIVO!$J62 -> 50907.43822 | D68: =[3]EJECUTIVO!$I62 -> 23298.24276 | E68: =[3]EJECUTIVO!$J62 -> 24579.67398 | F68: =[4]EJECUTIVO!$I62 -> 25886.40622 | G68: =[4]EJECUTIVO!$J62 -> 27503.76076 | H68: =[5]EJECUTIVO!$I62 -> 13706.35862 | I68: =[5]EJECUTIVO!$J62 -> 14618.02867 | J68: =[6]EJECUTIVO!$I62 -> 8679.407115 | K68: =[6]EJECUTIVO!$J62 -> 9505.104015 | L68: =[7]EJECUTIVO!$I62 -> 59357.44 | M68: =[7]EJECUTIVO!$J62 -> 64332.44 | N68: =[8]EJECUTIVO!$I62 -> 39684.42 | O68: =[8]EJECUTIVO!$J62 -> 43175.31
A69: 2.1.1 Saldo Deuda Interna Bruta | B69: =[2]EJECUTIVO!$I$63 -> 36846.56362 | C69: =[2]EJECUTIVO!$J63 -> 35971.08692 | D69: =[3]EJECUTIVO!$I63 -> 11945.98895 | E69: =[3]EJECUTIVO!$J63 -> 12654.19393 | F69: =[4]EJECUTIVO!$I63 -> 22359.10036 | G69: =[4]EJECUTIVO!$J63 -> 23286.51419 | H69: =[5]EJECUTIVO!$I63 -> 10999.23922 | I69: =[5]EJECUTIVO!$J63 -> 12577.46357 | J69: =[6]EJECUTIVO!$I63 -> 1601.859104 | K69: =[6]EJECUTIVO!$J63 -> 1624.449541 | L69: =[7]EJECUTIVO!$I63 -> 28353.34 | M69: =[7]EJECUTIVO!$J63 -> 29593.66 | N69: =[8]EJECUTIVO!$I63 -> 7559.2 | O69: =[8]EJECUTIVO!$J63 -> 7655.73
A70: 2.1.1.1 Sector Público No Financiero | B70: =[2]EJECUTIVO!$I$64 -> 33547.65943 | C70: =[2]EJECUTIVO!$J64 -> 33320.54448 | D70: =[3]EJECUTIVO!$I64 -> 6050.587211 | E70: =[3]EJECUTIVO!$J64 -> 6538.476994 | F70: =[4]EJECUTIVO!$I64 -> 15002.33966 | G70: =[4]EJECUTIVO!$J64 -> 16033.17819 | H70: =[5]EJECUTIVO!$I64 -> 9689.609894 | I70: =[5]EJECUTIVO!$J64 -> 10490.97391 | J70: =[6]EJECUTIVO!$I64 -> 818.7191397 | K70: =[6]EJECUTIVO!$J64 -> 877.6550209 | L70: =[7]EJECUTIVO!$I64 -> 14317.5 | M70: =[7]EJECUTIVO!$J64 -> 14095.83 | N70: =[8]EJECUTIVO!$I64 -> 7559.2 | O70: =[8]EJECUTIVO!$J64 -> 7655.73
A71: a) Gobierno Central | B71: =[2]EJECUTIVO!$I$65 -> 32208.99182 | C71: =[2]EJECUTIVO!$J65 -> 31891.45725 | D71: =[3]EJECUTIVO!$I65 -> 5585.444712 | E71: =[3]EJECUTIVO!$J65 -> 5971.527497 | F71: =[4]EJECUTIVO!$I65 -> 15002.33966 | G71: =[4]EJECUTIVO!$J65 -> 16033.17819 | H71: =[5]EJECUTIVO!$I65 -> 6841.998509 | I71: =[5]EJECUTIVO!$J65 -> 7620.657793 | J71: =[6]EJECUTIVO!$I65 -> 818.7191397 | K71: =[6]EJECUTIVO!$J65 -> 877.6550209 | L71: =[7]EJECUTIVO!$I65 -> 13838.4 | M71: =[7]EJECUTIVO!$J65 -> 13704.5 | N71: =[8]EJECUTIVO!$I65 -> 7555.38 | O71: =[8]EJECUTIVO!$J65 -> 7651.91
A72: b) Resto del Sector Público No Financiero | B72: =[2]EJECUTIVO!$I$66 -> 1338.667617 | C72: =[2]EJECUTIVO!$J66 -> 1429.08723 | D72: =[3]EJECUTIVO!$I66 -> 465.1424982 | E72: =[3]EJECUTIVO!$J66 -> 566.9494969 | F72: =[4]EJECUTIVO!$I66 -> n.d. | G72: =[4]EJECUTIVO!$J66 -> n.d. | H72: =[5]EJECUTIVO!$I66 -> 2847.611385 | I72: =[5]EJECUTIVO!$J66 -> 2870.316119 | J72: =[6]EJECUTIVO!$I66 -> n.d. | K72: =[6]EJECUTIVO!$J66 -> n.d. | L72: =[7]EJECUTIVO!$I66 -> 479.1 | M72: =[7]EJECUTIVO!$J66 -> 391.33 | N72: =[8]EJECUTIVO!$I66 -> 3.82 | O72: =[8]EJECUTIVO!$J66 -> 3.82
A73: 2.1.1.2 Sector Público Financiero | B73: =[2]EJECUTIVO!$I$67 -> 3298.904187 | C73: =[2]EJECUTIVO!$J67 -> 2650.542444 | D73: =[3]EJECUTIVO!$I67 -> 5895.401738 | E73: =[3]EJECUTIVO!$J67 -> 6115.716934 | F73: =[4]EJECUTIVO!$I67 -> 7356.760698 | G73: =[4]EJECUTIVO!$J67 -> 7253.336005 | H73: =[5]EJECUTIVO!$I67 -> 1309.629331 | I73: =[5]EJECUTIVO!$J67 -> 2086.489658 | J73: =[6]EJECUTIVO!$I67 -> 783.1399645 | K73: =[6]EJECUTIVO!$J67 -> 746.7945198 | L73: =[7]EJECUTIVO!$I67 -> 14035.84 | M73: =[7]EJECUTIVO!$J67 -> 15497.83 | N73: =[8]EJECUTIVO!$I67 -> n.d. | O73: =[8]EJECUTIVO!$J67 -> n.d.
A74: a) Banco Central | B74: =[2]EJECUTIVO!$I$68 -> 3298.904187 | C74: =[2]EJECUTIVO!$J68 -> 2650.542444 | D74: =[3]EJECUTIVO!$I68 -> 0 | E74: =[3]EJECUTIVO!$J68 -> 0 | F74: =[4]EJECUTIVO!$I68 -> 7356.760698 | G74: =[4]EJECUTIVO!$J68 -> 7253.336005 | H74: =[5]EJECUTIVO!$I68 -> 1176.065521 | I74: =[5]EJECUTIVO!$J68 -> 1946.743534 | J74: =[6]EJECUTIVO!$I68 -> 783.1399645 | K74: =[6]EJECUTIVO!$J68 -> 746.7945198 | L74: =[7]EJECUTIVO!$I68 -> 14035.84 | M74: =[7]EJECUTIVO!$J68 -> 15497.83 | N74: =[8]EJECUTIVO!$I68 -> n.d. | O74: =[8]EJECUTIVO!$J68 -> n.d.
A75: b) Resto del Sector Público Financiero | B75: =[2]EJECUTIVO!$I$69 -> n.d. | C75: =[2]EJECUTIVO!$J69 -> n.d. | D75: =[3]EJECUTIVO!$I69 -> 5895.401738 | E75: =[3]EJECUTIVO!$J69 -> 6115.716934 | F75: =[4]EJECUTIVO!$I69 -> n.d. | G75: =[4]EJECUTIVO!$J69 -> n.d. | H75: =[5]EJECUTIVO!$I69 -> 133.5638094 | I75: =[5]EJECUTIVO!$J69 -> 139.7461237 | J75: =[6]EJECUTIVO!$I69 -> n.d. | K75: =[6]EJECUTIVO!$J69 -> n.d. | L75: =[7]EJECUTIVO!$I69 -> n.d. | M75: =[7]EJECUTIVO!$J69 -> n.d. | N75: =[8]EJECUTIVO!$I69 -> n.d. | O75: =[8]EJECUTIVO!$J69 -> n.d.
A76: 2.1.2 Deuda Intragubernamental | B76: =[2]EJECUTIVO!$I$70 -> n.d. | C76: =[2]EJECUTIVO!$J70 -> n.d. | D76: =[3]EJECUTIVO!$I70 -> n.d. | E76: =[3]EJECUTIVO!$J70 -> n.d. | F76: =[4]EJECUTIVO!$I70 -> 6759.880536 | G76: =[4]EJECUTIVO!$J70 -> 6725.488832 | H76: =[5]EJECUTIVO!$I70 -> 6383.480605 | I76: =[5]EJECUTIVO!$J70 -> 7097.434903 | J76: =[6]EJECUTIVO!$I70 -> n.d. | K76: =[6]EJECUTIVO!$J70 -> n.d. | L76: =[7]EJECUTIVO!$I70 -> 2429.09 | M76: =[7]EJECUTIVO!$J70 -> 2449.64 | N76: =[8]EJECUTIVO!$I70 -> n.d. | O76: =[8]EJECUTIVO!$J70 -> n.d.
A77: a) Deuda Intragubernamental SPNF | B77: =[2]EJECUTIVO!$I$71 -> n.d. | C77: =[2]EJECUTIVO!$J71 -> n.d. | D77: =[3]EJECUTIVO!$I71 -> n.d. | E77: =[3]EJECUTIVO!$J71 -> n.d. | F77: =[4]EJECUTIVO!$I71 -> 3957.745097 | G77: =[4]EJECUTIVO!$J71 -> 3977.096777 | H77: =[5]EJECUTIVO!$I71 -> 4306.616411 | I77: =[5]EJECUTIVO!$J71 -> 4162.540781 | J77: =[6]EJECUTIVO!$I71 -> n.d. | K77: =[6]EJECUTIVO!$J71 -> n.d. | L77: =[7]EJECUTIVO!$I71 -> 2429.09 | M77: =[7]EJECUTIVO!$J71 -> 2449.64 | N77: =[8]EJECUTIVO!$I71 -> n.d. | O77: =[8]EJECUTIVO!$J71 -> n.d.
A78: b) Deuda Intragubernamental del BC | B78: =[2]EJECUTIVO!$I$72 -> n.d. | C78: =[2]EJECUTIVO!$J72 -> n.d. | D78: =[3]EJECUTIVO!$I72 -> n.d. | E78: =[3]EJECUTIVO!$J72 -> n.d. | F78: =[4]EJECUTIVO!$I72 -> 2802.135439 | G78: =[4]EJECUTIVO!$J72 -> 2748.392054 | H78: =[5]EJECUTIVO!$I72 -> 2076.864194 | I78: =[5]EJECUTIVO!$J72 -> 2934.894123 | J78: =[6]EJECUTIVO!$I72 -> n.d. | K78: =[6]EJECUTIVO!$J72 -> n.d. | L78: =[7]EJECUTIVO!$I72 -> n.d. | M78: =[7]EJECUTIVO!$J72 -> n.d. | N78: =[8]EJECUTIVO!$I72 -> n.d. | O78: =[8]EJECUTIVO!$J72 -> n.d.
A79: 2.1.3 Saldo Deuda Interna Consolidada (2.1.1 - 2.1.2) | B79: =[2]EJECUTIVO!$I$73 -> n.d. | C79: =[2]EJECUTIVO!$J73 -> n.d. | D79: =[3]EJECUTIVO!$I73 -> n.d. | E79: =[3]EJECUTIVO!$J73 -> n.d. | F79: =[4]EJECUTIVO!$I73 -> 15599.21982 | G79: =[4]EJECUTIVO!$J73 -> 16561.02536 | H79: =[5]EJECUTIVO!$I73 -> 4615.75862 | I79: =[5]EJECUTIVO!$J73 -> 5480.028667 | J79: =[6]EJECUTIVO!$I73 -> n.d. | K79: =[6]EJECUTIVO!$J73 -> n.d. | L79: =[7]EJECUTIVO!$I73 -> 25924.25 | M79: =[7]EJECUTIVO!$J73 -> 27144.02 | N79: =[8]EJECUTIVO!$I73 -> n.d. | O79: =[8]EJECUTIVO!$J73 -> n.d.
A80: 2.1.4 Saldo Deuda Externa | B80: =[2]EJECUTIVO!$I74 -> 13280.53 | C80: =[2]EJECUTIVO!$J74 -> 14936.3513 | D80: =[3]EJECUTIVO!$I74 -> 11352.25381 | E80: =[3]EJECUTIVO!$J74 -> 11925.48005 | F80: =[4]EJECUTIVO!$I74 -> 10287.1864 | G80: =[4]EJECUTIVO!$J74 -> 10942.7354 | H80: =[5]EJECUTIVO!$I74 -> 9090.6 | I80: =[5]EJECUTIVO!$J74 -> 9138 | J80: =[6]EJECUTIVO!$I74 -> 7077.548011 | K80: =[6]EJECUTIVO!$J74 -> 7880.654474 | L80: =[7]EJECUTIVO!$I74 -> 33433.19 | M80: =[7]EJECUTIVO!$J74 -> 37188.42 | N80: =[8]EJECUTIVO!$I74 -> 32125.22 | O80: =[8]EJECUTIVO!$J74 -> 35519.58
A81: 2.1.4.1 Sector Público No Financiero | B81: =[2]EJECUTIVO!$I75 -> 12096.4 | C81: =[2]EJECUTIVO!$J75 -> 13473.418 | D81: =[3]EJECUTIVO!$I75 -> 10929.49974 | E81: =[3]EJECUTIVO!$J75 -> 11438.82415 | F81: =[4]EJECUTIVO!$I75 -> 10287.1864 | G81: =[4]EJECUTIVO!$J75 -> 10942.7354 | H81: =[5]EJECUTIVO!$I75 -> 8489.2 | I81: =[5]EJECUTIVO!$J75 -> 8474 | J81: =[6]EJECUTIVO!$I75 -> 5459.389312 | K81: =[6]EJECUTIVO!$J75 -> 6008.131583 | L81: =[7]EJECUTIVO!$I75 -> 33128.89 | M81: =[7]EJECUTIVO!$J75 -> 36288.16 | N81: =[8]EJECUTIVO!$I75 -> 32125.22 | O81: =[8]EJECUTIVO!$J75 -> 35519.58
A82: a) Gobierno Central | B82: =[2]EJECUTIVO!$I76 -> 9601.51 | C82: =[2]EJECUTIVO!$J76 -> 11324.7347 | D82: =[3]EJECUTIVO!$I76 -> 10406.99869 | E82: =[3]EJECUTIVO!$J76 -> 10968.44684 | F82: =[4]EJECUTIVO!$I76 -> 10251.9081 | G82: =[4]EJECUTIVO!$J76 -> 10915.4752 | H82: =[5]EJECUTIVO!$I76 -> 8239.1 | I82: =[5]EJECUTIVO!$J76 -> 8255.5 | J82: =[6]EJECUTIVO!$I76 -> 5413.673783 | K82: =[6]EJECUTIVO!$J76 -> 5967.336505 | L82: =[7]EJECUTIVO!$I76 -> 33122.9 | M82: =[7]EJECUTIVO!$J76 -> 36282.2 | N82: =[8]EJECUTIVO!$I76 -> 32109.45 | O82: =[8]EJECUTIVO!$J76 -> 35506.67
A83: b) Resto del Sector Público No Financiero | B83: =[2]EJECUTIVO!$I77 -> 2494.89 | C83: =[2]EJECUTIVO!$J77 -> 2148.6833 | D83: =[3]EJECUTIVO!$I77 -> 522.50105 | E83: =[3]EJECUTIVO!$J77 -> 470.37731 | F83: =[4]EJECUTIVO!$I77 -> 35.2783 | G83: =[4]EJECUTIVO!$J77 -> 27.2602 | H83: =[5]EJECUTIVO!$I77 -> 250.1 | I83: =[5]EJECUTIVO!$J77 -> 218.5 | J83: =[6]EJECUTIVO!$I77 -> 45.71552915 | K83: =[6]EJECUTIVO!$J77 -> 40.79507717 | L83: =[7]EJECUTIVO!$I77 -> 5.99 | M83: =[7]EJECUTIVO!$J77 -> 5.96 | N83: =[8]EJECUTIVO!$I77 -> 15.77 | O83: =[8]EJECUTIVO!$J77 -> 12.91
A84: 2.1.4.2 Sector Público Financiero | B84: =[2]EJECUTIVO!$I78 -> 1184.13 | C84: =[2]EJECUTIVO!$J78 -> 1462.9333 | D84: =[3]EJECUTIVO!$I78 -> 422.75407 | E84: =[3]EJECUTIVO!$J78 -> 486.6559 | F84: =[4]EJECUTIVO!$I78 -> n.d. | G84: =[4]EJECUTIVO!$J78 -> n.d. | H84: =[5]EJECUTIVO!$I78 -> 601.4 | I84: =[5]EJECUTIVO!$J78 -> 664 | J84: =[6]EJECUTIVO!$I78 -> 1618.158699 | K84: =[6]EJECUTIVO!$J78 -> 1872.522891 | L84: =[7]EJECUTIVO!$I78 -> 304.3 | M84: =[7]EJECUTIVO!$J78 -> 900.26 | N84: =[8]EJECUTIVO!$I78 -> 0 | O84: =[8]EJECUTIVO!$J78 -> 0
A85: a) Banco Central | B85: =[2]EJECUTIVO!$I79 -> 231.69 | C85: =[2]EJECUTIVO!$J79 -> 690.9625 | D85: =[3]EJECUTIVO!$I79 -> 142.22802 | E85: =[3]EJECUTIVO!$J79 -> 116.38644 | F85: =[4]EJECUTIVO!$I79 -> 0 | G85: =[4]EJECUTIVO!$J79 -> 0 | H85: =[5]EJECUTIVO!$I79 -> 577.6 | I85: =[5]EJECUTIVO!$J79 -> 642.7 | J85: =[6]EJECUTIVO!$I79 -> 1618.158699 | K85: =[6]EJECUTIVO!$J79 -> 1872.522891 | L85: =[7]EJECUTIVO!$I79 -> 304.3 | M85: =[7]EJECUTIVO!$J79 -> 900.26 | N85: =[8]EJECUTIVO!$I79 -> 0 | O85: =[8]EJECUTIVO!$J79 -> 0
A86: b) Resto del Sector Público Financiero | B86: =[2]EJECUTIVO!$I80 -> 952.44 | C86: =[2]EJECUTIVO!$J80 -> 771.9708 | D86: =[3]EJECUTIVO!$I80 -> 280.52605 | E86: =[3]EJECUTIVO!$J80 -> 370.26946 | F86: =[4]EJECUTIVO!$I80 -> n.d. | G86: =[4]EJECUTIVO!$J80 -> n.d. | H86: =[5]EJECUTIVO!$I80 -> 23.8 | I86: =[5]EJECUTIVO!$J80 -> 21.3 | J86: =[6]EJECUTIVO!$I80 -> 0 | K86: =[6]EJECUTIVO!$J80 -> 0 | L86: =[7]EJECUTIVO!$I80 -> n.d. | M86: =[7]EJECUTIVO!$J80 -> n.d. | N86: =[8]EJECUTIVO!$I80 -> 0 | O86: =[8]EJECUTIVO!$J80 -> 0
A87: 2.2 Relación Deuda Pública Total/PIB h/ | B87: =[2]EJECUTIVO!$I81 -> 77.80873768 | C87: =[2]EJECUTIVO!$J81 -> 76.8843953 | D87: =[3]EJECUTIVO!$I81 -> 81.07419495 | E87: =[3]EJECUTIVO!$J81 -> 80.77500995 | F87: =[4]EJECUTIVO!$I81 -> 30.10541558 | G87: =[4]EJECUTIVO!$J81 -> 29.93588991 | H87: =[5]EJECUTIVO!$I81 -> 48.10980777 | I87: =[5]EJECUTIVO!$J81 -> 48.08121685 | J87: =[6]EJECUTIVO!$I81 -> 61.93787701 | K87: =[6]EJECUTIVO!$J81 -> 67.83020495 | L87: =[7]EJECUTIVO!$I81 -> 63.06993987 | M87: =[7]EJECUTIVO!$J81 -> 60.10568782 | N87: =[8]EJECUTIVO!$I81 -> 62.39191724 | O87: =[8]EJECUTIVO!$J81 -> 61.24846131
A88: 2.2.1.a Deuda Interna/PIB (bruta) | B88: =[2]EJECUTIVO!$I82 -> 57.19431142 | C88: =[2]EJECUTIVO!$J82 -> 54.32634921 | D88: =[3]EJECUTIVO!$I82 -> 41.5701496 | E88: =[3]EJECUTIVO!$J82 -> 41.5848738 | F88: =[4]EJECUTIVO!$I82 -> 26.00322357 | G88: =[4]EJECUTIVO!$J82 -> 25.34571659 | H88: =[5]EJECUTIVO!$I82 -> 38.60772211 | I88: =[5]EJECUTIVO!$J82 -> 41.3694464 | J88: =[6]EJECUTIVO!$I82 -> 11.431167 | K88: =[6]EJECUTIVO!$J82 -> 11.59237659 | L88: =[7]EJECUTIVO!$I82 -> 30.1266943 | M88: =[7]EJECUTIVO!$J82 -> 27.64930554 | N88: =[8]EJECUTIVO!$I82 -> 11.88458798 | O88: =[8]EJECUTIVO!$J82 -> 10.86041265
A89: 2.2.1.b Deuda Interna/PIB (consolidada) | B89: =[2]EJECUTIVO!$I83 -> n.d. | C89: =[2]EJECUTIVO!$J83 -> n.d. | D89: =[3]EJECUTIVO!$I83 -> n.d. | E89: =[3]EJECUTIVO!$J83 -> n.d. | F89: =[4]EJECUTIVO!$I83 -> 18.1416065 | G89: =[4]EJECUTIVO!$J83 -> 18.02549972 | H89: =[5]EJECUTIVO!$I83 -> 16.20147743 | I89: =[5]EJECUTIVO!$J83 -> 18.0247592 | J89: =[6]EJECUTIVO!$I83 -> n.d. | K89: =[6]EJECUTIVO!$J83 -> n.d. | L89: =[7]EJECUTIVO!$I83 -> 27.54567732 | M89: =[7]EJECUTIVO!$J83 -> 25.36061111 | N89: =[8]EJECUTIVO!$I83 -> n.d. | O89: =[8]EJECUTIVO!$J83 -> n.d.
A90: 2.2.2 Deuda Externa/PIB | B90: =[2]EJECUTIVO!$I84 -> 20.61442626 | C90: =[2]EJECUTIVO!$J84 -> 22.55804609 | D90: =[3]EJECUTIVO!$I84 -> 39.50404535 | E90: =[3]EJECUTIVO!$J84 -> 39.19013615 | F90: =[4]EJECUTIVO!$I84 -> 11.96380908 | G90: =[4]EJECUTIVO!$J84 -> 11.91039019 | H90: =[5]EJECUTIVO!$I84 -> 31.90833033 | I90: =[5]EJECUTIVO!$J84 -> 30.05645765 | J90: =[6]EJECUTIVO!$I84 -> 50.50671002 | K90: =[6]EJECUTIVO!$J84 -> 56.23782836 | L90: =[7]EJECUTIVO!$I84 -> 35.52426255 | M90: =[7]EJECUTIVO!$J84 -> 34.74507672 | N90: =[8]EJECUTIVO!$I84 -> 50.50732926 | O90: =[8]EJECUTIVO!$J84 -> 50.38804867
A92: IV. SECTOR MONEDA Y CREDITO i/
A93: 1. Principales variables monetarias, tasas de variación | B93: =IF([2]EJECUTIVO!$J$100=[2]EJECUTIVO!$J$4,[2]EJECUTIVO!$G$101,CONCATENATE([2]EJECUTIVO!$G$101," ",[2]EJECUTIVO!$I$99," ",[2]EJECUTIVO!$J$99)) -> FEBRERO 2021 2022 | D93: =IF([3]EJECUTIVO!$J$100=[3]EJECUTIVO!$J$4,[3]EJECUTIVO!$G$101,CONCATENATE([3]EJECUTIVO!$G$101," ",[3]EJECUTIVO!$I$99," ",[3]EJECUTIVO!$J$99)) -> MAYO 2021 2022 | F93: =IF([4]EJECUTIVO!$J$100=[4]EJECUTIVO!$J$4,[4]EJECUTIVO!$G$101,CONCATENATE([4]EJECUTIVO!$G$101," ",[4]EJECUTIVO!$I$99," ",[4]EJECUTIVO!$J$99)) -> JUNIO 2021 2022 | H93: =IF([5]EJECUTIVO!$J$100=[5]EJECUTIVO!$J$4,[5]EJECUTIVO!$G$101,CONCATENATE([5]EJECUTIVO!$G$101," ",[5]EJECUTIVO!$I$99," ",[5]EJECUTIVO!$J$99)) -> ABRIL 2021 2022 | J93: =IF([6]EJECUTIVO!$J$100=[6]EJECUTIVO!$J$4,[6]EJECUTIVO!$G$101,CONCATENATE([6]EJECUTIVO!$G$101," ",[6]EJECUTIVO!$I$99," ",[6]EJECUTIVO!$J$99)) -> ABRIL 2021 2022 | L93: =IF([7]EJECUTIVO!$J$100=[7]EJECUTIVO!$J$4,[7]EJECUTIVO!$G$101,CONCATENATE([7]EJECUTIVO!$G$101," ",[7]EJECUTIVO!$I$99," ",[7]EJECUTIVO!$J$99)) -> JUNIO 2021 2022 | N93: =IF([8]EJECUTIVO!$J$100=[8]EJECUTIVO!$J$4,[8]EJECUTIVO!$G$101,CONCATENATE([8]EJECUTIVO!$G$101," ",[8]EJECUTIVO!$I$99," ",[8]EJECUTIVO!$J$99)) -> MAYO 2021 2022
A94: 1.1 Base Monetaria Restringida, tasa interanual ponderada para los componentes | B94: =[2]EJECUTIVO!$I100 -> 14.9214724 | C94: =[2]EJECUTIVO!$J100 -> 2.328363248 | D94: =[3]EJECUTIVO!$I100 -> -12.84966218 | E94: =[3]EJECUTIVO!$J100 -> 20.31054965 | F94: =[4]EJECUTIVO!$I100 -> 15.27102135 | G94: =[4]EJECUTIVO!$J100 -> 15.63769682 | H94: =[5]EJECUTIVO!$I100 -> 50.62606024 | I94: =[5]EJECUTIVO!$J100 -> -8.942483476 | J94: =[6]EJECUTIVO!$I100 -> 23.81169789 | K94: =[6]EJECUTIVO!$J100 -> 22.30771175 | L94: =[7]EJECUTIVO!$I100 -> 16.4729591 | M94: =[7]EJECUTIVO!$J100 -> 12.32499706 | N94: =[8]EJECUTIVO!$I100 -> 13.58517694 | O94: =[8]EJECUTIVO!$J100 -> 2.821849556
A95: 1.1.1 Billetes y monedas en circulación | B95: =[2]EJECUTIVO!$I101 -> 8.960390266 | C95: =[2]EJECUTIVO!$J101 -> -1.03277151 | D95: =[3]EJECUTIVO!$I101 -> -0.01259671267 | E95: =[3]EJECUTIVO!$J101 -> 0.0003451702272 | F95: =[4]EJECUTIVO!$I101 -> 9.894391173 | G95: =[4]EJECUTIVO!$J101 -> 10.94897813 | H95: =[5]EJECUTIVO!$I101 -> 7.629388605 | I95: =[5]EJECUTIVO!$J101 -> 7.491666556 | J95: =[6]EJECUTIVO!$I101 -> 20.71451666 | K95: =[6]EJECUTIVO!$J101 -> 18.00555636 | L95: =[7]EJECUTIVO!$I101 -> 6.832524072 | M95: =[7]EJECUTIVO!$J101 -> 3.842155883 | N95: =[8]EJECUTIVO!$I101 -> 13.58517694 | O95: =[8]EJECUTIVO!$J101 -> 2.821849556
A96: 1.1.2 Depósitos transferibles por concepto de encaje en MN | B96: =[2]EJECUTIVO!$I102 -> 5.96108213 | C96: =[2]EJECUTIVO!$J102 -> 3.361134758 | D96: =[3]EJECUTIVO!$I102 -> -12.83706547 | E96: =[3]EJECUTIVO!$J102 -> 20.31020448 | F96: =[4]EJECUTIVO!$I102 -> 5.151819742 | G96: =[4]EJECUTIVO!$J102 -> 4.524482633 | H96: =[5]EJECUTIVO!$I102 -> 32.19228051 | I96: =[5]EJECUTIVO!$J102 -> -17.24445114 | J96: =[6]EJECUTIVO!$I102 -> 3.097181229 | K96: =[6]EJECUTIVO!$J102 -> 4.302155397 | L96: =[7]EJECUTIVO!$I102 -> 9.640435024 | M96: =[7]EJECUTIVO!$J102 -> 8.482841178 | N96: =[8]EJECUTIVO!$I102 -> n.a. | O96: =[8]EJECUTIVO!$J102 -> n.a.
A97: 1.1.3 Valores por concepto de encaje en MN j/ | B97: =[2]EJECUTIVO!$I103 -> n.a. | C97: =[2]EJECUTIVO!$J103 -> n.a. | D97: =[3]EJECUTIVO!$I103 -> n.d. | E97: =[3]EJECUTIVO!$J103 -> n.d. | F97: =[4]EJECUTIVO!$I103 -> 0.2248104387 | G97: =[4]EJECUTIVO!$J103 -> 0.1642360622 | H97: =[5]EJECUTIVO!$I103 -> 10.80439113 | I97: =[5]EJECUTIVO!$J103 -> 0.8103011113 | J97: =[6]EJECUTIVO!$I103 -> n.a. | K97: =[6]EJECUTIVO!$J103 -> n.a. | L97: =[7]EJECUTIVO!$I103 -> n.a. | M97: =[7]EJECUTIVO!$J103 -> n.a. | N97: =[8]EJECUTIVO!$I103 -> n.a. | O97: =[8]EJECUTIVO!$J103 -> n.a.
A98: 1.2. Agregados monetarios, tasa interanual ponderada para los componentes
A99: 1.2.1 Agregado Monetario M1, tasa de variación interanual | B99: =[2]EJECUTIVO!$I104 -> 26.11958277 | C99: =[2]EJECUTIVO!$J104 -> 5.204450737 | D99: =[3]EJECUTIVO!$I104 -> 16.32688575 | E99: =[3]EJECUTIVO!$J104 -> 2.980634386 | F99: =[4]EJECUTIVO!$I104 -> 17.48223428 | G99: =[4]EJECUTIVO!$J104 -> 11.61807259 | H99: =[5]EJECUTIVO!$I104 -> 30.84881386 | I99: =[5]EJECUTIVO!$J104 -> 12.59325436 | J99: =[6]EJECUTIVO!$I104 -> 28.27143387 | K99: =[6]EJECUTIVO!$J104 -> 23.55672804 | L99: =[7]EJECUTIVO!$I104 -> 22.74198823 | M99: =[7]EJECUTIVO!$J104 -> 14.53746476 | N99: =[8]EJECUTIVO!$I104 -> 13.407878 | O99: =[8]EJECUTIVO!$J104 -> 0.2953282686
A100: 1.2.1.1 Billetes y monedas en poder del público | B100: =[2]EJECUTIVO!$I105 -> 2.072236023 | C100: =[2]EJECUTIVO!$J105 -> -0.6793503925 | D100: =[3]EJECUTIVO!$I105 -> -0.008519254288 | E100: =[3]EJECUTIVO!$J105 -> 0.001111142359 | F100: =[4]EJECUTIVO!$I105 -> 7.156841563 | G100: =[4]EJECUTIVO!$J105 -> 6.271529546 | H100: =[5]EJECUTIVO!$I105 -> 7.699100194 | I100: =[5]EJECUTIVO!$J105 -> 6.695704698 | J100: =[6]EJECUTIVO!$I105 -> 17.65501096 | K100: =[6]EJECUTIVO!$J105 -> 13.77559034 | L100: =[7]EJECUTIVO!$I105 -> 3.766689441 | M100: =[7]EJECUTIVO!$J105 -> 1.08986061 | N100: =[8]EJECUTIVO!$I105 -> n.a. | O100: =[8]EJECUTIVO!$J105 -> n.a.
A101: 1.2.1.2 Depósitos transferibles en MN | B101: =[2]EJECUTIVO!$I106 -> 24.04734675 | C101: =[2]EJECUTIVO!$J106 -> 5.883801129 | D101: =[3]EJECUTIVO!$I106 -> 16.335405 | E101: =[3]EJECUTIVO!$J106 -> 2.979523243 | F101: =[4]EJECUTIVO!$I106 -> 10.32539272 | G101: =[4]EJECUTIVO!$J106 -> 5.346543047 | H101: =[5]EJECUTIVO!$I106 -> 23.14971367 | I101: =[5]EJECUTIVO!$J106 -> 5.897549667 | J101: =[6]EJECUTIVO!$I106 -> 10.61642291 | K101: =[6]EJECUTIVO!$J106 -> 9.781137708 | L101: =[7]EJECUTIVO!$I106 -> 18.97529879 | M101: =[7]EJECUTIVO!$J106 -> 13.44760415 | N101: =[8]EJECUTIVO!$I106 -> 13.407878 | O101: =[8]EJECUTIVO!$J106 -> 0.2953282686
A102: 1.2.2 Agregado Monetario M2, tasa de variación interanual | B102: =[2]EJECUTIVO!$I107 -> 14.27406124 | C102: =[2]EJECUTIVO!$J107 -> -4.422531664 | D102: =[3]EJECUTIVO!$I107 -> 6.531920786 | E102: =[3]EJECUTIVO!$J107 -> 3.815083185 | F102: =[4]EJECUTIVO!$I107 -> 14.79116327 | G102: =[4]EJECUTIVO!$J107 -> 10.20020061 | H102: =[5]EJECUTIVO!$I107 -> 20.50403889 | I102: =[5]EJECUTIVO!$J107 -> 11.64287764 | J102: =[6]EJECUTIVO!$I107 -> 28.27143387 | K102: =[6]EJECUTIVO!$J107 -> 23.55672804 | L102: =[7]EJECUTIVO!$I107 -> 17.01375741 | M102: =[7]EJECUTIVO!$J107 -> 5.601013301 | N102: =[8]EJECUTIVO!$I107 -> -15.26339588 | O102: =[8]EJECUTIVO!$J107 -> 5.463957874
A103: 1.2.2.1 Otros depósitos en MN | B103: =[2]EJECUTIVO!$I108 -> -0.01041919264 | C103: =[2]EJECUTIVO!$J108 -> 0.0323920687 | D103: =[3]EJECUTIVO!$I108 -> 4.160659733 | E103: =[3]EJECUTIVO!$J108 -> 2.711558413 | F103: =[4]EJECUTIVO!$I108 -> 6.903914152 | G103: =[4]EJECUTIVO!$J108 -> 5.758980387 | H103: =[5]EJECUTIVO!$I108 -> 13.25916207 | I103: =[5]EJECUTIVO!$J108 -> 7.575626217 | J103: =[6]EJECUTIVO!$I108 -> n.a. | K103: =[6]EJECUTIVO!$J108 -> n.a. | L103: =[7]EJECUTIVO!$I108 -> 6.547394417 | M103: =[7]EJECUTIVO!$J108 -> 15.56441105 | N103: =[8]EJECUTIVO!$I108 -> -17.33545348 | O103: =[8]EJECUTIVO!$J108 -> 5.389471
A104: 1.2.2.2 Valores distintos de acciones emitidos por las sociedades de depósitos en MN | B104: =[2]EJECUTIVO!$I109 -> -2.159472631 | C104: =[2]EJECUTIVO!$J109 -> -8.071101388 | D104: =[3]EJECUTIVO!$I109 -> -1.950915699 | E104: =[3]EJECUTIVO!$J109 -> 0.2419197517 | F104: =[4]EJECUTIVO!$I109 -> 0.2100042049 | G104: =[4]EJECUTIVO!$J109 -> -0.7804120709 | H104: =[5]EJECUTIVO!$I109 -> -0.7489488397 | I104: =[5]EJECUTIVO!$J109 -> 0.523833611 | J104: =[6]EJECUTIVO!$I109 -> n.a. | K104: =[6]EJECUTIVO!$J109 -> n.a. | L104: =[7]EJECUTIVO!$I109 -> 1.725693155 | M104: =[7]EJECUTIVO!$J109 -> -15.82425562 | N104: =[8]EJECUTIVO!$I109 -> -0.4546943585 | O104: =[8]EJECUTIVO!$J109 -> 0
A105: 1.2.2.3 Agregado Monetario M1 | B105: =[2]EJECUTIVO!$I110 -> 16.44395306 | C105: =[2]EJECUTIVO!$J110 -> 3.616177655 | D105: =[3]EJECUTIVO!$I110 -> 4.322176751 | E105: =[3]EJECUTIVO!$J110 -> 0.86160502 | F105: =[4]EJECUTIVO!$I110 -> 7.677244912 | G105: =[4]EJECUTIVO!$J110 -> 5.221632291 | H105: =[5]EJECUTIVO!$I110 -> 7.993825658 | I105: =[5]EJECUTIVO!$J110 -> 3.543417817 | J105: =[6]EJECUTIVO!$I110 -> 28.27143387 | K105: =[6]EJECUTIVO!$J110 -> 23.55672804 | L105: =[7]EJECUTIVO!$I110 -> 8.740669843 | M105: =[7]EJECUTIVO!$J110 -> 5.860857869 | N105: =[8]EJECUTIVO!$I110 -> 2.526751951 | O105: =[8]EJECUTIVO!$J110 -> 0.07448687396
A106: 1.2.3 Agregado Monetario M3, tasa de variación interanual k/ | B106: =[2]EJECUTIVO!$I111 -> 18.86694413 | C106: =[2]EJECUTIVO!$J111 -> 4.697010784 | D106: =[3]EJECUTIVO!$I111 -> 6.531920786 | E106: =[3]EJECUTIVO!$J111 -> 3.815083185 | F106: =[4]EJECUTIVO!$I111 -> 13.64923824 | G106: =[4]EJECUTIVO!$J111 -> 6.127516031 | H106: =[5]EJECUTIVO!$I111 -> 16.87846671 | I106: =[5]EJECUTIVO!$J111 -> 10.79475156 | J106: =[6]EJECUTIVO!$I111 -> 15.94507575 | K106: =[6]EJECUTIVO!$J111 -> 14.45748905 | L106: =[7]EJECUTIVO!$I111 -> 15.38210471 | M106: =[7]EJECUTIVO!$J111 -> 6.31888619 | N106: =[8]EJECUTIVO!$I111 -> -15.26339588 | O106: =[8]EJECUTIVO!$J111 -> 5.463957874
A107: 1.2.3.1 Depósitos transferibles en ME | B107: =[2]EJECUTIVO!$I112 -> 8.807868442 | C107: =[2]EJECUTIVO!$J112 -> 7.361480608 | D107: =[3]EJECUTIVO!$I112 -> n.a. | E107: =[3]EJECUTIVO!$J112 -> n.a. | F107: =[4]EJECUTIVO!$I112 -> 1.43995395 | G107: =[4]EJECUTIVO!$J112 -> -0.5884260951 | H107: =[5]EJECUTIVO!$I112 -> 0.424652669 | I107: =[5]EJECUTIVO!$J112 -> 0.3878359901 | J107: =[6]EJECUTIVO!$I112 -> 2.501549276 | K107: =[6]EJECUTIVO!$J112 -> 3.108831833 | L107: =[7]EJECUTIVO!$I112 -> n.a. | M107: =[7]EJECUTIVO!$J112 -> -3.86672609e-08 | N107: =[8]EJECUTIVO!$I112 -> n.a. | O107: =[8]EJECUTIVO!$J112 -> n.a.
A108: 1.2.3.2 Otros depósitos en ME | B108: =[2]EJECUTIVO!$I113 -> 0.004685419213 | C108: =[2]EJECUTIVO!$J113 -> 0.05241257582 | D108: =[3]EJECUTIVO!$I113 -> n.a. | E108: =[3]EJECUTIVO!$J113 -> n.a. | F108: =[4]EJECUTIVO!$I113 -> 0.5988120487 | G108: =[4]EJECUTIVO!$J113 -> -1.345761343 | H108: =[5]EJECUTIVO!$I113 -> 0.7724926794 | I108: =[5]EJECUTIVO!$J113 -> 1.163878449 | J108: =[6]EJECUTIVO!$I113 -> 6.792563404 | K108: =[6]EJECUTIVO!$J113 -> 5.217685543 | L108: =[7]EJECUTIVO!$I113 -> 3.215623353 | M108: =[7]EJECUTIVO!$J113 -> 2.256980597 | N108: =[8]EJECUTIVO!$I113 -> n.a. | O108: =[8]EJECUTIVO!$J113 -> n.a.
A109: 1.2.3.3 Valores distintos de acciones emitidos por las sociedades de depósito en ME | B109: =[2]EJECUTIVO!$I114 -> 0.3053162927 | C109: =[2]EJECUTIVO!$J114 -> 0.1869618953 | D109: =[3]EJECUTIVO!$I114 -> n.a. | E109: =[3]EJECUTIVO!$J114 -> n.a. | F109: =[4]EJECUTIVO!$I114 -> -0.02419896351 | G109: =[4]EJECUTIVO!$J114 -> -0.04235236784 | H109: =[5]EJECUTIVO!$I114 -> -0.07533637134 | I109: =[5]EJECUTIVO!$J114 -> 0.01834000462 | J109: =[6]EJECUTIVO!$I114 -> n.a. | K109: =[6]EJECUTIVO!$J114 -> n.a. | L109: =[7]EJECUTIVO!$I114 -> n.a. | M109: =[7]EJECUTIVO!$J114 -> n.a. | N109: =[8]EJECUTIVO!$I114 -> n.a. | O109: =[8]EJECUTIVO!$J114 -> n.a.
A110: 1.2.3.4 Agregado Monetario M2 | B110: =[2]EJECUTIVO!$I115 -> 9.749073979 | C110: =[2]EJECUTIVO!$J115 -> -2.903844296 | D110: =[3]EJECUTIVO!$I115 -> 6.531920786 | E110: =[3]EJECUTIVO!$J115 -> 3.815083185 | F110: =[4]EJECUTIVO!$I115 -> 11.63467121 | G110: =[4]EJECUTIVO!$J115 -> 8.104055837 | H110: =[5]EJECUTIVO!$I115 -> 15.75665773 | I110: =[5]EJECUTIVO!$J115 -> 9.224697117 | J110: =[6]EJECUTIVO!$I115 -> 6.650963068 | K110: =[6]EJECUTIVO!$J115 -> 6.130971675 | L110: =[7]EJECUTIVO!$I115 -> 12.16648131 | M110: =[7]EJECUTIVO!$J115 -> 4.061905632 | N110: =[8]EJECUTIVO!$I115 -> -15.26339588 | O110: =[8]EJECUTIVO!$J115 -> 5.463957874
A111: 1.3. Titulos emitidos por el Banco Central, tasa de variación interanual | B111: =[2]EJECUTIVO!$I116 -> -21.04748658 | C111: =[2]EJECUTIVO!$J116 -> -20.93027729 | D111: =[3]EJECUTIVO!$I116 -> -25.07192178 | E111: =[3]EJECUTIVO!$J116 -> 59.25574958 | F111: =[4]EJECUTIVO!$I116 -> 10.75361308 | G111: =[4]EJECUTIVO!$J116 -> -3.735181887 | H111: =[5]EJECUTIVO!$I116 -> 33.14143495 | I111: =[5]EJECUTIVO!$J116 -> 39.05380852 | J111: =[6]EJECUTIVO!$I116 -> 166.1601119 | K111: =[6]EJECUTIVO!$J116 -> 9.809462977 | L111: =[7]EJECUTIVO!$I116 -> 37.87790237 | M111: =[7]EJECUTIVO!$J116 -> 11.67284126 | N111: =[8]EJECUTIVO!$I116 -> 480.5626382 | O111: =[8]EJECUTIVO!$J116 -> 0.3764181036
A112: 1.3.1 Títulos emitidos por el BC en MN | B112: =[2]EJECUTIVO!$I117 -> -21.04748658 | C112: =[2]EJECUTIVO!$J117 -> -20.93027729 | D112: =[3]EJECUTIVO!$I117 -> -20.02994887 | E112: =[3]EJECUTIVO!$J117 -> -1.4846794 | F112: =[4]EJECUTIVO!$I117 -> 10.65057688 | G112: =[4]EJECUTIVO!$J117 -> -3.806438083 | H112: =[5]EJECUTIVO!$I117 -> 26.26129713 | I112: =[5]EJECUTIVO!$J117 -> 36.75801549 | J112: =[6]EJECUTIVO!$I117 -> n.a. | K112: =[6]EJECUTIVO!$J117 -> n.a. | L112: =[7]EJECUTIVO!$I117 -> 37.87790237 | M112: =[7]EJECUTIVO!$J117 -> 11.67284126 | N112: =[8]EJECUTIVO!$I117 -> 480.7321507 | O112: =[8]EJECUTIVO!$J117 -> 0.3764181036
A113: 1.3.2 Títulos emitidos por el BC en ME | B113: =[2]EJECUTIVO!$I118 -> n.d. | C113: =[2]EJECUTIVO!$J118 -> n.d. | D113: =[3]EJECUTIVO!$I118 -> -5.041972911 | E113: =[3]EJECUTIVO!$J118 -> 60.74042898 | F113: =[4]EJECUTIVO!$I118 -> 0.1030362007 | G113: =[4]EJECUTIVO!$J118 -> 0.07125619666 | H113: =[5]EJECUTIVO!$I118 -> 6.88013782 | I113: =[5]EJECUTIVO!$J118 -> 2.295793036 | J113: =[6]EJECUTIVO!$I118 -> 166.1601119 | K113: =[6]EJECUTIVO!$J118 -> 9.809462977 | L113: =[7]EJECUTIVO!$I118 -> n.d. | M113: =[7]EJECUTIVO!$J118 -> n.d. | N113: =[8]EJECUTIVO!$I118 -> -0.1695124141 | O113: =[8]EJECUTIVO!$J118 -> n.a.
A114: 1.4. Saldo de los créditos de las Otras Sociedades de Depósito, tasa de variación interanual | B114: =[2]EJECUTIVO!$I119 -> 7.529553605 | C114: =[2]EJECUTIVO!$J119 -> 6.305654177 | D114: =[3]EJECUTIVO!$I119 -> 6.203010349 | E114: =[3]EJECUTIVO!$J119 -> 4.930540321 | F114: =[4]EJECUTIVO!$I119 -> 8.575761596 | G114: =[4]EJECUTIVO!$J119 -> 8.929989915 | H114: =[5]EJECUTIVO!$I119 -> 8.608234468 | I114: =[5]EJECUTIVO!$J119 -> 16.97082666 | J114: =[6]EJECUTIVO!$I119 -> 11.11186011 | K114: =[6]EJECUTIVO!$J119 -> 7.939443012 | L114: =[7]EJECUTIVO!$I119 -> 19.78389288 | M114: =[7]EJECUTIVO!$J119 -> 16.41056803 | N114: =[8]EJECUTIVO!$I119 -> 4.027641976 | O114: =[8]EJECUTIVO!$J119 -> 7.935767342
A115: 1.4.1 Al Sector Público neto | B115: =[2]EJECUTIVO!$I120 -> 5.38533795 | C115: =[2]EJECUTIVO!$J120 -> 3.069068556 | D115: =[3]EJECUTIVO!$I120 -> 1.052987984 | E115: =[3]EJECUTIVO!$J120 -> 2.075971333 | F115: =[4]EJECUTIVO!$I120 -> 5.275172163 | G115: =[4]EJECUTIVO!$J120 -> 0.04599717956 | H115: =[5]EJECUTIVO!$I120 -> 7.086842332 | I115: =[5]EJECUTIVO!$J120 -> 4.555578733 | J115: =[6]EJECUTIVO!$I120 -> 12.00798847 | K115: =[6]EJECUTIVO!$J120 -> 1.679160557 | L115: =[7]EJECUTIVO!$I120 -> 16.73318298 | M115: =[7]EJECUTIVO!$J120 -> 5.412116331 | N115: =[8]EJECUTIVO!$I120 -> 1.701444187 | O115: =[8]EJECUTIVO!$J120 -> 0.528872809
A116: 1.4.2 Al Sector Privado | B116: =[2]EJECUTIVO!$I121 -> 2.764867828 | C116: =[2]EJECUTIVO!$J121 -> 2.4790568 | D116: =[3]EJECUTIVO!$I121 -> 2.01218513 | E116: =[3]EJECUTIVO!$J121 -> 6.15455488 | F116: =[4]EJECUTIVO!$I121 -> 3.515072583 | G116: =[4]EJECUTIVO!$J121 -> 8.464798431 | H116: =[5]EJECUTIVO!$I121 -> 1.886570658 | I116: =[5]EJECUTIVO!$J121 -> 12.61673681 | J116: =[6]EJECUTIVO!$I121 -> -1.129043977 | K116: =[6]EJECUTIVO!$J121 -> 6.039801387 | L116: =[7]EJECUTIVO!$I121 -> 2.235309685 | M116: =[7]EJECUTIVO!$J121 -> 9.92949961 | N116: =[8]EJECUTIVO!$I121 -> -0.8407398693 | O116: =[8]EJECUTIVO!$J121 -> 1.659914565
A117: 1.4.3 A no residentes y otros | B117: =[2]EJECUTIVO!$I122 -> -0.620652174 | C117: =[2]EJECUTIVO!$J122 -> 0.7575288208 | D117: =[3]EJECUTIVO!$I122 -> 3.137837235 | E117: =[3]EJECUTIVO!$J122 -> -3.299985892 | F117: =[4]EJECUTIVO!$I122 -> -0.21448315 | G117: =[4]EJECUTIVO!$J122 -> 0.4191943049 | H117: =[5]EJECUTIVO!$I122 -> -0.3651785214 | I117: =[5]EJECUTIVO!$J122 -> -0.2014888785 | J117: =[6]EJECUTIVO!$I122 -> 0.2329156155 | K117: =[6]EJECUTIVO!$J122 -> 0.2204810679 | L117: =[7]EJECUTIVO!$I122 -> 0.8154002138 | M117: =[7]EJECUTIVO!$J122 -> 1.068952088 | N117: =[8]EJECUTIVO!$I122 -> 3.166937659 | O117: =[8]EJECUTIVO!$J122 -> 5.746979968
A118: 2. Relaciones Analíticas | B118: =IF([2]EJECUTIVO!$J$120=[2]EJECUTIVO!$J$4,[2]EJECUTIVO!$G$121,CONCATENATE([2]EJECUTIVO!$G$121," ",[2]EJECUTIVO!$I$124," ",[2]EJECUTIVO!$J$124)) -> FEBRERO 2021 2022 | D118: =IF([3]EJECUTIVO!$J$121=[3]EJECUTIVO!$J$4,[3]EJECUTIVO!$G$122,CONCATENATE([3]EJECUTIVO!$G$122," ",[3]EJECUTIVO!$I$124," ",[3]EJECUTIVO!$J$124)) -> MAYO 2021 2022 | F118: =IF([4]EJECUTIVO!$J$120=[4]EJECUTIVO!$J$4,[4]EJECUTIVO!$G$121,CONCATENATE([4]EJECUTIVO!$G$121," ",[4]EJECUTIVO!$I$124," ",[4]EJECUTIVO!$J$124)) -> JUNIO 2021 2022 | H118: =IF([5]EJECUTIVO!$J$120=[5]EJECUTIVO!$J$4,[5]EJECUTIVO!$G$121,CONCATENATE([5]EJECUTIVO!$G$121," ",[5]EJECUTIVO!$I$124," ",[5]EJECUTIVO!$J$124)) -> ABRIL 2021 2022 | J118: =IF([6]EJECUTIVO!$J$120=[6]EJECUTIVO!$J$4,[6]EJECUTIVO!$G$121,CONCATENATE([6]EJECUTIVO!$G$125," ",[6]EJECUTIVO!$I$124," ",[6]EJECUTIVO!$J$124)) -> ABRIL 2021 2022 | L118: =IF([7]EJECUTIVO!$J$120=[7]EJECUTIVO!$J$4,[7]EJECUTIVO!$G$121,CONCATENATE([7]EJECUTIVO!$G$121," ",[7]EJECUTIVO!$I$124," ",[7]EJECUTIVO!$J$124)) -> JUNIO 2021 2022 | N118: =IF([8]EJECUTIVO!$J$120=[8]EJECUTIVO!$J$4,[8]EJECUTIVO!$G$125,CONCATENATE([8]EJECUTIVO!$G$125," ",[8]EJECUTIVO!$I$124," ",[8]EJECUTIVO!$J$124)) -> MAYO 2021 2022
A119: 2.1 Multiplicador Monetario (M2/BMAmplia) | B119: =[2]EJECUTIVO!$I125 -> 1.932770259 | C119: =[2]EJECUTIVO!$J125 -> 1.790966941 | D119: =[3]EJECUTIVO!$I125 -> 7.246587612 | E119: =[3]EJECUTIVO!$J125 -> 5.726037375 | F119: =[4]EJECUTIVO!$I125 -> 2.709313562 | G119: =[4]EJECUTIVO!$J125 -> 2.649972791 | H119: =[5]EJECUTIVO!$I125 -> 1.877396642 | I119: =[5]EJECUTIVO!$J125 -> 1.96225905 | J119: =[6]EJECUTIVO!$I125 -> 0.5382787436 | K119: =[6]EJECUTIVO!$J125 -> 0.5943162393 | L119: =[7]EJECUTIVO!$I125 -> 2.067571283 | M119: =[7]EJECUTIVO!$J125 -> 2.186178526 | N119: =[8]EJECUTIVO!$I125 -> 16.51502888 | O119: =[8]EJECUTIVO!$J125 -> 16.9541572
A120: 2.2 Relación RIN / BMAmplia, en porcentajes | B120: =[2]EJECUTIVO!$I126 -> 64.34585 | C120: =[2]EJECUTIVO!$J126 -> 59.02305354 | D120: =[3]EJECUTIVO!$I126 -> 105.0012533 | E120: =[3]EJECUTIVO!$J126 -> 107.7508306 | F120: =[4]EJECUTIVO!$I126 -> 127.1213476 | G120: =[4]EJECUTIVO!$J126 -> 119.795281 | H120: =[5]EJECUTIVO!$I126 -> 103.3970017 | I120: =[5]EJECUTIVO!$J126 -> 98.65511609 | J120: =[6]EJECUTIVO!$I126 -> 136.8863977 | K120: =[6]EJECUTIVO!$J126 -> 157.9182226 | L120: =[7]EJECUTIVO!$I126 -> 101.6435152 | M120: =[7]EJECUTIVO!$J126 -> 112.1317305 | N120: =[8]EJECUTIVO!$I126 -> 376.819402 | O120: =[8]EJECUTIVO!$J126 -> 365.2086339
A121: 2.3 Relación Cuasidinero / M2, en porcentajes L/ | B121: =[2]EJECUTIVO!$I127 -> 30.51759277 | C121: =[2]EJECUTIVO!$J127 -> 23.51901954 | D121: =[3]EJECUTIVO!$I127 -> 72.25139511 | E121: =[3]EJECUTIVO!$J127 -> 70.72781652 | F121: =[4]EJECUTIVO!$I127 -> 55.05595055 | G121: =[4]EJECUTIVO!$J127 -> 54.47768565 | H121: =[5]EJECUTIVO!$I127 -> 71.8625725 | I121: =[5]EJECUTIVO!$J127 -> 71.62304843 | J121: =[6]EJECUTIVO!$I127 -> 0 | K121: =[6]EJECUTIVO!$J127 -> 0 | L121: =[7]EJECUTIVO!$I127 -> 59.68445692 | M121: =[7]EJECUTIVO!$J127 -> 56.27276717 | N121: =[8]EJECUTIVO!$I127 -> 74.77827832 | O121: =[8]EJECUTIVO!$J127 -> 76.01435688
A122: 2.4 Relación Depósitos en ME / Depósitos Totales, en porcentajes m/ | B122: =[2]EJECUTIVO!$I128 -> 41.10146347 | C122: =[2]EJECUTIVO!$J128 -> 45.18181152 | D122: =[3]EJECUTIVO!$I128 -> n.a. | E122: =[3]EJECUTIVO!$J128 -> n.a. | F122: =[4]EJECUTIVO!$I128 -> 24.19349438 | G122: =[4]EJECUTIVO!$J128 -> 20.73567431 | H122: =[5]EJECUTIVO!$I128 -> 22.60370223 | I122: =[5]EJECUTIVO!$J128 -> 22.14836652 | J122: =[6]EJECUTIVO!$I128 -> 87.03974144 | K122: =[6]EJECUTIVO!$J128 -> 85.85404471 | L122: =[7]EJECUTIVO!$I128 -> 38.44959835 | M122: =[7]EJECUTIVO!$J128 -> 33.4323684 | N122: =[8]EJECUTIVO!$I128 -> n.a. | O122: =[8]EJECUTIVO!$J128 -> n.a.
A123: 2.5 Relación Créditos en ME / Créditos Totales, en porcentajes m/ n/ | B123: =[2]EJECUTIVO!$I129 -> 35.63983818 | C123: =[2]EJECUTIVO!$J129 -> 35.2944731 | D123: =[3]EJECUTIVO!$I129 -> n.a. | E123: =[3]EJECUTIVO!$J129 -> n.a. | F123: =[4]EJECUTIVO!$I129 -> 25.94882369 | G123: =[4]EJECUTIVO!$J129 -> 25.56618657 | H123: =[5]EJECUTIVO!$I129 -> 24.61431922 | I123: =[5]EJECUTIVO!$J129 -> 22.8994521 | J123: =[6]EJECUTIVO!$I129 -> 100 | K123: =[6]EJECUTIVO!$J129 -> 100 | L123: =[7]EJECUTIVO!$I129 -> 17.03428897 | M123: =[7]EJECUTIVO!$J129 -> 18.26254213 | N123: =[8]EJECUTIVO!$I129 -> n.a. | O123: =[8]EJECUTIVO!$J129 -> n.a.
A124: 2.6 Relación Crédito-sector privado / PIB, en porcentajes | B124: =[2]EJECUTIVO!$I130 -> 56.68535743 | C124: =[2]EJECUTIVO!$J130 -> 54.16855975 | D124: =[3]EJECUTIVO!$I130 -> 50.7430423 | E124: =[3]EJECUTIVO!$J130 -> 51.58665045 | F124: =[4]EJECUTIVO!$I130 -> 35.53689554 | G124: =[4]EJECUTIVO!$J130 -> 37.55891763 | H124: =[5]EJECUTIVO!$I130 -> 58.9889749 | I124: =[5]EJECUTIVO!$J130 -> 62.42199802 | J124: =[6]EJECUTIVO!$I130 -> 24.40796882 | K124: =[6]EJECUTIVO!$J130 -> n.d. | L124: =[7]EJECUTIVO!$I130 -> 25.59178264 | M124: =[7]EJECUTIVO!$J130 -> 25.84872647 | N124: =[8]EJECUTIVO!$I130 -> 83.10878339 | O124: =[8]EJECUTIVO!$J130 -> 76.8721948
A125: 2.7 Relación Saldo de OMA's / M3, en porcentajes | B125: =[2]EJECUTIVO!$I131 -> 7.646880104 | C125: =[2]EJECUTIVO!$J131 -> 5.775109383 | D125: =[3]EJECUTIVO!$I131 -> 0.2550494332 | E125: =[3]EJECUTIVO!$J131 -> 1.762838151 | F125: =[4]EJECUTIVO!$I131 -> 13.78533895 | G125: =[4]EJECUTIVO!$J131 -> 12.50423261 | H125: =[5]EJECUTIVO!$I131 -> 10.95783272 | I125: =[5]EJECUTIVO!$J131 -> 13.75271257 | J125: =[6]EJECUTIVO!$I131 -> 13.21623958 | K125: =[6]EJECUTIVO!$J131 -> 12.67953878 | L125: =[7]EJECUTIVO!$I131 -> 41.11557574 | M125: =[7]EJECUTIVO!$J131 -> 43.18605402 | N125: =[8]EJECUTIVO!$I131 -> 3.324965267 | O125: =[8]EJECUTIVO!$J131 -> 3.164570253
A126: 3. Tasas de Interés y de encaje ñ/ | B126: =IF([2]EJECUTIVO!$J$84=[2]EJECUTIVO!$J$4,[2]EJECUTIVO!$G$85,CONCATENATE([2]EJECUTIVO!$G$89," ",[2]EJECUTIVO!$I$88," ",[2]EJECUTIVO!$J$88)) -> MARZO 2021 2022 | D126: =IF([3]EJECUTIVO!$J$85=[3]EJECUTIVO!$J$4,[3]EJECUTIVO!$G$86,CONCATENATE([3]EJECUTIVO!$G$89," ",[3]EJECUTIVO!$I$88," ",[3]EJECUTIVO!$J$88)) -> JUNIO 2021 2022 | F126: =IF([4]EJECUTIVO!$J$84=[4]EJECUTIVO!$J$4,[4]EJECUTIVO!$G$85,CONCATENATE([4]EJECUTIVO!$G$89," ",[4]EJECUTIVO!$I$88," ",[4]EJECUTIVO!$J$88)) -> JUNIO 2021 2022 | H126: =IF([5]EJECUTIVO!$J$84=[5]EJECUTIVO!$J$4,[5]EJECUTIVO!$G$85,CONCATENATE([5]EJECUTIVO!$G$89," ",[5]EJECUTIVO!$I$88," ",[5]EJECUTIVO!$J$88)) -> MAYO 2021 2022 | J126: =IF([6]EJECUTIVO!$J$84=[6]EJECUTIVO!$J$4,[6]EJECUTIVO!$G$85,CONCATENATE([6]EJECUTIVO!$G$89," ",[6]EJECUTIVO!$I$88," ",[6]EJECUTIVO!$J$88)) -> MAYO 2021 2022 | L126: =IF([7]EJECUTIVO!$J$84=[7]EJECUTIVO!$J$4,[7]EJECUTIVO!$G$85,CONCATENATE([7]EJECUTIVO!$G$89," ",[7]EJECUTIVO!$I$88," ",[7]EJECUTIVO!$J$88)) -> JUNIO 2021 2022 | N126: =IF([8]EJECUTIVO!$J$84=[8]EJECUTIVO!$J$4,[8]EJECUTIVO!$G$85,CONCATENATE([8]EJECUTIVO!$G$89," ",[8]EJECUTIVO!$I$88," ",[8]EJECUTIVO!$J$88)) -> MAYO 2021 2022
A127: 3.1 Tasa interés activa nominal promedio corto plazo en MN | B127: =[2]EJECUTIVO!$I91 -> 9.58540768 | C127: =[2]EJECUTIVO!$J91 -> 9.39497499 | D127: =[3]EJECUTIVO!$I91 -> 6.34 | E127: =[3]EJECUTIVO!$J91 -> 6.18 | F127: =[4]EJECUTIVO!$I91 -> 12.24 | G127: =[4]EJECUTIVO!$J91 -> 11.98 | H127: =[5]EJECUTIVO!$I91 -> 16.32 | I127: =[5]EJECUTIVO!$J91 -> 14.76 | J127: =[6]EJECUTIVO!$I91 -> 8.760635308 | K127: =[6]EJECUTIVO!$J91 -> 9.055379899 | L127: =[7]EJECUTIVO!$I91 -> 9.3719 | M127: =[7]EJECUTIVO!J91 -> 11.6866 | N127: =[8]EJECUTIVO!$I91 -> 8.3 | O127: =[8]EJECUTIVO!J91 -> 8.194444444
A128: 3.2 Tasa interés activa real promedio corto plazo en MN | B128: =[2]EJECUTIVO!$I92 -> 9.06979976 | C128: =[2]EJECUTIVO!$J92 -> 3.404567378 | D128: =[3]EJECUTIVO!$I92 -> 3.657901867 | E128: =[3]EJECUTIVO!$J92 -> -1.465500646 | F128: =[4]EJECUTIVO!$I92 -> 8.019441935 | G128: =[4]EJECUTIVO!$J92 -> 4.11532275 | H128: =[5]EJECUTIVO!$I92 -> 10.95088095 | I128: =[5]EJECUTIVO!$J92 -> 5.196666667 | J128: =[6]EJECUTIVO!$I92 -> 7.10891909 | K128: =[6]EJECUTIVO!$J92 -> 0.6950553835 | L128: =[7]EJECUTIVO!$I92 -> 0.04805399732 | M128: =[7]EJECUTIVO!J92 -> 2.017122412 | N128: =[8]EJECUTIVO!$I92 -> 6.255600341 | O128: =[8]EJECUTIVO!J92 -> 3.813446447
A129: 3.3 Tasa interés activa promedio corto plazo en ME | B129: =[2]EJECUTIVO!$I93 -> 6.07261144 | C129: =[2]EJECUTIVO!$J93 -> 6.00405126 | D129: =[3]EJECUTIVO!$I93 -> 6.34 | E129: =[3]EJECUTIVO!$J93 -> 6.18 | F129: =[4]EJECUTIVO!$I93 -> 5.89 | G129: =[4]EJECUTIVO!$J93 -> 5.52 | H129: =[5]EJECUTIVO!$I93 -> 7.65 | I129: =[5]EJECUTIVO!$J93 -> 7.39 | J129: =[6]EJECUTIVO!$I93 -> 8.795600116 | K129: =[6]EJECUTIVO!$J93 -> 8.053280273 | L129: =[7]EJECUTIVO!$I93 -> 3.9887 | M129: =[7]EJECUTIVO!J93 -> 4.3262 | N129: =[8]EJECUTIVO!$I93 -> 8.3 | O129: =[8]EJECUTIVO!J93 -> 8.194444444
A130: 3.4 Tasa interés pasiva nominal promedio 180 días en MN | B130: =[2]EJECUTIVO!$I94 -> 3.4 | C130: =[2]EJECUTIVO!$J94 -> 2.95 | D130: =[3]EJECUTIVO!$I94 -> 3.92 | E130: =[3]EJECUTIVO!$J94 -> 4.45 | F130: =[4]EJECUTIVO!$I94 -> 4.15 | G130: =[4]EJECUTIVO!$J94 -> 3.88 | H130: =[5]EJECUTIVO!$I94 -> 6.16 | I130: =[5]EJECUTIVO!$J94 -> 4.2 | J130: =[6]EJECUTIVO!$I94 -> 2.94058974 | K130: =[6]EJECUTIVO!$J94 -> 2.817460036 | L130: =[7]EJECUTIVO!$I94 -> 3.1664 | M130: =[7]EJECUTIVO!J94 -> 5.2268 | N130: =[8]EJECUTIVO!$I94 -> 1.83 | O130: =[8]EJECUTIVO!J94 -> 1.6
A131: 3.5 Tasa interés pasiva real promedio 180 días en MN | B131: =[2]EJECUTIVO!$I95 -> 2.913494907 | C131: =[2]EJECUTIVO!$J95 -> -2.687484388 | D131: =[3]EJECUTIVO!$I95 -> 1.298938894 | E131: =[3]EJECUTIVO!$J95 -> -3.070931837 | F131: =[4]EJECUTIVO!$I95 -> 0.2336500133 | G131: =[4]EJECUTIVO!$J95 -> -3.415790969 | H131: =[5]EJECUTIVO!$I95 -> 1.259848016 | I131: =[5]EJECUTIVO!$J95 -> -4.483333333 | J131: =[6]EJECUTIVO!$I95 -> 1.377260866 | K131: =[6]EJECUTIVO!$J95 -> -5.064657587 | L131: =[7]EJECUTIVO!$I95 -> -5.628433282 | M131: =[7]EJECUTIVO!J95 -> -3.883408245 | N131: =[8]EJECUTIVO!$I95 -> -0.09226424053 | O131: =[8]EJECUTIVO!J95 -> -2.51397645
A132: 3.6 Tasa interés pasiva promedio 180 días en ME | B132: =[2]EJECUTIVO!$I96 -> 2.55742899 | C132: =[2]EJECUTIVO!$J96 -> 2.11191089 | D132: =[3]EJECUTIVO!$I96 -> 3.92 | E132: =[3]EJECUTIVO!$J96 -> 4.45 | F132: =[4]EJECUTIVO!$I96 -> 2.49 | G132: =[4]EJECUTIVO!$J96 -> 2.64 | H132: =[5]EJECUTIVO!$I96 -> 3.02 | I132: =[5]EJECUTIVO!$J96 -> 2.78 | J132: =[6]EJECUTIVO!$I96 -> 4.193654542 | K132: =[6]EJECUTIVO!$J96 -> 3.718279919 | L132: =[7]EJECUTIVO!$I96 -> 0.4574 | M132: =[7]EJECUTIVO!J96 -> 0.9541 | N132: =[8]EJECUTIVO!$I96 -> 1.83 | O132: =[8]EJECUTIVO!J96 -> 1.6
A133: 3.7 Tasa de interés de Política Monetaria de fin de mes o/ | B133: =[2]EJECUTIVO!$I97 -> 0.75 | C133: =[2]EJECUTIVO!$J97 -> 2.5 | D133: =[3]EJECUTIVO!$I97 -> n.a. | E133: =[3]EJECUTIVO!$J97 -> n.a. | F133: =[4]EJECUTIVO!$I97 -> 1.75 | G133: =[4]EJECUTIVO!$J97 -> 2.25 | H133: =[5]EJECUTIVO!$I97 -> 3 | I133: =[5]EJECUTIVO!$J97 -> 3 | J133: =[6]EJECUTIVO!$I97 -> 3.5 | K133: =[6]EJECUTIVO!$J97 -> 4 | L133: =[7]EJECUTIVO!$I97 -> 3 | M133: =[7]EJECUTIVO!J97 -> 6.5 | N133: =[8]EJECUTIVO!$I97 -> n.a. | O133: =[8]EJECUTIVO!J97 -> n.a.
A134: 3.8 Tasa de encaje efectivo promedio (Obligaciones MN) | B134: =[2]EJECUTIVO!$I89 -> 12.85105528 | C134: =[2]EJECUTIVO!$J89 -> 13.30566422 | D134: =[3]EJECUTIVO!$I89 -> 12.76242143 | E134: =[3]EJECUTIVO!$J89 -> 15.33539365 | F134: =[4]EJECUTIVO!$I89 -> 14.7150993 | G134: =[4]EJECUTIVO!$J89 -> 14.72023347 | H134: =[5]EJECUTIVO!$I89 -> 23.52025679 | I134: =[5]EJECUTIVO!$J89 -> 14.2172357 | J134: =[6]EJECUTIVO!$I89 -> 16.58308023 | K134: =[6]EJECUTIVO!$J89 -> 16.2045921 | L134: =[7]EJECUTIVO!$I89 -> 10.81797983 | M134: =[7]EJECUTIVO!J89 -> 10.88028107 | N134: =[8]EJECUTIVO!$I89 -> n.a. | O134: =[8]EJECUTIVO!J89 -> n.a.
A135: 3.9 Tasa de encaje efectivo promedio (Obligaciones ME) | B135: =[2]EJECUTIVO!$I90 -> 16.10301486 | C135: =[2]EJECUTIVO!$J90 -> 16.60070433 | D135: =[3]EJECUTIVO!$I90 -> 12.76242143 | E135: =[3]EJECUTIVO!$J90 -> 15.33539365 | F135: =[4]EJECUTIVO!$I90 -> 15.66955937 | G135: =[4]EJECUTIVO!$J90 -> 15.66210002 | H135: =[5]EJECUTIVO!$I90 -> 27.4 | I135: =[5]EJECUTIVO!$J90 -> 28.4 | J135: =[6]EJECUTIVO!$I90 -> 17.60744824 | K135: =[6]EJECUTIVO!$J90 -> 16.05646008 | L135: =[7]EJECUTIVO!$I90 -> 24.90249963 | M135: =[7]EJECUTIVO!J90 -> 27.82341552 | N135: =[8]EJECUTIVO!$I90 -> n.a. | O135: =[8]EJECUTIVO!J90 -> n.a.
A137: V. SECTOR BURSÁTIL | B137: =IF([2]EJECUTIVO!$J$135=[2]EJECUTIVO!$J$8,[2]EJECUTIVO!$G$136,CONCATENATE([2]EJECUTIVO!$G$136," ",[2]EJECUTIVO!$I$135," ",[2]EJECUTIVO!$J$135)) -> JUNIO 2021 2022 | D137: =IF([3]EJECUTIVO!$J$135=[3]EJECUTIVO!$J$8,[3]EJECUTIVO!$G$136,CONCATENATE([3]EJECUTIVO!$G$136," ",[3]EJECUTIVO!$I$135," ",[3]EJECUTIVO!$J$135)) -> JUNIO 2021 2022 | F137: =IF([4]EJECUTIVO!$J$135=[4]EJECUTIVO!$J$8,[4]EJECUTIVO!$G$136,CONCATENATE([4]EJECUTIVO!$G$136," ",[4]EJECUTIVO!$I$135," ",[4]EJECUTIVO!$J$135)) -> MAYO 2021 2022 | H137: =IF([5]EJECUTIVO!$J$135=[5]EJECUTIVO!$J$8,[5]EJECUTIVO!$G$136,CONCATENATE([5]EJECUTIVO!$G$136," ",[5]EJECUTIVO!$I$135," ",[5]EJECUTIVO!$J$135)) -> JUNIO 2021 2022 | J137: =IF([6]EJECUTIVO!$J$135=[6]EJECUTIVO!$J$8,[6]EJECUTIVO!$G$136,CONCATENATE([6]EJECUTIVO!$G$136," ",[6]EJECUTIVO!$I$135," ",[6]EJECUTIVO!$J$135)) -> ABRIL 2021 2022 | L137: =IF([7]EJECUTIVO!$J$135=[7]EJECUTIVO!$J$8,[7]EJECUTIVO!$G$136,CONCATENATE([7]EJECUTIVO!$G$136," ",[7]EJECUTIVO!$I$135," ",[7]EJECUTIVO!$J$135)) -> JUNIO 2021 2022 | N137: =IF([8]EJECUTIVO!$J$135=[8]EJECUTIVO!$J$8,[8]EJECUTIVO!$G$136,CONCATENATE([8]EJECUTIVO!$G$136," ",[8]EJECUTIVO!$I$135," ",[8]EJECUTIVO!$J$135)) -> JUNIO 2021 2022
A139: 1 Volúmen Total Negociado por tipo de emisor, acumulado en mill.US$ | B139: =[2]EJECUTIVO!$I136 -> 12524.68216 | C139: =[2]EJECUTIVO!$J136 -> 8551.491113 | D139: =[3]EJECUTIVO!$I136 -> 1667.786446 | E139: =[3]EJECUTIVO!$J136 -> 1192.038851 | F139: =[4]EJECUTIVO!$I136 -> 38689.3345 | G139: =[4]EJECUTIVO!$J136 -> 54103.5629 | H139: =[5]EJECUTIVO!$I136 -> 2540.495717 | I139: =[5]EJECUTIVO!$J136 -> 4009.887112 | J139: =[6]EJECUTIVO!$I136 -> 658.7685223 | K139: =[6]EJECUTIVO!$J136 -> 640.9134169 | L139: =[7]EJECUTIVO!$I136 -> 4658.474304 | M139: =[7]EJECUTIVO!$J136 -> 5410.583147 | N139: =[8]EJECUTIVO!$I136 -> 4574.305814 | O139: =[8]EJECUTIVO!$J136 -> 3418.703601
A140: 1.1 Público | B140: =[2]EJECUTIVO!$I137 -> 11388.1775 | C140: =[2]EJECUTIVO!$J137 -> 7405.734902 | D140: =[3]EJECUTIVO!$I137 -> 1122.974686 | E140: =[3]EJECUTIVO!$J137 -> 652.1049055 | F140: =[4]EJECUTIVO!$I137 -> 38567.44904 | G140: =[4]EJECUTIVO!$J137 -> 53909.01438 | H140: =[5]EJECUTIVO!$I137 -> 2486.185365 | I140: =[5]EJECUTIVO!$J137 -> 3961.736129 | J140: =[6]EJECUTIVO!$I137 -> 643.1620659 | K140: =[6]EJECUTIVO!$J137 -> 632.2527272 | L140: =[7]EJECUTIVO!$I137 -> 4582.916406 | M140: =[7]EJECUTIVO!$J137 -> 4560.82044 | N140: =[8]EJECUTIVO!$I137 -> 2140.032251 | O140: =[8]EJECUTIVO!$J137 -> 1000.412713
A141: 1.2 Privado | B141: =[2]EJECUTIVO!$I138 -> 1136.504658 | C141: =[2]EJECUTIVO!$J138 -> 1145.756211 | D141: =[3]EJECUTIVO!$I138 -> 544.8117596 | E141: =[3]EJECUTIVO!$J138 -> 539.9339452 | F141: =[4]EJECUTIVO!$I138 -> 121.885458 | G141: =[4]EJECUTIVO!$J138 -> 194.5485275 | H141: =[5]EJECUTIVO!$I138 -> 54.3103521 | I141: =[5]EJECUTIVO!$J138 -> 48.1509834 | J141: =[6]EJECUTIVO!$I138 -> 15.60645645 | K141: =[6]EJECUTIVO!$J138 -> 8.660689693 | L141: =[7]EJECUTIVO!$I138 -> 75.55789824 | M141: =[7]EJECUTIVO!$J138 -> 849.7627075 | N141: =[8]EJECUTIVO!$I138 -> 2434.273563 | O141: =[8]EJECUTIVO!$J138 -> 2418.290888
A142: 2. Relaciones Analíticas
A143: 2.1 Reportos / volúmen total negociado, en porcentajes | B143: =[2]EJECUTIVO!$I140 -> 40.86750773 | C143: =[2]EJECUTIVO!$J140 -> 61.20963666 | D143: =[3]EJECUTIVO!$I140 -> 57.36563993 | E143: =[3]EJECUTIVO!$J140 -> 41.64635799 | F143: =[4]EJECUTIVO!$I140 -> 34.61589821 | G143: =[4]EJECUTIVO!$J140 -> 33.29923279 | H143: =[5]EJECUTIVO!$I140 -> 0 | I143: =[5]EJECUTIVO!$J140 -> 0 | J143: =[6]EJECUTIVO!$I140 -> 5.126932717 | K143: =[6]EJECUTIVO!$J140 -> 3.799237372 | L143: =[7]EJECUTIVO!$I140 -> n.d. | M143: =[7]EJECUTIVO!$J140 -> n.d. | N143: =[8]EJECUTIVO!$I140 -> 0.7443244404 | O143: =[8]EJECUTIVO!$J140 -> 3.399705535
A144: 2.2 Mercado Secundario / Mercado Primario, (número de veces) | B144: =[2]EJECUTIVO!$I141 -> 7.31666395 | C144: =[2]EJECUTIVO!$J141 -> 7.547130377 | D144: =[3]EJECUTIVO!$I141 -> 1.303418273 | E144: =[3]EJECUTIVO!$J141 -> 1.458615051 | F144: =[4]EJECUTIVO!$I141 -> 0.5362331836 | G144: =[4]EJECUTIVO!$J141 -> 0.5036898989 | H144: =[5]EJECUTIVO!$I141 -> 0.1868756154 | I144: =[5]EJECUTIVO!$J141 -> 0.1218934921 | J144: =[6]EJECUTIVO!$I141 -> 0.01257214572 | K144: =[6]EJECUTIVO!$J141 -> 0.02585250767 | L144: =[7]EJECUTIVO!$I141 -> n.d. | M144: =[7]EJECUTIVO!$J141 -> n.d. | N144: =[8]EJECUTIVO!$I141 -> 0.4148956838 | O144: =[8]EJECUTIVO!$J141 -> 0.2401192809
A145: 2.3 Volúmen negociado en MN / Volúmen Total, en porcentajes | B145: =[2]EJECUTIVO!$I142 -> 62.98235487 | C145: =[2]EJECUTIVO!$J142 -> 51.44830079 | D145: =[3]EJECUTIVO!$I142 -> 100 | E145: =[3]EJECUTIVO!$J142 -> 100 | F145: =[4]EJECUTIVO!$I142 -> 95.62421726 | G145: =[4]EJECUTIVO!$J142 -> 94.12792169 | H145: =[5]EJECUTIVO!$I142 -> 88.67420496 | I145: =[5]EJECUTIVO!$J142 -> 96.68380328 | J145: =[6]EJECUTIVO!$I142 -> 0.03146819712 | K145: =[6]EJECUTIVO!$J142 -> 1.412619148 | L145: =[7]EJECUTIVO!$I142 -> 63.05362649 | M145: =[7]EJECUTIVO!$J142 -> 80.82874357 | N145: =[8]EJECUTIVO!$I142 -> 100 | O145: =[8]EJECUTIVO!$J142 -> 100
A146: 2.4 Rendimiento Promedio: Operaciones de Reporto de 1 semana | B146: =[2]EJECUTIVO!$I139 -> n.d. | C146: =[2]EJECUTIVO!$J139 -> n.d. | D146: =[3]EJECUTIVO!$I139 -> 1.152315043 | E146: =[3]EJECUTIVO!$J139 -> 3.690304541 | F146: =[4]EJECUTIVO!$I139 -> n.a. | G146: =[4]EJECUTIVO!$J139 -> n.a. | H146: =[5]EJECUTIVO!$I139 -> n.a. | I146: =[5]EJECUTIVO!$J139 -> n.a. | J146: =[6]EJECUTIVO!$I139 -> n.a. | K146: =[6]EJECUTIVO!$J139 -> n.a. | L146: =[7]EJECUTIVO!$I139 -> n.a. | M146: =[7]EJECUTIVO!$J139 -> n.a. | N146: =[8]EJECUTIVO!$I139 -> n.d. | O146: =[8]EJECUTIVO!$J139 -> n.d.
A148: Notas:
A149: Notación: n.a.=no aplica , n.d.=no disponible, n.o.=No hubo transacción ese mes.
A151: a/ En Costa Rica corresponde a la nueva serie del PIB año base 2017; b/ Datos preliminares de 2021 y estimado 2022 (bancos centrales o WEO); c/ Los datos de Honduras no incluyen la maquila; d/ Las remesas provienen de la Balanza Cambiaria en Guatemala y Honduras y de la Balanza de Pagos para el resto de países; e/ Los flujos negativos de IED que se pudieran observar en El Salvador surgen debido a que en algunos periodos hay amortizaciones netas de préstamos con el inversionista directo, mayores a lo registrado por acciones u otras aportaciones de capital, los cuales por razones metodológicas deben sumarse al valor de la IED; f/ Incluye dentro de los socios comerciales al resto de países centroamericanos, República Dominicana, Panamá, Brasil, Canadá, China, Colombia, Corea del Sur, Haití, Japón, México, Estados Unidos y Zona Euro. Valores sobre (bajo) 100 significan una depreciación (apreciación) real de la moneda. Ver nota metodológica en http://www.secmca.org/nota/propuesta-de-actualizacion-del-indice-de-tipo-de-cambio-efectivo-real-itcer/; g/ Incluye dentro de los socios comerciales al resto de países Centroamericanos, República Dominicana y Panamá. Valores sobre (bajo) 100 significan una depreciación (apreciación) real de la moneda; h/ En Guatemala, Honduras y República Dominicana se refiere a la Deuda Pública Consolidada tal como lo recomienda la versión del 2001 del Manual de Estadísticas de Finanzas Públicas del FMI. En el resto de países se compila únicamente la deuda bruta. La Deuda Intragubernamental es la obligación contraída por una institución del gobierno con otra, por ejemplo los bonos emitidos por el Gobierno Central y que son comprados por una institución pública. Se resta de la deuda bruta para obtener la deuda consolidada; i/ Las estadísticas monetarias responden a los conceptos definidos en los cuadros armonizados que fueron aprobados por el CMCA en diciembre de 2007. Las tasas de variación de los componentes de cada concepto están ponderadas, de modo que la suma de las tasas coincide con la tasa de variación interanual de dicho concepto; j/ Costa Rica, Nicaragua y República Dominicana no tienen encaje remunerado; k/ En El Salvador el agregado monetario M3 es igual a M2 debido a que no existen pasivos de las Sociedades de Depósito en otra moneda que no sea el US dólar; L/ Esta relación es cero para Nicaragua debido a que todo el cuasidinero en MN se registra como cuasidinero en ME, dado que los depósitos y valores distintos de acciones en MN poseen cláusulas de mantenimiento de valor; m/ Esta relación no aplica a El Salvador debido a que no existen depósitos en una moneda distinta al US dólar, dada la vigencia de la Ley de Integración Monetaria; n/ Esta relación es 100 en Nicaragua debido a que los créditos en MN están indexados al tipo de cambio (mantenimiento de valor). Para efectos prácticos, están dolarizados; ñ/ En El Salvador desde el 2001 las tasas en MN y ME son las mismas, debido a la Ley de Integración Monetaria que circula el US dólar como la moneda local; o/ Para Costa Rica la Tasa de Política Monetaria (TPM) corresponde a la tasa de interés que utiliza el BCCR como referencia para conducir el costo de las operaciones a un día plazo en el Mercado Integrado de Liquidez dentro de un corredor formado por las tasas de interés de sus facilidades permanentes de crédito y de depósito en este mercado; en República Dominicana corresponde a la tasa de referencia para las operaciones de expansión y contracción al plazo de un día hábil; en Honduras la Tasa de Política Monetaria corresponde a la tasa máxima permitida para las posturas de compra y la tasa mínima para las posturas de venta, en las subastas de Letras del Banco Central de Honduras dirigidas a las instituciones del sistema financiero nacional; en Guatemala corresponde a la tasa de interés de los depósitos a plazo a un día (overnight); en El Salvador no aplica por no tener política monetaria y Nicaragua no define tasa de política monetaria.

Sheet Proyecciones
A2: Consejo Monetario Centroamericano | K2: =CONCATENATE(Indice!$J$47,",") -> REM N° 265, | L2: =Indice!$J$48 -> 2022-06-19
A3: Secretaría Ejecutiva
A4: PROYECCIONES/METAS 2022-2023 DE LOS PRINCIPALES INDICADORES MACROECONÓMICOS
A6: Cuadro 1 | I6: Cuadro 2
A7: Inflación (IPC) porcentajes | B7: 2019 | C7: =B7+1 -> 2020 | D7: =C7+1 -> 2021 | E7: =CONCATENATE("Proyección inicial ", D7+1) -> Proyección inicial 2022 | F7: =CONCATENATE("Proyección revisada ", D7+1) -> Proyección revisada 2022 | G7: =CONCATENATE("Proyección ",D7+2) -> Proyección 2023 | I7: PIB real variación anual | J7: =B7 -> 2019 | K7: =C7 -> 2020 | L7: =+CONCATENATE(D7) -> 2021 | M7: =+E7 -> Proyección inicial 2022 | N7: =+F7 -> Proyección revisada 2022 | O7: Proyección 2023
A8: Costa Rica | B8: =+'[1]Cuadros anuales'!H8 -> 1.522429115 | C8: =+'[1]Cuadros anuales'!I8 -> 0.892448522 | D8: =+'[1]Cuadros anuales'!J8 -> 3.29890791 | E8: =CONCATENATE([1]METAS!I8,"") -> 3.0 ± 1 | F8: =CONCATENATE([1]METAS!L8,"") ->  | G8: =CONCATENATE([1]METAS!P8,"") -> 3.0 ± 1 | I8: Costa Rica | J8: =+'[1]Cuadros anuales'!H33 -> 2.417511817 | K8: =+'[1]Cuadros anuales'!I33 -> -4.05090817 | L8: =+'[1]Cuadros anuales'!J33 -> 7.763901025 | M8: =+[1]METAS!I33 -> 3.92495983 | N8: =+[1]METAS!L33 -> 3.4 | O8: =[1]METAS!P33 -> 3.9
A9: El Salvador | B9: =+'[1]Cuadros anuales'!H9 -> -0.00819303823 | C9: =+'[1]Cuadros anuales'!I9 -> -0.08530843355 | D9: =+'[1]Cuadros anuales'!J9 -> 6.114806269 | E9: n.d. | F9: =CONCATENATE([1]METAS!L9,"") -> 5.8 | G9: =CONCATENATE([1]METAS!P9,"") -> n.d. | H9: os | I9: El Salvador | J9: =+'[1]Cuadros anuales'!H34 -> 2.432813424 | K9: =+'[1]Cuadros anuales'!I34 -> -8.172778123 | L9: =+'[1]Cuadros anuales'!J34 -> 10.26831037 | M9: =+[1]METAS!I34 -> 4 | N9: =+[1]METAS!L34 -> 2.6 | O9: =[1]METAS!P34 -> n.d.
A10: Guatemala | B10: =+'[1]Cuadros anuales'!H10 -> 3.405527602 | C10: =+'[1]Cuadros anuales'!I10 -> 4.823695346 | D10: =+'[1]Cuadros anuales'!J10 -> 3.067814855 | E10: =CONCATENATE([1]METAS!I10,"") -> 4.0 ± 1 | F10: =CONCATENATE([1]METAS!L10,"") ->  | G10: =CONCATENATE([1]METAS!P10,"") -> n.d. | I10: Guatemala | J10: =+'[1]Cuadros anuales'!H35 -> 4.002315046 | K10: =+'[1]Cuadros anuales'!I35 -> -1.764082924 | L10: =+'[1]Cuadros anuales'!J35 -> 7.980769679 | M10: =+[1]METAS!I35 -> 3.0 - 5.0 | N10: =+[1]METAS!L35 -> 3.0 - 5.0 | O10: =[1]METAS!P35 -> 2.5-4.5
A11: Honduras | B11: =+'[1]Cuadros anuales'!H11 -> 4.084158416 | C11: =+'[1]Cuadros anuales'!I11 -> 4.013079667 | D11: =+'[1]Cuadros anuales'!J11 -> 5.315804516 | E11: =CONCATENATE([1]METAS!I11,"") -> 5.0 - 6.19 | F11: =CONCATENATE([1]METAS!L11,"") ->  | G11: =CONCATENATE([1]METAS!P11,"") -> 4.44 | I11: Honduras | J11: =+'[1]Cuadros anuales'!H36 -> 2.653018514 | K11: =+'[1]Cuadros anuales'!I36 -> -8.964760184 | L11: =+'[1]Cuadros anuales'!J36 -> 12.53414578 | M11: =+[1]METAS!I36 -> 3.5 - 4.5 | N11: =+[1]METAS!L36 ->  | O11: =[1]METAS!P36 -> 3.5 - 4.5
A12: Nicaragua | B12: =+'[1]Cuadros anuales'!H12 -> 6.12972437 | C12: =+'[1]Cuadros anuales'!I12 -> 2.930569591 | D12: =+'[1]Cuadros anuales'!J12 -> 7.210067535 | E12: =CONCATENATE([1]METAS!I12,"") -> 5.0 - 6.0 | F12: =[1]METAS!L12 -> 6.0 -7.0 | G12: =CONCATENATE([1]METAS!P12,"") -> n.d. | I12: Nicaragua | J12: =+'[1]Cuadros anuales'!H37 -> -3.779781981 | K12: =+'[1]Cuadros anuales'!I37 -> -1.789485231 | L12: =+'[1]Cuadros anuales'!J37 -> 10.34464734 | M12: =+[1]METAS!I37 -> 4.0 - 5.0 | N12: =+[1]METAS!L37 ->  | O12: =[1]METAS!P37 -> n.d.
A13: Rep Dominicana | B13: =+'[1]Cuadros anuales'!H13 -> 3.656278926 | C13: =+'[1]Cuadros anuales'!I13 -> 5.553647812 | D13: =+'[1]Cuadros anuales'!J13 -> 8.495698987 | E13: =CONCATENATE([1]METAS!I13,"") -> 4.0 ± 1 | F13: =CONCATENATE([1]METAS!L13,"") ->  | G13: =CONCATENATE([1]METAS!P13,"") -> 4.0 ± 1 | I13: Rep Dominicana | J13: =+'[1]Cuadros anuales'!H38 -> 5.052168023 | K13: =+'[1]Cuadros anuales'!I38 -> -6.720239375 | L13: =+'[1]Cuadros anuales'!J38 -> 12.27199024 | M13: =+[1]METAS!I38 -> 5 | N13: =+[1]METAS!L38 ->  | O13: =[1]METAS!P38 -> 5
A14: Promedio región CARD | B14: =+'[1]Cuadros anuales'!H16 -> 3.047922303 | C14: =+'[1]Cuadros anuales'!I16 -> 3.684348804 | D14: =+'[1]Cuadros anuales'!J16 -> 5.555339146 | E14: =[1]METAS!I16 -> n.d. | G14: =[1]METAS!P16 -> n.d. | I14: Promedio región CARD | J14: =+'[1]Cuadros anuales'!H41 -> 3.282010471 | K14: =+'[1]Cuadros anuales'!I41 -> -5.096950128 | L14: =+'[1]Cuadros anuales'!J41 -> 10.08415152 | M14: =+[1]METAS!I41 -> 4.2 | O14: =CONCATENATE([1]METAS!P41,"") -> n.d.
A16: Cuadro 3 | I16: Cuadro 4
A17: Cuenta Corriente/PIB porcentajes | B17: =B7 -> 2019 | C17: =C7 -> 2020 | D17: =+CONCATENATE(D7) -> 2021 | E17: =+E7 -> Proyección inicial 2022 | F17: =+F7 -> Proyección revisada 2022 | G17: Proyección 2023 | I17: RIN del Banco Central en millones de US$ | J17: =B7 -> 2019 | K17: =C7 -> 2020 | L17: =D7 -> 2021 | M17: =E7 -> Proyección inicial 2022 | N17: =F7 -> Proyección revisada 2022 | O17: Proyección 2023
A18: Costa Rica | B18: =+'[1]Cuadros anuales'!H154 -> -1.282502486 | C18: =+'[1]Cuadros anuales'!I154 -> -1.027609012 | D18: =+'[1]Cuadros anuales'!J154 -> -3.315151152 | E18: =[1]METAS!I154 -> -3.4 | F18: =[1]METAS!L154 -> -4.6 | G18: =[1]METAS!P154 -> -3.5 | I18: Costa Rica | J18: =+'[1]Cuadros anuales'!H118 -> 8912.3 | K18: =+'[1]Cuadros anuales'!I118 -> 7224.666352 | L18: =+'[1]Cuadros anuales'!J118 -> 6918.14017 | M18: =+[1]METAS!I118 -> n.d. | O18: =[1]METAS!P118 -> n.d.
A19: El Salvador | B19: =+'[1]Cuadros anuales'!H155 -> -0.4216935785 | C19: =+'[1]Cuadros anuales'!I155 -> 0.8262314466 | D19: =+'[1]Cuadros anuales'!J155 -> -5.068392867 | E19: n.d. | F19: =+[1]METAS!L155 ->  | G19: =[1]METAS!P155 -> n.d. | I19: El Salvador | J19: =+'[1]Cuadros anuales'!H119 -> 3936.49 | K19: =+'[1]Cuadros anuales'!I119 -> 2915.2 | L19: =+'[1]Cuadros anuales'!J119 -> 3342.39 | M19: n.d. | N19: =[1]METAS!L119 ->  | O19: =[1]METAS!P119 -> n.d.
A20: Guatemala | B20: =+'[1]Cuadros anuales'!H156 -> 2.360066747 | C20: =+'[1]Cuadros anuales'!I156 -> 4.93696933 | D20: =+'[1]Cuadros anuales'!J156 -> 2.532147714 | E20: =[1]METAS!I156 -> 1.245983912 | F20: =[1]METAS!L156 -> 1.245983912 | G20: =[1]METAS!P156 -> 0.8294187193 | I20: Guatemala | J20: =+'[1]Cuadros anuales'!H120 -> 14789 | K20: =+'[1]Cuadros anuales'!I120 -> 18468.2 | L20: =+'[1]Cuadros anuales'!J120 -> 20939.6 | M20: =+[1]METAS!I120 -> 22439.6 | N20: =[1]METAS!L120 -> 22439.6 | O20: =[1]METAS!P120 -> 22439.6 | P20: =+M20 -> 22439.6
A21: Honduras | B21: =+'[1]Cuadros anuales'!H157 -> -1.613243623 | C21: =+'[1]Cuadros anuales'!I157 -> 3.831188702 | D21: =+'[1]Cuadros anuales'!J157 -> -2.557917646 | E21: =[1]METAS!I157 -> -4.5 | F21: =[1]METAS!L157 ->  | G21: =[1]METAS!P157 -> -3.9 | I21: Honduras | J21: =+'[1]Cuadros anuales'!H121 -> 5808.856929 | K21: =+'[1]Cuadros anuales'!I121 -> 8148.8 | L21: =+'[1]Cuadros anuales'!J121 -> 8677.556815 | M21: =+[1]METAS!I121 -> n.d. | N21: =[1]METAS!L121 ->  | O21: =[1]METAS!P121 -> n.d. | P21: =+N21 -> 
A22: Nicaragua | B22: =+'[1]Cuadros anuales'!H158 -> 5.98713285 | C22: =+'[1]Cuadros anuales'!I158 -> 3.946279418 | D22: =+'[1]Cuadros anuales'!J158 -> -2.259316979 | E22: =[1]METAS!I158 -> n.d. | F22: =[1]METAS!L158 ->  | G22: =[1]METAS!P158 -> n.d. | I22: Nicaragua | J22: =+'[1]Cuadros anuales'!H122 -> 2208.5 | K22: =+'[1]Cuadros anuales'!I122 -> 3073.5 | L22: =+'[1]Cuadros anuales'!J122 -> 3954.552242 | M22: =+[1]METAS!I122 -> n.d. | N22: =[1]METAS!L122 ->  | O22: =[1]METAS!P122 -> n.d.
A23: Rep Dominicana | B23: =+'[1]Cuadros anuales'!H159 -> -1.336128792 | C23: =+'[1]Cuadros anuales'!I159 -> -1.697784407 | D23: =+'[1]Cuadros anuales'!J159 -> -2.856864234 | E23: =[1]METAS!I159 -> n.d. | F23: =[1]METAS!L159 ->  | G23: =[1]METAS!P159 -> n.d. | I23: Rep Dominicana | J23: =+'[1]Cuadros anuales'!H123 -> 8781.4 | K23: =+'[1]Cuadros anuales'!I123 -> 10751.67249 | L23: =+'[1]Cuadros anuales'!J123 -> 13033.91743 | M23: =+[1]METAS!I123 -> n.d. | N23: =[1]METAS!L123 ->  | O23: =[1]METAS!P123 -> n.d. | P23: =+M23 -> n.d.
A24: Promedio región CARD | B24: =+'[1]Cuadros anuales'!H162 -> 0.05695397439 | C24: =+'[1]Cuadros anuales'!I162 -> 1.296494687 | D24: =+[1]METAS!H162 -> -1.63551791 | E24: =[1]METAS!I162 -> n.d | G24: =[1]METAS!P162 -> n.d. | I24: Total región CARD | J24: =+'[1]Cuadros anuales'!H126 -> 44436.54693 | K24: =+'[1]Cuadros anuales'!I126 -> 50582.03884 | L24: =+'[1]Cuadros anuales'!J126 -> 56866.15666 | M24: =+[1]METAS!I126 -> n.d. | O24: =CONCATENATE([1]METAS!P126,"") -> n.d. | P24: =+SUM(P18:P23) -> 22439.6
A26: Cuadro 5 | I26: Cuadro 6
A27: Exportaciones variación anual | B27: =B7 -> 2019 | C27: =C7 -> 2020 | D27: =D17 -> 2021 | E27: Proyección inicial 2022 | F27: Proyección revisada 2022 | G27: Proyección 2023 | I27: Importaciones variación anual | J27: =B7 -> 2019 | K27: =C7 -> 2020 | L27: =D17 -> 2021 | M27: Proyección inicial 2022 | N27: Proyección revisada 2022 | O27: Proyección 2023
A28: Costa Rica | B28: =+'[1]Cuadros anuales'!H70 -> 2.665026742 | C28: =+'[1]Cuadros anuales'!I70 -> 8.172304132 | D28: =+'[1]Cuadros anuales'!J70 -> 26.26710047 | E28: =[1]METAS!I70 -> n.d. | F28: =([1]METAS!L70) ->  | G28: =[1]METAS!$P70 -> n.d. | H28: =+E28 -> n.d. | I28: Costa Rica | J28: =+'[1]Cuadros anuales'!H94 -> -2.51365936 | K28: =+'[1]Cuadros anuales'!I94 -> 8.392996248 | L28: =+'[1]Cuadros anuales'!J94 -> 38.02949585 | M28: =[1]METAS!I94 -> n.d. | N28: =[1]METAS!$L94 ->  | O28: =[1]METAS!$P94 -> n.d.
A29: El Salvador | B29: =+'[1]Cuadros anuales'!H71 -> -0.006942809874 | C29: =+'[1]Cuadros anuales'!I71 -> -14.84611294 | D29: =+'[1]Cuadros anuales'!J71 -> 31.82832437 | E29: n.d. | F29: =([1]METAS!L71) ->  | G29: =[1]METAS!$P71 -> n.d. | H29: =+E29 -> n.d. | I29: El Salvador | J29: =+'[1]Cuadros anuales'!H95 -> 1.201991223 | K29: =+'[1]Cuadros anuales'!I95 -> -11.67184245 | L29: =+'[1]Cuadros anuales'!J95 -> 47.11185576 | M29: n.d. | N29: =[1]METAS!$L95 ->  | O29: =[1]METAS!$P95 -> n.d.
A30: Guatemala | B30: =+'[1]Cuadros anuales'!H72 -> 1.809546383 | C30: =+'[1]Cuadros anuales'!I72 -> -0.59813218 | D30: =+'[1]Cuadros anuales'!J72 -> 22.70364732 | E30: =[1]METAS!I72 -> 8.5 - 11.5 | F30: =([1]METAS!L72) -> 8.5 - 11.5 | G30: =[1]METAS!$P72 -> 4.5 - 7.5 | H30: 11.9 | I30: Guatemala | J30: =+'[1]Cuadros anuales'!H96 -> 1.053658834 | K30: =+'[1]Cuadros anuales'!I96 -> -8.423869306 | L30: =+'[1]Cuadros anuales'!J96 -> 46.14210075 | M30: =[1]METAS!I96 -> 10.5 - 13.5 | N30: =[1]METAS!$L96 -> 10.5 - 13.5 | O30: =[1]METAS!$P96 -> 6.5 - 9.5
A31: Honduras | B31: =+'[1]Cuadros anuales'!H73 -> -2.316639198 | C31: =+'[1]Cuadros anuales'!I73 -> 0.6117783933 | D31: =+'[1]Cuadros anuales'!J73 -> 22.16529954 | E31: =[1]METAS!I73 -> 7.4 | F31: =([1]METAS!L73) ->  | G31: =[1]METAS!$P73 -> 3.8 | H31: 13.6 | I31: Honduras | J31: =+'[1]Cuadros anuales'!H97 -> -3.45232873 | K31: =+'[1]Cuadros anuales'!I97 -> -13.48689868 | L31: =+'[1]Cuadros anuales'!J97 -> 47.60272322 | M31: =[1]METAS!I97 -> 10 | N31: =[1]METAS!$L97 ->  | O31: =[1]METAS!$P97 -> 7
A32: Nicaragua | B32: =+'[1]Cuadros anuales'!H74 -> 3.225362248 | C32: =+'[1]Cuadros anuales'!I74 -> -4.823654119 | D32: =+'[1]Cuadros anuales'!J74 -> 29.45888102 | E32: =[1]METAS!I74 -> n.d. | F32: =([1]METAS!L74) ->  | G32: =[1]METAS!$P74 -> n.d. | H32: 8.2 | I32: Nicaragua | J32: =+'[1]Cuadros anuales'!H98 -> -6.584773371 | K32: =+'[1]Cuadros anuales'!I98 -> -4.320299596 | L32: =+'[1]Cuadros anuales'!J98 -> 42.51953824 | M32: =[1]METAS!I98 -> n.d. | N32: =[1]METAS!$L98 ->  | O32: =[1]METAS!$P98 -> n.d.
A33: Rep Dominicana | B33: =+'[1]Cuadros anuales'!H75 -> 5.213336968 | C33: =+'[1]Cuadros anuales'!I75 -> -7.958758834 | D33: =+'[1]Cuadros anuales'!J75 -> 20.96797678 | E33: =[1]METAS!I75 -> n.d. | F33: =([1]METAS!L75) ->  | G33: =[1]METAS!$P75 -> n.d. | H33: 47 | I33: Rep Dominicana | J33: =+'[1]Cuadros anuales'!H99 -> 0.3490565571 | K33: =+'[1]Cuadros anuales'!I99 -> -15.6050484 | L33: =+'[1]Cuadros anuales'!J99 -> 41.14703303 | M33: =[1]METAS!I99 -> n.d. | N33: =[1]METAS!$L99 ->  | O33: =[1]METAS!$P99 -> n.d.
A34: Promedio región CARD | B34: =+'[1]Cuadros anuales'!H78 -> 2.65207997 | C34: =+'[1]Cuadros anuales'!I78 -> -3.210621443 | D34: n.d. | E34: =[1]METAS!I78 -> n.d. | G34: =[1]METAS!$P78 -> n.d. | I34: Promedio región CARD | J34: =+'[1]Cuadros anuales'!H102 -> -0.6005105989 | K34: =+'[1]Cuadros anuales'!I102 -> -8.694540827 | L34: n.d. | M34: =[1]METAS!I102 -> n.d. | O34: =[1]METAS!$P102 -> n.d.
A35: En Honduras no se incluyen los bienes para la transformación. | I35: En Honduras no se incluyen los bienes para la transformación.
A36: Cuadro 7 | I36: Cuadro 8
A37: Remesas (Ingreso) en millones de US$ | B37: =B7 -> 2019 | C37: =C7 -> 2020 | D37: 2021 | E37: Proyección inicial 2022 | F37: Proyección revisada 2022 | G37: Proyección 2023 | I37: Saldo Operacional del Gobierno Central/PIB | J37: =B7 -> 2019 | K37: =C7 -> 2020 | L37: =D17 -> 2021 | M37: Proyección inicial 2022 | N37: Proyección revisada 2022 | O37: Proyección 2023
A38: Costa Rica | B38: =+'[1]Cuadros anuales'!H130 -> 518.7852398 | C38: =+'[1]Cuadros anuales'!I130 -> 495.2607316 | D38: =+'[1]Cuadros anuales'!J130 -> 558.8144439 | E38: =+[1]METAS!I130 -> n.d. | F38: =+[1]METAS!L130 ->  | G38: =+[1]METAS!P130 -> n.d. | H38: =+E38 -> n.d. | I38: Costa Rica | J38: =+'[1]Cuadros anuales'!H191 -> -6.654199891 | K38: =+'[1]Cuadros anuales'!I191 -> -7.99292706 | L38: =+'[1]Cuadros anuales'!J191 -> -5.022908399 | M38: =+[1]METAS!I179 -> -3.6 | N38: =[1]METAS!L179 ->  | O38: =[1]METAS!P179 -> -2.7 | P38: =+N38 -> 
A39: El Salvador | B39: =+'[1]Cuadros anuales'!H131 -> 5648.96 | C39: =+'[1]Cuadros anuales'!I131 -> 5929.94 | D39: =+'[1]Cuadros anuales'!J131 -> 7517.14 | E39: =+[1]METAS!I131 -> n.d. | F39: =+[1]METAS!L131 ->  | G39: =+[1]METAS!P131 -> n.d. | H39: =+E39 -> n.d. | I39: El Salvador | J39: =+'[1]Cuadros anuales'!H192 -> -1.622056238 | K39: =+'[1]Cuadros anuales'!I192 -> -9.23933042 | L39: =+'[1]Cuadros anuales'!J192 -> -4.930116769 | M39: =+IF([1]METAS!I180="", "n.d.") -> n.d. | N39: =[1]METAS!L180 ->  | O39: =[1]METAS!P180 -> n.d. | P39: =+M39 -> n.d.
A40: Guatemala | B40: =+'[1]Cuadros anuales'!H132 -> 10508.4 | C40: =+'[1]Cuadros anuales'!I132 -> 11340.5 | D40: =+'[1]Cuadros anuales'!J132 -> 15295.7 | E40: =+[1]METAS!I132 -> 17590.038 | F40: =+[1]METAS!L132 -> 17590.038 | G40: =+[1]METAS!P132 -> 18645.44028 | H40: =+E40 -> 17590.038 | I40: Guatemala | J40: =+'[1]Cuadros anuales'!H193 -> -2.236102448 | K40: =+'[1]Cuadros anuales'!I193 -> -4.915476896 | L40: =+'[1]Cuadros anuales'!J193 -> -1.168459181 | M40: =+[1]METAS!I181 -> -2.770886124 | N40: =[1]METAS!L181 -> -2.249975256 | O40: =[1]METAS!P181 -> -2.186609876 | P40: =+M40 -> -2.770886124
A41: Honduras | B41: =+'[1]Cuadros anuales'!H133 -> 5521.993739 | C41: =+'[1]Cuadros anuales'!I133 -> 5741.0466 | D41: =+'[1]Cuadros anuales'!J133 -> 7370.0331 | E41: =+[1]METAS!I133 -> 8190.216 | F41: =+[1]METAS!L133 ->  | G41: =+[1]METAS!P133 -> 8845.43328 | H41: =+F41 ->  | I41: Honduras | J41: =+'[1]Cuadros anuales'!H194 -> -2.472824823 | K41: =+'[1]Cuadros anuales'!I194 -> -6.989956529 | L41: =+'[1]Cuadros anuales'!J194 -> -4.962951985 | M41: =+[1]METAS!I182 -> 4 | N41: =[1]METAS!L182 ->  | O41: =[1]METAS!P182 -> 2.7 | P41: -3.7
A42: Nicaragua | B42: =+'[1]Cuadros anuales'!H134 -> 1682.4 | C42: =+'[1]Cuadros anuales'!I134 -> 1851.4 | D42: =+'[1]Cuadros anuales'!J134 -> 2146.9 | E42: =+[1]METAS!I134 -> n.d. | F42: =+[1]METAS!L134 ->  | G42: =+[1]METAS!P134 -> n.d. | I42: Nicaragua | J42: =+'[1]Cuadros anuales'!H195 -> 0.2596997424 | K42: =+'[1]Cuadros anuales'!I195 -> -1.059924821 | L42: =+'[1]Cuadros anuales'!J195 -> -0.741193961 | M42: =+IF([1]METAS!I183="", "n.d.") -> n.d. | N42: =[1]METAS!L183 ->  | O42: =[1]METAS!P183 -> n.d. | P42: =+M42 -> n.d.
A43: Rep Dominicana | B43: =+'[1]Cuadros anuales'!H135 -> 7087.045534 | C43: =+'[1]Cuadros anuales'!I135 -> 8219.262926 | D43: =+'[1]Cuadros anuales'!J135 -> 10402.4692 | E43: =+[1]METAS!I135 -> n.d. | F43: =+[1]METAS!L135 ->  | G43: =+[1]METAS!P135 -> n.d. | I43: Rep Dominicana | J43: =+'[1]Cuadros anuales'!H196 -> -2.195322703 | K43: =+'[1]Cuadros anuales'!I196 -> -7.90610947 | L43: =+'[1]Cuadros anuales'!J196 -> -2.930605919 | M43: =+[1]METAS!I184 -> n.d. | N43: =[1]METAS!L184 ->  | O43: =[1]METAS!P184 -> n.d. | P43: =+M43 -> n.d.
A44: Total región CARD | B44: =+'[1]Cuadros anuales'!H138 -> 30967.58451 | C44: =+'[1]Cuadros anuales'!I138 -> 33577.41026 | D44: n.d. | E44: =+[1]METAS!I138 -> n.d. | G44: =CONCATENATE([1]METAS!P138,"") -> n.d. | I44: Promedio región CARD | J44: =+'[1]Cuadros anuales'!H199 -> -2.707704428 | K44: =+'[1]Cuadros anuales'!I199 -> -6.726010576 | L44: n.d. | M44: =+[1]METAS!I187 -> n.d | O44: =[1]METAS!P187 -> n.d.
I45: Incluye donaciones
A46: Fuente: Bancos Centrales Centroamericanos y de República Dominicana.
A47: NOTAS:
A48: La región CARD incluye a los países de Centroamérica y República Dominicana
A49: Los promedios regionales están ponderados conforme al tamaño de cada economía.

Sheet Seguimiento proyecciones
A2: CONSEJO MONETARIO CENTROAMERICANO | M2: =CONCATENATE(Indice!$J$47,",") -> REM N° 265, | N2: =Indice!$J$48 -> 2022-06-19
A3: SECRETARIA EJECUTIVA
A4: SEGUIMIENTO DE LAS PROYECCIONES EN 2022
A6: Inflación Acumulada en 2022 | I6: Resultado operacional del Gobierno Central 2022
I7: (incluye las donaciones)
A25: Cuando se especifica un rango en las metas de inflación, se toma el límite superior. | I25: El saldo positivo de República Dominicana se debe a que en enero del 2015 se incluye dentro de las donaciones la suma de RD$ 93,157.2 millones, correspondiente al descuento generado por la transacción de deuda realizada con Petrocaribe.
A28: Saldo en la Cuenta Corriente 2022 | I28: Reservas Internacionales Netas
I29: del Banco Central 2022
A50: Exportaciones Totales con Maquila 2022 | I50: Importaciones Totales con Maquila 2022
A72: Ingresos por Remesas Familiares 2022
A93: Los datos de Costa Rica no están disponibles en forma mensual. Anualmente Costa Rica recibe alrededor de 500 millones de US dólares por concepto de remesas.

Sheet Gráficos-pais
S2: Seleccione el país
A3: CONSEJO MONETARIO CENTROAMERICANO | O3: =CONCATENATE(Indice!$J$47,",") -> REM N° 265, | P3: =Indice!$J$48 -> 2022-06-19
A4: SECRETARIA EJECUTIVA
A5: EVOLUCIÓN POR PAÍS DE INDICADORES MACROECONÓMICOS SELECCIONADOS
A10: Tasa de Inflación Interanual | J10: IMAE | S10: Nota: Se le recuerda habilitar las macros para hacer uso de las herramientas dinámicas presentes en este informe.
J11: Variación interanual de la Tendencia-Ciclo
A34: ITCER bilateral USA año base 2000 | J34: Tipo de Cambio Nominal Tasa de variación interanual
A35: 2000=100 | J35: Tasa de Variación Interanual
A58: RIN Banco Central | J58: RIN Banco Central/ Base Monetaria Amplia
A81: En Panamá, el Banco Nacional de Panamá (BNP) funciona como receptor y gestor de las RIN que corresponden a los activos externos de reserva menos los pasivos de corto plazo frente a no residentes. Los primeros se componen de: billetes y depósitos en moneda extranjera e inversiones en títulos (incluidos los títulos de deuda y participaciones de capital); los pasivos se componen de los depósitos transferibles de no residentes en moneda extranjera. En Costa Rica se dió un aumento en las RIN en marzo de 2018 de US$ 1.000 millones provenientes del FLAR. | J81: República Dominicana presenta un incremento de US$1,246 millones en febrero de 2018 debido a la colocación de bonos soberanos en el mercado global de capitales. En El Salvador al cierre de febrero de 2017 las Reservas Internacionales Netas (RIN) alcanzaron un nivel de US$3,510.9 millones, un incremento de US$607 millones respecto al mes de enero de 2017, explicado por la colocación de bonos del Gobierno de El Salvador ($601 millones). La relación RIN a Base Monetaria es alta en Panamá (escala derecha) debido a que la base monetaria es pequeña; esto es consecuencia de que no existe encaje legal debido a la ausencia de Banco Central.
A85: Exportaciones totales FOB, del mes | J85: Importaciones totales CIF, del mes
A86: Promedio móvil de los últimos 12 meses | J86: Promedio móvil de los últimos 12 meses
A107: Las cifras de Honduras no incluyen la maquila. | J107: Las cifras de Honduras no incluyen la maquila.
A109: Tasa de interés pasiva real en MN a 180 días | J109: Tasa de interés activa real en MN de corto plazo
A132: La tasa real se obtiene deflatando con la tasa de variación interanual del IPC al mes indicado. | J132: La tasa real se obtiene deflatando con la tasa de variación interanual del IPC al mes indicado.
A134: Tasa de interés pasiva en ME a 180 días | J134: Tasa de interés activa en ME de corto plazo
J158: En Honduras, a partir de enero 2017, la CNBS implementó las Normas Internacionales de Información Financiera (NIIF) en los balances contables de los Bancos Comerciales, Sociedades Financieras y Banhprovi, permitiendo cambios en el cálculo de las tasas de interés activas y pasivas.
J159: En Costa Rica a partir de enero 2019 cambia la metodología de cálculo de tasas de interés para utilizar tasas ponderadas por el monto de la operación.
A160: Tasa de interés líder de Política Monetaria | J160: Créditos de las OSD al sector Privado, Variación Interanual
A161: evolución mensual
A182: En Nicaragua corresponde a la Tasa de Referencia de Reportos Monetarios (TRM) que el BCN utiliza para indicar el costo de operaciones a un día en las subastas de reportos monetarios. Es definida por el Comité de Operaciones de Mercado Abierto. La serie inicia en abril de 2020.

Sheet Nota Técnica
K1: Consejo Monetario Centroamericano
K2: Secretaría Ejecutiva
D5: REPORTE EJECUTIVO MENSUAL
D7: DE INDICADORES MACROECONÓMICOS
D8: DE CENTROAMÉRICA, REPÚBLICA DOMINICANA y
D9: PANAMÁ
B12: Glosario de Términos
B13: PIB | D13: Producto Interno Bruto
B14: IMAE | D14: Índice Mensual de Actividad Económica
B15: IPC | D15: Índice de Precios al Consumidor
B16: ISI | D16: Índice Subyacente de Inflación. En algunos países se utiliza el Indice del Nucleo Inflacionario (INI)
B17: Región CARD | D17: La región incluye los siguientes países: Costa Rica, El Salvador, Guatemala, Honduras, Nicaragua y República Dominicana
B18: Región CAPARD | D18: La región incluye los siguientes países: Costa Rica, El Salvador, Guatemala, Honduras, Nicaragua, Panamá y República Dominicana
B20: Definición de términos
B22: Variación Interanual | E22: Variación porcentual del nivel del mes respecto al mismo mes del año anterior.
B23: Variación acumulada | E23: Variación porcentual del nivel del mes vigente respecto al mes de diciembre del año anterior.
B24: Aceleración | E24: Diferencia en valor absoluto entre la variación (interanual) de un mes respecto al mes anterior. Su interpretación se realiza en puntos porcentuales.
B25: Metas de Inflación | E25: Esquema donde el Banco Central hace explícita su meta de inflación puntual o rango, y los instrumentos de política monetaria se direccionan en la obtención de dicha meta.
B26: Inflación Subyacente | E26: El Índice subyacente de Inflación (ISI) se define como el componente del cambio total de precios común a todos los bienes y servicios, cuya persistencia se mantendría en el mediano y largo plazo. El ISI constituye una medida alternativa del IPC, al que se le han eliminado algunos de los bienes y servicios cuyos precios son, por lo general, los más volátiles. El algunos países se denomina índice del nucleo inflacionario.
B27: Tendencia-Ciclo | E27: Serie de tiempo que excluye los componentes de estacionalidad e irregularidad.
B28: RIN/meses de importación promedio | E28: Tanto en el cuadro regional como en el compartivo por país se calcula la relación de RIN a importaciones promedio. En ambos casos el denominador corresponde al promedio de importaciones observadas de enero al mes indicado. En el cálculo regional se suman las importaciones totales y las RIN de todos los países de la región.
B31: Periodos base de los principales indicadores del sector real
D32: Año Base o de referencia del Indicador Mensual de Actividad Económica IMAE | H32: Año Base o de referencia del Producto Interno Bruto en términos constantes | L32: Periodo base de los Índices de Precios al Consumidor
B33: País
B34: Costa Rica | E34: 2017 | I34: 2017 | M34: Diciembre 2020
B35: El Salvador | E35: 2014 | I35: 2014 | M35: Diciembre 2009
B36: Guatemala | E36: 2013 | I36: 2013 | M36: Diciembre 2010
B37: Honduras | E37: 2000 | I37: 2000 | M37: Diciembre 1999
B38: Nicaragua | E38: 2006 | I38: 2006 | M38: 2006
B39: República Dominicana | E39: 2007 | I39: 2007 | M39: Oct.2019-Sept. 2020
B40: Panamá | E40: 1996 | I40: 2007 | M40: 2013
B44: Los ponderadores
B46: Los cálculos regionales están basados en promedios ponderados de las tasas de variación de cada país. Los ponderadores por país se obtienen Banco Mundial utilizando el Gasto de consumo final de los hogares (GCFH) y de las instituciones sin fines de lucro que sirven a los hogares (ISFLSH) según la paridad del poder de compra (PPC) para las variables de precios y del Producto Interno Bruto según PPC para las variables de producción. Para mayor detalle consultar el Documento de Trabajo SECMCA-01-2021 “Propuesta de cambio en el método de agregación de variables y ponderadores regionales”, http://www.secmca.org/wp-content/uploads/2021/03/Propuesta-de-cambio-en-el-m%C3%A9todo-deagregaci%C3%B3n-de-variables-y-ponderadores-regionales.pdf.

Sheet Gráfico Seguimiento (hidden)
B1: INFLACIÓN | D1: RIN | F1: RESULTADO OPERACIONAL GC | H1: CUENTA CORRIENTE | J1: Exportaciones | L1: Importaciones | N1: Remesas acumuladas | P1: Remesas sin CR-NI | Q1: =+[1]EJECUTIVO!$G$72 -> MAYO
B2: =+[1]METAS!$O7 -> Proy.dic/22 | C2: =[1]METAS!S19 -> JUN.22 | D2: =+[1]METAS!$M117 -> Proy.dic/22 | E2: =+[1]METAS!$S117 -> JUN.22 | F2: =+[1]METAS!$M166 -> Proy.dic/22 | G2: =+[1]METAS!$S166 -> ABR.22 | H2: =+[1]METAS!$M141 -> Proy.dic/22 | I2: =[1]METAS!S141 -> I TRIM.22 | J2: =+[1]METAS!$M57 -> Proy.dic/22 | K2: =+[1]METAS!$S57 -> ABR.22 | L2: =+[1]METAS!$M81 -> Proy.dic/22 | M2: =+[1]METAS!$S81 -> ABR.22 | N2: =+[1]METAS!$M129 -> Proy.dic/22 | O2: =+[1]METAS!$S129 -> MAY.22 | P2: =+[1]METAS!$M129 -> Proy.dic/22 | Q2: =+[1]METAS!$V129 -> MAY.22
A3: CR | B3: =+[1]METAS!$O8 -> 4 | C3: =[1]METAS!S20 -> 7.352678865 | E3: =+[1]METAS!$S118 -> 6197 | H3: =+'[2]HIST METAS'!$AL23 -> -2442.732591 | I3: =[1]METAS!S142 -> -897.8357994
A4: ES | B4: =+[1]METAS!$O9 -> 5.8 | C4: =[1]METAS!S21 -> 4.547867569 | E4: =+[1]METAS!$S119 -> 3483 | G4: =+[1]METAS!$S168 -> 227.2851223 | I4: =[1]METAS!S143 -> -703.3341497 | K4: =+[1]METAS!$S59 -> 2476.06 | M4: =+[1]METAS!$S83 -> 5795.66 | O4: =+[1]METAS!$S131 -> 3145.87 | Q4: =+[1]METAS!$V131 -> 3145.87
A5: GT | B5: =+[1]METAS!$O10 -> 5 | C5: =[1]METAS!S22 -> 5.67232376 | D5: =+[1]METAS!$M120 -> 22439.6 | E5: =+[1]METAS!$S120 -> 19876 | F5: =+[1]METAS!$M$169 -> -2067.259175 | G5: =+[1]METAS!$S169 -> 289.7351379 | H5: =+'[4]HIST METAS'!$AL23 -> 3708.2 | I5: =[1]METAS!S144 -> 151.89466 | J5: =+[1]METAS!$M60 -> 14982.77 | K5: =+[1]METAS!$S60 -> 5368.3 | L5: =+[1]METAS!$M84 -> 29800.736 | M5: =+[1]METAS!$S84 -> 10463 | N5: =+[1]METAS!$M132 -> 17590.038 | O5: =+[1]METAS!$S132 -> 7045.1 | P5: =+[1]METAS!$M132 -> 17590.038 | Q5: =+[1]METAS!$V132 -> 7045.1
A6: HO | B6: 6.19 | C6: =[1]METAS!S23 -> 6.567164179 | E6: =+[1]METAS!$S121 -> 8352 | G6: =+[1]METAS!$S170 -> 743.3371464 | I6: =[1]METAS!S145 -> -90.48461053 | J6: =+[1]METAS!$M61 -> 5587.856476 | K6: =+[1]METAS!$S61 -> 2194.988695 | L6: =+[1]METAS!$M85 -> 14544.02151 | M6: =+[1]METAS!$S85 -> 4741.938755 | N6: =+[1]METAS!$M133 -> 8190.216 | O6: =+[1]METAS!$S133 -> 3440.9592 | P6: =+[1]METAS!$M133 -> 8190.216 | Q6: =+[1]METAS!$V133 -> 3440.9592
A7: NI | B7: 7 | C7: =[1]METAS!S24 -> 5.256168443 | E7: =+[1]METAS!$S122 -> 4278 | G7: =+[1]METAS!$S171 -> 216.7174807 | I7: =[1]METAS!S146 -> -116.1 | K7: =+[1]METAS!$S62 -> 2671.428519 | M7: =+[1]METAS!$S86 -> 3451.904176 | O7: =+[1]METAS!$S134 -> 1132.5 | Q7: =+[1]METAS!$V134 -> 1132.5
A8: RD | B8: =+[1]METAS!$O13 -> 5 | C8: =[1]METAS!S25 -> 4.956605423 | E8: =+[1]METAS!$S123 -> 14455 | G8: =+[1]METAS!$S172 -> -191.4806447 | H8: =+'[7]HIST METAS'!$AL23 -> -1260.277802 | I8: =[1]METAS!S147 -> -1029.2 | O8: =+[1]METAS!$S135 -> 4057.215338 | Q8: =+[1]METAS!$V135 -> 4057.215338
B9: Nicaragua siempre da error el link y por eso se ingresa a mano

Sheet Datos_Regional (M) (hidden)
A1: Variables Mensuales Regional | D1: IPC CARD | E1: IPC CARD_T | F1: IPC CAPARD | G1: IPC CAPARD_T | H1: CARD | J1: CAPARD | L1: RIN_CARD | M1: RIN Diciembres | N1: RIN_CAPARD | O1: RIN Diciembres | P1: CARD | V1: CAPARD | AB1: Crédito de las OSD con SPNF | AF1: Créditos de las OSD con el sector privado, saldo en millones de USD | AL1: Tasa de variación Interanual | AS1: Crédito de las OSD con SPNF | AW1: Créditos de las OSD con el sector privado, saldo en millones de USD | BC1: Tasa de variación Interanual | BJ1: Tasa de Política Monetaria | BQ1: CARD Saldo operacional GC | BR1: CAPARD Saldo operacional GC | BS1: CARD | BV1: CAPARD | BY1: Crédito de las OSD con el Sector Privado MN | CM1: Mill-US$ | CN1: Mill-US$ | CO1: % | CP1: Mill-US$ | CQ1: Mill-US$ | CR1: % | CS1: CARD | DA1: CAPARD
H2: IMAER_TC | I2: IMAER_T | J2: IMAER CARD_TC | K2: IMAER CAPARD_T | P2: M1 | Q2: M2 | R2: M3 | S2: M1_% | T2: M2_% | U2: M3_% | V2: M1 | W2: M2 | X2: M3 | Y2: M1_% | Z2: M2_% | AA2: M3_% | AB2: Activos | AC2: Pasivos | AD2: Crédito Neto | AE2: %Interanual | AF2: Otras sociedades no financieras | AG2: Otros sectores 1/ | AH2: Otras sociedades no financieras | AI2: Hogares e ISFLSH | AK2: TOTAL | AL2: Otras sociedades no financieras | AN2: Otros sectores 1/ | AO2: Otras sociedades no financieras | AP2: Hogares e ISFLSH | AQ2: TOTAL | AR2: Aceleración | AS2: Activos | AT2: Pasivos | AU2: Crédito Neto | AV2: %Interanual | AW2: Otras sociedades no financieras | AX2: Otros sectores 1/ | AY2: Otras sociedades no financieras | AZ2: Hogares e ISFLSH | BB2: TOTAL | BC2: Otras sociedades no financieras | BE2: Otros sectores 1/ | BF2: Otras sociedades no financieras | BG2: Hogares e ISFLSH | BH2: TOTAL | BI2: Aceleración | BJ2: Costa Rica | BK2: El Salvador | BL2: Guatemala | BM2: Honduras | BN2: Nicaragua | BO2: República Dominicana | BP2: PA | BS2: Deuda Pública total | BT2: Deuda Interna | BU2: Deuda Externa | BV2: Deuda Pública total | BW2: Deuda Interna | BX2: Deuda Externa | BY2: CR | BZ2: SV | CA2: GT | CB2: HO | CC2: NI | CD2: RD | CE2: PA | CF2: CR % | CG2: SV % | CH2: GT % | CI2: HO % | CJ2: NI % | CK2: RD % | CL2: PA % | CM2: CARD Saldo Operacional con donaciones | CN2: CARD PIB a precios corrientes | CO2: CARD Saldo operacional/PIB | CP2: CAPARD Saldo Operacional con donaciones | CQ2: CAPARD PIB a precios corrientes | CR2: CAPARD Saldo operacional/PIB | CS2: Credito TOTAL | CT2: Créditos de las OSD a sector Público | CU2: Créditos de las OSD a sector Privado | CV2: Créditos de las OSD a no residentes y otros | CW2: Credito TOTAL % | CX2: Créditos de las OSD a sector Público % | CY2: Créditos de las OSD a sector Privado % | CZ2: Créditos de las OSD a no residentes y otros % | DA2: Credito TOTAL | DB2: Créditos de las OSD a sector Público | DC2: Créditos de las OSD a sector Privado | DD2: Créditos de las OSD a no residentes y otros | DE2: Credito TOTAL % | DF2: Créditos de las OSD a sector Público % | DG2: Créditos de las OSD a sector Privado % | DH2: Créditos de las OSD a no residentes y otros %
A3: 1990 | B3: enero | C3: =A3&"-"&B3 -> 1990-enero | D3: =IF('[1]REAL IPC(M)'!$AL10="","",+'[1]REAL IPC(M)'!$AL10) -> n.d. | E3: =IF('[1]REAL IPC(M)'!$BE10="","",+'[1]REAL IPC(M)'!$BE10) -> n.d. | F3: =IF('[1]REAL IPC(M)'!$AM10="","",+'[1]REAL IPC(M)'!$AM10) -> n.d. | G3: =IF('[1]REAL IPC(M)'!$BI10="","",+'[1]REAL IPC(M)'!$BI10) -> n.d. | H3: =IF('[1]REAL IMAE(M)'!BJ10="","",'[1]REAL IMAE(M)'!BJ10) -> n.d. | I3: =IF('[1]REAL IMAE(M)'!BK10="","",'[1]REAL IMAE(M)'!BK10) -> n.d. | J3: =IF('[1]REAL IMAE(M)'!BN10="","",'[1]REAL IMAE(M)'!BN10) -> n.d. | K3: =IF('[1]REAL IMAE(M)'!BO10="","",'[1]REAL IMAE(M)'!BO10) -> n.d. | L3: =IF('[1]EXT RIN(M)'!$K10="","",'[1]EXT RIN(M)'!$K10) -> n.d. | M3: =IF(B3<>"diciembre","",L3) ->  | N3: =IF('[1]EXT RIN(M)'!$L10="","",'[1]EXT RIN(M)'!$L10) -> n.d. | O3: =IF(B3<>"diciembre","",N3) ->  | P3: =IF('[1]MONE(M)CARD'!EG10="","",'[1]MONE(M)CARD'!EG10) -> n.d. | Q3: =IF('[1]MONE(M)CARD'!EK10="","",'[1]MONE(M)CARD'!EK10) -> n.d. | R3: =IF('[1]MONE(M)CARD'!EP10="","",'[1]MONE(M)CARD'!EP10) -> n.d. | S3: =IF('[1]MONE(M)CARD'!ES10="","",'[1]MONE(M)CARD'!ES10) -> n.d. | T3: =IF('[1]MONE(M)CARD'!EV10="","",'[1]MONE(M)CARD'!EV10) -> n.d. | U3: =IF('[1]MONE(M)CARD'!EZ10="","",'[1]MONE(M)CARD'!EZ10) -> n.d. | V3: =IF('[1]MONE(M)CAPARD'!FC10="","",'[1]MONE(M)CAPARD'!FC10) -> n.d. | W3: =IF('[1]MONE(M)CAPARD'!FG10="","",'[1]MONE(M)CAPARD'!FG10) -> n.d. | X3: =IF('[1]MONE(M)CAPARD'!FL10="","",'[1]MONE(M)CAPARD'!FL10) -> n.d. | Y3: =IF('[1]MONE(M)CAPARD'!FO10="","",'[1]MONE(M)CAPARD'!FO10) -> n.d. | Z3: =IF('[1]MONE(M)CAPARD'!FR10="","",'[1]MONE(M)CAPARD'!FR10) -> n.d. | AA3: =IF('[1]MONE(M)CAPARD'!FV10="","",'[1]MONE(M)CAPARD'!FV10) -> n.d. | AB3: =IF('[1]MONE(M)CARD'!FV10="","",'[1]MONE(M)CARD'!FV10) ->  | AC3: =IF('[1]MONE(M)CARD'!GD10="","",'[1]MONE(M)CARD'!GD10) -> n.d. | AD3: =IF('[1]MONE(M)CARD'!GE10="","",'[1]MONE(M)CARD'!GE10) -> n.d. | AE3: n.d. | AF3: n.d. | AG3: n.d. | AH3: n.d. | AI3: n.d. | AK3: n.d. | AL3: n.d. | AN3: n.d. | AO3: n.d. | AP3: n.d. | AQ3: n.d. | AR3: n.d. | AS3: =IF('[1]MONE(M)CAPARD'!GS10="","",'[1]MONE(M)CAPARD'!GS10) -> n.d. | AT3: =IF('[1]MONE(M)CARD'!HA10="","",'[1]MONE(M)CAPARD'!HA10) -> n.d. | AU3: =IF('[1]MONE(M)CAPARD'!HB10="","",'[1]MONE(M)CAPARD'!HB10) -> n.d. | AV3: n.d. | AW3: n.d. | AX3: n.d. | AY3: n.d. | AZ3: n.d. | BA3: n.d. | BB3: n.d. | BC3: n.d. | BD3: n.d. | BE3: n.d. | BF3: n.d. | BG3: n.d. | BH3: n.d. | BI3: n.d. | BJ3: =IF('[1]MONE(M)CAPARD'!AS10="","",'[1]MONE(M)CAPARD'!AS10) -> n.d. | BK3: =IF('[1]MONE(M)CAPARD'!AT10="","",'[1]MONE(M)CAPARD'!AT10) -> n.a. | BL3: =IF('[1]MONE(M)CAPARD'!AU10="","",'[1]MONE(M)CAPARD'!AU10) -> n.d. | BM3: =IF('[1]MONE(M)CAPARD'!AV10="","",'[1]MONE(M)CAPARD'!AV10) -> n.d. | BN3: =IF('[1]MONE(M)CAPARD'!AW10="","",'[1]MONE(M)CAPARD'!AW10) -> n.a. | BO3: =IF('[1]MONE(M)CAPARD'!AX10="","",'[1]MONE(M)CAPARD'!AX10) -> n.d. | BP3: =IF('[1]MONE(M)CAPARD'!AY10="","",'[1]MONE(M)CAPARD'!AY10) -> n.a. | BQ3: =IF('[1]FISCAL(M)'!$K10="","",'[1]FISCAL(M)'!$K10) -> n.d. | BR3: =IF('[1]FISCAL(M)'!$L10="","",'[1]FISCAL(M)'!$L10) -> n.d. | BS3: =IF('[1]FISCAL(M)'!$AY10="","",'[1]FISCAL(M)'!$AY10) -> n.d. | BT3: =IF('[1]FISCAL(M)'!$BI10="","",'[1]FISCAL(M)'!$BI10) -> n.d. | BU3: =IF('[1]FISCAL(M)'!$BS10="","",'[1]FISCAL(M)'!$BS10) -> n.d. | BV3: =IF('[1]FISCAL(M)'!$AZ10="","",'[1]FISCAL(M)'!$AZ10) -> n.d. | BW3: =IF('[1]FISCAL(M)'!$BJ10="","",'[1]FISCAL(M)'!$BJ10) -> n.d. | BX3: =IF('[1]FISCAL(M)'!$BT10="","",'[1]FISCAL(M)'!$BT10) -> n.d. | BY3: =IF('[2]MONE(M)'!$AO10="","",'[2]MONE(M)'!$AO10) -> n.d. | BZ3: =IF('[3]MONE(M)'!$AO10="","",'[3]MONE(M)'!$AO10) -> n.d. | CA3: =IF('[4]MONE(M)'!$AO10="","",'[4]MONE(M)'!$AO10) -> n.d. | CB3: =+'[5]MONE(M)'!$AO10 -> n.d. | CC3: =IF('[6]MONE(M)'!$AO10="","",'[6]MONE(M)'!$AO10) -> n.d. | CD3: =IF('[7]MONE(M)'!$AO10="","",'[7]MONE(M)'!$AO10) -> n.d. | CE3: =IF('[8]MONE(M)'!$AO10="","",'[8]MONE(M)'!$AO10) -> n.d. | CF3: n.d. | CG3: n.d. | CH3: n.d. | CI3: n.d. | CJ3: n.d. | CK3: n.d. | CL3: n.d. | CM3: ='[1]FISCAL(M)'!$K10 -> n.d. | CN3: n.d. | CO3: =IF(OR(CM3="n.d.",CM3="",CN3="",CN3="n.d."),"n.d.",(CM3/CN3)*100) -> n.d. | CP3: =IF('[1]FISCAL(M)'!$L10="","",'[1]FISCAL(M)'!$L10) -> n.d. | CQ3: n.d. | CR3: =IF(OR(CP3="n.d.",CP3="",CQ3="",CQ3="n.d."),"n.d.",(CP3/CQ3)*100) -> n.d. | CS3: n.d. | CT3: n.d. | CU3: n.d. | CV3: n.d. | CW3: n.d. | CX3: n.d. | CY3: n.d. | CZ3: n.d. | DA3: n.d. | DB3: n.d. | DC3: n.d. | DD3: n.d. | DE3: n.d. | DF3: n.d. | DG3: n.d. | DH3: n.d.
A4: 1990 | B4: febrero | C4: =A4&"-"&B4 -> 1990-febrero | D4: =IF('[1]REAL IPC(M)'!$AL11="","",+'[1]REAL IPC(M)'!$AL11) -> n.d. | E4: =IF('[1]REAL IPC(M)'!$BE11="","",+'[1]REAL IPC(M)'!$BE11) -> n.d. | F4: =IF('[1]REAL IPC(M)'!$AM11="","",+'[1]REAL IPC(M)'!$AM11) -> n.d. | G4: =IF('[1]REAL IPC(M)'!$BI11="","",+'[1]REAL IPC(M)'!$BI11) -> n.d. | H4: =IF('[1]REAL IMAE(M)'!BJ11="","",'[1]REAL IMAE(M)'!BJ11) -> n.d. | I4: =IF('[1]REAL IMAE(M)'!BK11="","",'[1]REAL IMAE(M)'!BK11) -> n.d. | J4: =IF('[1]REAL IMAE(M)'!BN11="","",'[1]REAL IMAE(M)'!BN11) -> n.d. | K4: =IF('[1]REAL IMAE(M)'!BO11="","",'[1]REAL IMAE(M)'!BO11) -> n.d. | L4: =IF('[1]EXT RIN(M)'!$K11="","",'[1]EXT RIN(M)'!$K11) -> n.d. | M4: =IF(B4<>"diciembre","",L4) ->  | N4: =IF('[1]EXT RIN(M)'!$L11="","",'[1]EXT RIN(M)'!$L11) -> n.d. | O4: =IF(B4<>"diciembre","",N4) ->  | P4: =IF('[1]MONE(M)CARD'!EG11="","",'[1]MONE(M)CARD'!EG11) -> n.d. | Q4: =IF('[1]MONE(M)CARD'!EK11="","",'[1]MONE(M)CARD'!EK11) -> n.d. | R4: =IF('[1]MONE(M)CARD'!EP11="","",'[1]MONE(M)CARD'!EP11) -> n.d. | S4: =IF('[1]MONE(M)CARD'!ES11="","",'[1]MONE(M)CARD'!ES11) -> n.d. | T4: =IF('[1]MONE(M)CARD'!EV11="","",'[1]MONE(M)CARD'!EV11) -> n.d. | U4: =IF('[1]MONE(M)CARD'!EZ11="","",'[1]MONE(M)CARD'!EZ11) -> n.d. | V4: =IF('[1]MONE(M)CAPARD'!FC11="","",'[1]MONE(M)CAPARD'!FC11) -> n.d. | W4: =IF('[1]MONE(M)CAPARD'!FG11="","",'[1]MONE(M)CAPARD'!FG11) -> n.d. | X4: =IF('[1]MONE(M)CAPARD'!FL11="","",'[1]MONE(M)CAPARD'!FL11) -> n.d. | Y4: =IF('[1]MONE(M)CAPARD'!FO11="","",'[1]MONE(M)CAPARD'!FO11) -> n.d. | Z4: =IF('[1]MONE(M)CAPARD'!FR11="","",'[1]MONE(M)CAPARD'!FR11) -> n.d. | AA4: =IF('[1]MONE(M)CAPARD'!FV11="","",'[1]MONE(M)CAPARD'!FV11) -> n.d. | AB4: =IF('[1]MONE(M)CARD'!FV11="","",'[1]MONE(M)CARD'!FV11) ->  | AC4: =IF('[1]MONE(M)CARD'!GD11="","",'[1]MONE(M)CARD'!GD11) -> n.d. | AD4: =IF('[1]MONE(M)CARD'!GE11="","",'[1]MONE(M)CARD'!GE11) -> n.d. | AE4: n.d. | AF4: n.d. | AG4: n.d. | AH4: n.d. | AI4: n.d. | AJ4: =IFERROR(+AF4+AH4,"") ->  | AK4: n.d. | AL4: n.d. | AN4: n.d. | AO4: n.d. | AP4: n.d. | AQ4: n.d. | AR4: n.d. | AS4: =IF('[1]MONE(M)CAPARD'!GS11="","",'[1]MONE(M)CAPARD'!GS11) -> n.d. | AT4: =IF('[1]MONE(M)CARD'!HA11="","",'[1]MONE(M)CAPARD'!HA11) -> n.d. | AU4: =IF('[1]MONE(M)CAPARD'!HB11="","",'[1]MONE(M)CAPARD'!HB11) -> n.d. | AV4: n.d. | AW4: n.d. | AX4: n.d. | AY4: n.d. | AZ4: n.d. | BA4: n.d. | BB4: n.d. | BC4: n.d. | BD4: n.d. | BE4: n.d. | BF4: n.d. | BG4: n.d. | BH4: n.d. | BI4: n.d. | BJ4: =IF('[1]MONE(M)CAPARD'!AS11="","",'[1]MONE(M)CAPARD'!AS11) -> n.d. | BK4: =IF('[1]MONE(M)CAPARD'!AT11="","",'[1]MONE(M)CAPARD'!AT11) -> n.a. | BL4: =IF('[1]MONE(M)CAPARD'!AU11="","",'[1]MONE(M)CAPARD'!AU11) -> n.d. | BM4: =IF('[1]MONE(M)CAPARD'!AV11="","",'[1]MONE(M)CAPARD'!AV11) -> n.d. | BN4: =IF('[1]MONE(M)CAPARD'!AW11="","",'[1]MONE(M)CAPARD'!AW11) -> n.a. | BO4: =IF('[1]MONE(M)CAPARD'!AX11="","",'[1]MONE(M)CAPARD'!AX11) -> n.d. | BP4: =IF('[1]MONE(M)CAPARD'!AY11="","",'[1]MONE(M)CAPARD'!AY11) -> n.a. | BQ4: =IF('[1]FISCAL(M)'!$K11="","",'[1]FISCAL(M)'!$K11) -> n.d. | BR4: =IF('[1]FISCAL(M)'!$L11="","",'[1]FISCAL(M)'!$L11) -> n.d. | BS4: =IF('[1]FISCAL(M)'!$AY11="","",'[1]FISCAL(M)'!$AY11) -> n.d. | BT4: =IF('[1]FISCAL(M)'!$BI11="","",'[1]FISCAL(M)'!$BI11) -> n.d. | BU4: =IF('[1]FISCAL(M)'!$BS11="","",'[1]FISCAL(M)'!$BS11) -> n.d. | BV4: =IF('[1]FISCAL(M)'!$AZ11="","",'[1]FISCAL(M)'!$AZ11) -> n.d. | BW4: =IF('[1]FISCAL(M)'!$BJ11="","",'[1]FISCAL(M)'!$BJ11) -> n.d. | BX4: =IF('[1]FISCAL(M)'!$BT11="","",'[1]FISCAL(M)'!$BT11) -> n.d. | BY4: =IF('[2]MONE(M)'!$AO11="","",'[2]MONE(M)'!$AO11) -> n.d. | BZ4: =IF('[3]MONE(M)'!$AO11="","",'[3]MONE(M)'!$AO11) -> n.d. | CA4: =IF('[4]MONE(M)'!$AO11="","",'[4]MONE(M)'!$AO11) -> n.d. | CB4: =+'[5]MONE(M)'!$AO11 -> n.d. | CC4: =IF('[6]MONE(M)'!$AO11="","",'[6]MONE(M)'!$AO11) -> n.d. | CD4: =IF('[7]MONE(M)'!$AO11="","",'[7]MONE(M)'!$AO11) -> n.d. | CE4: =IF('[8]MONE(M)'!$AO11="","",'[8]MONE(M)'!$AO11) -> n.d. | CF4: n.d. | CG4: n.d. | CH4: n.d. | CI4: n.d. | CJ4: n.d. | CK4: n.d. | CL4: n.d. | CM4: ='[1]FISCAL(M)'!$K11 -> n.d. | CN4: n.d. | CO4: n.d. | CP4: =IF('[1]FISCAL(M)'!$L11="","",'[1]FISCAL(M)'!$L11) -> n.d. | CQ4: n.d. | CR4: =IF(OR(CP4="n.d.",CP4="",CQ4="",CQ4="n.d."),"n.d.",(CP4/CQ4)*100) -> n.d. | CS4: n.d. | CT4: n.d. | CU4: n.d. | CV4: n.d. | CW4: n.d. | CX4: n.d. | CY4: n.d. | CZ4: n.d. | DA4: n.d. | DB4: n.d. | DC4: n.d. | DD4: n.d. | DE4: n.d. | DF4: n.d. | DG4: n.d. | DH4: n.d.
A5: 1990 | B5: marzo | C5: 1990-marzo | D5: =IF('[1]REAL IPC(M)'!$AL12="","",+'[1]REAL IPC(M)'!$AL12) -> n.d. | E5: =IF('[1]REAL IPC(M)'!$BE12="","",+'[1]REAL IPC(M)'!$BE12) -> n.d. | F5: =IF('[1]REAL IPC(M)'!$AM12="","",+'[1]REAL IPC(M)'!$AM12) -> n.d. | G5: =IF('[1]REAL IPC(M)'!$BI12="","",+'[1]REAL IPC(M)'!$BI12) -> n.d. | H5: =IF('[1]REAL IMAE(M)'!BJ12="","",'[1]REAL IMAE(M)'!BJ12) -> n.d. | I5: =IF('[1]REAL IMAE(M)'!BK12="","",'[1]REAL IMAE(M)'!BK12) -> n.d. | J5: =IF('[1]REAL IMAE(M)'!BN12="","",'[1]REAL IMAE(M)'!BN12) -> n.d. | K5: =IF('[1]REAL IMAE(M)'!BO12="","",'[1]REAL IMAE(M)'!BO12) -> n.d. | L5: =IF('[1]EXT RIN(M)'!$K12="","",'[1]EXT RIN(M)'!$K12) -> n.d. | N5: =IF('[1]EXT RIN(M)'!$L12="","",'[1]EXT RIN(M)'!$L12) -> n.d. | P5: =IF('[1]MONE(M)CARD'!EG12="","",'[1]MONE(M)CARD'!EG12) -> n.d. | Q5: =IF('[1]MONE(M)CARD'!EK12="","",'[1]MONE(M)CARD'!EK12) -> n.d. | R5: =IF('[1]MONE(M)CARD'!EP12="","",'[1]MONE(M)CARD'!EP12) -> n.d. | S5: =IF('[1]MONE(M)CARD'!ES12="","",'[1]MONE(M)CARD'!ES12) -> n.d. | T5: =IF('[1]MONE(M)CARD'!EV12="","",'[1]MONE(M)CARD'!EV12) -> n.d. | U5: =IF('[1]MONE(M)CARD'!EZ12="","",'[1]MONE(M)CARD'!EZ12) -> n.d. | V5: =IF('[1]MONE(M)CAPARD'!FC12="","",'[1]MONE(M)CAPARD'!FC12) -> n.d. | W5: =IF('[1]MONE(M)CAPARD'!FG12="","",'[1]MONE(M)CAPARD'!FG12) -> n.d. | X5: =IF('[1]MONE(M)CAPARD'!FL12="","",'[1]MONE(M)CAPARD'!FL12) -> n.d. | Y5: =IF('[1]MONE(M)CAPARD'!FO12="","",'[1]MONE(M)CAPARD'!FO12) -> n.d. | Z5: =IF('[1]MONE(M)CAPARD'!FR12="","",'[1]MONE(M)CAPARD'!FR12) -> n.d. | AA5: =IF('[1]MONE(M)CAPARD'!FV12="","",'[1]MONE(M)CAPARD'!FV12) -> n.d. | AB5: =IF('[1]MONE(M)CARD'!FV12="","",'[1]MONE(M)CARD'!FV12) ->  | AC5: =IF('[1]MONE(M)CARD'!GD12="","",'[1]MONE(M)CARD'!GD12) -> n.d. | AD5: =IF('[1]MONE(M)CARD'!GE12="","",'[1]MONE(M)CARD'!GE12) -> n.d. | AE5: n.d. | AF5: n.d. | AG5: n.d. | AH5: n.d. | AI5: n.d. | AK5: n.d. | AL5: n.d. | AN5: n.d. | AO5: n.d. | AP5: n.d. | AQ5: n.d. | AR5: n.d. | AS5: =IF('[1]MONE(M)CAPARD'!GS12="","",'[1]MONE(M)CAPARD'!GS12) -> n.d. | AT5: =IF('[1]MONE(M)CARD'!HA12="","",'[1]MONE(M)CAPARD'!HA12) -> n.d. | AU5: =IF('[1]MONE(M)CAPARD'!HB12="","",'[1]MONE(M)CAPARD'!HB12) -> n.d. | AV5: n.d. | AW5: n.d. | AX5: n.d. | AY5: n.d. | AZ5: n.d. | BA5: n.d. | BB5: n.d. | BC5: n.d. | BD5: n.d. | BE5: n.d. | BF5: n.d. | BG5: n.d. | BH5: n.d. | BI5: n.d. | BJ5: =IF('[1]MONE(M)CAPARD'!AS12="","",'[1]MONE(M)CAPARD'!AS12) -> n.d. | BK5: =IF('[1]MONE(M)CAPARD'!AT12="","",'[1]MONE(M)CAPARD'!AT12) -> n.a. | BL5: =IF('[1]MONE(M)CAPARD'!AU12="","",'[1]MONE(M)CAPARD'!AU12) -> n.d. | BM5: =IF('[1]MONE(M)CAPARD'!AV12="","",'[1]MONE(M)CAPARD'!AV12) -> n.d. | BN5: =IF('[1]MONE(M)CAPARD'!AW12="","",'[1]MONE(M)CAPARD'!AW12) -> n.a. | BO5: =IF('[1]MONE(M)CAPARD'!AX12="","",'[1]MONE(M)CAPARD'!AX12) -> n.d. | BP5: =IF('[1]MONE(M)CAPARD'!AY12="","",'[1]MONE(M)CAPARD'!AY12) -> n.a. | BQ5: =IF('[1]FISCAL(M)'!$K12="","",'[1]FISCAL(M)'!$K12) -> n.d. | BR5: =IF('[1]FISCAL(M)'!$L12="","",'[1]FISCAL(M)'!$L12) -> n.d. | BS5: =IF('[1]FISCAL(M)'!$AY12="","",'[1]FISCAL(M)'!$AY12) -> n.d. | BT5: =IF('[1]FISCAL(M)'!$BI12="","",'[1]FISCAL(M)'!$BI12) -> n.d. | BU5: =IF('[1]FISCAL(M)'!$BS12="","",'[1]FISCAL(M)'!$BS12) -> n.d. | BV5: =IF('[1]FISCAL(M)'!$AZ12="","",'[1]FISCAL(M)'!$AZ12) -> n.d. | BW5: =IF('[1]FISCAL(M)'!$BJ12="","",'[1]FISCAL(M)'!$BJ12) -> n.d. | BX5: =IF('[1]FISCAL(M)'!$BT12="","",'[1]FISCAL(M)'!$BT12) -> n.d. | BY5: =IF('[2]MONE(M)'!$AO12="","",'[2]MONE(M)'!$AO12) -> n.d. | BZ5: =IF('[3]MONE(M)'!$AO12="","",'[3]MONE(M)'!$AO12) -> n.d. | CA5: =IF('[4]MONE(M)'!$AO12="","",'[4]MONE(M)'!$AO12) -> n.d. | CB5: =+'[5]MONE(M)'!$AO12 -> n.d. | CC5: =IF('[6]MONE(M)'!$AO12="","",'[6]MONE(M)'!$AO12) -> n.d. | CD5: =IF('[7]MONE(M)'!$AO12="","",'[7]MONE(M)'!$AO12) -> n.d. | CE5: =IF('[8]MONE(M)'!$AO12="","",'[8]MONE(M)'!$AO12) -> n.d. | CF5: n.d. | CG5: n.d. | CH5: n.d. | CI5: n.d. | CJ5: n.d. | CK5: n.d. | CL5: n.d. | CM5: =IF('[1]FISCAL(M)'!$K12="","",'[1]FISCAL(M)'!$K12) -> n.d. | CN5: n.d. | CO5: n.d. | CP5: =IF('[1]FISCAL(M)'!$L12="","",'[1]FISCAL(M)'!$L12) -> n.d. | CQ5: n.d. | CR5: n.d. | CS5: n.d. | CT5: n.d. | CU5: n.d. | CV5: n.d. | CW5: n.d. | CX5: n.d. | CY5: n.d. | CZ5: n.d. | DA5: n.d. | DB5: n.d. | DC5: n.d. | DD5: n.d. | DE5: n.d. | DF5: n.d. | DG5: n.d. | DH5: n.d.
A6: 1990 | B6: abril | C6: 1990-abril | D6: =IF('[1]REAL IPC(M)'!$AL13="","",+'[1]REAL IPC(M)'!$AL13) -> n.d. | E6: =IF('[1]REAL IPC(M)'!$BE13="","",+'[1]REAL IPC(M)'!$BE13) -> n.d. | F6: =IF('[1]REAL IPC(M)'!$AM13="","",+'[1]REAL IPC(M)'!$AM13) -> n.d. | G6: =IF('[1]REAL IPC(M)'!$BI13="","",+'[1]REAL IPC(M)'!$BI13) -> n.d. | H6: =IF('[1]REAL IMAE(M)'!BJ13="","",'[1]REAL IMAE(M)'!BJ13) -> n.d. | I6: =IF('[1]REAL IMAE(M)'!BK13="","",'[1]REAL IMAE(M)'!BK13) -> n.d. | J6: =IF('[1]REAL IMAE(M)'!BN13="","",'[1]REAL IMAE(M)'!BN13) -> n.d. | K6: =IF('[1]REAL IMAE(M)'!BO13="","",'[1]REAL IMAE(M)'!BO13) -> n.d. | L6: =IF('[1]EXT RIN(M)'!$K13="","",'[1]EXT RIN(M)'!$K13) -> n.d. | N6: =IF('[1]EXT RIN(M)'!$L13="","",'[1]EXT RIN(M)'!$L13) -> n.d. | P6: =IF('[1]MONE(M)CARD'!EG13="","",'[1]MONE(M)CARD'!EG13) -> n.d. | Q6: =IF('[1]MONE(M)CARD'!EK13="","",'[1]MONE(M)CARD'!EK13) -> n.d. | R6: =IF('[1]MONE(M)CARD'!EP13="","",'[1]MONE(M)CARD'!EP13) -> n.d. | S6: =IF('[1]MONE(M)CARD'!ES13="","",'[1]MONE(M)CARD'!ES13) -> n.d. | T6: =IF('[1]MONE(M)CARD'!EV13="","",'[1]MONE(M)CARD'!EV13) -> n.d. | U6: =IF('[1]MONE(M)CARD'!EZ13="","",'[1]MONE(M)CARD'!EZ13) -> n.d. | V6: =IF('[1]MONE(M)CAPARD'!FC13="","",'[1]MONE(M)CAPARD'!FC13) -> n.d. | W6: =IF('[1]MONE(M)CAPARD'!FG13="","",'[1]MONE(M)CAPARD'!FG13) -> n.d. | X6: =IF('[1]MONE(M)CAPARD'!FL13="","",'[1]MONE(M)CAPARD'!FL13) -> n.d. | Y6: =IF('[1]MONE(M)CAPARD'!FO13="","",'[1]MONE(M)CAPARD'!FO13) -> n.d. | Z6: =IF('[1]MONE(M)CAPARD'!FR13="","",'[1]MONE(M)CAPARD'!FR13) -> n.d. | AA6: =IF('[1]MONE(M)CAPARD'!FV13="","",'[1]MONE(M)CAPARD'!FV13) -> n.d. | AB6: =IF('[1]MONE(M)CARD'!FV13="","",'[1]MONE(M)CARD'!FV13) ->  | AC6: =IF('[1]MONE(M)CARD'!GD13="","",'[1]MONE(M)CARD'!GD13) -> n.d. | AD6: =IF('[1]MONE(M)CARD'!GE13="","",'[1]MONE(M)CARD'!GE13) -> n.d. | AE6: n.d. | AF6: n.d. | AG6: n.d. | AH6: n.d. | AI6: n.d. | AJ6: =IFERROR(+AF6+AH6,"n.d.") -> n.d. | AK6: n.d. | AL6: n.d. | AN6: n.d. | AO6: n.d. | AP6: n.d. | AQ6: n.d. | AR6: n.d. | AS6: =IF('[1]MONE(M)CAPARD'!GS13="","",'[1]MONE(M)CAPARD'!GS13) -> n.d. | AT6: =IF('[1]MONE(M)CARD'!HA13="","",'[1]MONE(M)CAPARD'!HA13) -> n.d. | AU6: =IF('[1]MONE(M)CAPARD'!HB13="","",'[1]MONE(M)CAPARD'!HB13) -> n.d. | AV6: n.d. | AW6: n.d. | AX6: n.d. | AY6: n.d. | AZ6: n.d. | BA6: n.d. | BB6: n.d. | BC6: n.d. | BD6: n.d. | BE6: n.d. | BF6: n.d. | BG6: n.d. | BH6: n.d. | BI6: n.d. | BJ6: =IF('[1]MONE(M)CAPARD'!AS13="","",'[1]MONE(M)CAPARD'!AS13) -> n.d. | BK6: =IF('[1]MONE(M)CAPARD'!AT13="","",'[1]MONE(M)CAPARD'!AT13) -> n.a. | BL6: =IF('[1]MONE(M)CAPARD'!AU13="","",'[1]MONE(M)CAPARD'!AU13) -> n.d. | BM6: =IF('[1]MONE(M)CAPARD'!AV13="","",'[1]MONE(M)CAPARD'!AV13) -> n.d. | BN6: =IF('[1]MONE(M)CAPARD'!AW13="","",'[1]MONE(M)CAPARD'!AW13) -> n.a. | BO6: =IF('[1]MONE(M)CAPARD'!AX13="","",'[1]MONE(M)CAPARD'!AX13) -> n.d. | BP6: =IF('[1]MONE(M)CAPARD'!AY13="","",'[1]MONE(M)CAPARD'!AY13) -> n.a. | BQ6: =IF('[1]FISCAL(M)'!$K13="","",'[1]FISCAL(M)'!$K13) -> n.d. | BR6: =IF('[1]FISCAL(M)'!$L13="","",'[1]FISCAL(M)'!$L13) -> n.d. | BS6: =IF('[1]FISCAL(M)'!$AY13="","",'[1]FISCAL(M)'!$AY13) -> n.d. | BT6: =IF('[1]FISCAL(M)'!$BI13="","",'[1]FISCAL(M)'!$BI13) -> n.d. | BU6: =IF('[1]FISCAL(M)'!$BS13="","",'[1]FISCAL(M)'!$BS13) -> n.d. | BV6: =IF('[1]FISCAL(M)'!$AZ13="","",'[1]FISCAL(M)'!$AZ13) -> n.d. | BW6: =IF('[1]FISCAL(M)'!$BJ13="","",'[1]FISCAL(M)'!$BJ13) -> n.d. | BX6: =IF('[1]FISCAL(M)'!$BT13="","",'[1]FISCAL(M)'!$BT13) -> n.d. | BY6: =IF('[2]MONE(M)'!$AO13="","",'[2]MONE(M)'!$AO13) -> n.d. | BZ6: =IF('[3]MONE(M)'!$AO13="","",'[3]MONE(M)'!$AO13) -> n.d. | CA6: =IF('[4]MONE(M)'!$AO13="","",'[4]MONE(M)'!$AO13) -> n.d. | CB6: =+'[5]MONE(M)'!$AO13 -> n.d. | CC6: =IF('[6]MONE(M)'!$AO13="","",'[6]MONE(M)'!$AO13) -> n.d. | CD6: =IF('[7]MONE(M)'!$AO13="","",'[7]MONE(M)'!$AO13) -> n.d. | CE6: =IF('[8]MONE(M)'!$AO13="","",'[8]MONE(M)'!$AO13) -> n.d. | CF6: n.d. | CG6: n.d. | CH6: n.d. | CI6: n.d. | CJ6: n.d. | CK6: n.d. | CL6: n.d. | CM6: =IF('[1]FISCAL(M)'!$K13="","",'[1]FISCAL(M)'!$K13) -> n.d. | CN6: n.d. | CO6: n.d. | CP6: =IF('[1]FISCAL(M)'!$L13="","",'[1]FISCAL(M)'!$L13) -> n.d. | CQ6: n.d. | CR6: n.d. | CS6: n.d. | CT6: n.d. | CU6: n.d. | CV6: n.d. | CW6: n.d. | CX6: n.d. | CY6: n.d. | CZ6: n.d. | DA6: n.d. | DB6: n.d. | DC6: n.d. | DD6: n.d. | DE6: n.d. | DF6: n.d. | DG6: n.d. | DH6: n.d.
A7: 1990 | B7: mayo | C7: 1990-mayo | D7: =IF('[1]REAL IPC(M)'!$AL14="","",+'[1]REAL IPC(M)'!$AL14) -> n.d. | E7: =IF('[1]REAL IPC(M)'!$BE14="","",+'[1]REAL IPC(M)'!$BE14) -> n.d. | F7: =IF('[1]REAL IPC(M)'!$AM14="","",+'[1]REAL IPC(M)'!$AM14) -> n.d. | G7: =IF('[1]REAL IPC(M)'!$BI14="","",+'[1]REAL IPC(M)'!$BI14) -> n.d. | H7: =IF('[1]REAL IMAE(M)'!BJ14="","",'[1]REAL IMAE(M)'!BJ14) -> n.d. | I7: =IF('[1]REAL IMAE(M)'!BK14="","",'[1]REAL IMAE(M)'!BK14) -> n.d. | J7: =IF('[1]REAL IMAE(M)'!BN14="","",'[1]REAL IMAE(M)'!BN14) -> n.d. | K7: =IF('[1]REAL IMAE(M)'!BO14="","",'[1]REAL IMAE(M)'!BO14) -> n.d. | L7: =IF('[1]EXT RIN(M)'!$K14="","",'[1]EXT RIN(M)'!$K14) -> n.d. | N7: =IF('[1]EXT RIN(M)'!$L14="","",'[1]EXT RIN(M)'!$L14) -> n.d. | P7: =IF('[1]MONE(M)CARD'!EG14="","",'[1]MONE(M)CARD'!EG14) -> n.d. | Q7: =IF('[1]MONE(M)CARD'!EK14="","",'[1]MONE(M)CARD'!EK14) -> n.d. | R7: =IF('[1]MONE(M)CARD'!EP14="","",'[1]MONE(M)CARD'!EP14) -> n.d. | S7: =IF('[1]MONE(M)CARD'!ES14="","",'[1]MONE(M)CARD'!ES14) -> n.d. | T7: =IF('[1]MONE(M)CARD'!EV14="","",'[1]MONE(M)CARD'!EV14) -> n.d. | U7: =IF('[1]MONE(M)CARD'!EZ14="","",'[1]MONE(M)CARD'!EZ14) -> n.d. | V7: =IF('[1]MONE(M)CAPARD'!FC14="","",'[1]MONE(M)CAPARD'!FC14) -> n.d. | W7: =IF('[1]MONE(M)CAPARD'!FG14="","",'[1]MONE(M)CAPARD'!FG14) -> n.d. | X7: =IF('[1]MONE(M)CAPARD'!FL14="","",'[1]MONE(M)CAPARD'!FL14) -> n.d. | Y7: =IF('[1]MONE(M)CAPARD'!FO14="","",'[1]MONE(M)CAPARD'!FO14) -> n.d. | Z7: =IF('[1]MONE(M)CAPARD'!FR14="","",'[1]MONE(M)CAPARD'!FR14) -> n.d. | AA7: =IF('[1]MONE(M)CAPARD'!FV14="","",'[1]MONE(M)CAPARD'!FV14) -> n.d. | AB7: =IF('[1]MONE(M)CARD'!FV14="","",'[1]MONE(M)CARD'!FV14) ->  | AC7: =IF('[1]MONE(M)CARD'!GD14="","",'[1]MONE(M)CARD'!GD14) -> n.d. | AD7: =IF('[1]MONE(M)CARD'!GE14="","",'[1]MONE(M)CARD'!GE14) -> n.d. | AE7: n.d. | AF7: n.d. | AG7: n.d. | AH7: n.d. | AI7: n.d. | AJ7: =IFERROR(+AF7+AH7,"n.d.") -> n.d. | AK7: n.d. | AL7: n.d. | AN7: n.d. | AO7: n.d. | AP7: n.d. | AQ7: n.d. | AR7: n.d. | AS7: =IF('[1]MONE(M)CAPARD'!GS14="","",'[1]MONE(M)CAPARD'!GS14) -> n.d. | AT7: =IF('[1]MONE(M)CARD'!HA14="","",'[1]MONE(M)CAPARD'!HA14) -> n.d. | AU7: =IF('[1]MONE(M)CAPARD'!HB14="","",'[1]MONE(M)CAPARD'!HB14) -> n.d. | AV7: n.d. | AW7: n.d. | AX7: n.d. | AY7: n.d. | AZ7: n.d. | BA7: n.d. | BB7: n.d. | BC7: n.d. | BD7: n.d. | BE7: n.d. | BF7: n.d. | BG7: n.d. | BH7: n.d. | BI7: n.d. | BJ7: =IF('[1]MONE(M)CAPARD'!AS14="","",'[1]MONE(M)CAPARD'!AS14) -> n.d. | BK7: =IF('[1]MONE(M)CAPARD'!AT14="","",'[1]MONE(M)CAPARD'!AT14) -> n.a. | BL7: =IF('[1]MONE(M)CAPARD'!AU14="","",'[1]MONE(M)CAPARD'!AU14) -> n.d. | BM7: =IF('[1]MONE(M)CAPARD'!AV14="","",'[1]MONE(M)CAPARD'!AV14) -> n.d. | BN7: =IF('[1]MONE(M)CAPARD'!AW14="","",'[1]MONE(M)CAPARD'!AW14) -> n.a. | BO7: =IF('[1]MONE(M)CAPARD'!AX14="","",'[1]MONE(M)CAPARD'!AX14) -> n.d. | BP7: =IF('[1]MONE(M)CAPARD'!AY14="","",'[1]MONE(M)CAPARD'!AY14) -> n.a. | BQ7: =IF('[1]FISCAL(M)'!$K14="","",'[1]FISCAL(M)'!$K14) -> n.d. | BR7: =IF('[1]FISCAL(M)'!$L14="","",'[1]FISCAL(M)'!$L14) -> n.d. | BS7: =IF('[1]FISCAL(M)'!$AY14="","",'[1]FISCAL(M)'!$AY14) -> n.d. | BT7: =IF('[1]FISCAL(M)'!$BI14="","",'[1]FISCAL(M)'!$BI14) -> n.d. | BU7: =IF('[1]FISCAL(M)'!$BS14="","",'[1]FISCAL(M)'!$BS14) -> n.d. | BV7: =IF('[1]FISCAL(M)'!$AZ14="","",'[1]FISCAL(M)'!$AZ14) -> n.d. | BW7: =IF('[1]FISCAL(M)'!$BJ14="","",'[1]FISCAL(M)'!$BJ14) -> n.d. | BX7: =IF('[1]FISCAL(M)'!$BT14="","",'[1]FISCAL(M)'!$BT14) -> n.d. | BY7: =IF('[2]MONE(M)'!$AO14="","",'[2]MONE(M)'!$AO14) -> n.d. | BZ7: =IF('[3]MONE(M)'!$AO14="","",'[3]MONE(M)'!$AO14) -> n.d. | CA7: =IF('[4]MONE(M)'!$AO14="","",'[4]MONE(M)'!$AO14) -> n.d. | CB7: =+'[5]MONE(M)'!$AO14 -> n.d. | CC7: =IF('[6]MONE(M)'!$AO14="","",'[6]MONE(M)'!$AO14) -> n.d. | CD7: =IF('[7]MONE(M)'!$AO14="","",'[7]MONE(M)'!$AO14) -> n.d. | CE7: =IF('[8]MONE(M)'!$AO14="","",'[8]MONE(M)'!$AO14) -> n.d. | CF7: n.d. | CG7: n.d. | CH7: n.d. | CI7: n.d. | CJ7: n.d. | CK7: n.d. | CL7: n.d. | CM7: =IF('[1]FISCAL(M)'!$K14="","",'[1]FISCAL(M)'!$K14) -> n.d. | CN7: n.d. | CO7: n.d. | CP7: =IF('[1]FISCAL(M)'!$L14="","",'[1]FISCAL(M)'!$L14) -> n.d. | CQ7: n.d. | CR7: n.d. | CS7: n.d. | CT7: n.d. | CU7: n.d. | CV7: n.d. | CW7: n.d. | CX7: n.d. | CY7: n.d. | CZ7: n.d. | DA7: n.d. | DB7: n.d. | DC7: n.d. | DD7: n.d. | DE7: n.d. | DF7: n.d. | DG7: n.d. | DH7: n.d.
A8: 1990 | B8: junio | C8: 1990-junio | D8: =IF('[1]REAL IPC(M)'!$AL15="","",+'[1]REAL IPC(M)'!$AL15) -> n.d. | E8: =IF('[1]REAL IPC(M)'!$BE15="","",+'[1]REAL IPC(M)'!$BE15) -> n.d. | F8: =IF('[1]REAL IPC(M)'!$AM15="","",+'[1]REAL IPC(M)'!$AM15) -> n.d. | G8: =IF('[1]REAL IPC(M)'!$BI15="","",+'[1]REAL IPC(M)'!$BI15) -> n.d. | H8: =IF('[1]REAL IMAE(M)'!BJ15="","",'[1]REAL IMAE(M)'!BJ15) -> n.d. | I8: =IF('[1]REAL IMAE(M)'!BK15="","",'[1]REAL IMAE(M)'!BK15) -> n.d. | J8: =IF('[1]REAL IMAE(M)'!BN15="","",'[1]REAL IMAE(M)'!BN15) -> n.d. | K8: =IF('[1]REAL IMAE(M)'!BO15="","",'[1]REAL IMAE(M)'!BO15) -> n.d. | L8: =IF('[1]EXT RIN(M)'!$K15="","",'[1]EXT RIN(M)'!$K15) -> n.d. | N8: =IF('[1]EXT RIN(M)'!$L15="","",'[1]EXT RIN(M)'!$L15) -> n.d. | P8: =IF('[1]MONE(M)CARD'!EG15="","",'[1]MONE(M)CARD'!EG15) -> n.d. | Q8: =IF('[1]MONE(M)CARD'!EK15="","",'[1]MONE(M)CARD'!EK15) -> n.d. | R8: =IF('[1]MONE(M)CARD'!EP15="","",'[1]MONE(M)CARD'!EP15) -> n.d. | S8: =IF('[1]MONE(M)CARD'!ES15="","",'[1]MONE(M)CARD'!ES15) -> n.d. | T8: =IF('[1]MONE(M)CARD'!EV15="","",'[1]MONE(M)CARD'!EV15) -> n.d. | U8: =IF('[1]MONE(M)CARD'!EZ15="","",'[1]MONE(M)CARD'!EZ15) -> n.d. | V8: =IF('[1]MONE(M)CAPARD'!FC15="","",'[1]MONE(M)CAPARD'!FC15) -> n.d. | W8: =IF('[1]MONE(M)CAPARD'!FG15="","",'[1]MONE(M)CAPARD'!FG15) -> n.d. | X8: =IF('[1]MONE(M)CAPARD'!FL15="","",'[1]MONE(M)CAPARD'!FL15) -> n.d. | Y8: =IF('[1]MONE(M)CAPARD'!FO15="","",'[1]MONE(M)CAPARD'!FO15) -> n.d. | Z8: =IF('[1]MONE(M)CAPARD'!FR15="","",'[1]MONE(M)CAPARD'!FR15) -> n.d. | AA8: =IF('[1]MONE(M)CAPARD'!FV15="","",'[1]MONE(M)CAPARD'!FV15) -> n.d. | AB8: =IF('[1]MONE(M)CARD'!FV15="","",'[1]MONE(M)CARD'!FV15) ->  | AC8: =IF('[1]MONE(M)CARD'!GD15="","",'[1]MONE(M)CARD'!GD15) -> n.d. | AD8: =IF('[1]MONE(M)CARD'!GE15="","",'[1]MONE(M)CARD'!GE15) -> n.d. | AE8: n.d. | AF8: n.d. | AG8: n.d. | AH8: n.d. | AI8: n.d. | AJ8: n.d. | AK8: n.d. | AL8: n.d. | AN8: n.d. | AO8: n.d. | AP8: n.d. | AQ8: n.d. | AR8: n.d. | AS8: =IF('[1]MONE(M)CAPARD'!GS15="","",'[1]MONE(M)CAPARD'!GS15) -> n.d. | AT8: =IF('[1]MONE(M)CARD'!HA15="","",'[1]MONE(M)CAPARD'!HA15) -> n.d. | AU8: =IF('[1]MONE(M)CAPARD'!HB15="","",'[1]MONE(M)CAPARD'!HB15) -> n.d. | AV8: n.d. | AW8: n.d. | AX8: n.d. | AY8: n.d. | AZ8: n.d. | BA8: n.d. | BB8: n.d. | BC8: n.d. | BD8: n.d. | BE8: n.d. | BF8: n.d. | BG8: n.d. | BH8: n.d. | BI8: n.d. | BJ8: =IF('[1]MONE(M)CAPARD'!AS15="","",'[1]MONE(M)CAPARD'!AS15) -> n.d. | BK8: =IF('[1]MONE(M)CAPARD'!AT15="","",'[1]MONE(M)CAPARD'!AT15) -> n.a. | BL8: =IF('[1]MONE(M)CAPARD'!AU15="","",'[1]MONE(M)CAPARD'!AU15) -> n.d. | BM8: =IF('[1]MONE(M)CAPARD'!AV15="","",'[1]MONE(M)CAPARD'!AV15) -> n.d. | BN8: =IF('[1]MONE(M)CAPARD'!AW15="","",'[1]MONE(M)CAPARD'!AW15) -> n.a. | BO8: =IF('[1]MONE(M)CAPARD'!AX15="","",'[1]MONE(M)CAPARD'!AX15) -> n.d. | BP8: =IF('[1]MONE(M)CAPARD'!AY15="","",'[1]MONE(M)CAPARD'!AY15) -> n.a. | BQ8: =IF('[1]FISCAL(M)'!$K15="","",'[1]FISCAL(M)'!$K15) -> n.d. | BR8: =IF('[1]FISCAL(M)'!$L15="","",'[1]FISCAL(M)'!$L15) -> n.d. | BS8: =IF('[1]FISCAL(M)'!$AY15="","",'[1]FISCAL(M)'!$AY15) -> n.d. | BT8: =IF('[1]FISCAL(M)'!$BI15="","",'[1]FISCAL(M)'!$BI15) -> n.d. | BU8: =IF('[1]FISCAL(M)'!$BS15="","",'[1]FISCAL(M)'!$BS15) -> n.d. | BV8: =IF('[1]FISCAL(M)'!$AZ15="","",'[1]FISCAL(M)'!$AZ15) -> n.d. | BW8: =IF('[1]FISCAL(M)'!$BJ15="","",'[1]FISCAL(M)'!$BJ15) -> n.d. | BX8: =IF('[1]FISCAL(M)'!$BT15="","",'[1]FISCAL(M)'!$BT15) -> n.d. | BY8: =IF('[2]MONE(M)'!$AO15="","",'[2]MONE(M)'!$AO15) -> n.d. | BZ8: =IF('[3]MONE(M)'!$AO15="","",'[3]MONE(M)'!$AO15) -> n.d. | CA8: =IF('[4]MONE(M)'!$AO15="","",'[4]MONE(M)'!$AO15) -> n.d. | CB8: =+'[5]MONE(M)'!$AO15 -> n.d. | CC8: =IF('[6]MONE(M)'!$AO15="","",'[6]MONE(M)'!$AO15) -> n.d. | CD8: =IF('[7]MONE(M)'!$AO15="","",'[7]MONE(M)'!$AO15) -> n.d. | CE8: =IF('[8]MONE(M)'!$AO15="","",'[8]MONE(M)'!$AO15) -> n.d. | CF8: n.d. | CG8: n.d. | CH8: n.d. | CI8: n.d. | CJ8: n.d. | CK8: n.d. | CL8: n.d. | CM8: =IF('[1]FISCAL(M)'!$K15="","",'[1]FISCAL(M)'!$K15) -> n.d. | CN8: n.d. | CO8: n.d. | CP8: =IF('[1]FISCAL(M)'!$L15="","",'[1]FISCAL(M)'!$L15) -> n.d. | CQ8: n.d. | CR8: n.d. | CS8: n.d. | CT8: n.d. | CU8: n.d. | CV8: n.d. | CW8: n.d. | CX8: n.d. | CY8: n.d. | CZ8: n.d. | DA8: n.d. | DB8: n.d. | DC8: n.d. | DD8: n.d. | DE8: n.d. | DF8: n.d. | DG8: n.d. | DH8: n.d.
A9: 1990 | B9: julio | C9: 1990-julio | D9: =IF('[1]REAL IPC(M)'!$AL16="","",+'[1]REAL IPC(M)'!$AL16) -> n.d. | E9: =IF('[1]REAL IPC(M)'!$BE16="","",+'[1]REAL IPC(M)'!$BE16) -> n.d. | F9: =IF('[1]REAL IPC(M)'!$AM16="","",+'[1]REAL IPC(M)'!$AM16) -> n.d. | G9: =IF('[1]REAL IPC(M)'!$BI16="","",+'[1]REAL IPC(M)'!$BI16) -> n.d. | H9: =IF('[1]REAL IMAE(M)'!BJ16="","",'[1]REAL IMAE(M)'!BJ16) -> n.d. | I9: =IF('[1]REAL IMAE(M)'!BK16="","",'[1]REAL IMAE(M)'!BK16) -> n.d. | J9: =IF('[1]REAL IMAE(M)'!BN16="","",'[1]REAL IMAE(M)'!BN16) -> n.d. | K9: =IF('[1]REAL IMAE(M)'!BO16="","",'[1]REAL IMAE(M)'!BO16) -> n.d. | L9: =IF('[1]EXT RIN(M)'!$K16="","",'[1]EXT RIN(M)'!$K16) -> n.d. | N9: =IF('[1]EXT RIN(M)'!$L16="","",'[1]EXT RIN(M)'!$L16) -> n.d. | P9: =IF('[1]MONE(M)CARD'!EG16="","",'[1]MONE(M)CARD'!EG16) -> n.d. | Q9: =IF('[1]MONE(M)CARD'!EK16="","",'[1]MONE(M)CARD'!EK16) -> n.d. | R9: =IF('[1]MONE(M)CARD'!EP16="","",'[1]MONE(M)CARD'!EP16) -> n.d. | S9: =IF('[1]MONE(M)CARD'!ES16="","",'[1]MONE(M)CARD'!ES16) -> n.d. | T9: =IF('[1]MONE(M)CARD'!EV16="","",'[1]MONE(M)CARD'!EV16) -> n.d. | U9: =IF('[1]MONE(M)CARD'!EZ16="","",'[1]MONE(M)CARD'!EZ16) -> n.d. | V9: =IF('[1]MONE(M)CAPARD'!FC16="","",'[1]MONE(M)CAPARD'!FC16) -> n.d. | W9: =IF('[1]MONE(M)CAPARD'!FG16="","",'[1]MONE(M)CAPARD'!FG16) -> n.d. | X9: =IF('[1]MONE(M)CAPARD'!FL16="","",'[1]MONE(M)CAPARD'!FL16) -> n.d. | Y9: =IF('[1]MONE(M)CAPARD'!FO16="","",'[1]MONE(M)CAPARD'!FO16) -> n.d. | Z9: =IF('[1]MONE(M)CAPARD'!FR16="","",'[1]MONE(M)CAPARD'!FR16) -> n.d. | AA9: =IF('[1]MONE(M)CAPARD'!FV16="","",'[1]MONE(M)CAPARD'!FV16) -> n.d. | AB9: =IF('[1]MONE(M)CARD'!FV16="","",'[1]MONE(M)CARD'!FV16) ->  | AC9: =IF('[1]MONE(M)CARD'!GD16="","",'[1]MONE(M)CARD'!GD16) -> n.d. | AD9: =IF('[1]MONE(M)CARD'!GE16="","",'[1]MONE(M)CARD'!GE16) -> n.d. | AE9: n.d. | AF9: n.d. | AG9: n.d. | AH9: n.d. | AI9: n.d. | AJ9: n.d. | AK9: n.d. | AL9: n.d. | AN9: n.d. | AO9: n.d. | AP9: n.d. | AQ9: n.d. | AR9: n.d. | AS9: =IF('[1]MONE(M)CAPARD'!GS16="","",'[1]MONE(M)CAPARD'!GS16) -> n.d. | AT9: =IF('[1]MONE(M)CARD'!HA16="","",'[1]MONE(M)CAPARD'!HA16) -> n.d. | AU9: =IF('[1]MONE(M)CAPARD'!HB16="","",'[1]MONE(M)CAPARD'!HB16) -> n.d. | AV9: n.d. | AW9: n.d. | AX9: n.d. | AY9: n.d. | AZ9: n.d. | BA9: n.d. | BB9: n.d. | BC9: n.d. | BD9: n.d. | BE9: n.d. | BF9: n.d. | BG9: n.d. | BH9: n.d. | BI9: n.d. | BJ9: =IF('[1]MONE(M)CAPARD'!AS16="","",'[1]MONE(M)CAPARD'!AS16) -> n.d. | BK9: =IF('[1]MONE(M)CAPARD'!AT16="","",'[1]MONE(M)CAPARD'!AT16) -> n.a. | BL9: =IF('[1]MONE(M)CAPARD'!AU16="","",'[1]MONE(M)CAPARD'!AU16) -> n.d. | BM9: =IF('[1]MONE(M)CAPARD'!AV16="","",'[1]MONE(M)CAPARD'!AV16) -> n.d. | BN9: =IF('[1]MONE(M)CAPARD'!AW16="","",'[1]MONE(M)CAPARD'!AW16) -> n.a. | BO9: =IF('[1]MONE(M)CAPARD'!AX16="","",'[1]MONE(M)CAPARD'!AX16) -> n.d. | BP9: =IF('[1]MONE(M)CAPARD'!AY16="","",'[1]MONE(M)CAPARD'!AY16) -> n.a. | BQ9: =IF('[1]FISCAL(M)'!$K16="","",'[1]FISCAL(M)'!$K16) -> n.d. | BR9: =IF('[1]FISCAL(M)'!$L16="","",'[1]FISCAL(M)'!$L16) -> n.d. | BS9: =IF('[1]FISCAL(M)'!$AY16="","",'[1]FISCAL(M)'!$AY16) -> n.d. | BT9: =IF('[1]FISCAL(M)'!$BI16="","",'[1]FISCAL(M)'!$BI16) -> n.d. | BU9: =IF('[1]FISCAL(M)'!$BS16="","",'[1]FISCAL(M)'!$BS16) -> n.d. | BV9: =IF('[1]FISCAL(M)'!$AZ16="","",'[1]FISCAL(M)'!$AZ16) -> n.d. | BW9: =IF('[1]FISCAL(M)'!$BJ16="","",'[1]FISCAL(M)'!$BJ16) -> n.d. | BX9: =IF('[1]FISCAL(M)'!$BT16="","",'[1]FISCAL(M)'!$BT16) -> n.d. | BY9: =IF('[2]MONE(M)'!$AO16="","",'[2]MONE(M)'!$AO16) -> n.d. | BZ9: =IF('[3]MONE(M)'!$AO16="","",'[3]MONE(M)'!$AO16) -> n.d. | CA9: =IF('[4]MONE(M)'!$AO16="","",'[4]MONE(M)'!$AO16) -> n.d. | CB9: =+'[5]MONE(M)'!$AO16 -> n.d. | CC9: =IF('[6]MONE(M)'!$AO16="","",'[6]MONE(M)'!$AO16) -> n.d. | CD9: =IF('[7]MONE(M)'!$AO16="","",'[7]MONE(M)'!$AO16) -> n.d. | CE9: =IF('[8]MONE(M)'!$AO16="","",'[8]MONE(M)'!$AO16) -> n.d. | CF9: n.d. | CG9: n.d. | CH9: n.d. | CI9: n.d. | CJ9: n.d. | CK9: n.d. | CL9: n.d. | CM9: =IF('[1]FISCAL(M)'!$K16="","",'[1]FISCAL(M)'!$K16) -> n.d. | CN9: n.d. | CO9: n.d. | CP9: =IF('[1]FISCAL(M)'!$L16="","",'[1]FISCAL(M)'!$L16) -> n.d. | CQ9: n.d. | CR9: n.d. | CS9: n.d. | CT9: n.d. | CU9: n.d. | CV9: n.d. | CW9: n.d. | CX9: n.d. | CY9: n.d. | CZ9: n.d. | DA9: n.d. | DB9: n.d. | DC9: n.d. | DD9: n.d. | DE9: n.d. | DF9: n.d. | DG9: n.d. | DH9: n.d.
A10: 1990 | B10: agosto | C10: 1990-agosto | D10: =IF('[1]REAL IPC(M)'!$AL17="","",+'[1]REAL IPC(M)'!$AL17) -> n.d. | E10: =IF('[1]REAL IPC(M)'!$BE17="","",+'[1]REAL IPC(M)'!$BE17) -> n.d. | F10: =IF('[1]REAL IPC(M)'!$AM17="","",+'[1]REAL IPC(M)'!$AM17) -> n.d. | G10: =IF('[1]REAL IPC(M)'!$BI17="","",+'[1]REAL IPC(M)'!$BI17) -> n.d. | H10: =IF('[1]REAL IMAE(M)'!BJ17="","",'[1]REAL IMAE(M)'!BJ17) -> n.d. | I10: =IF('[1]REAL IMAE(M)'!BK17="","",'[1]REAL IMAE(M)'!BK17) -> n.d. | J10: =IF('[1]REAL IMAE(M)'!BN17="","",'[1]REAL IMAE(M)'!BN17) -> n.d. | K10: =IF('[1]REAL IMAE(M)'!BO17="","",'[1]REAL IMAE(M)'!BO17) -> n.d. | L10: =IF('[1]EXT RIN(M)'!$K17="","",'[1]EXT RIN(M)'!$K17) -> n.d. | N10: =IF('[1]EXT RIN(M)'!$L17="","",'[1]EXT RIN(M)'!$L17) -> n.d. | P10: =IF('[1]MONE(M)CARD'!EG17="","",'[1]MONE(M)CARD'!EG17) -> n.d. | Q10: =IF('[1]MONE(M)CARD'!EK17="","",'[1]MONE(M)CARD'!EK17) -> n.d. | R10: =IF('[1]MONE(M)CARD'!EP17="","",'[1]MONE(M)CARD'!EP17) -> n.d. | S10: =IF('[1]MONE(M)CARD'!ES17="","",'[1]MONE(M)CARD'!ES17) -> n.d. | T10: =IF('[1]MONE(M)CARD'!EV17="","",'[1]MONE(M)CARD'!EV17) -> n.d. | U10: =IF('[1]MONE(M)CARD'!EZ17="","",'[1]MONE(M)CARD'!EZ17) -> n.d. | V10: =IF('[1]MONE(M)CAPARD'!FC17="","",'[1]MONE(M)CAPARD'!FC17) -> n.d. | W10: =IF('[1]MONE(M)CAPARD'!FG17="","",'[1]MONE(M)CAPARD'!FG17) -> n.d. | X10: =IF('[1]MONE(M)CAPARD'!FL17="","",'[1]MONE(M)CAPARD'!FL17) -> n.d. | Y10: =IF('[1]MONE(M)CAPARD'!FO17="","",'[1]MONE(M)CAPARD'!FO17) -> n.d. | Z10: =IF('[1]MONE(M)CAPARD'!FR17="","",'[1]MONE(M)CAPARD'!FR17) -> n.d. | AA10: =IF('[1]MONE(M)CAPARD'!FV17="","",'[1]MONE(M)CAPARD'!FV17) -> n.d. | AB10: =IF('[1]MONE(M)CARD'!FV17="","",'[1]MONE(M)CARD'!FV17) ->  | AC10: =IF('[1]MONE(M)CARD'!GD17="","",'[1]MONE(M)CARD'!GD17) -> n.d. | AD10: =IF('[1]MONE(M)CARD'!GE17="","",'[1]MONE(M)CARD'!GE17) -> n.d. | AE10: n.d. | AF10: n.d. | AG10: n.d. | AH10: n.d. | AI10: n.d. | AJ10: n.d. | AK10: n.d. | AL10: n.d. | AN10: n.d. | AO10: n.d. | AP10: n.d. | AQ10: n.d. | AR10: n.d. | AS10: =IF('[1]MONE(M)CAPARD'!GS17="","",'[1]MONE(M)CAPARD'!GS17) -> n.d. | AT10: =IF('[1]MONE(M)CARD'!HA17="","",'[1]MONE(M)CAPARD'!HA17) -> n.d. | AU10: =IF('[1]MONE(M)CAPARD'!HB17="","",'[1]MONE(M)CAPARD'!HB17) -> n.d. | AV10: n.d. | AW10: n.d. | AX10: n.d. | AY10: n.d. | AZ10: n.d. | BA10: n.d. | BB10: n.d. | BC10: n.d. | BD10: n.d. | BE10: n.d. | BF10: n.d. | BG10: n.d. | BH10: n.d. | BI10: n.d. | BJ10: =IF('[1]MONE(M)CAPARD'!AS17="","",'[1]MONE(M)CAPARD'!AS17) -> n.d. | BK10: =IF('[1]MONE(M)CAPARD'!AT17="","",'[1]MONE(M)CAPARD'!AT17) -> n.a. | BL10: =IF('[1]MONE(M)CAPARD'!AU17="","",'[1]MONE(M)CAPARD'!AU17) -> n.d. | BM10: =IF('[1]MONE(M)CAPARD'!AV17="","",'[1]MONE(M)CAPARD'!AV17) -> n.d. | BN10: =IF('[1]MONE(M)CAPARD'!AW17="","",'[1]MONE(M)CAPARD'!AW17) -> n.a. | BO10: =IF('[1]MONE(M)CAPARD'!AX17="","",'[1]MONE(M)CAPARD'!AX17) -> n.d. | BP10: =IF('[1]MONE(M)CAPARD'!AY17="","",'[1]MONE(M)CAPARD'!AY17) -> n.a. | BQ10: =IF('[1]FISCAL(M)'!$K17="","",'[1]FISCAL(M)'!$K17) -> n.d. | BR10: =IF('[1]FISCAL(M)'!$L17="","",'[1]FISCAL(M)'!$L17) -> n.d. | BS10: =IF('[1]FISCAL(M)'!$AY17="","",'[1]FISCAL(M)'!$AY17) -> n.d. | BT10: =IF('[1]FISCAL(M)'!$BI17="","",'[1]FISCAL(M)'!$BI17) -> n.d. | BU10: =IF('[1]FISCAL(M)'!$BS17="","",'[1]FISCAL(M)'!$BS17) -> n.d. | BV10: =IF('[1]FISCAL(M)'!$AZ17="","",'[1]FISCAL(M)'!$AZ17) -> n.d. | BW10: =IF('[1]FISCAL(M)'!$BJ17="","",'[1]FISCAL(M)'!$BJ17) -> n.d. | BX10: =IF('[1]FISCAL(M)'!$BT17="","",'[1]FISCAL(M)'!$BT17) -> n.d. | BY10: =IF('[2]MONE(M)'!$AO17="","",'[2]MONE(M)'!$AO17) -> n.d. | BZ10: =IF('[3]MONE(M)'!$AO17="","",'[3]MONE(M)'!$AO17) -> n.d. | CA10: =IF('[4]MONE(M)'!$AO17="","",'[4]MONE(M)'!$AO17) -> n.d. | CB10: =+'[5]MONE(M)'!$AO17 -> n.d. | CC10: =IF('[6]MONE(M)'!$AO17="","",'[6]MONE(M)'!$AO17) -> n.d. | CD10: =IF('[7]MONE(M)'!$AO17="","",'[7]MONE(M)'!$AO17) -> n.d. | CE10: =IF('[8]MONE(M)'!$AO17="","",'[8]MONE(M)'!$AO17) -> n.d. | CF10: n.d. | CG10: n.d. | CH10: n.d. | CI10: n.d. | CJ10: n.d. | CK10: n.d. | CL10: n.d. | CM10: =IF('[1]FISCAL(M)'!$K17="","",'[1]FISCAL(M)'!$K17) -> n.d. | CN10: n.d. | CO10: n.d. | CP10: =IF('[1]FISCAL(M)'!$L17="","",'[1]FISCAL(M)'!$L17) -> n.d. | CQ10: n.d. | CR10: n.d. | CS10: n.d. | CT10: n.d. | CU10: n.d. | CV10: n.d. | CW10: n.d. | CX10: n.d. | CY10: n.d. | CZ10: n.d. | DA10: n.d. | DB10: n.d. | DC10: n.d. | DD10: n.d. | DE10: n.d. | DF10: n.d. | DG10: n.d. | DH10: n.d.
A11: 1990 | B11: septiembre | C11: 1990-septiembre | D11: =IF('[1]REAL IPC(M)'!$AL18="","",+'[1]REAL IPC(M)'!$AL18) -> n.d. | E11: =IF('[1]REAL IPC(M)'!$BE18="","",+'[1]REAL IPC(M)'!$BE18) -> n.d. | F11: =IF('[1]REAL IPC(M)'!$AM18="","",+'[1]REAL IPC(M)'!$AM18) -> n.d. | G11: =IF('[1]REAL IPC(M)'!$BI18="","",+'[1]REAL IPC(M)'!$BI18) -> n.d. | H11: =IF('[1]REAL IMAE(M)'!BJ18="","",'[1]REAL IMAE(M)'!BJ18) -> n.d. | I11: =IF('[1]REAL IMAE(M)'!BK18="","",'[1]REAL IMAE(M)'!BK18) -> n.d. | J11: =IF('[1]REAL IMAE(M)'!BN18="","",'[1]REAL IMAE(M)'!BN18) -> n.d. | K11: =IF('[1]REAL IMAE(M)'!BO18="","",'[1]REAL IMAE(M)'!BO18) -> n.d. | L11: =IF('[1]EXT RIN(M)'!$K18="","",'[1]EXT RIN(M)'!$K18) -> n.d. | N11: =IF('[1]EXT RIN(M)'!$L18="","",'[1]EXT RIN(M)'!$L18) -> n.d. | P11: =IF('[1]MONE(M)CARD'!EG18="","",'[1]MONE(M)CARD'!EG18) -> n.d. | Q11: =IF('[1]MONE(M)CARD'!EK18="","",'[1]MONE(M)CARD'!EK18) -> n.d. | R11: =IF('[1]MONE(M)CARD'!EP18="","",'[1]MONE(M)CARD'!EP18) -> n.d. | S11: =IF('[1]MONE(M)CARD'!ES18="","",'[1]MONE(M)CARD'!ES18) -> n.d. | T11: =IF('[1]MONE(M)CARD'!EV18="","",'[1]MONE(M)CARD'!EV18) -> n.d. | U11: =IF('[1]MONE(M)CARD'!EZ18="","",'[1]MONE(M)CARD'!EZ18) -> n.d. | V11: =IF('[1]MONE(M)CAPARD'!FC18="","",'[1]MONE(M)CAPARD'!FC18) -> n.d. | W11: =IF('[1]MONE(M)CAPARD'!FG18="","",'[1]MONE(M)CAPARD'!FG18) -> n.d. | X11: =IF('[1]MONE(M)CAPARD'!FL18="","",'[1]MONE(M)CAPARD'!FL18) -> n.d. | Y11: =IF('[1]MONE(M)CAPARD'!FO18="","",'[1]MONE(M)CAPARD'!FO18) -> n.d. | Z11: =IF('[1]MONE(M)CAPARD'!FR18="","",'[1]MONE(M)CAPARD'!FR18) -> n.d. | AA11: =IF('[1]MONE(M)CAPARD'!FV18="","",'[1]MONE(M)CAPARD'!FV18) -> n.d. | AB11: =IF('[1]MONE(M)CARD'!FV18="","",'[1]MONE(M)CARD'!FV18) ->  | AC11: =IF('[1]MONE(M)CARD'!GD18="","",'[1]MONE(M)CARD'!GD18) -> n.d. | AD11: =IF('[1]MONE(M)CARD'!GE18="","",'[1]MONE(M)CARD'!GE18) -> n.d. | AE11: n.d. | AF11: n.d. | AG11: n.d. | AH11: n.d. | AI11: n.d. | AJ11: n.d. | AK11: n.d. | AL11: n.d. | AN11: n.d. | AO11: n.d. | AP11: n.d. | AQ11: n.d. | AR11: n.d. | AS11: =IF('[1]MONE(M)CAPARD'!GS18="","",'[1]MONE(M)CAPARD'!GS18) -> n.d. | AT11: =IF('[1]MONE(M)CARD'!HA18="","",'[1]MONE(M)CAPARD'!HA18) -> n.d. | AU11: =IF('[1]MONE(M)CAPARD'!HB18="","",'[1]MONE(M)CAPARD'!HB18) -> n.d. | AV11: n.d. | AW11: n.d. | AX11: n.d. | AY11: n.d. | AZ11: n.d. | BA11: n.d. | BB11: n.d. | BC11: n.d. | BD11: n.d. | BE11: n.d. | BF11: n.d. | BG11: n.d. | BH11: n.d. | BI11: n.d. | BJ11: =IF('[1]MONE(M)CAPARD'!AS18="","",'[1]MONE(M)CAPARD'!AS18) -> n.d. | BK11: =IF('[1]MONE(M)CAPARD'!AT18="","",'[1]MONE(M)CAPARD'!AT18) -> n.a. | BL11: =IF('[1]MONE(M)CAPARD'!AU18="","",'[1]MONE(M)CAPARD'!AU18) -> n.d. | BM11: =IF('[1]MONE(M)CAPARD'!AV18="","",'[1]MONE(M)CAPARD'!AV18) -> n.d. | BN11: =IF('[1]MONE(M)CAPARD'!AW18="","",'[1]MONE(M)CAPARD'!AW18) -> n.a. | BO11: =IF('[1]MONE(M)CAPARD'!AX18="","",'[1]MONE(M)CAPARD'!AX18) -> n.d. | BP11: =IF('[1]MONE(M)CAPARD'!AY18="","",'[1]MONE(M)CAPARD'!AY18) -> n.a. | BQ11: =IF('[1]FISCAL(M)'!$K18="","",'[1]FISCAL(M)'!$K18) -> n.d. | BR11: =IF('[1]FISCAL(M)'!$L18="","",'[1]FISCAL(M)'!$L18) -> n.d. | BS11: =IF('[1]FISCAL(M)'!$AY18="","",'[1]FISCAL(M)'!$AY18) -> n.d. | BT11: =IF('[1]FISCAL(M)'!$BI18="","",'[1]FISCAL(M)'!$BI18) -> n.d. | BU11: =IF('[1]FISCAL(M)'!$BS18="","",'[1]FISCAL(M)'!$BS18) -> n.d. | BV11: =IF('[1]FISCAL(M)'!$AZ18="","",'[1]FISCAL(M)'!$AZ18) -> n.d. | BW11: =IF('[1]FISCAL(M)'!$BJ18="","",'[1]FISCAL(M)'!$BJ18) -> n.d. | BX11: =IF('[1]FISCAL(M)'!$BT18="","",'[1]FISCAL(M)'!$BT18) -> n.d. | BY11: =IF('[2]MONE(M)'!$AO18="","",'[2]MONE(M)'!$AO18) -> n.d. | BZ11: =IF('[3]MONE(M)'!$AO18="","",'[3]MONE(M)'!$AO18) -> n.d. | CA11: =IF('[4]MONE(M)'!$AO18="","",'[4]MONE(M)'!$AO18) -> n.d. | CB11: =+'[5]MONE(M)'!$AO18 -> n.d. | CC11: =IF('[6]MONE(M)'!$AO18="","",'[6]MONE(M)'!$AO18) -> n.d. | CD11: =IF('[7]MONE(M)'!$AO18="","",'[7]MONE(M)'!$AO18) -> n.d. | CE11: =IF('[8]MONE(M)'!$AO18="","",'[8]MONE(M)'!$AO18) -> n.d. | CF11: n.d. | CG11: n.d. | CH11: n.d. | CI11: n.d. | CJ11: n.d. | CK11: n.d. | CL11: n.d. | CM11: =IF('[1]FISCAL(M)'!$K18="","",'[1]FISCAL(M)'!$K18) -> n.d. | CN11: n.d. | CO11: n.d. | CP11: =IF('[1]FISCAL(M)'!$L18="","",'[1]FISCAL(M)'!$L18) -> n.d. | CQ11: n.d. | CR11: n.d. | CS11: n.d. | CT11: n.d. | CU11: n.d. | CV11: n.d. | CW11: n.d. | CX11: n.d. | CY11: n.d. | CZ11: n.d. | DA11: n.d. | DB11: n.d. | DC11: n.d. | DD11: n.d. | DE11: n.d. | DF11: n.d. | DG11: n.d. | DH11: n.d.
A12: 1990 | B12: octubre | C12: 1990-octubre | D12: =IF('[1]REAL IPC(M)'!$AL19="","",+'[1]REAL IPC(M)'!$AL19) -> n.d. | E12: =IF('[1]REAL IPC(M)'!$BE19="","",+'[1]REAL IPC(M)'!$BE19) -> n.d. | F12: =IF('[1]REAL IPC(M)'!$AM19="","",+'[1]REAL IPC(M)'!$AM19) -> n.d. | G12: =IF('[1]REAL IPC(M)'!$BI19="","",+'[1]REAL IPC(M)'!$BI19) -> n.d. | H12: =IF('[1]REAL IMAE(M)'!BJ19="","",'[1]REAL IMAE(M)'!BJ19) -> n.d. | I12: =IF('[1]REAL IMAE(M)'!BK19="","",'[1]REAL IMAE(M)'!BK19) -> n.d. | J12: =IF('[1]REAL IMAE(M)'!BN19="","",'[1]REAL IMAE(M)'!BN19) -> n.d. | K12: =IF('[1]REAL IMAE(M)'!BO19="","",'[1]REAL IMAE(M)'!BO19) -> n.d. | L12: =IF('[1]EXT RIN(M)'!$K19="","",'[1]EXT RIN(M)'!$K19) -> n.d. | N12: =IF('[1]EXT RIN(M)'!$L19="","",'[1]EXT RIN(M)'!$L19) -> n.d. | P12: =IF('[1]MONE(M)CARD'!EG19="","",'[1]MONE(M)CARD'!EG19) -> n.d. | Q12: =IF('[1]MONE(M)CARD'!EK19="","",'[1]MONE(M)CARD'!EK19) -> n.d. | R12: =IF('[1]MONE(M)CARD'!EP19="","",'[1]MONE(M)CARD'!EP19) -> n.d. | S12: =IF('[1]MONE(M)CARD'!ES19="","",'[1]MONE(M)CARD'!ES19) -> n.d. | T12: =IF('[1]MONE(M)CARD'!EV19="","",'[1]MONE(M)CARD'!EV19) -> n.d. | U12: =IF('[1]MONE(M)CARD'!EZ19="","",'[1]MONE(M)CARD'!EZ19) -> n.d. | V12: =IF('[1]MONE(M)CAPARD'!FC19="","",'[1]MONE(M)CAPARD'!FC19) -> n.d. | W12: =IF('[1]MONE(M)CAPARD'!FG19="","",'[1]MONE(M)CAPARD'!FG19) -> n.d. | X12: =IF('[1]MONE(M)CAPARD'!FL19="","",'[1]MONE(M)CAPARD'!FL19) -> n.d. | Y12: =IF('[1]MONE(M)CAPARD'!FO19="","",'[1]MONE(M)CAPARD'!FO19) -> n.d. | Z12: =IF('[1]MONE(M)CAPARD'!FR19="","",'[1]MONE(M)CAPARD'!FR19) -> n.d. | AA12: =IF('[1]MONE(M)CAPARD'!FV19="","",'[1]MONE(M)CAPARD'!FV19) -> n.d. | AB12: =IF('[1]MONE(M)CARD'!FV19="","",'[1]MONE(M)CARD'!FV19) ->  | AC12: =IF('[1]MONE(M)CARD'!GD19="","",'[1]MONE(M)CARD'!GD19) -> n.d. | AD12: =IF('[1]MONE(M)CARD'!GE19="","",'[1]MONE(M)CARD'!GE19) -> n.d. | AE12: n.d. | AF12: n.d. | AG12: n.d. | AH12: n.d. | AI12: n.d. | AJ12: n.d. | AK12: n.d. | AL12: n.d. | AN12: n.d. | AO12: n.d. | AP12: n.d. | AQ12: n.d. | AR12: n.d. | AS12: =IF('[1]MONE(M)CAPARD'!GS19="","",'[1]MONE(M)CAPARD'!GS19) -> n.d. | AT12: =IF('[1]MONE(M)CARD'!HA19="","",'[1]MONE(M)CAPARD'!HA19) -> n.d. | AU12: =IF('[1]MONE(M)CAPARD'!HB19="","",'[1]MONE(M)CAPARD'!HB19) -> n.d. | AV12: n.d. | AW12: n.d. | AX12: n.d. | AY12: n.d. | AZ12: n.d. | BA12: n.d. | BB12: n.d. | BC12: n.d. | BD12: n.d. | BE12: n.d. | BF12: n.d. | BG12: n.d. | BH12: n.d. | BI12: n.d. | BJ12: =IF('[1]MONE(M)CAPARD'!AS19="","",'[1]MONE(M)CAPARD'!AS19) -> n.d. | BK12: =IF('[1]MONE(M)CAPARD'!AT19="","",'[1]MONE(M)CAPARD'!AT19) -> n.a. | BL12: =IF('[1]MONE(M)CAPARD'!AU19="","",'[1]MONE(M)CAPARD'!AU19) -> n.d. | BM12: =IF('[1]MONE(M)CAPARD'!AV19="","",'[1]MONE(M)CAPARD'!AV19) -> n.d. | BN12: =IF('[1]MONE(M)CAPARD'!AW19="","",'[1]MONE(M)CAPARD'!AW19) -> n.a. | BO12: =IF('[1]MONE(M)CAPARD'!AX19="","",'[1]MONE(M)CAPARD'!AX19) -> n.d. | BP12: =IF('[1]MONE(M)CAPARD'!AY19="","",'[1]MONE(M)CAPARD'!AY19) -> n.a. | BQ12: =IF('[1]FISCAL(M)'!$K19="","",'[1]FISCAL(M)'!$K19) -> n.d. | BR12: =IF('[1]FISCAL(M)'!$L19="","",'[1]FISCAL(M)'!$L19) -> n.d. | BS12: =IF('[1]FISCAL(M)'!$AY19="","",'[1]FISCAL(M)'!$AY19) -> n.d. | BT12: =IF('[1]FISCAL(M)'!$BI19="","",'[1]FISCAL(M)'!$BI19) -> n.d. | BU12: =IF('[1]FISCAL(M)'!$BS19="","",'[1]FISCAL(M)'!$BS19) -> n.d. | BV12: =IF('[1]FISCAL(M)'!$AZ19="","",'[1]FISCAL(M)'!$AZ19) -> n.d. | BW12: =IF('[1]FISCAL(M)'!$BJ19="","",'[1]FISCAL(M)'!$BJ19) -> n.d. | BX12: =IF('[1]FISCAL(M)'!$BT19="","",'[1]FISCAL(M)'!$BT19) -> n.d. | BY12: =IF('[2]MONE(M)'!$AO19="","",'[2]MONE(M)'!$AO19) -> n.d. | BZ12: =IF('[3]MONE(M)'!$AO19="","",'[3]MONE(M)'!$AO19) -> n.d. | CA12: =IF('[4]MONE(M)'!$AO19="","",'[4]MONE(M)'!$AO19) -> n.d. | CB12: =+'[5]MONE(M)'!$AO19 -> n.d. | CC12: =IF('[6]MONE(M)'!$AO19="","",'[6]MONE(M)'!$AO19) -> n.d. | CD12: =IF('[7]MONE(M)'!$AO19="","",'[7]MONE(M)'!$AO19) -> n.d. | CE12: =IF('[8]MONE(M)'!$AO19="","",'[8]MONE(M)'!$AO19) -> n.d. | CF12: n.d. | CG12: n.d. | CH12: n.d. | CI12: n.d. | CJ12: n.d. | CK12: n.d. | CL12: n.d. | CM12: =IF('[1]FISCAL(M)'!$K19="","",'[1]FISCAL(M)'!$K19) -> n.d. | CN12: n.d. | CO12: n.d. | CP12: =IF('[1]FISCAL(M)'!$L19="","",'[1]FISCAL(M)'!$L19) -> n.d. | CQ12: n.d. | CR12: n.d. | CS12: n.d. | CT12: n.d. | CU12: n.d. | CV12: n.d. | CW12: n.d. | CX12: n.d. | CY12: n.d. | CZ12: n.d. | DA12: n.d. | DB12: n.d. | DC12: n.d. | DD12: n.d. | DE12: n.d. | DF12: n.d. | DG12: n.d. | DH12: n.d.
A13: 1990 | B13: noviembre | C13: 1990-noviembre | D13: =IF('[1]REAL IPC(M)'!$AL20="","",+'[1]REAL IPC(M)'!$AL20) -> n.d. | E13: =IF('[1]REAL IPC(M)'!$BE20="","",+'[1]REAL IPC(M)'!$BE20) -> n.d. | F13: =IF('[1]REAL IPC(M)'!$AM20="","",+'[1]REAL IPC(M)'!$AM20) -> n.d. | G13: =IF('[1]REAL IPC(M)'!$BI20="","",+'[1]REAL IPC(M)'!$BI20) -> n.d. | H13: =IF('[1]REAL IMAE(M)'!BJ20="","",'[1]REAL IMAE(M)'!BJ20) -> n.d. | I13: =IF('[1]REAL IMAE(M)'!BK20="","",'[1]REAL IMAE(M)'!BK20) -> n.d. | J13: =IF('[1]REAL IMAE(M)'!BN20="","",'[1]REAL IMAE(M)'!BN20) -> n.d. | K13: =IF('[1]REAL IMAE(M)'!BO20="","",'[1]REAL IMAE(M)'!BO20) -> n.d. | L13: =IF('[1]EXT RIN(M)'!$K20="","",'[1]EXT RIN(M)'!$K20) -> n.d. | N13: =IF('[1]EXT RIN(M)'!$L20="","",'[1]EXT RIN(M)'!$L20) -> n.d. | P13: =IF('[1]MONE(M)CARD'!EG20="","",'[1]MONE(M)CARD'!EG20) -> n.d. | Q13: =IF('[1]MONE(M)CARD'!EK20="","",'[1]MONE(M)CARD'!EK20) -> n.d. | R13: =IF('[1]MONE(M)CARD'!EP20="","",'[1]MONE(M)CARD'!EP20) -> n.d. | S13: =IF('[1]MONE(M)CARD'!ES20="","",'[1]MONE(M)CARD'!ES20) -> n.d. | T13: =IF('[1]MONE(M)CARD'!EV20="","",'[1]MONE(M)CARD'!EV20) -> n.d. | U13: =IF('[1]MONE(M)CARD'!EZ20="","",'[1]MONE(M)CARD'!EZ20) -> n.d. | V13: =IF('[1]MONE(M)CAPARD'!FC20="","",'[1]MONE(M)CAPARD'!FC20) -> n.d. | W13: =IF('[1]MONE(M)CAPARD'!FG20="","",'[1]MONE(M)CAPARD'!FG20) -> n.d. | X13: =IF('[1]MONE(M)CAPARD'!FL20="","",'[1]MONE(M)CAPARD'!FL20) -> n.d. | Y13: =IF('[1]MONE(M)CAPARD'!FO20="","",'[1]MONE(M)CAPARD'!FO20) -> n.d. | Z13: =IF('[1]MONE(M)CAPARD'!FR20="","",'[1]MONE(M)CAPARD'!FR20) -> n.d. | AA13: =IF('[1]MONE(M)CAPARD'!FV20="","",'[1]MONE(M)CAPARD'!FV20) -> n.d. | AB13: =IF('[1]MONE(M)CARD'!FV20="","",'[1]MONE(M)CARD'!FV20) ->  | AC13: =IF('[1]MONE(M)CARD'!GD20="","",'[1]MONE(M)CARD'!GD20) -> n.d. | AD13: =IF('[1]MONE(M)CARD'!GE20="","",'[1]MONE(M)CARD'!GE20) -> n.d. | AE13: n.d. | AF13: n.d. | AG13: n.d. | AH13: n.d. | AI13: n.d. | AJ13: n.d. | AK13: n.d. | AL13: n.d. | AN13: n.d. | AO13: n.d. | AP13: n.d. | AQ13: n.d. | AR13: n.d. | AS13: =IF('[1]MONE(M)CAPARD'!GS20="","",'[1]MONE(M)CAPARD'!GS20) -> n.d. | AT13: =IF('[1]MONE(M)CARD'!HA20="","",'[1]MONE(M)CAPARD'!HA20) -> n.d. | AU13: =IF('[1]MONE(M)CAPARD'!HB20="","",'[1]MONE(M)CAPARD'!HB20) -> n.d. | AV13: n.d. | AW13: n.d. | AX13: n.d. | AY13: n.d. | AZ13: n.d. | BA13: n.d. | BB13: n.d. | BC13: n.d. | BD13: n.d. | BE13: n.d. | BF13: n.d. | BG13: n.d. | BH13: n.d. | BI13: n.d. | BJ13: =IF('[1]MONE(M)CAPARD'!AS20="","",'[1]MONE(M)CAPARD'!AS20) -> n.d. | BK13: =IF('[1]MONE(M)CAPARD'!AT20="","",'[1]MONE(M)CAPARD'!AT20) -> n.a. | BL13: =IF('[1]MONE(M)CAPARD'!AU20="","",'[1]MONE(M)CAPARD'!AU20) -> n.d. | BM13: =IF('[1]MONE(M)CAPARD'!AV20="","",'[1]MONE(M)CAPARD'!AV20) -> n.d. | BN13: =IF('[1]MONE(M)CAPARD'!AW20="","",'[1]MONE(M)CAPARD'!AW20) -> n.a. | BO13: =IF('[1]MONE(M)CAPARD'!AX20="","",'[1]MONE(M)CAPARD'!AX20) -> n.d. | BP13: =IF('[1]MONE(M)CAPARD'!AY20="","",'[1]MONE(M)CAPARD'!AY20) -> n.a. | BQ13: =IF('[1]FISCAL(M)'!$K20="","",'[1]FISCAL(M)'!$K20) -> n.d. | BR13: =IF('[1]FISCAL(M)'!$L20="","",'[1]FISCAL(M)'!$L20) -> n.d. | BS13: =IF('[1]FISCAL(M)'!$AY20="","",'[1]FISCAL(M)'!$AY20) -> n.d. | BT13: =IF('[1]FISCAL(M)'!$BI20="","",'[1]FISCAL(M)'!$BI20) -> n.d. | BU13: =IF('[1]FISCAL(M)'!$BS20="","",'[1]FISCAL(M)'!$BS20) -> n.d. | BV13: =IF('[1]FISCAL(M)'!$AZ20="","",'[1]FISCAL(M)'!$AZ20) -> n.d. | BW13: =IF('[1]FISCAL(M)'!$BJ20="","",'[1]FISCAL(M)'!$BJ20) -> n.d. | BX13: =IF('[1]FISCAL(M)'!$BT20="","",'[1]FISCAL(M)'!$BT20) -> n.d. | BY13: =IF('[2]MONE(M)'!$AO20="","",'[2]MONE(M)'!$AO20) -> n.d. | BZ13: =IF('[3]MONE(M)'!$AO20="","",'[3]MONE(M)'!$AO20) -> n.d. | CA13: =IF('[4]MONE(M)'!$AO20="","",'[4]MONE(M)'!$AO20) -> n.d. | CB13: =+'[5]MONE(M)'!$AO20 -> n.d. | CC13: =IF('[6]MONE(M)'!$AO20="","",'[6]MONE(M)'!$AO20) -> n.d. | CD13: =IF('[7]MONE(M)'!$AO20="","",'[7]MONE(M)'!$AO20) -> n.d. | CE13: =IF('[8]MONE(M)'!$AO20="","",'[8]MONE(M)'!$AO20) -> n.d. | CF13: n.d. | CG13: n.d. | CH13: n.d. | CI13: n.d. | CJ13: n.d. | CK13: n.d. | CL13: n.d. | CM13: =IF('[1]FISCAL(M)'!$K20="","",'[1]FISCAL(M)'!$K20) -> n.d. | CN13: n.d. | CO13: n.d. | CP13: =IF('[1]FISCAL(M)'!$L20="","",'[1]FISCAL(M)'!$L20) -> n.d. | CQ13: n.d. | CR13: n.d. | CS13: n.d. | CT13: n.d. | CU13: n.d. | CV13: n.d. | CW13: n.d. | CX13: n.d. | CY13: n.d. | CZ13: n.d. | DA13: n.d. | DB13: n.d. | DC13: n.d. | DD13: n.d. | DE13: n.d. | DF13: n.d. | DG13: n.d. | DH13: n.d.
A14: 1990 | B14: diciembre | C14: 1990-diciembre | D14: =IF('[1]REAL IPC(M)'!$AL21="","",+'[1]REAL IPC(M)'!$AL21) -> n.d. | E14: =IF('[1]REAL IPC(M)'!$BE21="","",+'[1]REAL IPC(M)'!$BE21) -> n.d. | F14: =IF('[1]REAL IPC(M)'!$AM21="","",+'[1]REAL IPC(M)'!$AM21) -> n.d. | G14: =IF('[1]REAL IPC(M)'!$BI21="","",+'[1]REAL IPC(M)'!$BI21) -> n.d. | H14: =IF('[1]REAL IMAE(M)'!BJ21="","",'[1]REAL IMAE(M)'!BJ21) -> n.d. | I14: =IF('[1]REAL IMAE(M)'!BK21="","",'[1]REAL IMAE(M)'!BK21) -> n.d. | J14: =IF('[1]REAL IMAE(M)'!BN21="","",'[1]REAL IMAE(M)'!BN21) -> n.d. | K14: =IF('[1]REAL IMAE(M)'!BO21="","",'[1]REAL IMAE(M)'!BO21) -> n.d. | L14: =IF('[1]EXT RIN(M)'!$K21="","",'[1]EXT RIN(M)'!$K21) -> n.d. | M14: n.d. | N14: =IF('[1]EXT RIN(M)'!$L21="","",'[1]EXT RIN(M)'!$L21) -> n.d. | O14: n.d. | P14: =IF('[1]MONE(M)CARD'!EG21="","",'[1]MONE(M)CARD'!EG21) -> n.d. | Q14: =IF('[1]MONE(M)CARD'!EK21="","",'[1]MONE(M)CARD'!EK21) -> n.d. | R14: =IF('[1]MONE(M)CARD'!EP21="","",'[1]MONE(M)CARD'!EP21) -> n.d. | S14: =IF('[1]MONE(M)CARD'!ES21="","",'[1]MONE(M)CARD'!ES21) -> n.d. | T14: =IF('[1]MONE(M)CARD'!EV21="","",'[1]MONE(M)CARD'!EV21) -> n.d. | U14: =IF('[1]MONE(M)CARD'!EZ21="","",'[1]MONE(M)CARD'!EZ21) -> n.d. | V14: =IF('[1]MONE(M)CAPARD'!FC21="","",'[1]MONE(M)CAPARD'!FC21) -> n.d. | W14: =IF('[1]MONE(M)CAPARD'!FG21="","",'[1]MONE(M)CAPARD'!FG21) -> n.d. | X14: =IF('[1]MONE(M)CAPARD'!FL21="","",'[1]MONE(M)CAPARD'!FL21) -> n.d. | Y14: =IF('[1]MONE(M)CAPARD'!FO21="","",'[1]MONE(M)CAPARD'!FO21) -> n.d. | Z14: =IF('[1]MONE(M)CAPARD'!FR21="","",'[1]MONE(M)CAPARD'!FR21) -> n.d. | AA14: =IF('[1]MONE(M)CAPARD'!FV21="","",'[1]MONE(M)CAPARD'!FV21) -> n.d. | AB14: =IF('[1]MONE(M)CARD'!FV21="","",'[1]MONE(M)CARD'!FV21) ->  | AC14: =IF('[1]MONE(M)CARD'!GD21="","",'[1]MONE(M)CARD'!GD21) -> n.d. | AD14: =IF('[1]MONE(M)CARD'!GE21="","",'[1]MONE(M)CARD'!GE21) -> n.d. | AE14: n.d. | AF14: n.d. | AG14: n.d. | AH14: n.d. | AI14: n.d. | AJ14: n.d. | AK14: n.d. | AL14: n.d. | AN14: n.d. | AO14: n.d. | AP14: n.d. | AQ14: n.d. | AR14: n.d. | AS14: =IF('[1]MONE(M)CAPARD'!GS21="","",'[1]MONE(M)CAPARD'!GS21) -> n.d. | AT14: =IF('[1]MONE(M)CARD'!HA21="","",'[1]MONE(M)CAPARD'!HA21) -> n.d. | AU14: =IF('[1]MONE(M)CAPARD'!HB21="","",'[1]MONE(M)CAPARD'!HB21) -> n.d. | AV14: n.d. | AW14: n.d. | AX14: n.d. | AY14: n.d. | AZ14: n.d. | BA14: n.d. | BB14: n.d. | BC14: n.d. | BD14: n.d. | BE14: n.d. | BF14: n.d. | BG14: n.d. | BH14: n.d. | BI14: n.d. | BJ14: =IF('[1]MONE(M)CAPARD'!AS21="","",'[1]MONE(M)CAPARD'!AS21) -> n.d. | BK14: =IF('[1]MONE(M)CAPARD'!AT21="","",'[1]MONE(M)CAPARD'!AT21) -> n.a. | BL14: =IF('[1]MONE(M)CAPARD'!AU21="","",'[1]MONE(M)CAPARD'!AU21) -> n.d. | BM14: =IF('[1]MONE(M)CAPARD'!AV21="","",'[1]MONE(M)CAPARD'!AV21) -> n.d. | BN14: =IF('[1]MONE(M)CAPARD'!AW21="","",'[1]MONE(M)CAPARD'!AW21) -> n.a. | BO14: =IF('[1]MONE(M)CAPARD'!AX21="","",'[1]MONE(M)CAPARD'!AX21) -> n.d. | BP14: =IF('[1]MONE(M)CAPARD'!AY21="","",'[1]MONE(M)CAPARD'!AY21) -> n.a. | BQ14: =IF('[1]FISCAL(M)'!$K21="","",'[1]FISCAL(M)'!$K21) -> n.d. | BR14: =IF('[1]FISCAL(M)'!$L21="","",'[1]FISCAL(M)'!$L21) -> n.d. | BS14: =IF('[1]FISCAL(M)'!$AY21="","",'[1]FISCAL(M)'!$AY21) -> n.d. | BT14: =IF('[1]FISCAL(M)'!$BI21="","",'[1]FISCAL(M)'!$BI21) -> n.d. | BU14: =IF('[1]FISCAL(M)'!$BS21="","",'[1]FISCAL(M)'!$BS21) -> n.d. | BV14: =IF('[1]FISCAL(M)'!$AZ21="","",'[1]FISCAL(M)'!$AZ21) -> n.d. | BW14: =IF('[1]FISCAL(M)'!$BJ21="","",'[1]FISCAL(M)'!$BJ21) -> n.d. | BX14: =IF('[1]FISCAL(M)'!$BT21="","",'[1]FISCAL(M)'!$BT21) -> n.d. | BY14: =IF('[2]MONE(M)'!$AO21="","",'[2]MONE(M)'!$AO21) -> n.d. | BZ14: =IF('[3]MONE(M)'!$AO21="","",'[3]MONE(M)'!$AO21) -> n.d. | CA14: =IF('[4]MONE(M)'!$AO21="","",'[4]MONE(M)'!$AO21) -> n.d. | CB14: =+'[5]MONE(M)'!$AO21 -> n.d. | CC14: =IF('[6]MONE(M)'!$AO21="","",'[6]MONE(M)'!$AO21) -> n.d. | CD14: =IF('[7]MONE(M)'!$AO21="","",'[7]MONE(M)'!$AO21) -> n.d. | CE14: =IF('[8]MONE(M)'!$AO21="","",'[8]MONE(M)'!$AO21) -> n.d. | CF14: n.d. | CG14: n.d. | CH14: n.d. | CI14: n.d. | CJ14: n.d. | CK14: n.d. | CL14: n.d. | CM14: =IF('[1]FISCAL(M)'!$K21="","",'[1]FISCAL(M)'!$K21) -> n.d. | CN14: n.d. | CO14: n.d. | CP14: =IF('[1]FISCAL(M)'!$L21="","",'[1]FISCAL(M)'!$L21) -> n.d. | CQ14: n.d. | CR14: n.d. | CS14: n.d. | CT14: n.d. | CU14: n.d. | CV14: n.d. | CW14: n.d. | CX14: n.d. | CY14: n.d. | CZ14: n.d. | DA14: n.d. | DB14: n.d. | DC14: n.d. | DD14: n.d. | DE14: n.d. | DF14: n.d. | DG14: n.d. | DH14: n.d.
A15: 1991 | B15: enero | C15: 1991-enero | D15: =IF('[1]REAL IPC(M)'!$AL22="","",+'[1]REAL IPC(M)'!$AL22) -> n.d. | E15: =IF('[1]REAL IPC(M)'!$BE22="","",+'[1]REAL IPC(M)'!$BE22) -> n.d. | F15: =IF('[1]REAL IPC(M)'!$AM22="","",+'[1]REAL IPC(M)'!$AM22) -> n.d. | G15: =IF('[1]REAL IPC(M)'!$BI22="","",+'[1]REAL IPC(M)'!$BI22) -> n.d. | H15: =IF('[1]REAL IMAE(M)'!BJ22="","",'[1]REAL IMAE(M)'!BJ22) -> n.d. | I15: =IF('[1]REAL IMAE(M)'!BK22="","",'[1]REAL IMAE(M)'!BK22) -> n.d. | J15: =IF('[1]REAL IMAE(M)'!BN22="","",'[1]REAL IMAE(M)'!BN22) -> n.d. | K15: =IF('[1]REAL IMAE(M)'!BO22="","",'[1]REAL IMAE(M)'!BO22) -> n.d. | L15: =IF('[1]EXT RIN(M)'!$K22="","",'[1]EXT RIN(M)'!$K22) -> n.d. | N15: =IF('[1]EXT RIN(M)'!$L22="","",'[1]EXT RIN(M)'!$L22) -> n.d. | P15: =IF('[1]MONE(M)CARD'!EG22="","",'[1]MONE(M)CARD'!EG22) -> n.d. | Q15: =IF('[1]MONE(M)CARD'!EK22="","",'[1]MONE(M)CARD'!EK22) -> n.d. | R15: =IF('[1]MONE(M)CARD'!EP22="","",'[1]MONE(M)CARD'!EP22) -> n.d. | S15: =IF('[1]MONE(M)CARD'!ES22="","",'[1]MONE(M)CARD'!ES22) -> n.d. | T15: =IF('[1]MONE(M)CARD'!EV22="","",'[1]MONE(M)CARD'!EV22) -> n.d. | U15: =IF('[1]MONE(M)CARD'!EZ22="","",'[1]MONE(M)CARD'!EZ22) -> n.d. | V15: =IF('[1]MONE(M)CAPARD'!FC22="","",'[1]MONE(M)CAPARD'!FC22) -> n.d. | W15: =IF('[1]MONE(M)CAPARD'!FG22="","",'[1]MONE(M)CAPARD'!FG22) -> n.d. | X15: =IF('[1]MONE(M)CAPARD'!FL22="","",'[1]MONE(M)CAPARD'!FL22) -> n.d. | Y15: =IF('[1]MONE(M)CAPARD'!FO22="","",'[1]MONE(M)CAPARD'!FO22) -> n.d. | Z15: =IF('[1]MONE(M)CAPARD'!FR22="","",'[1]MONE(M)CAPARD'!FR22) -> n.d. | AA15: =IF('[1]MONE(M)CAPARD'!FV22="","",'[1]MONE(M)CAPARD'!FV22) -> n.d. | AB15: =IF('[1]MONE(M)CARD'!FV22="","",'[1]MONE(M)CARD'!FV22) ->  | AC15: =IF('[1]MONE(M)CARD'!GD22="","",'[1]MONE(M)CARD'!GD22) -> n.d. | AD15: =IF('[1]MONE(M)CARD'!GE22="","",'[1]MONE(M)CARD'!GE22) -> n.d. | AE15: n.d. | AF15: n.d. | AG15: n.d. | AH15: n.d. | AI15: n.d. | AJ15: n.d. | AK15: n.d. | AL15: n.d. | AN15: n.d. | AO15: n.d. | AP15: n.d. | AQ15: n.d. | AR15: n.d. | AS15: =IF('[1]MONE(M)CAPARD'!GS22="","",'[1]MONE(M)CAPARD'!GS22) -> n.d. | AT15: =IF('[1]MONE(M)CARD'!HA22="","",'[1]MONE(M)CAPARD'!HA22) -> n.d. | AU15: =IF('[1]MONE(M)CAPARD'!HB22="","",'[1]MONE(M)CAPARD'!HB22) -> n.d. | AV15: n.d. | AW15: n.d. | AX15: n.d. | AY15: n.d. | AZ15: n.d. | BA15: n.d. | BB15: n.d. | BC15: n.d. | BD15: n.d. | BE15: n.d. | BF15: n.d. | BG15: n.d. | BH15: n.d. | BI15: n.d. | BJ15: =IF('[1]MONE(M)CAPARD'!AS22="","",'[1]MONE(M)CAPARD'!AS22) -> n.d. | BK15: =IF('[1]MONE(M)CAPARD'!AT22="","",'[1]MONE(M)CAPARD'!AT22) -> n.a. | BL15: =IF('[1]MONE(M)CAPARD'!AU22="","",'[1]MONE(M)CAPARD'!AU22) -> n.d. | BM15: =IF('[1]MONE(M)CAPARD'!AV22="","",'[1]MONE(M)CAPARD'!AV22) -> n.d. | BN15: =IF('[1]MONE(M)CAPARD'!AW22="","",'[1]MONE(M)CAPARD'!AW22) -> n.a. | BO15: =IF('[1]MONE(M)CAPARD'!AX22="","",'[1]MONE(M)CAPARD'!AX22) -> n.d. | BP15: =IF('[1]MONE(M)CAPARD'!AY22="","",'[1]MONE(M)CAPARD'!AY22) -> n.a. | BQ15: =IF('[1]FISCAL(M)'!$K22="","",'[1]FISCAL(M)'!$K22) -> n.d. | BR15: =IF('[1]FISCAL(M)'!$L22="","",'[1]FISCAL(M)'!$L22) -> n.d. | BS15: =IF('[1]FISCAL(M)'!$AY22="","",'[1]FISCAL(M)'!$AY22) -> n.d. | BT15: =IF('[1]FISCAL(M)'!$BI22="","",'[1]FISCAL(M)'!$BI22) -> n.d. | BU15: =IF('[1]FISCAL(M)'!$BS22="","",'[1]FISCAL(M)'!$BS22) -> n.d. | BV15: =IF('[1]FISCAL(M)'!$AZ22="","",'[1]FISCAL(M)'!$AZ22) -> n.d. | BW15: =IF('[1]FISCAL(M)'!$BJ22="","",'[1]FISCAL(M)'!$BJ22) -> n.d. | BX15: =IF('[1]FISCAL(M)'!$BT22="","",'[1]FISCAL(M)'!$BT22) -> n.d. | BY15: =IF('[2]MONE(M)'!$AO22="","",'[2]MONE(M)'!$AO22) -> n.d. | BZ15: =IF('[3]MONE(M)'!$AO22="","",'[3]MONE(M)'!$AO22) -> n.d. | CA15: =IF('[4]MONE(M)'!$AO22="","",'[4]MONE(M)'!$AO22) -> n.d. | CB15: =+'[5]MONE(M)'!$AO22 -> n.d. | CC15: =IF('[6]MONE(M)'!$AO22="","",'[6]MONE(M)'!$AO22) -> n.d. | CD15: =IF('[7]MONE(M)'!$AO22="","",'[7]MONE(M)'!$AO22) -> n.d. | CE15: =IF('[8]MONE(M)'!$AO22="","",'[8]MONE(M)'!$AO22) -> n.d. | CF15: n.d. | CG15: n.d. | CH15: n.d. | CI15: n.d. | CJ15: n.d. | CK15: n.d. | CL15: n.d. | CM15: =IF('[1]FISCAL(M)'!$K22="","",'[1]FISCAL(M)'!$K22) -> n.d. | CN15: n.d. | CO15: n.d. | CP15: =IF('[1]FISCAL(M)'!$L22="","",'[1]FISCAL(M)'!$L22) -> n.d. | CQ15: n.d. | CR15: n.d. | CS15: n.d. | CT15: n.d. | CU15: n.d. | CV15: n.d. | CW15: n.d. | CX15: n.d. | CY15: n.d. | CZ15: n.d. | DA15: n.d. | DB15: n.d. | DC15: n.d. | DD15: n.d. | DE15: n.d. | DF15: n.d. | DG15: n.d. | DH15: n.d.
A16: 1991 | B16: febrero | C16: 1991-febrero | D16: =IF('[1]REAL IPC(M)'!$AL23="","",+'[1]REAL IPC(M)'!$AL23) -> n.d. | E16: =IF('[1]REAL IPC(M)'!$BE23="","",+'[1]REAL IPC(M)'!$BE23) -> n.d. | F16: =IF('[1]REAL IPC(M)'!$AM23="","",+'[1]REAL IPC(M)'!$AM23) -> n.d. | G16: =IF('[1]REAL IPC(M)'!$BI23="","",+'[1]REAL IPC(M)'!$BI23) -> n.d. | H16: =IF('[1]REAL IMAE(M)'!BJ23="","",'[1]REAL IMAE(M)'!BJ23) -> n.d. | I16: =IF('[1]REAL IMAE(M)'!BK23="","",'[1]REAL IMAE(M)'!BK23) -> n.d. | J16: =IF('[1]REAL IMAE(M)'!BN23="","",'[1]REAL IMAE(M)'!BN23) -> n.d. | K16: =IF('[1]REAL IMAE(M)'!BO23="","",'[1]REAL IMAE(M)'!BO23) -> n.d. | L16: =IF('[1]EXT RIN(M)'!$K23="","",'[1]EXT RIN(M)'!$K23) -> n.d. | N16: =IF('[1]EXT RIN(M)'!$L23="","",'[1]EXT RIN(M)'!$L23) -> n.d. | P16: =IF('[1]MONE(M)CARD'!EG23="","",'[1]MONE(M)CARD'!EG23) -> n.d. | Q16: =IF('[1]MONE(M)CARD'!EK23="","",'[1]MONE(M)CARD'!EK23) -> n.d. | R16: =IF('[1]MONE(M)CARD'!EP23="","",'[1]MONE(M)CARD'!EP23) -> n.d. | S16: =IF('[1]MONE(M)CARD'!ES23="","",'[1]MONE(M)CARD'!ES23) -> n.d. | T16: =IF('[1]MONE(M)CARD'!EV23="","",'[1]MONE(M)CARD'!EV23) -> n.d. | U16: =IF('[1]MONE(M)CARD'!EZ23="","",'[1]MONE(M)CARD'!EZ23) -> n.d. | V16: =IF('[1]MONE(M)CAPARD'!FC23="","",'[1]MONE(M)CAPARD'!FC23) -> n.d. | W16: =IF('[1]MONE(M)CAPARD'!FG23="","",'[1]MONE(M)CAPARD'!FG23) -> n.d. | X16: =IF('[1]MONE(M)CAPARD'!FL23="","",'[1]MONE(M)CAPARD'!FL23) -> n.d. | Y16: =IF('[1]MONE(M)CAPARD'!FO23="","",'[1]MONE(M)CAPARD'!FO23) -> n.d. | Z16: =IF('[1]MONE(M)CAPARD'!FR23="","",'[1]MONE(M)CAPARD'!FR23) -> n.d. | AA16: =IF('[1]MONE(M)CAPARD'!FV23="","",'[1]MONE(M)CAPARD'!FV23) -> n.d. | AB16: =IF('[1]MONE(M)CARD'!FV23="","",'[1]MONE(M)CARD'!FV23) ->  | AC16: =IF('[1]MONE(M)CARD'!GD23="","",'[1]MONE(M)CARD'!GD23) -> n.d. | AD16: =IF('[1]MONE(M)CARD'!GE23="","",'[1]MONE(M)CARD'!GE23) -> n.d. | AE16: n.d. | AF16: n.d. | AG16: n.d. | AH16: n.d. | AI16: n.d. | AJ16: n.d. | AK16: n.d. | AL16: n.d. | AN16: n.d. | AO16: n.d. | AP16: n.d. | AQ16: n.d. | AR16: n.d. | AS16: =IF('[1]MONE(M)CAPARD'!GS23="","",'[1]MONE(M)CAPARD'!GS23) -> n.d. | AT16: =IF('[1]MONE(M)CARD'!HA23="","",'[1]MONE(M)CAPARD'!HA23) -> n.d. | AU16: =IF('[1]MONE(M)CAPARD'!HB23="","",'[1]MONE(M)CAPARD'!HB23) -> n.d. | AV16: n.d. | AW16: n.d. | AX16: n.d. | AY16: n.d. | AZ16: n.d. | BA16: n.d. | BB16: n.d. | BC16: n.d. | BD16: n.d. | BE16: n.d. | BF16: n.d. | BG16: n.d. | BH16: n.d. | BI16: n.d. | BJ16: =IF('[1]MONE(M)CAPARD'!AS23="","",'[1]MONE(M)CAPARD'!AS23) -> n.d. | BK16: =IF('[1]MONE(M)CAPARD'!AT23="","",'[1]MONE(M)CAPARD'!AT23) -> n.a. | BL16: =IF('[1]MONE(M)CAPARD'!AU23="","",'[1]MONE(M)CAPARD'!AU23) -> n.d. | BM16: =IF('[1]MONE(M)CAPARD'!AV23="","",'[1]MONE(M)CAPARD'!AV23) -> n.d. | BN16: =IF('[1]MONE(M)CAPARD'!AW23="","",'[1]MONE(M)CAPARD'!AW23) -> n.a. | BO16: =IF('[1]MONE(M)CAPARD'!AX23="","",'[1]MONE(M)CAPARD'!AX23) -> n.d. | BP16: =IF('[1]MONE(M)CAPARD'!AY23="","",'[1]MONE(M)CAPARD'!AY23) -> n.a. | BQ16: =IF('[1]FISCAL(M)'!$K23="","",'[1]FISCAL(M)'!$K23) -> n.d. | BR16: =IF('[1]FISCAL(M)'!$L23="","",'[1]FISCAL(M)'!$L23) -> n.d. | BS16: =IF('[1]FISCAL(M)'!$AY23="","",'[1]FISCAL(M)'!$AY23) -> n.d. | BT16: =IF('[1]FISCAL(M)'!$BI23="","",'[1]FISCAL(M)'!$BI23) -> n.d. | BU16: =IF('[1]FISCAL(M)'!$BS23="","",'[1]FISCAL(M)'!$BS23) -> n.d. | BV16: =IF('[1]FISCAL(M)'!$AZ23="","",'[1]FISCAL(M)'!$AZ23) -> n.d. | BW16: =IF('[1]FISCAL(M)'!$BJ23="","",'[1]FISCAL(M)'!$BJ23) -> n.d. | BX16: =IF('[1]FISCAL(M)'!$BT23="","",'[1]FISCAL(M)'!$BT23) -> n.d. | BY16: =IF('[2]MONE(M)'!$AO23="","",'[2]MONE(M)'!$AO23) -> n.d. | BZ16: =IF('[3]MONE(M)'!$AO23="","",'[3]MONE(M)'!$AO23) -> n.d. | CA16: =IF('[4]MONE(M)'!$AO23="","",'[4]MONE(M)'!$AO23) -> n.d. | CB16: =+'[5]MONE(M)'!$AO23 -> n.d. | CC16: =IF('[6]MONE(M)'!$AO23="","",'[6]MONE(M)'!$AO23) -> n.d. | CD16: =IF('[7]MONE(M)'!$AO23="","",'[7]MONE(M)'!$AO23) -> n.d. | CE16: =IF('[8]MONE(M)'!$AO23="","",'[8]MONE(M)'!$AO23) -> n.d. | CF16: n.d. | CG16: n.d. | CH16: n.d. | CI16: n.d. | CJ16: n.d. | CK16: n.d. | CL16: n.d. | CM16: =IF('[1]FISCAL(M)'!$K23="","",'[1]FISCAL(M)'!$K23) -> n.d. | CN16: n.d. | CO16: n.d. | CP16: =IF('[1]FISCAL(M)'!$L23="","",'[1]FISCAL(M)'!$L23) -> n.d. | CQ16: n.d. | CR16: n.d. | CS16: n.d. | CT16: n.d. | CU16: n.d. | CV16: n.d. | CW16: n.d. | CX16: n.d. | CY16: n.d. | CZ16: n.d. | DA16: n.d. | DB16: n.d. | DC16: n.d. | DD16: n.d. | DE16: n.d. | DF16: n.d. | DG16: n.d. | DH16: n.d.
A17: 1991 | B17: marzo | C17: 1991-marzo | D17: =IF('[1]REAL IPC(M)'!$AL24="","",+'[1]REAL IPC(M)'!$AL24) -> n.d. | E17: =IF('[1]REAL IPC(M)'!$BE24="","",+'[1]REAL IPC(M)'!$BE24) -> n.d. | F17: =IF('[1]REAL IPC(M)'!$AM24="","",+'[1]REAL IPC(M)'!$AM24) -> n.d. | G17: =IF('[1]REAL IPC(M)'!$BI24="","",+'[1]REAL IPC(M)'!$BI24) -> n.d. | H17: =IF('[1]REAL IMAE(M)'!BJ24="","",'[1]REAL IMAE(M)'!BJ24) -> n.d. | I17: =IF('[1]REAL IMAE(M)'!BK24="","",'[1]REAL IMAE(M)'!BK24) -> n.d. | J17: =IF('[1]REAL IMAE(M)'!BN24="","",'[1]REAL IMAE(M)'!BN24) -> n.d. | K17: =IF('[1]REAL IMAE(M)'!BO24="","",'[1]REAL IMAE(M)'!BO24) -> n.d. | L17: =IF('[1]EXT RIN(M)'!$K24="","",'[1]EXT RIN(M)'!$K24) -> n.d. | N17: =IF('[1]EXT RIN(M)'!$L24="","",'[1]EXT RIN(M)'!$L24) -> n.d. | P17: =IF('[1]MONE(M)CARD'!EG24="","",'[1]MONE(M)CARD'!EG24) -> n.d. | Q17: =IF('[1]MONE(M)CARD'!EK24="","",'[1]MONE(M)CARD'!EK24) -> n.d. | R17: =IF('[1]MONE(M)CARD'!EP24="","",'[1]MONE(M)CARD'!EP24) -> n.d. | S17: =IF('[1]MONE(M)CARD'!ES24="","",'[1]MONE(M)CARD'!ES24) -> n.d. | T17: =IF('[1]MONE(M)CARD'!EV24="","",'[1]MONE(M)CARD'!EV24) -> n.d. | U17: =IF('[1]MONE(M)CARD'!EZ24="","",'[1]MONE(M)CARD'!EZ24) -> n.d. | V17: =IF('[1]MONE(M)CAPARD'!FC24="","",'[1]MONE(M)CAPARD'!FC24) -> n.d. | W17: =IF('[1]MONE(M)CAPARD'!FG24="","",'[1]MONE(M)CAPARD'!FG24) -> n.d. | X17: =IF('[1]MONE(M)CAPARD'!FL24="","",'[1]MONE(M)CAPARD'!FL24) -> n.d. | Y17: =IF('[1]MONE(M)CAPARD'!FO24="","",'[1]MONE(M)CAPARD'!FO24) -> n.d. | Z17: =IF('[1]MONE(M)CAPARD'!FR24="","",'[1]MONE(M)CAPARD'!FR24) -> n.d. | AA17: =IF('[1]MONE(M)CAPARD'!FV24="","",'[1]MONE(M)CAPARD'!FV24) -> n.d. | AB17: =IF('[1]MONE(M)CARD'!FV24="","",'[1]MONE(M)CARD'!FV24) ->  | AC17: =IF('[1]MONE(M)CARD'!GD24="","",'[1]MONE(M)CARD'!GD24) -> n.d. | AD17: =IF('[1]MONE(M)CARD'!GE24="","",'[1]MONE(M)CARD'!GE24) -> n.d. | AE17: n.d. | AF17: n.d. | AG17: n.d. | AH17: n.d. | AI17: n.d. | AJ17: n.d. | AK17: n.d. | AL17: n.d. | AN17: n.d. | AO17: n.d. | AP17: n.d. | AQ17: n.d. | AR17: n.d. | AS17: =IF('[1]MONE(M)CAPARD'!GS24="","",'[1]MONE(M)CAPARD'!GS24) -> n.d. | AT17: =IF('[1]MONE(M)CARD'!HA24="","",'[1]MONE(M)CAPARD'!HA24) -> n.d. | AU17: =IF('[1]MONE(M)CAPARD'!HB24="","",'[1]MONE(M)CAPARD'!HB24) -> n.d. | AV17: n.d. | AW17: n.d. | AX17: n.d. | AY17: n.d. | AZ17: n.d. | BA17: n.d. | BB17: n.d. | BC17: n.d. | BD17: n.d. | BE17: n.d. | BF17: n.d. | BG17: n.d. | BH17: n.d. | BI17: n.d. | BJ17: =IF('[1]MONE(M)CAPARD'!AS24="","",'[1]MONE(M)CAPARD'!AS24) -> n.d. | BK17: =IF('[1]MONE(M)CAPARD'!AT24="","",'[1]MONE(M)CAPARD'!AT24) -> n.a. | BL17: =IF('[1]MONE(M)CAPARD'!AU24="","",'[1]MONE(M)CAPARD'!AU24) -> n.d. | BM17: =IF('[1]MONE(M)CAPARD'!AV24="","",'[1]MONE(M)CAPARD'!AV24) -> n.d. | BN17: =IF('[1]MONE(M)CAPARD'!AW24="","",'[1]MONE(M)CAPARD'!AW24) -> n.a. | BO17: =IF('[1]MONE(M)CAPARD'!AX24="","",'[1]MONE(M)CAPARD'!AX24) -> n.d. | BP17: =IF('[1]MONE(M)CAPARD'!AY24="","",'[1]MONE(M)CAPARD'!AY24) -> n.a. | BQ17: =IF('[1]FISCAL(M)'!$K24="","",'[1]FISCAL(M)'!$K24) -> n.d. | BR17: =IF('[1]FISCAL(M)'!$L24="","",'[1]FISCAL(M)'!$L24) -> n.d. | BS17: =IF('[1]FISCAL(M)'!$AY24="","",'[1]FISCAL(M)'!$AY24) -> n.d. | BT17: =IF('[1]FISCAL(M)'!$BI24="","",'[1]FISCAL(M)'!$BI24) -> n.d. | BU17: =IF('[1]FISCAL(M)'!$BS24="","",'[1]FISCAL(M)'!$BS24) -> n.d. | BV17: =IF('[1]FISCAL(M)'!$AZ24="","",'[1]FISCAL(M)'!$AZ24) -> n.d. | BW17: =IF('[1]FISCAL(M)'!$BJ24="","",'[1]FISCAL(M)'!$BJ24) -> n.d. | BX17: =IF('[1]FISCAL(M)'!$BT24="","",'[1]FISCAL(M)'!$BT24) -> n.d. | BY17: =IF('[2]MONE(M)'!$AO24="","",'[2]MONE(M)'!$AO24) -> n.d. | BZ17: =IF('[3]MONE(M)'!$AO24="","",'[3]MONE(M)'!$AO24) -> n.d. | CA17: =IF('[4]MONE(M)'!$AO24="","",'[4]MONE(M)'!$AO24) -> n.d. | CB17: =+'[5]MONE(M)'!$AO24 -> n.d. | CC17: =IF('[6]MONE(M)'!$AO24="","",'[6]MONE(M)'!$AO24) -> n.d. | CD17: =IF('[7]MONE(M)'!$AO24="","",'[7]MONE(M)'!$AO24) -> n.d. | CE17: =IF('[8]MONE(M)'!$AO24="","",'[8]MONE(M)'!$AO24) -> n.d. | CF17: n.d. | CG17: n.d. | CH17: n.d. | CI17: n.d. | CJ17: n.d. | CK17: n.d. | CL17: n.d. | CM17: =IF('[1]FISCAL(M)'!$K24="","",'[1]FISCAL(M)'!$K24) -> n.d. | CN17: n.d. | CO17: n.d. | CP17: =IF('[1]FISCAL(M)'!$L24="","",'[1]FISCAL(M)'!$L24) -> n.d. | CQ17: n.d. | CR17: n.d. | CS17: n.d. | CT17: n.d. | CU17: n.d. | CV17: n.d. | CW17: n.d. | CX17: n.d. | CY17: n.d. | CZ17: n.d. | DA17: n.d. | DB17: n.d. | DC17: n.d. | DD17: n.d. | DE17: n.d. | DF17: n.d. | DG17: n.d. | DH17: n.d.
A18: 1991 | B18: abril | C18: 1991-abril | D18: =IF('[1]REAL IPC(M)'!$AL25="","",+'[1]REAL IPC(M)'!$AL25) -> n.d. | E18: =IF('[1]REAL IPC(M)'!$BE25="","",+'[1]REAL IPC(M)'!$BE25) -> n.d. | F18: =IF('[1]REAL IPC(M)'!$AM25="","",+'[1]REAL IPC(M)'!$AM25) -> n.d. | G18: =IF('[1]REAL IPC(M)'!$BI25="","",+'[1]REAL IPC(M)'!$BI25) -> n.d. | H18: =IF('[1]REAL IMAE(M)'!BJ25="","",'[1]REAL IMAE(M)'!BJ25) -> n.d. | I18: =IF('[1]REAL IMAE(M)'!BK25="","",'[1]REAL IMAE(M)'!BK25) -> n.d. | J18: =IF('[1]REAL IMAE(M)'!BN25="","",'[1]REAL IMAE(M)'!BN25) -> n.d. | K18: =IF('[1]REAL IMAE(M)'!BO25="","",'[1]REAL IMAE(M)'!BO25) -> n.d. | L18: =IF('[1]EXT RIN(M)'!$K25="","",'[1]EXT RIN(M)'!$K25) -> n.d. | N18: =IF('[1]EXT RIN(M)'!$L25="","",'[1]EXT RIN(M)'!$L25) -> n.d. | P18: =IF('[1]MONE(M)CARD'!EG25="","",'[1]MONE(M)CARD'!EG25) -> n.d. | Q18: =IF('[1]MONE(M)CARD'!EK25="","",'[1]MONE(M)CARD'!EK25) -> n.d. | R18: =IF('[1]MONE(M)CARD'!EP25="","",'[1]MONE(M)CARD'!EP25) -> n.d. | S18: =IF('[1]MONE(M)CARD'!ES25="","",'[1]MONE(M)CARD'!ES25) -> n.d. | T18: =IF('[1]MONE(M)CARD'!EV25="","",'[1]MONE(M)CARD'!EV25) -> n.d. | U18: =IF('[1]MONE(M)CARD'!EZ25="","",'[1]MONE(M)CARD'!EZ25) -> n.d. | V18: =IF('[1]MONE(M)CAPARD'!FC25="","",'[1]MONE(M)CAPARD'!FC25) -> n.d. | W18: =IF('[1]MONE(M)CAPARD'!FG25="","",'[1]MONE(M)CAPARD'!FG25) -> n.d. | X18: =IF('[1]MONE(M)CAPARD'!FL25="","",'[1]MONE(M)CAPARD'!FL25) -> n.d. | Y18: =IF('[1]MONE(M)CAPARD'!FO25="","",'[1]MONE(M)CAPARD'!FO25) -> n.d. | Z18: =IF('[1]MONE(M)CAPARD'!FR25="","",'[1]MONE(M)CAPARD'!FR25) -> n.d. | AA18: =IF('[1]MONE(M)CAPARD'!FV25="","",'[1]MONE(M)CAPARD'!FV25) -> n.d. | AB18: =IF('[1]MONE(M)CARD'!FV25="","",'[1]MONE(M)CARD'!FV25) ->  | AC18: =IF('[1]MONE(M)CARD'!GD25="","",'[1]MONE(M)CARD'!GD25) -> n.d. | AD18: =IF('[1]MONE(M)CARD'!GE25="","",'[1]MONE(M)CARD'!GE25) -> n.d. | AE18: n.d. | AF18: n.d. | AG18: n.d. | AH18: n.d. | AI18: n.d. | AJ18: n.d. | AK18: n.d. | AL18: n.d. | AN18: n.d. | AO18: n.d. | AP18: n.d. | AQ18: n.d. | AR18: n.d. | AS18: =IF('[1]MONE(M)CAPARD'!GS25="","",'[1]MONE(M)CAPARD'!GS25) -> n.d. | AT18: =IF('[1]MONE(M)CARD'!HA25="","",'[1]MONE(M)CAPARD'!HA25) -> n.d. | AU18: =IF('[1]MONE(M)CAPARD'!HB25="","",'[1]MONE(M)CAPARD'!HB25) -> n.d. | AV18: n.d. | AW18: n.d. | AX18: n.d. | AY18: n.d. | AZ18: n.d. | BA18: n.d. | BB18: n.d. | BC18: n.d. | BD18: n.d. | BE18: n.d. | BF18: n.d. | BG18: n.d. | BH18: n.d. | BI18: n.d. | BJ18: =IF('[1]MONE(M)CAPARD'!AS25="","",'[1]MONE(M)CAPARD'!AS25) -> n.d. | BK18: =IF('[1]MONE(M)CAPARD'!AT25="","",'[1]MONE(M)CAPARD'!AT25) -> n.a. | BL18: =IF('[1]MONE(M)CAPARD'!AU25="","",'[1]MONE(M)CAPARD'!AU25) -> n.d. | BM18: =IF('[1]MONE(M)CAPARD'!AV25="","",'[1]MONE(M)CAPARD'!AV25) -> n.d. | BN18: =IF('[1]MONE(M)CAPARD'!AW25="","",'[1]MONE(M)CAPARD'!AW25) -> n.a. | BO18: =IF('[1]MONE(M)CAPARD'!AX25="","",'[1]MONE(M)CAPARD'!AX25) -> n.d. | BP18: =IF('[1]MONE(M)CAPARD'!AY25="","",'[1]MONE(M)CAPARD'!AY25) -> n.a. | BQ18: =IF('[1]FISCAL(M)'!$K25="","",'[1]FISCAL(M)'!$K25) -> n.d. | BR18: =IF('[1]FISCAL(M)'!$L25="","",'[1]FISCAL(M)'!$L25) -> n.d. | BS18: =IF('[1]FISCAL(M)'!$AY25="","",'[1]FISCAL(M)'!$AY25) -> n.d. | BT18: =IF('[1]FISCAL(M)'!$BI25="","",'[1]FISCAL(M)'!$BI25) -> n.d. | BU18: =IF('[1]FISCAL(M)'!$BS25="","",'[1]FISCAL(M)'!$BS25) -> n.d. | BV18: =IF('[1]FISCAL(M)'!$AZ25="","",'[1]FISCAL(M)'!$AZ25) -> n.d. | BW18: =IF('[1]FISCAL(M)'!$BJ25="","",'[1]FISCAL(M)'!$BJ25) -> n.d. | BX18: =IF('[1]FISCAL(M)'!$BT25="","",'[1]FISCAL(M)'!$BT25) -> n.d. | BY18: =IF('[2]MONE(M)'!$AO25="","",'[2]MONE(M)'!$AO25) -> n.d. | BZ18: =IF('[3]MONE(M)'!$AO25="","",'[3]MONE(M)'!$AO25) -> n.d. | CA18: =IF('[4]MONE(M)'!$AO25="","",'[4]MONE(M)'!$AO25) -> n.d. | CB18: =+'[5]MONE(M)'!$AO25 -> n.d. | CC18: =IF('[6]MONE(M)'!$AO25="","",'[6]MONE(M)'!$AO25) -> n.d. | CD18: =IF('[7]MONE(M)'!$AO25="","",'[7]MONE(M)'!$AO25) -> n.d. | CE18: =IF('[8]MONE(M)'!$AO25="","",'[8]MONE(M)'!$AO25) -> n.d. | CF18: n.d. | CG18: n.d. | CH18: n.d. | CI18: n.d. | CJ18: n.d. | CK18: n.d. | CL18: n.d. | CM18: =IF('[1]FISCAL(M)'!$K25="","",'[1]FISCAL(M)'!$K25) -> n.d. | CN18: n.d. | CO18: n.d. | CP18: =IF('[1]FISCAL(M)'!$L25="","",'[1]FISCAL(M)'!$L25) -> n.d. | CQ18: n.d. | CR18: n.d. | CS18: n.d. | CT18: n.d. | CU18: n.d. | CV18: n.d. | CW18: n.d. | CX18: n.d. | CY18: n.d. | CZ18: n.d. | DA18: n.d. | DB18: n.d. | DC18: n.d. | DD18: n.d. | DE18: n.d. | DF18: n.d. | DG18: n.d. | DH18: n.d.
A19: 1991 | B19: mayo | C19: 1991-mayo | D19: =IF('[1]REAL IPC(M)'!$AL26="","",+'[1]REAL IPC(M)'!$AL26) -> n.d. | E19: =IF('[1]REAL IPC(M)'!$BE26="","",+'[1]REAL IPC(M)'!$BE26) -> n.d. | F19: =IF('[1]REAL IPC(M)'!$AM26="","",+'[1]REAL IPC(M)'!$AM26) -> n.d. | G19: =IF('[1]REAL IPC(M)'!$BI26="","",+'[1]REAL IPC(M)'!$BI26) -> n.d. | H19: =IF('[1]REAL IMAE(M)'!BJ26="","",'[1]REAL IMAE(M)'!BJ26) -> n.d. | I19: =IF('[1]REAL IMAE(M)'!BK26="","",'[1]REAL IMAE(M)'!BK26) -> n.d. | J19: =IF('[1]REAL IMAE(M)'!BN26="","",'[1]REAL IMAE(M)'!BN26) -> n.d. | K19: =IF('[1]REAL IMAE(M)'!BO26="","",'[1]REAL IMAE(M)'!BO26) -> n.d. | L19: =IF('[1]EXT RIN(M)'!$K26="","",'[1]EXT RIN(M)'!$K26) -> n.d. | N19: =IF('[1]EXT RIN(M)'!$L26="","",'[1]EXT RIN(M)'!$L26) -> n.d. | P19: =IF('[1]MONE(M)CARD'!EG26="","",'[1]MONE(M)CARD'!EG26) -> n.d. | Q19: =IF('[1]MONE(M)CARD'!EK26="","",'[1]MONE(M)CARD'!EK26) -> n.d. | R19: =IF('[1]MONE(M)CARD'!EP26="","",'[1]MONE(M)CARD'!EP26) -> n.d. | S19: =IF('[1]MONE(M)CARD'!ES26="","",'[1]MONE(M)CARD'!ES26) -> n.d. | T19: =IF('[1]MONE(M)CARD'!EV26="","",'[1]MONE(M)CARD'!EV26) -> n.d. | U19: =IF('[1]MONE(M)CARD'!EZ26="","",'[1]MONE(M)CARD'!EZ26) -> n.d. | V19: =IF('[1]MONE(M)CAPARD'!FC26="","",'[1]MONE(M)CAPARD'!FC26) -> n.d. | W19: =IF('[1]MONE(M)CAPARD'!FG26="","",'[1]MONE(M)CAPARD'!FG26) -> n.d. | X19: =IF('[1]MONE(M)CAPARD'!FL26="","",'[1]MONE(M)CAPARD'!FL26) -> n.d. | Y19: =IF('[1]MONE(M)CAPARD'!FO26="","",'[1]MONE(M)CAPARD'!FO26) -> n.d. | Z19: =IF('[1]MONE(M)CAPARD'!FR26="","",'[1]MONE(M)CAPARD'!FR26) -> n.d. | AA19: =IF('[1]MONE(M)CAPARD'!FV26="","",'[1]MONE(M)CAPARD'!FV26) -> n.d. | AB19: =IF('[1]MONE(M)CARD'!FV26="","",'[1]MONE(M)CARD'!FV26) ->  | AC19: =IF('[1]MONE(M)CARD'!GD26="","",'[1]MONE(M)CARD'!GD26) -> n.d. | AD19: =IF('[1]MONE(M)CARD'!GE26="","",'[1]MONE(M)CARD'!GE26) -> n.d. | AE19: n.d. | AF19: n.d. | AG19: n.d. | AH19: n.d. | AI19: n.d. | AJ19: n.d. | AK19: n.d. | AL19: n.d. | AN19: n.d. | AO19: n.d. | AP19: n.d. | AQ19: n.d. | AR19: n.d. | AS19: =IF('[1]MONE(M)CAPARD'!GS26="","",'[1]MONE(M)CAPARD'!GS26) -> n.d. | AT19: =IF('[1]MONE(M)CARD'!HA26="","",'[1]MONE(M)CAPARD'!HA26) -> n.d. | AU19: =IF('[1]MONE(M)CAPARD'!HB26="","",'[1]MONE(M)CAPARD'!HB26) -> n.d. | AV19: n.d. | AW19: n.d. | AX19: n.d. | AY19: n.d. | AZ19: n.d. | BA19: n.d. | BB19: n.d. | BC19: n.d. | BD19: n.d. | BE19: n.d. | BF19: n.d. | BG19: n.d. | BH19: n.d. | BI19: n.d. | BJ19: =IF('[1]MONE(M)CAPARD'!AS26="","",'[1]MONE(M)CAPARD'!AS26) -> n.d. | BK19: =IF('[1]MONE(M)CAPARD'!AT26="","",'[1]MONE(M)CAPARD'!AT26) -> n.a. | BL19: =IF('[1]MONE(M)CAPARD'!AU26="","",'[1]MONE(M)CAPARD'!AU26) -> n.d. | BM19: =IF('[1]MONE(M)CAPARD'!AV26="","",'[1]MONE(M)CAPARD'!AV26) -> n.d. | BN19: =IF('[1]MONE(M)CAPARD'!AW26="","",'[1]MONE(M)CAPARD'!AW26) -> n.a. | BO19: =IF('[1]MONE(M)CAPARD'!AX26="","",'[1]MONE(M)CAPARD'!AX26) -> n.d. | BP19: =IF('[1]MONE(M)CAPARD'!AY26="","",'[1]MONE(M)CAPARD'!AY26) -> n.a. | BQ19: =IF('[1]FISCAL(M)'!$K26="","",'[1]FISCAL(M)'!$K26) -> n.d. | BR19: =IF('[1]FISCAL(M)'!$L26="","",'[1]FISCAL(M)'!$L26) -> n.d. | BS19: =IF('[1]FISCAL(M)'!$AY26="","",'[1]FISCAL(M)'!$AY26) -> n.d. | BT19: =IF('[1]FISCAL(M)'!$BI26="","",'[1]FISCAL(M)'!$BI26) -> n.d. | BU19: =IF('[1]FISCAL(M)'!$BS26="","",'[1]FISCAL(M)'!$BS26) -> n.d. | BV19: =IF('[1]FISCAL(M)'!$AZ26="","",'[1]FISCAL(M)'!$AZ26) -> n.d. | BW19: =IF('[1]FISCAL(M)'!$BJ26="","",'[1]FISCAL(M)'!$BJ26) -> n.d. | BX19: =IF('[1]FISCAL(M)'!$BT26="","",'[1]FISCAL(M)'!$BT26) -> n.d. | BY19: =IF('[2]MONE(M)'!$AO26="","",'[2]MONE(M)'!$AO26) -> n.d. | BZ19: =IF('[3]MONE(M)'!$AO26="","",'[3]MONE(M)'!$AO26) -> n.d. | CA19: =IF('[4]MONE(M)'!$AO26="","",'[4]MONE(M)'!$AO26) -> n.d. | CB19: =+'[5]MONE(M)'!$AO26 -> n.d. | CC19: =IF('[6]MONE(M)'!$AO26="","",'[6]MONE(M)'!$AO26) -> n.d. | CD19: =IF('[7]MONE(M)'!$AO26="","",'[7]MONE(M)'!$AO26) -> n.d. | CE19: =IF('[8]MONE(M)'!$AO26="","",'[8]MONE(M)'!$AO26) -> n.d. | CF19: n.d. | CG19: n.d. | CH19: n.d. | CI19: n.d. | CJ19: n.d. | CK19: n.d. | CL19: n.d. | CM19: =IF('[1]FISCAL(M)'!$K26="","",'[1]FISCAL(M)'!$K26) -> n.d. | CN19: n.d. | CO19: n.d. | CP19: =IF('[1]FISCAL(M)'!$L26="","",'[1]FISCAL(M)'!$L26) -> n.d. | CQ19: n.d. | CR19: n.d. | CS19: n.d. | CT19: n.d. | CU19: n.d. | CV19: n.d. | CW19: n.d. | CX19: n.d. | CY19: n.d. | CZ19: n.d. | DA19: n.d. | DB19: n.d. | DC19: n.d. | DD19: n.d. | DE19: n.d. | DF19: n.d. | DG19: n.d. | DH19: n.d.
A20: 1991 | B20: junio | C20: 1991-junio | D20: =IF('[1]REAL IPC(M)'!$AL27="","",+'[1]REAL IPC(M)'!$AL27) -> n.d. | E20: =IF('[1]REAL IPC(M)'!$BE27="","",+'[1]REAL IPC(M)'!$BE27) -> n.d. | F20: =IF('[1]REAL IPC(M)'!$AM27="","",+'[1]REAL IPC(M)'!$AM27) -> n.d. | G20: =IF('[1]REAL IPC(M)'!$BI27="","",+'[1]REAL IPC(M)'!$BI27) -> n.d. | H20: =IF('[1]REAL IMAE(M)'!BJ27="","",'[1]REAL IMAE(M)'!BJ27) -> n.d. | I20: =IF('[1]REAL IMAE(M)'!BK27="","",'[1]REAL IMAE(M)'!BK27) -> n.d. | J20: =IF('[1]REAL IMAE(M)'!BN27="","",'[1]REAL IMAE(M)'!BN27) -> n.d. | K20: =IF('[1]REAL IMAE(M)'!BO27="","",'[1]REAL IMAE(M)'!BO27) -> n.d. | L20: =IF('[1]EXT RIN(M)'!$K27="","",'[1]EXT RIN(M)'!$K27) -> n.d. | N20: =IF('[1]EXT RIN(M)'!$L27="","",'[1]EXT RIN(M)'!$L27) -> n.d. | P20: =IF('[1]MONE(M)CARD'!EG27="","",'[1]MONE(M)CARD'!EG27) -> n.d. | Q20: =IF('[1]MONE(M)CARD'!EK27="","",'[1]MONE(M)CARD'!EK27) -> n.d. | R20: =IF('[1]MONE(M)CARD'!EP27="","",'[1]MONE(M)CARD'!EP27) -> n.d. | S20: =IF('[1]MONE(M)CARD'!ES27="","",'[1]MONE(M)CARD'!ES27) -> n.d. | T20: =IF('[1]MONE(M)CARD'!EV27="","",'[1]MONE(M)CARD'!EV27) -> n.d. | U20: =IF('[1]MONE(M)CARD'!EZ27="","",'[1]MONE(M)CARD'!EZ27) -> n.d. | V20: =IF('[1]MONE(M)CAPARD'!FC27="","",'[1]MONE(M)CAPARD'!FC27) -> n.d. | W20: =IF('[1]MONE(M)CAPARD'!FG27="","",'[1]MONE(M)CAPARD'!FG27) -> n.d. | X20: =IF('[1]MONE(M)CAPARD'!FL27="","",'[1]MONE(M)CAPARD'!FL27) -> n.d. | Y20: =IF('[1]MONE(M)CAPARD'!FO27="","",'[1]MONE(M)CAPARD'!FO27) -> n.d. | Z20: =IF('[1]MONE(M)CAPARD'!FR27="","",'[1]MONE(M)CAPARD'!FR27) -> n.d. | AA20: =IF('[1]MONE(M)CAPARD'!FV27="","",'[1]MONE(M)CAPARD'!FV27) -> n.d. | AB20: =IF('[1]MONE(M)CARD'!FV27="","",'[1]MONE(M)CARD'!FV27) ->  | AC20: =IF('[1]MONE(M)CARD'!GD27="","",'[1]MONE(M)CARD'!GD27) -> n.d. | AD20: =IF('[1]MONE(M)CARD'!GE27="","",'[1]MONE(M)CARD'!GE27) -> n.d. | AE20: n.d. | AF20: n.d. | AG20: n.d. | AH20: n.d. | AI20: n.d. | AJ20: n.d. | AK20: n.d. | AL20: n.d. | AN20: n.d. | AO20: n.d. | AP20: n.d. | AQ20: n.d. | AR20: n.d. | AS20: =IF('[1]MONE(M)CAPARD'!GS27="","",'[1]MONE(M)CAPARD'!GS27) -> n.d. | AT20: =IF('[1]MONE(M)CARD'!HA27="","",'[1]MONE(M)CAPARD'!HA27) -> n.d. | AU20: =IF('[1]MONE(M)CAPARD'!HB27="","",'[1]MONE(M)CAPARD'!HB27) -> n.d. | AV20: n.d. | AW20: n.d. | AX20: n.d. | AY20: n.d. | AZ20: n.d. | BA20: n.d. | BB20: n.d. | BC20: n.d. | BD20: n.d. | BE20: n.d. | BF20: n.d. | BG20: n.d. | BH20: n.d. | BI20: n.d. | BJ20: =IF('[1]MONE(M)CAPARD'!AS27="","",'[1]MONE(M)CAPARD'!AS27) -> n.d. | BK20: =IF('[1]MONE(M)CAPARD'!AT27="","",'[1]MONE(M)CAPARD'!AT27) -> n.a. | BL20: =IF('[1]MONE(M)CAPARD'!AU27="","",'[1]MONE(M)CAPARD'!AU27) -> n.d. | BM20: =IF('[1]MONE(M)CAPARD'!AV27="","",'[1]MONE(M)CAPARD'!AV27) -> n.d. | BN20: =IF('[1]MONE(M)CAPARD'!AW27="","",'[1]MONE(M)CAPARD'!AW27) -> n.a. | BO20: =IF('[1]MONE(M)CAPARD'!AX27="","",'[1]MONE(M)CAPARD'!AX27) -> n.d. | BP20: =IF('[1]MONE(M)CAPARD'!AY27="","",'[1]MONE(M)CAPARD'!AY27) -> n.a. | BQ20: =IF('[1]FISCAL(M)'!$K27="","",'[1]FISCAL(M)'!$K27) -> n.d. | BR20: =IF('[1]FISCAL(M)'!$L27="","",'[1]FISCAL(M)'!$L27) -> n.d. | BS20: =IF('[1]FISCAL(M)'!$AY27="","",'[1]FISCAL(M)'!$AY27) -> n.d. | BT20: =IF('[1]FISCAL(M)'!$BI27="","",'[1]FISCAL(M)'!$BI27) -> n.d. | BU20: =IF('[1]FISCAL(M)'!$BS27="","",'[1]FISCAL(M)'!$BS27) -> n.d. | BV20: =IF('[1]FISCAL(M)'!$AZ27="","",'[1]FISCAL(M)'!$AZ27) -> n.d. | BW20: =IF('[1]FISCAL(M)'!$BJ27="","",'[1]FISCAL(M)'!$BJ27) -> n.d. | BX20: =IF('[1]FISCAL(M)'!$BT27="","",'[1]FISCAL(M)'!$BT27) -> n.d. | BY20: =IF('[2]MONE(M)'!$AO27="","",'[2]MONE(M)'!$AO27) -> n.d. | BZ20: =IF('[3]MONE(M)'!$AO27="","",'[3]MONE(M)'!$AO27) -> n.d. | CA20: =IF('[4]MONE(M)'!$AO27="","",'[4]MONE(M)'!$AO27) -> n.d. | CB20: =+'[5]MONE(M)'!$AO27 -> n.d. | CC20: =IF('[6]MONE(M)'!$AO27="","",'[6]MONE(M)'!$AO27) -> n.d. | CD20: =IF('[7]MONE(M)'!$AO27="","",'[7]MONE(M)'!$AO27) -> n.d. | CE20: =IF('[8]MONE(M)'!$AO27="","",'[8]MONE(M)'!$AO27) -> n.d. | CF20: n.d. | CG20: n.d. | CH20: n.d. | CI20: n.d. | CJ20: n.d. | CK20: n.d. | CL20: n.d. | CM20: =IF('[1]FISCAL(M)'!$K27="","",'[1]FISCAL(M)'!$K27) -> n.d. | CN20: n.d. | CO20: n.d. | CP20: =IF('[1]FISCAL(M)'!$L27="","",'[1]FISCAL(M)'!$L27) -> n.d. | CQ20: n.d. | CR20: n.d. | CS20: n.d. | CT20: n.d. | CU20: n.d. | CV20: n.d. | CW20: n.d. | CX20: n.d. | CY20: n.d. | CZ20: n.d. | DA20: n.d. | DB20: n.d. | DC20: n.d. | DD20: n.d. | DE20: n.d. | DF20: n.d. | DG20: n.d. | DH20: n.d.
A21: 1991 | B21: julio | C21: 1991-julio | D21: =IF('[1]REAL IPC(M)'!$AL28="","",+'[1]REAL IPC(M)'!$AL28) -> n.d. | E21: =IF('[1]REAL IPC(M)'!$BE28="","",+'[1]REAL IPC(M)'!$BE28) -> n.d. | F21: =IF('[1]REAL IPC(M)'!$AM28="","",+'[1]REAL IPC(M)'!$AM28) -> n.d. | G21: =IF('[1]REAL IPC(M)'!$BI28="","",+'[1]REAL IPC(M)'!$BI28) -> n.d. | H21: =IF('[1]REAL IMAE(M)'!BJ28="","",'[1]REAL IMAE(M)'!BJ28) -> n.d. | I21: =IF('[1]REAL IMAE(M)'!BK28="","",'[1]REAL IMAE(M)'!BK28) -> n.d. | J21: =IF('[1]REAL IMAE(M)'!BN28="","",'[1]REAL IMAE(M)'!BN28) -> n.d. | K21: =IF('[1]REAL IMAE(M)'!BO28="","",'[1]REAL IMAE(M)'!BO28) -> n.d. | L21: =IF('[1]EXT RIN(M)'!$K28="","",'[1]EXT RIN(M)'!$K28) -> n.d. | N21: =IF('[1]EXT RIN(M)'!$L28="","",'[1]EXT RIN(M)'!$L28) -> n.d. | P21: =IF('[1]MONE(M)CARD'!EG28="","",'[1]MONE(M)CARD'!EG28) -> n.d. | Q21: =IF('[1]MONE(M)CARD'!EK28="","",'[1]MONE(M)CARD'!EK28) -> n.d. | R21: =IF('[1]MONE(M)CARD'!EP28="","",'[1]MONE(M)CARD'!EP28) -> n.d. | S21: =IF('[1]MONE(M)CARD'!ES28="","",'[1]MONE(M)CARD'!ES28) -> n.d. | T21: =IF('[1]MONE(M)CARD'!EV28="","",'[1]MONE(M)CARD'!EV28) -> n.d. | U21: =IF('[1]MONE(M)CARD'!EZ28="","",'[1]MONE(M)CARD'!EZ28) -> n.d. | V21: =IF('[1]MONE(M)CAPARD'!FC28="","",'[1]MONE(M)CAPARD'!FC28) -> n.d. | W21: =IF('[1]MONE(M)CAPARD'!FG28="","",'[1]MONE(M)CAPARD'!FG28) -> n.d. | X21: =IF('[1]MONE(M)CAPARD'!FL28="","",'[1]MONE(M)CAPARD'!FL28) -> n.d. | Y21: =IF('[1]MONE(M)CAPARD'!FO28="","",'[1]MONE(M)CAPARD'!FO28) -> n.d. | Z21: =IF('[1]MONE(M)CAPARD'!FR28="","",'[1]MONE(M)CAPARD'!FR28) -> n.d. | AA21: =IF('[1]MONE(M)CAPARD'!FV28="","",'[1]MONE(M)CAPARD'!FV28) -> n.d. | AB21: =IF('[1]MONE(M)CARD'!FV28="","",'[1]MONE(M)CARD'!FV28) ->  | AC21: =IF('[1]MONE(M)CARD'!GD28="","",'[1]MONE(M)CARD'!GD28) -> n.d. | AD21: =IF('[1]MONE(M)CARD'!GE28="","",'[1]MONE(M)CARD'!GE28) -> n.d. | AE21: n.d. | AF21: n.d. | AG21: n.d. | AH21: n.d. | AI21: n.d. | AJ21: n.d. | AK21: n.d. | AL21: n.d. | AN21: n.d. | AO21: n.d. | AP21: n.d. | AQ21: n.d. | AR21: n.d. | AS21: =IF('[1]MONE(M)CAPARD'!GS28="","",'[1]MONE(M)CAPARD'!GS28) -> n.d. | AT21: =IF('[1]MONE(M)CARD'!HA28="","",'[1]MONE(M)CAPARD'!HA28) -> n.d. | AU21: =IF('[1]MONE(M)CAPARD'!HB28="","",'[1]MONE(M)CAPARD'!HB28) -> n.d. | AV21: n.d. | AW21: n.d. | AX21: n.d. | AY21: n.d. | AZ21: n.d. | BA21: n.d. | BB21: n.d. | BC21: n.d. | BD21: n.d. | BE21: n.d. | BF21: n.d. | BG21: n.d. | BH21: n.d. | BI21: n.d. | BJ21: =IF('[1]MONE(M)CAPARD'!AS28="","",'[1]MONE(M)CAPARD'!AS28) -> n.d. | BK21: =IF('[1]MONE(M)CAPARD'!AT28="","",'[1]MONE(M)CAPARD'!AT28) -> n.a. | BL21: =IF('[1]MONE(M)CAPARD'!AU28="","",'[1]MONE(M)CAPARD'!AU28) -> n.d. | BM21: =IF('[1]MONE(M)CAPARD'!AV28="","",'[1]MONE(M)CAPARD'!AV28) -> n.d. | BN21: =IF('[1]MONE(M)CAPARD'!AW28="","",'[1]MONE(M)CAPARD'!AW28) -> n.a. | BO21: =IF('[1]MONE(M)CAPARD'!AX28="","",'[1]MONE(M)CAPARD'!AX28) -> n.d. | BP21: =IF('[1]MONE(M)CAPARD'!AY28="","",'[1]MONE(M)CAPARD'!AY28) -> n.a. | BQ21: =IF('[1]FISCAL(M)'!$K28="","",'[1]FISCAL(M)'!$K28) -> n.d. | BR21: =IF('[1]FISCAL(M)'!$L28="","",'[1]FISCAL(M)'!$L28) -> n.d. | BS21: =IF('[1]FISCAL(M)'!$AY28="","",'[1]FISCAL(M)'!$AY28) -> n.d. | BT21: =IF('[1]FISCAL(M)'!$BI28="","",'[1]FISCAL(M)'!$BI28) -> n.d. | BU21: =IF('[1]FISCAL(M)'!$BS28="","",'[1]FISCAL(M)'!$BS28) -> n.d. | BV21: =IF('[1]FISCAL(M)'!$AZ28="","",'[1]FISCAL(M)'!$AZ28) -> n.d. | BW21: =IF('[1]FISCAL(M)'!$BJ28="","",'[1]FISCAL(M)'!$BJ28) -> n.d. | BX21: =IF('[1]FISCAL(M)'!$BT28="","",'[1]FISCAL(M)'!$BT28) -> n.d. | BY21: =IF('[2]MONE(M)'!$AO28="","",'[2]MONE(M)'!$AO28) -> n.d. | BZ21: =IF('[3]MONE(M)'!$AO28="","",'[3]MONE(M)'!$AO28) -> n.d. | CA21: =IF('[4]MONE(M)'!$AO28="","",'[4]MONE(M)'!$AO28) -> n.d. | CB21: =+'[5]MONE(M)'!$AO28 -> n.d. | CC21: =IF('[6]MONE(M)'!$AO28="","",'[6]MONE(M)'!$AO28) -> n.d. | CD21: =IF('[7]MONE(M)'!$AO28="","",'[7]MONE(M)'!$AO28) -> n.d. | CE21: =IF('[8]MONE(M)'!$AO28="","",'[8]MONE(M)'!$AO28) -> n.d. | CF21: n.d. | CG21: n.d. | CH21: n.d. | CI21: n.d. | CJ21: n.d. | CK21: n.d. | CL21: n.d. | CM21: =IF('[1]FISCAL(M)'!$K28="","",'[1]FISCAL(M)'!$K28) -> n.d. | CN21: n.d. | CO21: n.d. | CP21: =IF('[1]FISCAL(M)'!$L28="","",'[1]FISCAL(M)'!$L28) -> n.d. | CQ21: n.d. | CR21: n.d. | CS21: n.d. | CT21: n.d. | CU21: n.d. | CV21: n.d. | CW21: n.d. | CX21: n.d. | CY21: n.d. | CZ21: n.d. | DA21: n.d. | DB21: n.d. | DC21: n.d. | DD21: n.d. | DE21: n.d. | DF21: n.d. | DG21: n.d. | DH21: n.d.
A22: 1991 | B22: agosto | C22: 1991-agosto | D22: =IF('[1]REAL IPC(M)'!$AL29="","",+'[1]REAL IPC(M)'!$AL29) -> n.d. | E22: =IF('[1]REAL IPC(M)'!$BE29="","",+'[1]REAL IPC(M)'!$BE29) -> n.d. | F22: =IF('[1]REAL IPC(M)'!$AM29="","",+'[1]REAL IPC(M)'!$AM29) -> n.d. | G22: =IF('[1]REAL IPC(M)'!$BI29="","",+'[1]REAL IPC(M)'!$BI29) -> n.d. | H22: =IF('[1]REAL IMAE(M)'!BJ29="","",'[1]REAL IMAE(M)'!BJ29) -> n.d. | I22: =IF('[1]REAL IMAE(M)'!BK29="","",'[1]REAL IMAE(M)'!BK29) -> n.d. | J22: =IF('[1]REAL IMAE(M)'!BN29="","",'[1]REAL IMAE(M)'!BN29) -> n.d. | K22: =IF('[1]REAL IMAE(M)'!BO29="","",'[1]REAL IMAE(M)'!BO29) -> n.d. | L22: =IF('[1]EXT RIN(M)'!$K29="","",'[1]EXT RIN(M)'!$K29) -> n.d. | N22: =IF('[1]EXT RIN(M)'!$L29="","",'[1]EXT RIN(M)'!$L29) -> n.d. | P22: =IF('[1]MONE(M)CARD'!EG29="","",'[1]MONE(M)CARD'!EG29) -> n.d. | Q22: =IF('[1]MONE(M)CARD'!EK29="","",'[1]MONE(M)CARD'!EK29) -> n.d. | R22: =IF('[1]MONE(M)CARD'!EP29="","",'[1]MONE(M)CARD'!EP29) -> n.d. | S22: =IF('[1]MONE(M)CARD'!ES29="","",'[1]MONE(M)CARD'!ES29) -> n.d. | T22: =IF('[1]MONE(M)CARD'!EV29="","",'[1]MONE(M)CARD'!EV29) -> n.d. | U22: =IF('[1]MONE(M)CARD'!EZ29="","",'[1]MONE(M)CARD'!EZ29) -> n.d. | V22: =IF('[1]MONE(M)CAPARD'!FC29="","",'[1]MONE(M)CAPARD'!FC29) -> n.d. | W22: =IF('[1]MONE(M)CAPARD'!FG29="","",'[1]MONE(M)CAPARD'!FG29) -> n.d. | X22: =IF('[1]MONE(M)CAPARD'!FL29="","",'[1]MONE(M)CAPARD'!FL29) -> n.d. | Y22: =IF('[1]MONE(M)CAPARD'!FO29="","",'[1]MONE(M)CAPARD'!FO29) -> n.d. | Z22: =IF('[1]MONE(M)CAPARD'!FR29="","",'[1]MONE(M)CAPARD'!FR29) -> n.d. | AA22: =IF('[1]MONE(M)CAPARD'!FV29="","",'[1]MONE(M)CAPARD'!FV29) -> n.d. | AB22: =IF('[1]MONE(M)CARD'!FV29="","",'[1]MONE(M)CARD'!FV29) ->  | AC22: =IF('[1]MONE(M)CARD'!GD29="","",'[1]MONE(M)CARD'!GD29) -> n.d. | AD22: =IF('[1]MONE(M)CARD'!GE29="","",'[1]MONE(M)CARD'!GE29) -> n.d. | AE22: n.d. | AF22: n.d. | AG22: n.d. | AH22: n.d. | AI22: n.d. | AJ22: n.d. | AK22: n.d. | AL22: n.d. | AN22: n.d. | AO22: n.d. | AP22: n.d. | AQ22: n.d. | AR22: n.d. | AS22: =IF('[1]MONE(M)CAPARD'!GS29="","",'[1]MONE(M)CAPARD'!GS29) -> n.d. | AT22: =IF('[1]MONE(M)CARD'!HA29="","",'[1]MONE(M)CAPARD'!HA29) -> n.d. | AU22: =IF('[1]MONE(M)CAPARD'!HB29="","",'[1]MONE(M)CAPARD'!HB29) -> n.d. | AV22: n.d. | AW22: n.d. | AX22: n.d. | AY22: n.d. | AZ22: n.d. | BA22: n.d. | BB22: n.d. | BC22: n.d. | BD22: n.d. | BE22: n.d. | BF22: n.d. | BG22: n.d. | BH22: n.d. | BI22: n.d. | BJ22: =IF('[1]MONE(M)CAPARD'!AS29="","",'[1]MONE(M)CAPARD'!AS29) -> n.d. | BK22: =IF('[1]MONE(M)CAPARD'!AT29="","",'[1]MONE(M)CAPARD'!AT29) -> n.a. | BL22: =IF('[1]MONE(M)CAPARD'!AU29="","",'[1]MONE(M)CAPARD'!AU29) -> n.d. | BM22: =IF('[1]MONE(M)CAPARD'!AV29="","",'[1]MONE(M)CAPARD'!AV29) -> n.d. | BN22: =IF('[1]MONE(M)CAPARD'!AW29="","",'[1]MONE(M)CAPARD'!AW29) -> n.a. | BO22: =IF('[1]MONE(M)CAPARD'!AX29="","",'[1]MONE(M)CAPARD'!AX29) -> n.d. | BP22: =IF('[1]MONE(M)CAPARD'!AY29="","",'[1]MONE(M)CAPARD'!AY29) -> n.a. | BQ22: =IF('[1]FISCAL(M)'!$K29="","",'[1]FISCAL(M)'!$K29) -> n.d. | BR22: =IF('[1]FISCAL(M)'!$L29="","",'[1]FISCAL(M)'!$L29) -> n.d. | BS22: =IF('[1]FISCAL(M)'!$AY29="","",'[1]FISCAL(M)'!$AY29) -> n.d. | BT22: =IF('[1]FISCAL(M)'!$BI29="","",'[1]FISCAL(M)'!$BI29) -> n.d. | BU22: =IF('[1]FISCAL(M)'!$BS29="","",'[1]FISCAL(M)'!$BS29) -> n.d. | BV22: =IF('[1]FISCAL(M)'!$AZ29="","",'[1]FISCAL(M)'!$AZ29) -> n.d. | BW22: =IF('[1]FISCAL(M)'!$BJ29="","",'[1]FISCAL(M)'!$BJ29) -> n.d. | BX22: =IF('[1]FISCAL(M)'!$BT29="","",'[1]FISCAL(M)'!$BT29) -> n.d. | BY22: =IF('[2]MONE(M)'!$AO29="","",'[2]MONE(M)'!$AO29) -> n.d. | BZ22: =IF('[3]MONE(M)'!$AO29="","",'[3]MONE(M)'!$AO29) -> n.d. | CA22: =IF('[4]MONE(M)'!$AO29="","",'[4]MONE(M)'!$AO29) -> n.d. | CB22: =+'[5]MONE(M)'!$AO29 -> n.d. | CC22: =IF('[6]MONE(M)'!$AO29="","",'[6]MONE(M)'!$AO29) -> n.d. | CD22: =IF('[7]MONE(M)'!$AO29="","",'[7]MONE(M)'!$AO29) -> n.d. | CE22: =IF('[8]MONE(M)'!$AO29="","",'[8]MONE(M)'!$AO29) -> n.d. | CF22: n.d. | CG22: n.d. | CH22: n.d. | CI22: n.d. | CJ22: n.d. | CK22: n.d. | CL22: n.d. | CM22: =IF('[1]FISCAL(M)'!$K29="","",'[1]FISCAL(M)'!$K29) -> n.d. | CN22: n.d. | CO22: n.d. | CP22: =IF('[1]FISCAL(M)'!$L29="","",'[1]FISCAL(M)'!$L29) -> n.d. | CQ22: n.d. | CR22: n.d. | CS22: n.d. | CT22: n.d. | CU22: n.d. | CV22: n.d. | CW22: n.d. | CX22: n.d. | CY22: n.d. | CZ22: n.d. | DA22: n.d. | DB22: n.d. | DC22: n.d. | DD22: n.d. | DE22: n.d. | DF22: n.d. | DG22: n.d. | DH22: n.d.
A23: 1991 | B23: septiembre | C23: 1991-septiembre | D23: =IF('[1]REAL IPC(M)'!$AL30="","",+'[1]REAL IPC(M)'!$AL30) -> n.d. | E23: =IF('[1]REAL IPC(M)'!$BE30="","",+'[1]REAL IPC(M)'!$BE30) -> n.d. | F23: =IF('[1]REAL IPC(M)'!$AM30="","",+'[1]REAL IPC(M)'!$AM30) -> n.d. | G23: =IF('[1]REAL IPC(M)'!$BI30="","",+'[1]REAL IPC(M)'!$BI30) -> n.d. | H23: =IF('[1]REAL IMAE(M)'!BJ30="","",'[1]REAL IMAE(M)'!BJ30) -> n.d. | I23: =IF('[1]REAL IMAE(M)'!BK30="","",'[1]REAL IMAE(M)'!BK30) -> n.d. | J23: =IF('[1]REAL IMAE(M)'!BN30="","",'[1]REAL IMAE(M)'!BN30) -> n.d. | K23: =IF('[1]REAL IMAE(M)'!BO30="","",'[1]REAL IMAE(M)'!BO30) -> n.d. | L23: =IF('[1]EXT RIN(M)'!$K30="","",'[1]EXT RIN(M)'!$K30) -> n.d. | N23: =IF('[1]EXT RIN(M)'!$L30="","",'[1]EXT RIN(M)'!$L30) -> n.d. | P23: =IF('[1]MONE(M)CARD'!EG30="","",'[1]MONE(M)CARD'!EG30) -> n.d. | Q23: =IF('[1]MONE(M)CARD'!EK30="","",'[1]MONE(M)CARD'!EK30) -> n.d. | R23: =IF('[1]MONE(M)CARD'!EP30="","",'[1]MONE(M)CARD'!EP30) -> n.d. | S23: =IF('[1]MONE(M)CARD'!ES30="","",'[1]MONE(M)CARD'!ES30) -> n.d. | T23: =IF('[1]MONE(M)CARD'!EV30="","",'[1]MONE(M)CARD'!EV30) -> n.d. | U23: =IF('[1]MONE(M)CARD'!EZ30="","",'[1]MONE(M)CARD'!EZ30) -> n.d. | V23: =IF('[1]MONE(M)CAPARD'!FC30="","",'[1]MONE(M)CAPARD'!FC30) -> n.d. | W23: =IF('[1]MONE(M)CAPARD'!FG30="","",'[1]MONE(M)CAPARD'!FG30) -> n.d. | X23: =IF('[1]MONE(M)CAPARD'!FL30="","",'[1]MONE(M)CAPARD'!FL30) -> n.d. | Y23: =IF('[1]MONE(M)CAPARD'!FO30="","",'[1]MONE(M)CAPARD'!FO30) -> n.d. | Z23: =IF('[1]MONE(M)CAPARD'!FR30="","",'[1]MONE(M)CAPARD'!FR30) -> n.d. | AA23: =IF('[1]MONE(M)CAPARD'!FV30="","",'[1]MONE(M)CAPARD'!FV30) -> n.d. | AB23: =IF('[1]MONE(M)CARD'!FV30="","",'[1]MONE(M)CARD'!FV30) ->  | AC23: =IF('[1]MONE(M)CARD'!GD30="","",'[1]MONE(M)CARD'!GD30) -> n.d. | AD23: =IF('[1]MONE(M)CARD'!GE30="","",'[1]MONE(M)CARD'!GE30) -> n.d. | AE23: n.d. | AF23: n.d. | AG23: n.d. | AH23: n.d. | AI23: n.d. | AJ23: n.d. | AK23: n.d. | AL23: n.d. | AN23: n.d. | AO23: n.d. | AP23: n.d. | AQ23: n.d. | AR23: n.d. | AS23: =IF('[1]MONE(M)CAPARD'!GS30="","",'[1]MONE(M)CAPARD'!GS30) -> n.d. | AT23: =IF('[1]MONE(M)CARD'!HA30="","",'[1]MONE(M)CAPARD'!HA30) -> n.d. | AU23: =IF('[1]MONE(M)CAPARD'!HB30="","",'[1]MONE(M)CAPARD'!HB30) -> n.d. | AV23: n.d. | AW23: n.d. | AX23: n.d. | AY23: n.d. | AZ23: n.d. | BA23: n.d. | BB23: n.d. | BC23: n.d. | BD23: n.d. | BE23: n.d. | BF23: n.d. | BG23: n.d. | BH23: n.d. | BI23: n.d. | BJ23: =IF('[1]MONE(M)CAPARD'!AS30="","",'[1]MONE(M)CAPARD'!AS30) -> n.d. | BK23: =IF('[1]MONE(M)CAPARD'!AT30="","",'[1]MONE(M)CAPARD'!AT30) -> n.a. | BL23: =IF('[1]MONE(M)CAPARD'!AU30="","",'[1]MONE(M)CAPARD'!AU30) -> n.d. | BM23: =IF('[1]MONE(M)CAPARD'!AV30="","",'[1]MONE(M)CAPARD'!AV30) -> n.d. | BN23: =IF('[1]MONE(M)CAPARD'!AW30="","",'[1]MONE(M)CAPARD'!AW30) -> n.a. | BO23: =IF('[1]MONE(M)CAPARD'!AX30="","",'[1]MONE(M)CAPARD'!AX30) -> n.d. | BP23: =IF('[1]MONE(M)CAPARD'!AY30="","",'[1]MONE(M)CAPARD'!AY30) -> n.a. | BQ23: =IF('[1]FISCAL(M)'!$K30="","",'[1]FISCAL(M)'!$K30) -> n.d. | BR23: =IF('[1]FISCAL(M)'!$L30="","",'[1]FISCAL(M)'!$L30) -> n.d. | BS23: =IF('[1]FISCAL(M)'!$AY30="","",'[1]FISCAL(M)'!$AY30) -> n.d. | BT23: =IF('[1]FISCAL(M)'!$BI30="","",'[1]FISCAL(M)'!$BI30) -> n.d. | BU23: =IF('[1]FISCAL(M)'!$BS30="","",'[1]FISCAL(M)'!$BS30) -> n.d. | BV23: =IF('[1]FISCAL(M)'!$AZ30="","",'[1]FISCAL(M)'!$AZ30) -> n.d. | BW23: =IF('[1]FISCAL(M)'!$BJ30="","",'[1]FISCAL(M)'!$BJ30) -> n.d. | BX23: =IF('[1]FISCAL(M)'!$BT30="","",'[1]FISCAL(M)'!$BT30) -> n.d. | BY23: =IF('[2]MONE(M)'!$AO30="","",'[2]MONE(M)'!$AO30) -> n.d. | BZ23: =IF('[3]MONE(M)'!$AO30="","",'[3]MONE(M)'!$AO30) -> n.d. | CA23: =IF('[4]MONE(M)'!$AO30="","",'[4]MONE(M)'!$AO30) -> n.d. | CB23: =+'[5]MONE(M)'!$AO30 -> n.d. | CC23: =IF('[6]MONE(M)'!$AO30="","",'[6]MONE(M)'!$AO30) -> n.d. | CD23: =IF('[7]MONE(M)'!$AO30="","",'[7]MONE(M)'!$AO30) -> n.d. | CE23: =IF('[8]MONE(M)'!$AO30="","",'[8]MONE(M)'!$AO30) -> n.d. | CF23: n.d. | CG23: n.d. | CH23: n.d. | CI23: n.d. | CJ23: n.d. | CK23: n.d. | CL23: n.d. | CM23: =IF('[1]FISCAL(M)'!$K30="","",'[1]FISCAL(M)'!$K30) -> n.d. | CN23: n.d. | CO23: n.d. | CP23: =IF('[1]FISCAL(M)'!$L30="","",'[1]FISCAL(M)'!$L30) -> n.d. | CQ23: n.d. | CR23: n.d. | CS23: n.d. | CT23: n.d. | CU23: n.d. | CV23: n.d. | CW23: n.d. | CX23: n.d. | CY23: n.d. | CZ23: n.d. | DA23: n.d. | DB23: n.d. | DC23: n.d. | DD23: n.d. | DE23: n.d. | DF23: n.d. | DG23: n.d. | DH23: n.d.
A24: 1991 | B24: octubre | C24: 1991-octubre | D24: =IF('[1]REAL IPC(M)'!$AL31="","",+'[1]REAL IPC(M)'!$AL31) -> n.d. | E24: =IF('[1]REAL IPC(M)'!$BE31="","",+'[1]REAL IPC(M)'!$BE31) -> n.d. | F24: =IF('[1]REAL IPC(M)'!$AM31="","",+'[1]REAL IPC(M)'!$AM31) -> n.d. | G24: =IF('[1]REAL IPC(M)'!$BI31="","",+'[1]REAL IPC(M)'!$BI31) -> n.d. | H24: =IF('[1]REAL IMAE(M)'!BJ31="","",'[1]REAL IMAE(M)'!BJ31) -> n.d. | I24: =IF('[1]REAL IMAE(M)'!BK31="","",'[1]REAL IMAE(M)'!BK31) -> n.d. | J24: =IF('[1]REAL IMAE(M)'!BN31="","",'[1]REAL IMAE(M)'!BN31) -> n.d. | K24: =IF('[1]REAL IMAE(M)'!BO31="","",'[1]REAL IMAE(M)'!BO31) -> n.d. | L24: =IF('[1]EXT RIN(M)'!$K31="","",'[1]EXT RIN(M)'!$K31) -> n.d. | N24: =IF('[1]EXT RIN(M)'!$L31="","",'[1]EXT RIN(M)'!$L31) -> n.d. | P24: =IF('[1]MONE(M)CARD'!EG31="","",'[1]MONE(M)CARD'!EG31) -> n.d. | Q24: =IF('[1]MONE(M)CARD'!EK31="","",'[1]MONE(M)CARD'!EK31) -> n.d. | R24: =IF('[1]MONE(M)CARD'!EP31="","",'[1]MONE(M)CARD'!EP31) -> n.d. | S24: =IF('[1]MONE(M)CARD'!ES31="","",'[1]MONE(M)CARD'!ES31) -> n.d. | T24: =IF('[1]MONE(M)CARD'!EV31="","",'[1]MONE(M)CARD'!EV31) -> n.d. | U24: =IF('[1]MONE(M)CARD'!EZ31="","",'[1]MONE(M)CARD'!EZ31) -> n.d. | V24: =IF('[1]MONE(M)CAPARD'!FC31="","",'[1]MONE(M)CAPARD'!FC31) -> n.d. | W24: =IF('[1]MONE(M)CAPARD'!FG31="","",'[1]MONE(M)CAPARD'!FG31) -> n.d. | X24: =IF('[1]MONE(M)CAPARD'!FL31="","",'[1]MONE(M)CAPARD'!FL31) -> n.d. | Y24: =IF('[1]MONE(M)CAPARD'!FO31="","",'[1]MONE(M)CAPARD'!FO31) -> n.d. | Z24: =IF('[1]MONE(M)CAPARD'!FR31="","",'[1]MONE(M)CAPARD'!FR31) -> n.d. | AA24: =IF('[1]MONE(M)CAPARD'!FV31="","",'[1]MONE(M)CAPARD'!FV31) -> n.d. | AB24: =IF('[1]MONE(M)CARD'!FV31="","",'[1]MONE(M)CARD'!FV31) ->  | AC24: =IF('[1]MONE(M)CARD'!GD31="","",'[1]MONE(M)CARD'!GD31) -> n.d. | AD24: =IF('[1]MONE(M)CARD'!GE31="","",'[1]MONE(M)CARD'!GE31) -> n.d. | AE24: n.d. | AF24: n.d. | AG24: n.d. | AH24: n.d. | AI24: n.d. | AJ24: n.d. | AK24: n.d. | AL24: n.d. | AN24: n.d. | AO24: n.d. | AP24: n.d. | AQ24: n.d. | AR24: n.d. | AS24: =IF('[1]MONE(M)CAPARD'!GS31="","",'[1]MONE(M)CAPARD'!GS31) -> n.d. | AT24: =IF('[1]MONE(M)CARD'!HA31="","",'[1]MONE(M)CAPARD'!HA31) -> n.d. | AU24: =IF('[1]MONE(M)CAPARD'!HB31="","",'[1]MONE(M)CAPARD'!HB31) -> n.d. | AV24: n.d. | AW24: n.d. | AX24: n.d. | AY24: n.d. | AZ24: n.d. | BA24: n.d. | BB24: n.d. | BC24: n.d. | BD24: n.d. | BE24: n.d. | BF24: n.d. | BG24: n.d. | BH24: n.d. | BI24: n.d. | BJ24: =IF('[1]MONE(M)CAPARD'!AS31="","",'[1]MONE(M)CAPARD'!AS31) -> n.d. | BK24: =IF('[1]MONE(M)CAPARD'!AT31="","",'[1]MONE(M)CAPARD'!AT31) -> n.a. | BL24: =IF('[1]MONE(M)CAPARD'!AU31="","",'[1]MONE(M)CAPARD'!AU31) -> n.d. | BM24: =IF('[1]MONE(M)CAPARD'!AV31="","",'[1]MONE(M)CAPARD'!AV31) -> n.d. | BN24: =IF('[1]MONE(M)CAPARD'!AW31="","",'[1]MONE(M)CAPARD'!AW31) -> n.a. | BO24: =IF('[1]MONE(M)CAPARD'!AX31="","",'[1]MONE(M)CAPARD'!AX31) -> n.d. | BP24: =IF('[1]MONE(M)CAPARD'!AY31="","",'[1]MONE(M)CAPARD'!AY31) -> n.a. | BQ24: =IF('[1]FISCAL(M)'!$K31="","",'[1]FISCAL(M)'!$K31) -> n.d. | BR24: =IF('[1]FISCAL(M)'!$L31="","",'[1]FISCAL(M)'!$L31) -> n.d. | BS24: =IF('[1]FISCAL(M)'!$AY31="","",'[1]FISCAL(M)'!$AY31) -> n.d. | BT24: =IF('[1]FISCAL(M)'!$BI31="","",'[1]FISCAL(M)'!$BI31) -> n.d. | BU24: =IF('[1]FISCAL(M)'!$BS31="","",'[1]FISCAL(M)'!$BS31) -> n.d. | BV24: =IF('[1]FISCAL(M)'!$AZ31="","",'[1]FISCAL(M)'!$AZ31) -> n.d. | BW24: =IF('[1]FISCAL(M)'!$BJ31="","",'[1]FISCAL(M)'!$BJ31) -> n.d. | BX24: =IF('[1]FISCAL(M)'!$BT31="","",'[1]FISCAL(M)'!$BT31) -> n.d. | BY24: =IF('[2]MONE(M)'!$AO31="","",'[2]MONE(M)'!$AO31) -> n.d. | BZ24: =IF('[3]MONE(M)'!$AO31="","",'[3]MONE(M)'!$AO31) -> n.d. | CA24: =IF('[4]MONE(M)'!$AO31="","",'[4]MONE(M)'!$AO31) -> n.d. | CB24: =+'[5]MONE(M)'!$AO31 -> n.d. | CC24: =IF('[6]MONE(M)'!$AO31="","",'[6]MONE(M)'!$AO31) -> n.d. | CD24: =IF('[7]MONE(M)'!$AO31="","",'[7]MONE(M)'!$AO31) -> n.d. | CE24: =IF('[8]MONE(M)'!$AO31="","",'[8]MONE(M)'!$AO31) -> n.d. | CF24: n.d. | CG24: n.d. | CH24: n.d. | CI24: n.d. | CJ24: n.d. | CK24: n.d. | CL24: n.d. | CM24: =IF('[1]FISCAL(M)'!$K31="","",'[1]FISCAL(M)'!$K31) -> n.d. | CN24: n.d. | CO24: n.d. | CP24: =IF('[1]FISCAL(M)'!$L31="","",'[1]FISCAL(M)'!$L31) -> n.d. | CQ24: n.d. | CR24: n.d. | CS24: n.d. | CT24: n.d. | CU24: n.d. | CV24: n.d. | CW24: n.d. | CX24: n.d. | CY24: n.d. | CZ24: n.d. | DA24: n.d. | DB24: n.d. | DC24: n.d. | DD24: n.d. | DE24: n.d. | DF24: n.d. | DG24: n.d. | DH24: n.d.
A25: 1991 | B25: noviembre | C25: 1991-noviembre | D25: =IF('[1]REAL IPC(M)'!$AL32="","",+'[1]REAL IPC(M)'!$AL32) -> n.d. | E25: =IF('[1]REAL IPC(M)'!$BE32="","",+'[1]REAL IPC(M)'!$BE32) -> n.d. | F25: =IF('[1]REAL IPC(M)'!$AM32="","",+'[1]REAL IPC(M)'!$AM32) -> n.d. | G25: =IF('[1]REAL IPC(M)'!$BI32="","",+'[1]REAL IPC(M)'!$BI32) -> n.d. | H25: =IF('[1]REAL IMAE(M)'!BJ32="","",'[1]REAL IMAE(M)'!BJ32) -> n.d. | I25: =IF('[1]REAL IMAE(M)'!BK32="","",'[1]REAL IMAE(M)'!BK32) -> n.d. | J25: =IF('[1]REAL IMAE(M)'!BN32="","",'[1]REAL IMAE(M)'!BN32) -> n.d. | K25: =IF('[1]REAL IMAE(M)'!BO32="","",'[1]REAL IMAE(M)'!BO32) -> n.d. | L25: =IF('[1]EXT RIN(M)'!$K32="","",'[1]EXT RIN(M)'!$K32) -> n.d. | N25: =IF('[1]EXT RIN(M)'!$L32="","",'[1]EXT RIN(M)'!$L32) -> n.d. | P25: =IF('[1]MONE(M)CARD'!EG32="","",'[1]MONE(M)CARD'!EG32) -> n.d. | Q25: =IF('[1]MONE(M)CARD'!EK32="","",'[1]MONE(M)CARD'!EK32) -> n.d. | R25: =IF('[1]MONE(M)CARD'!EP32="","",'[1]MONE(M)CARD'!EP32) -> n.d. | S25: =IF('[1]MONE(M)CARD'!ES32="","",'[1]MONE(M)CARD'!ES32) -> n.d. | T25: =IF('[1]MONE(M)CARD'!EV32="","",'[1]MONE(M)CARD'!EV32) -> n.d. | U25: =IF('[1]MONE(M)CARD'!EZ32="","",'[1]MONE(M)CARD'!EZ32) -> n.d. | V25: =IF('[1]MONE(M)CAPARD'!FC32="","",'[1]MONE(M)CAPARD'!FC32) -> n.d. | W25: =IF('[1]MONE(M)CAPARD'!FG32="","",'[1]MONE(M)CAPARD'!FG32) -> n.d. | X25: =IF('[1]MONE(M)CAPARD'!FL32="","",'[1]MONE(M)CAPARD'!FL32) -> n.d. | Y25: =IF('[1]MONE(M)CAPARD'!FO32="","",'[1]MONE(M)CAPARD'!FO32) -> n.d. | Z25: =IF('[1]MONE(M)CAPARD'!FR32="","",'[1]MONE(M)CAPARD'!FR32) -> n.d. | AA25: =IF('[1]MONE(M)CAPARD'!FV32="","",'[1]MONE(M)CAPARD'!FV32) -> n.d. | AB25: =IF('[1]MONE(M)CARD'!FV32="","",'[1]MONE(M)CARD'!FV32) ->  | AC25: =IF('[1]MONE(M)CARD'!GD32="","",'[1]MONE(M)CARD'!GD32) -> n.d. | AD25: =IF('[1]MONE(M)CARD'!GE32="","",'[1]MONE(M)CARD'!GE32) -> n.d. | AE25: n.d. | AF25: n.d. | AG25: n.d. | AH25: n.d. | AI25: n.d. | AJ25: n.d. | AK25: n.d. | AL25: n.d. | AN25: n.d. | AO25: n.d. | AP25: n.d. | AQ25: n.d. | AR25: n.d. | AS25: =IF('[1]MONE(M)CAPARD'!GS32="","",'[1]MONE(M)CAPARD'!GS32) -> n.d. | AT25: =IF('[1]MONE(M)CARD'!HA32="","",'[1]MONE(M)CAPARD'!HA32) -> n.d. | AU25: =IF('[1]MONE(M)CAPARD'!HB32="","",'[1]MONE(M)CAPARD'!HB32) -> n.d. | AV25: n.d. | AW25: n.d. | AX25: n.d. | AY25: n.d. | AZ25: n.d. | BA25: n.d. | BB25: n.d. | BC25: n.d. | BD25: n.d. | BE25: n.d. | BF25: n.d. | BG25: n.d. | BH25: n.d. | BI25: n.d. | BJ25: =IF('[1]MONE(M)CAPARD'!AS32="","",'[1]MONE(M)CAPARD'!AS32) -> n.d. | BK25: =IF('[1]MONE(M)CAPARD'!AT32="","",'[1]MONE(M)CAPARD'!AT32) -> n.a. | BL25: =IF('[1]MONE(M)CAPARD'!AU32="","",'[1]MONE(M)CAPARD'!AU32) -> n.d. | BM25: =IF('[1]MONE(M)CAPARD'!AV32="","",'[1]MONE(M)CAPARD'!AV32) -> n.d. | BN25: =IF('[1]MONE(M)CAPARD'!AW32="","",'[1]MONE(M)CAPARD'!AW32) -> n.a. | BO25: =IF('[1]MONE(M)CAPARD'!AX32="","",'[1]MONE(M)CAPARD'!AX32) -> n.d. | BP25: =IF('[1]MONE(M)CAPARD'!AY32="","",'[1]MONE(M)CAPARD'!AY32) -> n.a. | BQ25: =IF('[1]FISCAL(M)'!$K32="","",'[1]FISCAL(M)'!$K32) -> n.d. | BR25: =IF('[1]FISCAL(M)'!$L32="","",'[1]FISCAL(M)'!$L32) -> n.d. | BS25: =IF('[1]FISCAL(M)'!$AY32="","",'[1]FISCAL(M)'!$AY32) -> n.d. | BT25: =IF('[1]FISCAL(M)'!$BI32="","",'[1]FISCAL(M)'!$BI32) -> n.d. | BU25: =IF('[1]FISCAL(M)'!$BS32="","",'[1]FISCAL(M)'!$BS32) -> n.d. | BV25: =IF('[1]FISCAL(M)'!$AZ32="","",'[1]FISCAL(M)'!$AZ32) -> n.d. | BW25: =IF('[1]FISCAL(M)'!$BJ32="","",'[1]FISCAL(M)'!$BJ32) -> n.d. | BX25: =IF('[1]FISCAL(M)'!$BT32="","",'[1]FISCAL(M)'!$BT32) -> n.d. | BY25: =IF('[2]MONE(M)'!$AO32="","",'[2]MONE(M)'!$AO32) -> n.d. | BZ25: =IF('[3]MONE(M)'!$AO32="","",'[3]MONE(M)'!$AO32) -> n.d. | CA25: =IF('[4]MONE(M)'!$AO32="","",'[4]MONE(M)'!$AO32) -> n.d. | CB25: =+'[5]MONE(M)'!$AO32 -> n.d. | CC25: =IF('[6]MONE(M)'!$AO32="","",'[6]MONE(M)'!$AO32) -> n.d. | CD25: =IF('[7]MONE(M)'!$AO32="","",'[7]MONE(M)'!$AO32) -> n.d. | CE25: =IF('[8]MONE(M)'!$AO32="","",'[8]MONE(M)'!$AO32) -> n.d. | CF25: n.d. | CG25: n.d. | CH25: n.d. | CI25: n.d. | CJ25: n.d. | CK25: n.d. | CL25: n.d. | CM25: =IF('[1]FISCAL(M)'!$K32="","",'[1]FISCAL(M)'!$K32) -> n.d. | CN25: n.d. | CO25: n.d. | CP25: =IF('[1]FISCAL(M)'!$L32="","",'[1]FISCAL(M)'!$L32) -> n.d. | CQ25: n.d. | CR25: n.d. | CS25: n.d. | CT25: n.d. | CU25: n.d. | CV25: n.d. | CW25: n.d. | CX25: n.d. | CY25: n.d. | CZ25: n.d. | DA25: n.d. | DB25: n.d. | DC25: n.d. | DD25: n.d. | DE25: n.d. | DF25: n.d. | DG25: n.d. | DH25: n.d.
A26: 1991 | B26: diciembre | C26: 1991-diciembre | D26: =IF('[1]REAL IPC(M)'!$AL33="","",+'[1]REAL IPC(M)'!$AL33) -> n.d. | E26: =IF('[1]REAL IPC(M)'!$BE33="","",+'[1]REAL IPC(M)'!$BE33) -> n.d. | F26: =IF('[1]REAL IPC(M)'!$AM33="","",+'[1]REAL IPC(M)'!$AM33) -> n.d. | G26: =IF('[1]REAL IPC(M)'!$BI33="","",+'[1]REAL IPC(M)'!$BI33) -> n.d. | H26: =IF('[1]REAL IMAE(M)'!BJ33="","",'[1]REAL IMAE(M)'!BJ33) -> n.d. | I26: =IF('[1]REAL IMAE(M)'!BK33="","",'[1]REAL IMAE(M)'!BK33) -> n.d. | J26: =IF('[1]REAL IMAE(M)'!BN33="","",'[1]REAL IMAE(M)'!BN33) -> n.d. | K26: =IF('[1]REAL IMAE(M)'!BO33="","",'[1]REAL IMAE(M)'!BO33) -> n.d. | L26: =IF('[1]EXT RIN(M)'!$K33="","",'[1]EXT RIN(M)'!$K33) -> n.d. | M26: n.d. | N26: =IF('[1]EXT RIN(M)'!$L33="","",'[1]EXT RIN(M)'!$L33) -> n.d. | O26: n.d. | P26: =IF('[1]MONE(M)CARD'!EG33="","",'[1]MONE(M)CARD'!EG33) -> n.d. | Q26: =IF('[1]MONE(M)CARD'!EK33="","",'[1]MONE(M)CARD'!EK33) -> n.d. | R26: =IF('[1]MONE(M)CARD'!EP33="","",'[1]MONE(M)CARD'!EP33) -> n.d. | S26: =IF('[1]MONE(M)CARD'!ES33="","",'[1]MONE(M)CARD'!ES33) -> n.d. | T26: =IF('[1]MONE(M)CARD'!EV33="","",'[1]MONE(M)CARD'!EV33) -> n.d. | U26: =IF('[1]MONE(M)CARD'!EZ33="","",'[1]MONE(M)CARD'!EZ33) -> n.d. | V26: =IF('[1]MONE(M)CAPARD'!FC33="","",'[1]MONE(M)CAPARD'!FC33) -> n.d. | W26: =IF('[1]MONE(M)CAPARD'!FG33="","",'[1]MONE(M)CAPARD'!FG33) -> n.d. | X26: =IF('[1]MONE(M)CAPARD'!FL33="","",'[1]MONE(M)CAPARD'!FL33) -> n.d. | Y26: =IF('[1]MONE(M)CAPARD'!FO33="","",'[1]MONE(M)CAPARD'!FO33) -> n.d. | Z26: =IF('[1]MONE(M)CAPARD'!FR33="","",'[1]MONE(M)CAPARD'!FR33) -> n.d. | AA26: =IF('[1]MONE(M)CAPARD'!FV33="","",'[1]MONE(M)CAPARD'!FV33) -> n.d. | AB26: =IF('[1]MONE(M)CARD'!FV33="","",'[1]MONE(M)CARD'!FV33) ->  | AC26: =IF('[1]MONE(M)CARD'!GD33="","",'[1]MONE(M)CARD'!GD33) -> n.d. | AD26: =IF('[1]MONE(M)CARD'!GE33="","",'[1]MONE(M)CARD'!GE33) -> n.d. | AE26: n.d. | AF26: n.d. | AG26: n.d. | AH26: n.d. | AI26: n.d. | AJ26: n.d. | AK26: n.d. | AL26: n.d. | AN26: n.d. | AO26: n.d. | AP26: n.d. | AQ26: n.d. | AR26: n.d. | AS26: =IF('[1]MONE(M)CAPARD'!GS33="","",'[1]MONE(M)CAPARD'!GS33) -> n.d. | AT26: =IF('[1]MONE(M)CARD'!HA33="","",'[1]MONE(M)CAPARD'!HA33) -> n.d. | AU26: =IF('[1]MONE(M)CAPARD'!HB33="","",'[1]MONE(M)CAPARD'!HB33) -> n.d. | AV26: n.d. | AW26: n.d. | AX26: n.d. | AY26: n.d. | AZ26: n.d. | BA26: n.d. | BB26: n.d. | BC26: n.d. | BD26: n.d. | BE26: n.d. | BF26: n.d. | BG26: n.d. | BH26: n.d. | BI26: n.d. | BJ26: =IF('[1]MONE(M)CAPARD'!AS33="","",'[1]MONE(M)CAPARD'!AS33) -> n.d. | BK26: =IF('[1]MONE(M)CAPARD'!AT33="","",'[1]MONE(M)CAPARD'!AT33) -> n.a. | BL26: =IF('[1]MONE(M)CAPARD'!AU33="","",'[1]MONE(M)CAPARD'!AU33) -> n.d. | BM26: =IF('[1]MONE(M)CAPARD'!AV33="","",'[1]MONE(M)CAPARD'!AV33) -> n.d. | BN26: =IF('[1]MONE(M)CAPARD'!AW33="","",'[1]MONE(M)CAPARD'!AW33) -> n.a. | BO26: =IF('[1]MONE(M)CAPARD'!AX33="","",'[1]MONE(M)CAPARD'!AX33) -> n.d. | BP26: =IF('[1]MONE(M)CAPARD'!AY33="","",'[1]MONE(M)CAPARD'!AY33) -> n.a. | BQ26: =IF('[1]FISCAL(M)'!$K33="","",'[1]FISCAL(M)'!$K33) -> n.d. | BR26: =IF('[1]FISCAL(M)'!$L33="","",'[1]FISCAL(M)'!$L33) -> n.d. | BS26: =IF('[1]FISCAL(M)'!$AY33="","",'[1]FISCAL(M)'!$AY33) -> n.d. | BT26: =IF('[1]FISCAL(M)'!$BI33="","",'[1]FISCAL(M)'!$BI33) -> n.d. | BU26: =IF('[1]FISCAL(M)'!$BS33="","",'[1]FISCAL(M)'!$BS33) -> n.d. | BV26: =IF('[1]FISCAL(M)'!$AZ33="","",'[1]FISCAL(M)'!$AZ33) -> n.d. | BW26: =IF('[1]FISCAL(M)'!$BJ33="","",'[1]FISCAL(M)'!$BJ33) -> n.d. | BX26: =IF('[1]FISCAL(M)'!$BT33="","",'[1]FISCAL(M)'!$BT33) -> n.d. | BY26: =IF('[2]MONE(M)'!$AO33="","",'[2]MONE(M)'!$AO33) -> n.d. | BZ26: =IF('[3]MONE(M)'!$AO33="","",'[3]MONE(M)'!$AO33) -> n.d. | CA26: =IF('[4]MONE(M)'!$AO33="","",'[4]MONE(M)'!$AO33) -> n.d. | CB26: =+'[5]MONE(M)'!$AO33 -> n.d. | CC26: =IF('[6]MONE(M)'!$AO33="","",'[6]MONE(M)'!$AO33) -> n.d. | CD26: =IF('[7]MONE(M)'!$AO33="","",'[7]MONE(M)'!$AO33) -> n.d. | CE26: =IF('[8]MONE(M)'!$AO33="","",'[8]MONE(M)'!$AO33) -> n.d. | CF26: n.d. | CG26: n.d. | CH26: n.d. | CI26: n.d. | CJ26: n.d. | CK26: n.d. | CL26: n.d. | CM26: =IF('[1]FISCAL(M)'!$K33="","",'[1]FISCAL(M)'!$K33) -> n.d. | CN26: n.d. | CO26: n.d. | CP26: =IF('[1]FISCAL(M)'!$L33="","",'[1]FISCAL(M)'!$L33) -> n.d. | CQ26: n.d. | CR26: n.d. | CS26: n.d. | CT26: n.d. | CU26: n.d. | CV26: n.d. | CW26: n.d. | CX26: n.d. | CY26: n.d. | CZ26: n.d. | DA26: n.d. | DB26: n.d. | DC26: n.d. | DD26: n.d. | DE26: n.d. | DF26: n.d. | DG26: n.d. | DH26: n.d.
A27: 1992 | B27: enero | C27: 1992-enero | D27: =IF('[1]REAL IPC(M)'!$AL34="","",+'[1]REAL IPC(M)'!$AL34) -> n.d. | E27: =IF('[1]REAL IPC(M)'!$BE34="","",+'[1]REAL IPC(M)'!$BE34) -> n.d. | F27: =IF('[1]REAL IPC(M)'!$AM34="","",+'[1]REAL IPC(M)'!$AM34) -> n.d. | G27: =IF('[1]REAL IPC(M)'!$BI34="","",+'[1]REAL IPC(M)'!$BI34) -> n.d. | H27: =IF('[1]REAL IMAE(M)'!BJ34="","",'[1]REAL IMAE(M)'!BJ34) -> n.d. | I27: =IF('[1]REAL IMAE(M)'!BK34="","",'[1]REAL IMAE(M)'!BK34) -> n.d. | J27: =IF('[1]REAL IMAE(M)'!BN34="","",'[1]REAL IMAE(M)'!BN34) -> n.d. | K27: =IF('[1]REAL IMAE(M)'!BO34="","",'[1]REAL IMAE(M)'!BO34) -> n.d. | L27: =IF('[1]EXT RIN(M)'!$K34="","",'[1]EXT RIN(M)'!$K34) -> n.d. | N27: =IF('[1]EXT RIN(M)'!$L34="","",'[1]EXT RIN(M)'!$L34) -> n.d. | P27: =IF('[1]MONE(M)CARD'!EG34="","",'[1]MONE(M)CARD'!EG34) -> n.d. | Q27: =IF('[1]MONE(M)CARD'!EK34="","",'[1]MONE(M)CARD'!EK34) -> n.d. | R27: =IF('[1]MONE(M)CARD'!EP34="","",'[1]MONE(M)CARD'!EP34) -> n.d. | S27: =IF('[1]MONE(M)CARD'!ES34="","",'[1]MONE(M)CARD'!ES34) -> n.d. | T27: =IF('[1]MONE(M)CARD'!EV34="","",'[1]MONE(M)CARD'!EV34) -> n.d. | U27: =IF('[1]MONE(M)CARD'!EZ34="","",'[1]MONE(M)CARD'!EZ34) -> n.d. | V27: =IF('[1]MONE(M)CAPARD'!FC34="","",'[1]MONE(M)CAPARD'!FC34) -> n.d. | W27: =IF('[1]MONE(M)CAPARD'!FG34="","",'[1]MONE(M)CAPARD'!FG34) -> n.d. | X27: =IF('[1]MONE(M)CAPARD'!FL34="","",'[1]MONE(M)CAPARD'!FL34) -> n.d. | Y27: =IF('[1]MONE(M)CAPARD'!FO34="","",'[1]MONE(M)CAPARD'!FO34) -> n.d. | Z27: =IF('[1]MONE(M)CAPARD'!FR34="","",'[1]MONE(M)CAPARD'!FR34) -> n.d. | AA27: =IF('[1]MONE(M)CAPARD'!FV34="","",'[1]MONE(M)CAPARD'!FV34) -> n.d. | AB27: =IF('[1]MONE(M)CARD'!FV34="","",'[1]MONE(M)CARD'!FV34) ->  | AC27: =IF('[1]MONE(M)CARD'!GD34="","",'[1]MONE(M)CARD'!GD34) -> n.d. | AD27: =IF('[1]MONE(M)CARD'!GE34="","",'[1]MONE(M)CARD'!GE34) -> n.d. | AE27: n.d. | AF27: n.d. | AG27: n.d. | AH27: n.d. | AI27: n.d. | AJ27: n.d. | AK27: n.d. | AL27: n.d. | AN27: n.d. | AO27: n.d. | AP27: n.d. | AQ27: n.d. | AR27: n.d. | AS27: =IF('[1]MONE(M)CAPARD'!GS34="","",'[1]MONE(M)CAPARD'!GS34) -> n.d. | AT27: =IF('[1]MONE(M)CARD'!HA34="","",'[1]MONE(M)CAPARD'!HA34) -> n.d. | AU27: =IF('[1]MONE(M)CAPARD'!HB34="","",'[1]MONE(M)CAPARD'!HB34) -> n.d. | AV27: n.d. | AW27: n.d. | AX27: n.d. | AY27: n.d. | AZ27: n.d. | BA27: n.d. | BB27: n.d. | BC27: n.d. | BD27: n.d. | BE27: n.d. | BF27: n.d. | BG27: n.d. | BH27: n.d. | BI27: n.d. | BJ27: =IF('[1]MONE(M)CAPARD'!AS34="","",'[1]MONE(M)CAPARD'!AS34) -> n.d. | BK27: =IF('[1]MONE(M)CAPARD'!AT34="","",'[1]MONE(M)CAPARD'!AT34) -> n.a. | BL27: =IF('[1]MONE(M)CAPARD'!AU34="","",'[1]MONE(M)CAPARD'!AU34) -> n.d. | BM27: =IF('[1]MONE(M)CAPARD'!AV34="","",'[1]MONE(M)CAPARD'!AV34) -> n.d. | BN27: =IF('[1]MONE(M)CAPARD'!AW34="","",'[1]MONE(M)CAPARD'!AW34) -> n.a. | BO27: =IF('[1]MONE(M)CAPARD'!AX34="","",'[1]MONE(M)CAPARD'!AX34) -> n.d. | BP27: =IF('[1]MONE(M)CAPARD'!AY34="","",'[1]MONE(M)CAPARD'!AY34) -> n.a. | BQ27: =IF('[1]FISCAL(M)'!$K34="","",'[1]FISCAL(M)'!$K34) -> n.d. | BR27: =IF('[1]FISCAL(M)'!$L34="","",'[1]FISCAL(M)'!$L34) -> n.d. | BS27: =IF('[1]FISCAL(M)'!$AY34="","",'[1]FISCAL(M)'!$AY34) -> n.d. | BT27: =IF('[1]FISCAL(M)'!$BI34="","",'[1]FISCAL(M)'!$BI34) -> n.d. | BU27: =IF('[1]FISCAL(M)'!$BS34="","",'[1]FISCAL(M)'!$BS34) -> n.d. | BV27: =IF('[1]FISCAL(M)'!$AZ34="","",'[1]FISCAL(M)'!$AZ34) -> n.d. | BW27: =IF('[1]FISCAL(M)'!$BJ34="","",'[1]FISCAL(M)'!$BJ34) -> n.d. | BX27: =IF('[1]FISCAL(M)'!$BT34="","",'[1]FISCAL(M)'!$BT34) -> n.d. | BY27: =IF('[2]MONE(M)'!$AO34="","",'[2]MONE(M)'!$AO34) -> n.d. | BZ27: =IF('[3]MONE(M)'!$AO34="","",'[3]MONE(M)'!$AO34) -> n.d. | CA27: =IF('[4]MONE(M)'!$AO34="","",'[4]MONE(M)'!$AO34) -> n.d. | CB27: =+'[5]MONE(M)'!$AO34 -> n.d. | CC27: =IF('[6]MONE(M)'!$AO34="","",'[6]MONE(M)'!$AO34) -> n.d. | CD27: =IF('[7]MONE(M)'!$AO34="","",'[7]MONE(M)'!$AO34) -> n.d. | CE27: =IF('[8]MONE(M)'!$AO34="","",'[8]MONE(M)'!$AO34) -> n.d. | CF27: n.d. | CG27: n.d. | CH27: n.d. | CI27: n.d. | CJ27: n.d. | CK27: n.d. | CL27: n.d. | CM27: =IF('[1]FISCAL(M)'!$K34="","",'[1]FISCAL(M)'!$K34) -> n.d. | CN27: n.d. | CO27: n.d. | CP27: =IF('[1]FISCAL(M)'!$L34="","",'[1]FISCAL(M)'!$L34) -> n.d. | CQ27: n.d. | CR27: n.d. | CS27: n.d. | CT27: n.d. | CU27: n.d. | CV27: n.d. | CW27: n.d. | CX27: n.d. | CY27: n.d. | CZ27: n.d. | DA27: n.d. | DB27: n.d. | DC27: n.d. | DD27: n.d. | DE27: n.d. | DF27: n.d. | DG27: n.d. | DH27: n.d.
A28: 1992 | B28: febrero | C28: 1992-febrero | D28: =IF('[1]REAL IPC(M)'!$AL35="","",+'[1]REAL IPC(M)'!$AL35) -> n.d. | E28: =IF('[1]REAL IPC(M)'!$BE35="","",+'[1]REAL IPC(M)'!$BE35) -> n.d. | F28: =IF('[1]REAL IPC(M)'!$AM35="","",+'[1]REAL IPC(M)'!$AM35) -> n.d. | G28: =IF('[1]REAL IPC(M)'!$BI35="","",+'[1]REAL IPC(M)'!$BI35) -> n.d. | H28: =IF('[1]REAL IMAE(M)'!BJ35="","",'[1]REAL IMAE(M)'!BJ35) -> n.d. | I28: =IF('[1]REAL IMAE(M)'!BK35="","",'[1]REAL IMAE(M)'!BK35) -> n.d. | J28: =IF('[1]REAL IMAE(M)'!BN35="","",'[1]REAL IMAE(M)'!BN35) -> n.d. | K28: =IF('[1]REAL IMAE(M)'!BO35="","",'[1]REAL IMAE(M)'!BO35) -> n.d. | L28: =IF('[1]EXT RIN(M)'!$K35="","",'[1]EXT RIN(M)'!$K35) -> n.d. | N28: =IF('[1]EXT RIN(M)'!$L35="","",'[1]EXT RIN(M)'!$L35) -> n.d. | P28: =IF('[1]MONE(M)CARD'!EG35="","",'[1]MONE(M)CARD'!EG35) -> n.d. | Q28: =IF('[1]MONE(M)CARD'!EK35="","",'[1]MONE(M)CARD'!EK35) -> n.d. | R28: =IF('[1]MONE(M)CARD'!EP35="","",'[1]MONE(M)CARD'!EP35) -> n.d. | S28: =IF('[1]MONE(M)CARD'!ES35="","",'[1]MONE(M)CARD'!ES35) -> n.d. | T28: =IF('[1]MONE(M)CARD'!EV35="","",'[1]MONE(M)CARD'!EV35) -> n.d. | U28: =IF('[1]MONE(M)CARD'!EZ35="","",'[1]MONE(M)CARD'!EZ35) -> n.d. | V28: =IF('[1]MONE(M)CAPARD'!FC35="","",'[1]MONE(M)CAPARD'!FC35) -> n.d. | W28: =IF('[1]MONE(M)CAPARD'!FG35="","",'[1]MONE(M)CAPARD'!FG35) -> n.d. | X28: =IF('[1]MONE(M)CAPARD'!FL35="","",'[1]MONE(M)CAPARD'!FL35) -> n.d. | Y28: =IF('[1]MONE(M)CAPARD'!FO35="","",'[1]MONE(M)CAPARD'!FO35) -> n.d. | Z28: =IF('[1]MONE(M)CAPARD'!FR35="","",'[1]MONE(M)CAPARD'!FR35) -> n.d. | AA28: =IF('[1]MONE(M)CAPARD'!FV35="","",'[1]MONE(M)CAPARD'!FV35) -> n.d. | AB28: =IF('[1]MONE(M)CARD'!FV35="","",'[1]MONE(M)CARD'!FV35) ->  | AC28: =IF('[1]MONE(M)CARD'!GD35="","",'[1]MONE(M)CARD'!GD35) -> n.d. | AD28: =IF('[1]MONE(M)CARD'!GE35="","",'[1]MONE(M)CARD'!GE35) -> n.d. | AE28: n.d. | AF28: n.d. | AG28: n.d. | AH28: n.d. | AI28: n.d. | AJ28: n.d. | AK28: n.d. | AL28: n.d. | AN28: n.d. | AO28: n.d. | AP28: n.d. | AQ28: n.d. | AR28: n.d. | AS28: =IF('[1]MONE(M)CAPARD'!GS35="","",'[1]MONE(M)CAPARD'!GS35) -> n.d. | AT28: =IF('[1]MONE(M)CARD'!HA35="","",'[1]MONE(M)CAPARD'!HA35) -> n.d. | AU28: =IF('[1]MONE(M)CAPARD'!HB35="","",'[1]MONE(M)CAPARD'!HB35) -> n.d. | AV28: n.d. | AW28: n.d. | AX28: n.d. | AY28: n.d. | AZ28: n.d. | BA28: n.d. | BB28: n.d. | BC28: n.d. | BD28: n.d. | BE28: n.d. | BF28: n.d. | BG28: n.d. | BH28: n.d. | BI28: n.d. | BJ28: =IF('[1]MONE(M)CAPARD'!AS35="","",'[1]MONE(M)CAPARD'!AS35) -> n.d. | BK28: =IF('[1]MONE(M)CAPARD'!AT35="","",'[1]MONE(M)CAPARD'!AT35) -> n.a. | BL28: =IF('[1]MONE(M)CAPARD'!AU35="","",'[1]MONE(M)CAPARD'!AU35) -> n.d. | BM28: =IF('[1]MONE(M)CAPARD'!AV35="","",'[1]MONE(M)CAPARD'!AV35) -> n.d. | BN28: =IF('[1]MONE(M)CAPARD'!AW35="","",'[1]MONE(M)CAPARD'!AW35) -> n.a. | BO28: =IF('[1]MONE(M)CAPARD'!AX35="","",'[1]MONE(M)CAPARD'!AX35) -> n.d. | BP28: =IF('[1]MONE(M)CAPARD'!AY35="","",'[1]MONE(M)CAPARD'!AY35) -> n.a. | BQ28: =IF('[1]FISCAL(M)'!$K35="","",'[1]FISCAL(M)'!$K35) -> n.d. | BR28: =IF('[1]FISCAL(M)'!$L35="","",'[1]FISCAL(M)'!$L35) -> n.d. | BS28: =IF('[1]FISCAL(M)'!$AY35="","",'[1]FISCAL(M)'!$AY35) -> n.d. | BT28: =IF('[1]FISCAL(M)'!$BI35="","",'[1]FISCAL(M)'!$BI35) -> n.d. | BU28: =IF('[1]FISCAL(M)'!$BS35="","",'[1]FISCAL(M)'!$BS35) -> n.d. | BV28: =IF('[1]FISCAL(M)'!$AZ35="","",'[1]FISCAL(M)'!$AZ35) -> n.d. | BW28: =IF('[1]FISCAL(M)'!$BJ35="","",'[1]FISCAL(M)'!$BJ35) -> n.d. | BX28: =IF('[1]FISCAL(M)'!$BT35="","",'[1]FISCAL(M)'!$BT35) -> n.d. | BY28: =IF('[2]MONE(M)'!$AO35="","",'[2]MONE(M)'!$AO35) -> n.d. | BZ28: =IF('[3]MONE(M)'!$AO35="","",'[3]MONE(M)'!$AO35) -> n.d. | CA28: =IF('[4]MONE(M)'!$AO35="","",'[4]MONE(M)'!$AO35) -> n.d. | CB28: =+'[5]MONE(M)'!$AO35 -> n.d. | CC28: =IF('[6]MONE(M)'!$AO35="","",'[6]MONE(M)'!$AO35) -> n.d. | CD28: =IF('[7]MONE(M)'!$AO35="","",'[7]MONE(M)'!$AO35) -> n.d. | CE28: =IF('[8]MONE(M)'!$AO35="","",'[8]MONE(M)'!$AO35) -> n.d. | CF28: n.d. | CG28: n.d. | CH28: n.d. | CI28: n.d. | CJ28: n.d. | CK28: n.d. | CL28: n.d. | CM28: =IF('[1]FISCAL(M)'!$K35="","",'[1]FISCAL(M)'!$K35) -> n.d. | CN28: n.d. | CO28: n.d. | CP28: =IF('[1]FISCAL(M)'!$L35="","",'[1]FISCAL(M)'!$L35) -> n.d. | CQ28: n.d. | CR28: n.d. | CS28: n.d. | CT28: n.d. | CU28: n.d. | CV28: n.d. | CW28: n.d. | CX28: n.d. | CY28: n.d. | CZ28: n.d. | DA28: n.d. | DB28: n.d. | DC28: n.d. | DD28: n.d. | DE28: n.d. | DF28: n.d. | DG28: n.d. | DH28: n.d.
A29: 1992 | B29: marzo | C29: 1992-marzo | D29: =IF('[1]REAL IPC(M)'!$AL36="","",+'[1]REAL IPC(M)'!$AL36) -> n.d. | E29: =IF('[1]REAL IPC(M)'!$BE36="","",+'[1]REAL IPC(M)'!$BE36) -> n.d. | F29: =IF('[1]REAL IPC(M)'!$AM36="","",+'[1]REAL IPC(M)'!$AM36) -> n.d. | G29: =IF('[1]REAL IPC(M)'!$BI36="","",+'[1]REAL IPC(M)'!$BI36) -> n.d. | H29: =IF('[1]REAL IMAE(M)'!BJ36="","",'[1]REAL IMAE(M)'!BJ36) -> n.d. | I29: =IF('[1]REAL IMAE(M)'!BK36="","",'[1]REAL IMAE(M)'!BK36) -> n.d. | J29: =IF('[1]REAL IMAE(M)'!BN36="","",'[1]REAL IMAE(M)'!BN36) -> n.d. | K29: =IF('[1]REAL IMAE(M)'!BO36="","",'[1]REAL IMAE(M)'!BO36) -> n.d. | L29: =IF('[1]EXT RIN(M)'!$K36="","",'[1]EXT RIN(M)'!$K36) -> n.d. | N29: =IF('[1]EXT RIN(M)'!$L36="","",'[1]EXT RIN(M)'!$L36) -> n.d. | P29: =IF('[1]MONE(M)CARD'!EG36="","",'[1]MONE(M)CARD'!EG36) -> n.d. | Q29: =IF('[1]MONE(M)CARD'!EK36="","",'[1]MONE(M)CARD'!EK36) -> n.d. | R29: =IF('[1]MONE(M)CARD'!EP36="","",'[1]MONE(M)CARD'!EP36) -> n.d. | S29: =IF('[1]MONE(M)CARD'!ES36="","",'[1]MONE(M)CARD'!ES36) -> n.d. | T29: =IF('[1]MONE(M)CARD'!EV36="","",'[1]MONE(M)CARD'!EV36) -> n.d. | U29: =IF('[1]MONE(M)CARD'!EZ36="","",'[1]MONE(M)CARD'!EZ36) -> n.d. | V29: =IF('[1]MONE(M)CAPARD'!FC36="","",'[1]MONE(M)CAPARD'!FC36) -> n.d. | W29: =IF('[1]MONE(M)CAPARD'!FG36="","",'[1]MONE(M)CAPARD'!FG36) -> n.d. | X29: =IF('[1]MONE(M)CAPARD'!FL36="","",'[1]MONE(M)CAPARD'!FL36) -> n.d. | Y29: =IF('[1]MONE(M)CAPARD'!FO36="","",'[1]MONE(M)CAPARD'!FO36) -> n.d. | Z29: =IF('[1]MONE(M)CAPARD'!FR36="","",'[1]MONE(M)CAPARD'!FR36) -> n.d. | AA29: =IF('[1]MONE(M)CAPARD'!FV36="","",'[1]MONE(M)CAPARD'!FV36) -> n.d. | AB29: =IF('[1]MONE(M)CARD'!FV36="","",'[1]MONE(M)CARD'!FV36) ->  | AC29: =IF('[1]MONE(M)CARD'!GD36="","",'[1]MONE(M)CARD'!GD36) -> n.d. | AD29: =IF('[1]MONE(M)CARD'!GE36="","",'[1]MONE(M)CARD'!GE36) -> n.d. | AE29: n.d. | AF29: n.d. | AG29: n.d. | AH29: n.d. | AI29: n.d. | AJ29: n.d. | AK29: n.d. | AL29: n.d. | AN29: n.d. | AO29: n.d. | AP29: n.d. | AQ29: n.d. | AR29: n.d. | AS29: =IF('[1]MONE(M)CAPARD'!GS36="","",'[1]MONE(M)CAPARD'!GS36) -> n.d. | AT29: =IF('[1]MONE(M)CARD'!HA36="","",'[1]MONE(M)CAPARD'!HA36) -> n.d. | AU29: =IF('[1]MONE(M)CAPARD'!HB36="","",'[1]MONE(M)CAPARD'!HB36) -> n.d. | AV29: n.d. | AW29: n.d. | AX29: n.d. | AY29: n.d. | AZ29: n.d. | BA29: n.d. | BB29: n.d. | BC29: n.d. | BD29: n.d. | BE29: n.d. | BF29: n.d. | BG29: n.d. | BH29: n.d. | BI29: n.d. | BJ29: =IF('[1]MONE(M)CAPARD'!AS36="","",'[1]MONE(M)CAPARD'!AS36) -> n.d. | BK29: =IF('[1]MONE(M)CAPARD'!AT36="","",'[1]MONE(M)CAPARD'!AT36) -> n.a. | BL29: =IF('[1]MONE(M)CAPARD'!AU36="","",'[1]MONE(M)CAPARD'!AU36) -> n.d. | BM29: =IF('[1]MONE(M)CAPARD'!AV36="","",'[1]MONE(M)CAPARD'!AV36) -> n.d. | BN29: =IF('[1]MONE(M)CAPARD'!AW36="","",'[1]MONE(M)CAPARD'!AW36) -> n.a. | BO29: =IF('[1]MONE(M)CAPARD'!AX36="","",'[1]MONE(M)CAPARD'!AX36) -> n.d. | BP29: =IF('[1]MONE(M)CAPARD'!AY36="","",'[1]MONE(M)CAPARD'!AY36) -> n.a. | BQ29: =IF('[1]FISCAL(M)'!$K36="","",'[1]FISCAL(M)'!$K36) -> n.d. | BR29: =IF('[1]FISCAL(M)'!$L36="","",'[1]FISCAL(M)'!$L36) -> n.d. | BS29: =IF('[1]FISCAL(M)'!$AY36="","",'[1]FISCAL(M)'!$AY36) -> n.d. | BT29: =IF('[1]FISCAL(M)'!$BI36="","",'[1]FISCAL(M)'!$BI36) -> n.d. | BU29: =IF('[1]FISCAL(M)'!$BS36="","",'[1]FISCAL(M)'!$BS36) -> n.d. | BV29: =IF('[1]FISCAL(M)'!$AZ36="","",'[1]FISCAL(M)'!$AZ36) -> n.d. | BW29: =IF('[1]FISCAL(M)'!$BJ36="","",'[1]FISCAL(M)'!$BJ36) -> n.d. | BX29: =IF('[1]FISCAL(M)'!$BT36="","",'[1]FISCAL(M)'!$BT36) -> n.d. | BY29: =IF('[2]MONE(M)'!$AO36="","",'[2]MONE(M)'!$AO36) -> n.d. | BZ29: =IF('[3]MONE(M)'!$AO36="","",'[3]MONE(M)'!$AO36) -> n.d. | CA29: =IF('[4]MONE(M)'!$AO36="","",'[4]MONE(M)'!$AO36) -> n.d. | CB29: =+'[5]MONE(M)'!$AO36 -> n.d. | CC29: =IF('[6]MONE(M)'!$AO36="","",'[6]MONE(M)'!$AO36) -> n.d. | CD29: =IF('[7]MONE(M)'!$AO36="","",'[7]MONE(M)'!$AO36) -> n.d. | CE29: =IF('[8]MONE(M)'!$AO36="","",'[8]MONE(M)'!$AO36) -> n.d. | CF29: n.d. | CG29: n.d. | CH29: n.d. | CI29: n.d. | CJ29: n.d. | CK29: n.d. | CL29: n.d. | CM29: =IF('[1]FISCAL(M)'!$K36="","",'[1]FISCAL(M)'!$K36) -> n.d. | CN29: n.d. | CO29: n.d. | CP29: =IF('[1]FISCAL(M)'!$L36="","",'[1]FISCAL(M)'!$L36) -> n.d. | CQ29: n.d. | CR29: n.d. | CS29: n.d. | CT29: n.d. | CU29: n.d. | CV29: n.d. | CW29: n.d. | CX29: n.d. | CY29: n.d. | CZ29: n.d. | DA29: n.d. | DB29: n.d. | DC29: n.d. | DD29: n.d. | DE29: n.d. | DF29: n.d. | DG29: n.d. | DH29: n.d.
A30: 1992 | B30: abril | C30: 1992-abril | D30: =IF('[1]REAL IPC(M)'!$AL37="","",+'[1]REAL IPC(M)'!$AL37) -> n.d. | E30: =IF('[1]REAL IPC(M)'!$BE37="","",+'[1]REAL IPC(M)'!$BE37) -> n.d. | F30: =IF('[1]REAL IPC(M)'!$AM37="","",+'[1]REAL IPC(M)'!$AM37) -> n.d. | G30: =IF('[1]REAL IPC(M)'!$BI37="","",+'[1]REAL IPC(M)'!$BI37) -> n.d. | H30: =IF('[1]REAL IMAE(M)'!BJ37="","",'[1]REAL IMAE(M)'!BJ37) -> n.d. | I30: =IF('[1]REAL IMAE(M)'!BK37="","",'[1]REAL IMAE(M)'!BK37) -> n.d. | J30: =IF('[1]REAL IMAE(M)'!BN37="","",'[1]REAL IMAE(M)'!BN37) -> n.d. | K30: =IF('[1]REAL IMAE(M)'!BO37="","",'[1]REAL IMAE(M)'!BO37) -> n.d. | L30: =IF('[1]EXT RIN(M)'!$K37="","",'[1]EXT RIN(M)'!$K37) -> n.d. | N30: =IF('[1]EXT RIN(M)'!$L37="","",'[1]EXT RIN(M)'!$L37) -> n.d. | P30: =IF('[1]MONE(M)CARD'!EG37="","",'[1]MONE(M)CARD'!EG37) -> n.d. | Q30: =IF('[1]MONE(M)CARD'!EK37="","",'[1]MONE(M)CARD'!EK37) -> n.d. | R30: =IF('[1]MONE(M)CARD'!EP37="","",'[1]MONE(M)CARD'!EP37) -> n.d. | S30: =IF('[1]MONE(M)CARD'!ES37="","",'[1]MONE(M)CARD'!ES37) -> n.d. | T30: =IF('[1]MONE(M)CARD'!EV37="","",'[1]MONE(M)CARD'!EV37) -> n.d. | U30: =IF('[1]MONE(M)CARD'!EZ37="","",'[1]MONE(M)CARD'!EZ37) -> n.d. | V30: =IF('[1]MONE(M)CAPARD'!FC37="","",'[1]MONE(M)CAPARD'!FC37) -> n.d. | W30: =IF('[1]MONE(M)CAPARD'!FG37="","",'[1]MONE(M)CAPARD'!FG37) -> n.d. | X30: =IF('[1]MONE(M)CAPARD'!FL37="","",'[1]MONE(M)CAPARD'!FL37) -> n.d. | Y30: =IF('[1]MONE(M)CAPARD'!FO37="","",'[1]MONE(M)CAPARD'!FO37) -> n.d. | Z30: =IF('[1]MONE(M)CAPARD'!FR37="","",'[1]MONE(M)CAPARD'!FR37) -> n.d. | AA30: =IF('[1]MONE(M)CAPARD'!FV37="","",'[1]MONE(M)CAPARD'!FV37) -> n.d. | AB30: =IF('[1]MONE(M)CARD'!FV37="","",'[1]MONE(M)CARD'!FV37) ->  | AC30: =IF('[1]MONE(M)CARD'!GD37="","",'[1]MONE(M)CARD'!GD37) -> n.d. | AD30: =IF('[1]MONE(M)CARD'!GE37="","",'[1]MONE(M)CARD'!GE37) -> n.d. | AE30: n.d. | AF30: n.d. | AG30: n.d. | AH30: n.d. | AI30: n.d. | AJ30: n.d. | AK30: n.d. | AL30: n.d. | AN30: n.d. | AO30: n.d. | AP30: n.d. | AQ30: n.d. | AR30: n.d. | AS30: =IF('[1]MONE(M)CAPARD'!GS37="","",'[1]MONE(M)CAPARD'!GS37) -> n.d. | AT30: =IF('[1]MONE(M)CARD'!HA37="","",'[1]MONE(M)CAPARD'!HA37) -> n.d. | AU30: =IF('[1]MONE(M)CAPARD'!HB37="","",'[1]MONE(M)CAPARD'!HB37) -> n.d. | AV30: n.d. | AW30: n.d. | AX30: n.d. | AY30: n.d. | AZ30: n.d. | BA30: n.d. | BB30: n.d. | BC30: n.d. | BD30: n.d. | BE30: n.d. | BF30: n.d. | BG30: n.d. | BH30: n.d. | BI30: n.d. | BJ30: =IF('[1]MONE(M)CAPARD'!AS37="","",'[1]MONE(M)CAPARD'!AS37) -> n.d. | BK30: =IF('[1]MONE(M)CAPARD'!AT37="","",'[1]MONE(M)CAPARD'!AT37) -> n.a. | BL30: =IF('[1]MONE(M)CAPARD'!AU37="","",'[1]MONE(M)CAPARD'!AU37) -> n.d. | BM30: =IF('[1]MONE(M)CAPARD'!AV37="","",'[1]MONE(M)CAPARD'!AV37) -> n.d. | BN30: =IF('[1]MONE(M)CAPARD'!AW37="","",'[1]MONE(M)CAPARD'!AW37) -> n.a. | BO30: =IF('[1]MONE(M)CAPARD'!AX37="","",'[1]MONE(M)CAPARD'!AX37) -> n.d. | BP30: =IF('[1]MONE(M)CAPARD'!AY37="","",'[1]MONE(M)CAPARD'!AY37) -> n.a. | BQ30: =IF('[1]FISCAL(M)'!$K37="","",'[1]FISCAL(M)'!$K37) -> n.d. | BR30: =IF('[1]FISCAL(M)'!$L37="","",'[1]FISCAL(M)'!$L37) -> n.d. | BS30: =IF('[1]FISCAL(M)'!$AY37="","",'[1]FISCAL(M)'!$AY37) -> n.d. | BT30: =IF('[1]FISCAL(M)'!$BI37="","",'[1]FISCAL(M)'!$BI37) -> n.d. | BU30: =IF('[1]FISCAL(M)'!$BS37="","",'[1]FISCAL(M)'!$BS37) -> n.d. | BV30: =IF('[1]FISCAL(M)'!$AZ37="","",'[1]FISCAL(M)'!$AZ37) -> n.d. | BW30: =IF('[1]FISCAL(M)'!$BJ37="","",'[1]FISCAL(M)'!$BJ37) -> n.d. | BX30: =IF('[1]FISCAL(M)'!$BT37="","",'[1]FISCAL(M)'!$BT37) -> n.d. | BY30: =IF('[2]MONE(M)'!$AO37="","",'[2]MONE(M)'!$AO37) -> n.d. | BZ30: =IF('[3]MONE(M)'!$AO37="","",'[3]MONE(M)'!$AO37) -> n.d. | CA30: =IF('[4]MONE(M)'!$AO37="","",'[4]MONE(M)'!$AO37) -> n.d. | CB30: =+'[5]MONE(M)'!$AO37 -> n.d. | CC30: =IF('[6]MONE(M)'!$AO37="","",'[6]MONE(M)'!$AO37) -> n.d. | CD30: =IF('[7]MONE(M)'!$AO37="","",'[7]MONE(M)'!$AO37) -> n.d. | CE30: =IF('[8]MONE(M)'!$AO37="","",'[8]MONE(M)'!$AO37) -> n.d. | CF30: n.d. | CG30: n.d. | CH30: n.d. | CI30: n.d. | CJ30: n.d. | CK30: n.d. | CL30: n.d. | CM30: =IF('[1]FISCAL(M)'!$K37="","",'[1]FISCAL(M)'!$K37) -> n.d. | CN30: n.d. | CO30: n.d. | CP30: =IF('[1]FISCAL(M)'!$L37="","",'[1]FISCAL(M)'!$L37) -> n.d. | CQ30: n.d. | CR30: n.d. | CS30: n.d. | CT30: n.d. | CU30: n.d. | CV30: n.d. | CW30: n.d. | CX30: n.d. | CY30: n.d. | CZ30: n.d. | DA30: n.d. | DB30: n.d. | DC30: n.d. | DD30: n.d. | DE30: n.d. | DF30: n.d. | DG30: n.d. | DH30: n.d.
A31: 1992 | B31: mayo | C31: 1992-mayo | D31: =IF('[1]REAL IPC(M)'!$AL38="","",+'[1]REAL IPC(M)'!$AL38) -> n.d. | E31: =IF('[1]REAL IPC(M)'!$BE38="","",+'[1]REAL IPC(M)'!$BE38) -> n.d. | F31: =IF('[1]REAL IPC(M)'!$AM38="","",+'[1]REAL IPC(M)'!$AM38) -> n.d. | G31: =IF('[1]REAL IPC(M)'!$BI38="","",+'[1]REAL IPC(M)'!$BI38) -> n.d. | H31: =IF('[1]REAL IMAE(M)'!BJ38="","",'[1]REAL IMAE(M)'!BJ38) -> n.d. | I31: =IF('[1]REAL IMAE(M)'!BK38="","",'[1]REAL IMAE(M)'!BK38) -> n.d. | J31: =IF('[1]REAL IMAE(M)'!BN38="","",'[1]REAL IMAE(M)'!BN38) -> n.d. | K31: =IF('[1]REAL IMAE(M)'!BO38="","",'[1]REAL IMAE(M)'!BO38) -> n.d. | L31: =IF('[1]EXT RIN(M)'!$K38="","",'[1]EXT RIN(M)'!$K38) -> n.d. | N31: =IF('[1]EXT RIN(M)'!$L38="","",'[1]EXT RIN(M)'!$L38) -> n.d. | P31: =IF('[1]MONE(M)CARD'!EG38="","",'[1]MONE(M)CARD'!EG38) -> n.d. | Q31: =IF('[1]MONE(M)CARD'!EK38="","",'[1]MONE(M)CARD'!EK38) -> n.d. | R31: =IF('[1]MONE(M)CARD'!EP38="","",'[1]MONE(M)CARD'!EP38) -> n.d. | S31: =IF('[1]MONE(M)CARD'!ES38="","",'[1]MONE(M)CARD'!ES38) -> n.d. | T31: =IF('[1]MONE(M)CARD'!EV38="","",'[1]MONE(M)CARD'!EV38) -> n.d. | U31: =IF('[1]MONE(M)CARD'!EZ38="","",'[1]MONE(M)CARD'!EZ38) -> n.d. | V31: =IF('[1]MONE(M)CAPARD'!FC38="","",'[1]MONE(M)CAPARD'!FC38) -> n.d. | W31: =IF('[1]MONE(M)CAPARD'!FG38="","",'[1]MONE(M)CAPARD'!FG38) -> n.d. | X31: =IF('[1]MONE(M)CAPARD'!FL38="","",'[1]MONE(M)CAPARD'!FL38) -> n.d. | Y31: =IF('[1]MONE(M)CAPARD'!FO38="","",'[1]MONE(M)CAPARD'!FO38) -> n.d. | Z31: =IF('[1]MONE(M)CAPARD'!FR38="","",'[1]MONE(M)CAPARD'!FR38) -> n.d. | AA31: =IF('[1]MONE(M)CAPARD'!FV38="","",'[1]MONE(M)CAPARD'!FV38) -> n.d. | AB31: =IF('[1]MONE(M)CARD'!FV38="","",'[1]MONE(M)CARD'!FV38) ->  | AC31: =IF('[1]MONE(M)CARD'!GD38="","",'[1]MONE(M)CARD'!GD38) -> n.d. | AD31: =IF('[1]MONE(M)CARD'!GE38="","",'[1]MONE(M)CARD'!GE38) -> n.d. | AE31: n.d. | AF31: n.d. | AG31: n.d. | AH31: n.d. | AI31: n.d. | AJ31: n.d. | AK31: n.d. | AL31: n.d. | AN31: n.d. | AO31: n.d. | AP31: n.d. | AQ31: n.d. | AR31: n.d. | AS31: =IF('[1]MONE(M)CAPARD'!GS38="","",'[1]MONE(M)CAPARD'!GS38) -> n.d. | AT31: =IF('[1]MONE(M)CARD'!HA38="","",'[1]MONE(M)CAPARD'!HA38) -> n.d. | AU31: =IF('[1]MONE(M)CAPARD'!HB38="","",'[1]MONE(M)CAPARD'!HB38) -> n.d. | AV31: n.d. | AW31: n.d. | AX31: n.d. | AY31: n.d. | AZ31: n.d. | BA31: n.d. | BB31: n.d. | BC31: n.d. | BD31: n.d. | BE31: n.d. | BF31: n.d. | BG31: n.d. | BH31: n.d. | BI31: n.d. | BJ31: =IF('[1]MONE(M)CAPARD'!AS38="","",'[1]MONE(M)CAPARD'!AS38) -> n.d. | BK31: =IF('[1]MONE(M)CAPARD'!AT38="","",'[1]MONE(M)CAPARD'!AT38) -> n.a. | BL31: =IF('[1]MONE(M)CAPARD'!AU38="","",'[1]MONE(M)CAPARD'!AU38) -> n.d. | BM31: =IF('[1]MONE(M)CAPARD'!AV38="","",'[1]MONE(M)CAPARD'!AV38) -> n.d. | BN31: =IF('[1]MONE(M)CAPARD'!AW38="","",'[1]MONE(M)CAPARD'!AW38) -> n.a. | BO31: =IF('[1]MONE(M)CAPARD'!AX38="","",'[1]MONE(M)CAPARD'!AX38) -> n.d. | BP31: =IF('[1]MONE(M)CAPARD'!AY38="","",'[1]MONE(M)CAPARD'!AY38) -> n.a. | BQ31: =IF('[1]FISCAL(M)'!$K38="","",'[1]FISCAL(M)'!$K38) -> n.d. | BR31: =IF('[1]FISCAL(M)'!$L38="","",'[1]FISCAL(M)'!$L38) -> n.d. | BS31: =IF('[1]FISCAL(M)'!$AY38="","",'[1]FISCAL(M)'!$AY38) -> n.d. | BT31: =IF('[1]FISCAL(M)'!$BI38="","",'[1]FISCAL(M)'!$BI38) -> n.d. | BU31: =IF('[1]FISCAL(M)'!$BS38="","",'[1]FISCAL(M)'!$BS38) -> n.d. | BV31: =IF('[1]FISCAL(M)'!$AZ38="","",'[1]FISCAL(M)'!$AZ38) -> n.d. | BW31: =IF('[1]FISCAL(M)'!$BJ38="","",'[1]FISCAL(M)'!$BJ38) -> n.d. | BX31: =IF('[1]FISCAL(M)'!$BT38="","",'[1]FISCAL(M)'!$BT38) -> n.d. | BY31: =IF('[2]MONE(M)'!$AO38="","",'[2]MONE(M)'!$AO38) -> n.d. | BZ31: =IF('[3]MONE(M)'!$AO38="","",'[3]MONE(M)'!$AO38) -> n.d. | CA31: =IF('[4]MONE(M)'!$AO38="","",'[4]MONE(M)'!$AO38) -> n.d. | CB31: =+'[5]MONE(M)'!$AO38 -> n.d. | CC31: =IF('[6]MONE(M)'!$AO38="","",'[6]MONE(M)'!$AO38) -> n.d. | CD31: =IF('[7]MONE(M)'!$AO38="","",'[7]MONE(M)'!$AO38) -> n.d. | CE31: =IF('[8]MONE(M)'!$AO38="","",'[8]MONE(M)'!$AO38) -> n.d. | CF31: n.d. | CG31: n.d. | CH31: n.d. | CI31: n.d. | CJ31: n.d. | CK31: n.d. | CL31: n.d. | CM31: =IF('[1]FISCAL(M)'!$K38="","",'[1]FISCAL(M)'!$K38) -> n.d. | CN31: n.d. | CO31: n.d. | CP31: =IF('[1]FISCAL(M)'!$L38="","",'[1]FISCAL(M)'!$L38) -> n.d. | CQ31: n.d. | CR31: n.d. | CS31: n.d. | CT31: n.d. | CU31: n.d. | CV31: n.d. | CW31: n.d. | CX31: n.d. | CY31: n.d. | CZ31: n.d. | DA31: n.d. | DB31: n.d. | DC31: n.d. | DD31: n.d. | DE31: n.d. | DF31: n.d. | DG31: n.d. | DH31: n.d.
A32: 1992 | B32: junio | C32: 1992-junio | D32: =IF('[1]REAL IPC(M)'!$AL39="","",+'[1]REAL IPC(M)'!$AL39) -> n.d. | E32: =IF('[1]REAL IPC(M)'!$BE39="","",+'[1]REAL IPC(M)'!$BE39) -> n.d. | F32: =IF('[1]REAL IPC(M)'!$AM39="","",+'[1]REAL IPC(M)'!$AM39) -> n.d. | G32: =IF('[1]REAL IPC(M)'!$BI39="","",+'[1]REAL IPC(M)'!$BI39) -> n.d. | H32: =IF('[1]REAL IMAE(M)'!BJ39="","",'[1]REAL IMAE(M)'!BJ39) -> n.d. | I32: =IF('[1]REAL IMAE(M)'!BK39="","",'[1]REAL IMAE(M)'!BK39) -> n.d. | J32: =IF('[1]REAL IMAE(M)'!BN39="","",'[1]REAL IMAE(M)'!BN39) -> n.d. | K32: =IF('[1]REAL IMAE(M)'!BO39="","",'[1]REAL IMAE(M)'!BO39) -> n.d. | L32: =IF('[1]EXT RIN(M)'!$K39="","",'[1]EXT RIN(M)'!$K39) -> n.d. | N32: =IF('[1]EXT RIN(M)'!$L39="","",'[1]EXT RIN(M)'!$L39) -> n.d. | P32: =IF('[1]MONE(M)CARD'!EG39="","",'[1]MONE(M)CARD'!EG39) -> n.d. | Q32: =IF('[1]MONE(M)CARD'!EK39="","",'[1]MONE(M)CARD'!EK39) -> n.d. | R32: =IF('[1]MONE(M)CARD'!EP39="","",'[1]MONE(M)CARD'!EP39) -> n.d. | S32: =IF('[1]MONE(M)CARD'!ES39="","",'[1]MONE(M)CARD'!ES39) -> n.d. | T32: =IF('[1]MONE(M)CARD'!EV39="","",'[1]MONE(M)CARD'!EV39) -> n.d. | U32: =IF('[1]MONE(M)CARD'!EZ39="","",'[1]MONE(M)CARD'!EZ39) -> n.d. | V32: =IF('[1]MONE(M)CAPARD'!FC39="","",'[1]MONE(M)CAPARD'!FC39) -> n.d. | W32: =IF('[1]MONE(M)CAPARD'!FG39="","",'[1]MONE(M)CAPARD'!FG39) -> n.d. | X32: =IF('[1]MONE(M)CAPARD'!FL39="","",'[1]MONE(M)CAPARD'!FL39) -> n.d. | Y32: =IF('[1]MONE(M)CAPARD'!FO39="","",'[1]MONE(M)CAPARD'!FO39) -> n.d. | Z32: =IF('[1]MONE(M)CAPARD'!FR39="","",'[1]MONE(M)CAPARD'!FR39) -> n.d. | AA32: =IF('[1]MONE(M)CAPARD'!FV39="","",'[1]MONE(M)CAPARD'!FV39) -> n.d. | AB32: =IF('[1]MONE(M)CARD'!FV39="","",'[1]MONE(M)CARD'!FV39) ->  | AC32: =IF('[1]MONE(M)CARD'!GD39="","",'[1]MONE(M)CARD'!GD39) -> n.d. | AD32: =IF('[1]MONE(M)CARD'!GE39="","",'[1]MONE(M)CARD'!GE39) -> n.d. | AE32: n.d. | AF32: n.d. | AG32: n.d. | AH32: n.d. | AI32: n.d. | AJ32: n.d. | AK32: n.d. | AL32: n.d. | AN32: n.d. | AO32: n.d. | AP32: n.d. | AQ32: n.d. | AR32: n.d. | AS32: =IF('[1]MONE(M)CAPARD'!GS39="","",'[1]MONE(M)CAPARD'!GS39) -> n.d. | AT32: =IF('[1]MONE(M)CARD'!HA39="","",'[1]MONE(M)CAPARD'!HA39) -> n.d. | AU32: =IF('[1]MONE(M)CAPARD'!HB39="","",'[1]MONE(M)CAPARD'!HB39) -> n.d. | AV32: n.d. | AW32: n.d. | AX32: n.d. | AY32: n.d. | AZ32: n.d. | BA32: n.d. | BB32: n.d. | BC32: n.d. | BD32: n.d. | BE32: n.d. | BF32: n.d. | BG32: n.d. | BH32: n.d. | BI32: n.d. | BJ32: =IF('[1]MONE(M)CAPARD'!AS39="","",'[1]MONE(M)CAPARD'!AS39) -> n.d. | BK32: =IF('[1]MONE(M)CAPARD'!AT39="","",'[1]MONE(M)CAPARD'!AT39) -> n.a. | BL32: =IF('[1]MONE(M)CAPARD'!AU39="","",'[1]MONE(M)CAPARD'!AU39) -> n.d. | BM32: =IF('[1]MONE(M)CAPARD'!AV39="","",'[1]MONE(M)CAPARD'!AV39) -> n.d. | BN32: =IF('[1]MONE(M)CAPARD'!AW39="","",'[1]MONE(M)CAPARD'!AW39) -> n.a. | BO32: =IF('[1]MONE(M)CAPARD'!AX39="","",'[1]MONE(M)CAPARD'!AX39) -> n.d. | BP32: =IF('[1]MONE(M)CAPARD'!AY39="","",'[1]MONE(M)CAPARD'!AY39) -> n.a. | BQ32: =IF('[1]FISCAL(M)'!$K39="","",'[1]FISCAL(M)'!$K39) -> n.d. | BR32: =IF('[1]FISCAL(M)'!$L39="","",'[1]FISCAL(M)'!$L39) -> n.d. | BS32: =IF('[1]FISCAL(M)'!$AY39="","",'[1]FISCAL(M)'!$AY39) -> n.d. | BT32: =IF('[1]FISCAL(M)'!$BI39="","",'[1]FISCAL(M)'!$BI39) -> n.d. | BU32: =IF('[1]FISCAL(M)'!$BS39="","",'[1]FISCAL(M)'!$BS39) -> n.d. | BV32: =IF('[1]FISCAL(M)'!$AZ39="","",'[1]FISCAL(M)'!$AZ39) -> n.d. | BW32: =IF('[1]FISCAL(M)'!$BJ39="","",'[1]FISCAL(M)'!$BJ39) -> n.d. | BX32: =IF('[1]FISCAL(M)'!$BT39="","",'[1]FISCAL(M)'!$BT39) -> n.d. | BY32: =IF('[2]MONE(M)'!$AO39="","",'[2]MONE(M)'!$AO39) -> n.d. | BZ32: =IF('[3]MONE(M)'!$AO39="","",'[3]MONE(M)'!$AO39) -> n.d. | CA32: =IF('[4]MONE(M)'!$AO39="","",'[4]MONE(M)'!$AO39) -> n.d. | CB32: =+'[5]MONE(M)'!$AO39 -> n.d. | CC32: =IF('[6]MONE(M)'!$AO39="","",'[6]MONE(M)'!$AO39) -> n.d. | CD32: =IF('[7]MONE(M)'!$AO39="","",'[7]MONE(M)'!$AO39) -> n.d. | CE32: =IF('[8]MONE(M)'!$AO39="","",'[8]MONE(M)'!$AO39) -> n.d. | CF32: n.d. | CG32: n.d. | CH32: n.d. | CI32: n.d. | CJ32: n.d. | CK32: n.d. | CL32: n.d. | CM32: =IF('[1]FISCAL(M)'!$K39="","",'[1]FISCAL(M)'!$K39) -> n.d. | CN32: n.d. | CO32: n.d. | CP32: =IF('[1]FISCAL(M)'!$L39="","",'[1]FISCAL(M)'!$L39) -> n.d. | CQ32: n.d. | CR32: n.d. | CS32: n.d. | CT32: n.d. | CU32: n.d. | CV32: n.d. | CW32: n.d. | CX32: n.d. | CY32: n.d. | CZ32: n.d. | DA32: n.d. | DB32: n.d. | DC32: n.d. | DD32: n.d. | DE32: n.d. | DF32: n.d. | DG32: n.d. | DH32: n.d.
A33: 1992 | B33: julio | C33: 1992-julio | D33: =IF('[1]REAL IPC(M)'!$AL40="","",+'[1]REAL IPC(M)'!$AL40) -> n.d. | E33: =IF('[1]REAL IPC(M)'!$BE40="","",+'[1]REAL IPC(M)'!$BE40) -> n.d. | F33: =IF('[1]REAL IPC(M)'!$AM40="","",+'[1]REAL IPC(M)'!$AM40) -> n.d. | G33: =IF('[1]REAL IPC(M)'!$BI40="","",+'[1]REAL IPC(M)'!$BI40) -> n.d. | H33: =IF('[1]REAL IMAE(M)'!BJ40="","",'[1]REAL IMAE(M)'!BJ40) -> n.d. | I33: =IF('[1]REAL IMAE(M)'!BK40="","",'[1]REAL IMAE(M)'!BK40) -> n.d. | J33: =IF('[1]REAL IMAE(M)'!BN40="","",'[1]REAL IMAE(M)'!BN40) -> n.d. | K33: =IF('[1]REAL IMAE(M)'!BO40="","",'[1]REAL IMAE(M)'!BO40) -> n.d. | L33: =IF('[1]EXT RIN(M)'!$K40="","",'[1]EXT RIN(M)'!$K40) -> n.d. | N33: =IF('[1]EXT RIN(M)'!$L40="","",'[1]EXT RIN(M)'!$L40) -> n.d. | P33: =IF('[1]MONE(M)CARD'!EG40="","",'[1]MONE(M)CARD'!EG40) -> n.d. | Q33: =IF('[1]MONE(M)CARD'!EK40="","",'[1]MONE(M)CARD'!EK40) -> n.d. | R33: =IF('[1]MONE(M)CARD'!EP40="","",'[1]MONE(M)CARD'!EP40) -> n.d. | S33: =IF('[1]MONE(M)CARD'!ES40="","",'[1]MONE(M)CARD'!ES40) -> n.d. | T33: =IF('[1]MONE(M)CARD'!EV40="","",'[1]MONE(M)CARD'!EV40) -> n.d. | U33: =IF('[1]MONE(M)CARD'!EZ40="","",'[1]MONE(M)CARD'!EZ40) -> n.d. | V33: =IF('[1]MONE(M)CAPARD'!FC40="","",'[1]MONE(M)CAPARD'!FC40) -> n.d. | W33: =IF('[1]MONE(M)CAPARD'!FG40="","",'[1]MONE(M)CAPARD'!FG40) -> n.d. | X33: =IF('[1]MONE(M)CAPARD'!FL40="","",'[1]MONE(M)CAPARD'!FL40) -> n.d. | Y33: =IF('[1]MONE(M)CAPARD'!FO40="","",'[1]MONE(M)CAPARD'!FO40) -> n.d. | Z33: =IF('[1]MONE(M)CAPARD'!FR40="","",'[1]MONE(M)CAPARD'!FR40) -> n.d. | AA33: =IF('[1]MONE(M)CAPARD'!FV40="","",'[1]MONE(M)CAPARD'!FV40) -> n.d. | AB33: =IF('[1]MONE(M)CARD'!FV40="","",'[1]MONE(M)CARD'!FV40) ->  | AC33: =IF('[1]MONE(M)CARD'!GD40="","",'[1]MONE(M)CARD'!GD40) -> n.d. | AD33: =IF('[1]MONE(M)CARD'!GE40="","",'[1]MONE(M)CARD'!GE40) -> n.d. | AE33: n.d. | AF33: n.d. | AG33: n.d. | AH33: n.d. | AI33: n.d. | AJ33: n.d. | AK33: n.d. | AL33: n.d. | AN33: n.d. | AO33: n.d. | AP33: n.d. | AQ33: n.d. | AR33: n.d. | AS33: =IF('[1]MONE(M)CAPARD'!GS40="","",'[1]MONE(M)CAPARD'!GS40) -> n.d. | AT33: =IF('[1]MONE(M)CARD'!HA40="","",'[1]MONE(M)CAPARD'!HA40) -> n.d. | AU33: =IF('[1]MONE(M)CAPARD'!HB40="","",'[1]MONE(M)CAPARD'!HB40) -> n.d. | AV33: n.d. | AW33: n.d. | AX33: n.d. | AY33: n.d. | AZ33: n.d. | BA33: n.d. | BB33: n.d. | BC33: n.d. | BD33: n.d. | BE33: n.d. | BF33: n.d. | BG33: n.d. | BH33: n.d. | BI33: n.d. | BJ33: =IF('[1]MONE(M)CAPARD'!AS40="","",'[1]MONE(M)CAPARD'!AS40) -> n.d. | BK33: =IF('[1]MONE(M)CAPARD'!AT40="","",'[1]MONE(M)CAPARD'!AT40) -> n.a. | BL33: =IF('[1]MONE(M)CAPARD'!AU40="","",'[1]MONE(M)CAPARD'!AU40) -> n.d. | BM33: =IF('[1]MONE(M)CAPARD'!AV40="","",'[1]MONE(M)CAPARD'!AV40) -> n.d. | BN33: =IF('[1]MONE(M)CAPARD'!AW40="","",'[1]MONE(M)CAPARD'!AW40) -> n.a. | BO33: =IF('[1]MONE(M)CAPARD'!AX40="","",'[1]MONE(M)CAPARD'!AX40) -> n.d. | BP33: =IF('[1]MONE(M)CAPARD'!AY40="","",'[1]MONE(M)CAPARD'!AY40) -> n.a. | BQ33: =IF('[1]FISCAL(M)'!$K40="","",'[1]FISCAL(M)'!$K40) -> n.d. | BR33: =IF('[1]FISCAL(M)'!$L40="","",'[1]FISCAL(M)'!$L40) -> n.d. | BS33: =IF('[1]FISCAL(M)'!$AY40="","",'[1]FISCAL(M)'!$AY40) -> n.d. | BT33: =IF('[1]FISCAL(M)'!$BI40="","",'[1]FISCAL(M)'!$BI40) -> n.d. | BU33: =IF('[1]FISCAL(M)'!$BS40="","",'[1]FISCAL(M)'!$BS40) -> n.d. | BV33: =IF('[1]FISCAL(M)'!$AZ40="","",'[1]FISCAL(M)'!$AZ40) -> n.d. | BW33: =IF('[1]FISCAL(M)'!$BJ40="","",'[1]FISCAL(M)'!$BJ40) -> n.d. | BX33: =IF('[1]FISCAL(M)'!$BT40="","",'[1]FISCAL(M)'!$BT40) -> n.d. | BY33: =IF('[2]MONE(M)'!$AO40="","",'[2]MONE(M)'!$AO40) -> n.d. | BZ33: =IF('[3]MONE(M)'!$AO40="","",'[3]MONE(M)'!$AO40) -> n.d. | CA33: =IF('[4]MONE(M)'!$AO40="","",'[4]MONE(M)'!$AO40) -> n.d. | CB33: =+'[5]MONE(M)'!$AO40 -> n.d. | CC33: =IF('[6]MONE(M)'!$AO40="","",'[6]MONE(M)'!$AO40) -> n.d. | CD33: =IF('[7]MONE(M)'!$AO40="","",'[7]MONE(M)'!$AO40) -> n.d. | CE33: =IF('[8]MONE(M)'!$AO40="","",'[8]MONE(M)'!$AO40) -> n.d. | CF33: n.d. | CG33: n.d. | CH33: n.d. | CI33: n.d. | CJ33: n.d. | CK33: n.d. | CL33: n.d. | CM33: =IF('[1]FISCAL(M)'!$K40="","",'[1]FISCAL(M)'!$K40) -> n.d. | CN33: n.d. | CO33: n.d. | CP33: =IF('[1]FISCAL(M)'!$L40="","",'[1]FISCAL(M)'!$L40) -> n.d. | CQ33: n.d. | CR33: n.d. | CS33: n.d. | CT33: n.d. | CU33: n.d. | CV33: n.d. | CW33: n.d. | CX33: n.d. | CY33: n.d. | CZ33: n.d. | DA33: n.d. | DB33: n.d. | DC33: n.d. | DD33: n.d. | DE33: n.d. | DF33: n.d. | DG33: n.d. | DH33: n.d.
A34: 1992 | B34: agosto | C34: 1992-agosto | D34: =IF('[1]REAL IPC(M)'!$AL41="","",+'[1]REAL IPC(M)'!$AL41) -> n.d. | E34: =IF('[1]REAL IPC(M)'!$BE41="","",+'[1]REAL IPC(M)'!$BE41) -> n.d. | F34: =IF('[1]REAL IPC(M)'!$AM41="","",+'[1]REAL IPC(M)'!$AM41) -> n.d. | G34: =IF('[1]REAL IPC(M)'!$BI41="","",+'[1]REAL IPC(M)'!$BI41) -> n.d. | H34: =IF('[1]REAL IMAE(M)'!BJ41="","",'[1]REAL IMAE(M)'!BJ41) -> n.d. | I34: =IF('[1]REAL IMAE(M)'!BK41="","",'[1]REAL IMAE(M)'!BK41) -> n.d. | J34: =IF('[1]REAL IMAE(M)'!BN41="","",'[1]REAL IMAE(M)'!BN41) -> n.d. | K34: =IF('[1]REAL IMAE(M)'!BO41="","",'[1]REAL IMAE(M)'!BO41) -> n.d. | L34: =IF('[1]EXT RIN(M)'!$K41="","",'[1]EXT RIN(M)'!$K41) -> n.d. | N34: =IF('[1]EXT RIN(M)'!$L41="","",'[1]EXT RIN(M)'!$L41) -> n.d. | P34: =IF('[1]MONE(M)CARD'!EG41="","",'[1]MONE(M)CARD'!EG41) -> n.d. | Q34: =IF('[1]MONE(M)CARD'!EK41="","",'[1]MONE(M)CARD'!EK41) -> n.d. | R34: =IF('[1]MONE(M)CARD'!EP41="","",'[1]MONE(M)CARD'!EP41) -> n.d. | S34: =IF('[1]MONE(M)CARD'!ES41="","",'[1]MONE(M)CARD'!ES41) -> n.d. | T34: =IF('[1]MONE(M)CARD'!EV41="","",'[1]MONE(M)CARD'!EV41) -> n.d. | U34: =IF('[1]MONE(M)CARD'!EZ41="","",'[1]MONE(M)CARD'!EZ41) -> n.d. | V34: =IF('[1]MONE(M)CAPARD'!FC41="","",'[1]MONE(M)CAPARD'!FC41) -> n.d. | W34: =IF('[1]MONE(M)CAPARD'!FG41="","",'[1]MONE(M)CAPARD'!FG41) -> n.d. | X34: =IF('[1]MONE(M)CAPARD'!FL41="","",'[1]MONE(M)CAPARD'!FL41) -> n.d. | Y34: =IF('[1]MONE(M)CAPARD'!FO41="","",'[1]MONE(M)CAPARD'!FO41) -> n.d. | Z34: =IF('[1]MONE(M)CAPARD'!FR41="","",'[1]MONE(M)CAPARD'!FR41) -> n.d. | AA34: =IF('[1]MONE(M)CAPARD'!FV41="","",'[1]MONE(M)CAPARD'!FV41) -> n.d. | AB34: =IF('[1]MONE(M)CARD'!FV41="","",'[1]MONE(M)CARD'!FV41) ->  | AC34: =IF('[1]MONE(M)CARD'!GD41="","",'[1]MONE(M)CARD'!GD41) -> n.d. | AD34: =IF('[1]MONE(M)CARD'!GE41="","",'[1]MONE(M)CARD'!GE41) -> n.d. | AE34: n.d. | AF34: n.d. | AG34: n.d. | AH34: n.d. | AI34: n.d. | AJ34: n.d. | AK34: n.d. | AL34: n.d. | AN34: n.d. | AO34: n.d. | AP34: n.d. | AQ34: n.d. | AR34: n.d. | AS34: =IF('[1]MONE(M)CAPARD'!GS41="","",'[1]MONE(M)CAPARD'!GS41) -> n.d. | AT34: =IF('[1]MONE(M)CARD'!HA41="","",'[1]MONE(M)CAPARD'!HA41) -> n.d. | AU34: =IF('[1]MONE(M)CAPARD'!HB41="","",'[1]MONE(M)CAPARD'!HB41) -> n.d. | AV34: n.d. | AW34: n.d. | AX34: n.d. | AY34: n.d. | AZ34: n.d. | BA34: n.d. | BB34: n.d. | BC34: n.d. | BD34: n.d. | BE34: n.d. | BF34: n.d. | BG34: n.d. | BH34: n.d. | BI34: n.d. | BJ34: =IF('[1]MONE(M)CAPARD'!AS41="","",'[1]MONE(M)CAPARD'!AS41) -> n.d. | BK34: =IF('[1]MONE(M)CAPARD'!AT41="","",'[1]MONE(M)CAPARD'!AT41) -> n.a. | BL34: =IF('[1]MONE(M)CAPARD'!AU41="","",'[1]MONE(M)CAPARD'!AU41) -> n.d. | BM34: =IF('[1]MONE(M)CAPARD'!AV41="","",'[1]MONE(M)CAPARD'!AV41) -> n.d. | BN34: =IF('[1]MONE(M)CAPARD'!AW41="","",'[1]MONE(M)CAPARD'!AW41) -> n.a. | BO34: =IF('[1]MONE(M)CAPARD'!AX41="","",'[1]MONE(M)CAPARD'!AX41) -> n.d. | BP34: =IF('[1]MONE(M)CAPARD'!AY41="","",'[1]MONE(M)CAPARD'!AY41) -> n.a. | BQ34: =IF('[1]FISCAL(M)'!$K41="","",'[1]FISCAL(M)'!$K41) -> n.d. | BR34: =IF('[1]FISCAL(M)'!$L41="","",'[1]FISCAL(M)'!$L41) -> n.d. | BS34: =IF('[1]FISCAL(M)'!$AY41="","",'[1]FISCAL(M)'!$AY41) -> n.d. | BT34: =IF('[1]FISCAL(M)'!$BI41="","",'[1]FISCAL(M)'!$BI41) -> n.d. | BU34: =IF('[1]FISCAL(M)'!$BS41="","",'[1]FISCAL(M)'!$BS41) -> n.d. | BV34: =IF('[1]FISCAL(M)'!$AZ41="","",'[1]FISCAL(M)'!$AZ41) -> n.d. | BW34: =IF('[1]FISCAL(M)'!$BJ41="","",'[1]FISCAL(M)'!$BJ41) -> n.d. | BX34: =IF('[1]FISCAL(M)'!$BT41="","",'[1]FISCAL(M)'!$BT41) -> n.d. | BY34: =IF('[2]MONE(M)'!$AO41="","",'[2]MONE(M)'!$AO41) -> n.d. | BZ34: =IF('[3]MONE(M)'!$AO41="","",'[3]MONE(M)'!$AO41) -> n.d. | CA34: =IF('[4]MONE(M)'!$AO41="","",'[4]MONE(M)'!$AO41) -> n.d. | CB34: =+'[5]MONE(M)'!$AO41 -> n.d. | CC34: =IF('[6]MONE(M)'!$AO41="","",'[6]MONE(M)'!$AO41) -> n.d. | CD34: =IF('[7]MONE(M)'!$AO41="","",'[7]MONE(M)'!$AO41) -> n.d. | CE34: =IF('[8]MONE(M)'!$AO41="","",'[8]MONE(M)'!$AO41) -> n.d. | CF34: n.d. | CG34: n.d. | CH34: n.d. | CI34: n.d. | CJ34: n.d. | CK34: n.d. | CL34: n.d. | CM34: =IF('[1]FISCAL(M)'!$K41="","",'[1]FISCAL(M)'!$K41) -> n.d. | CN34: n.d. | CO34: n.d. | CP34: =IF('[1]FISCAL(M)'!$L41="","",'[1]FISCAL(M)'!$L41) -> n.d. | CQ34: n.d. | CR34: n.d. | CS34: n.d. | CT34: n.d. | CU34: n.d. | CV34: n.d. | CW34: n.d. | CX34: n.d. | CY34: n.d. | CZ34: n.d. | DA34: n.d. | DB34: n.d. | DC34: n.d. | DD34: n.d. | DE34: n.d. | DF34: n.d. | DG34: n.d. | DH34: n.d.
A35: 1992 | B35: septiembre | C35: 1992-septiembre | D35: =IF('[1]REAL IPC(M)'!$AL42="","",+'[1]REAL IPC(M)'!$AL42) -> n.d. | E35: =IF('[1]REAL IPC(M)'!$BE42="","",+'[1]REAL IPC(M)'!$BE42) -> n.d. | F35: =IF('[1]REAL IPC(M)'!$AM42="","",+'[1]REAL IPC(M)'!$AM42) -> n.d. | G35: =IF('[1]REAL IPC(M)'!$BI42="","",+'[1]REAL IPC(M)'!$BI42) -> n.d. | H35: =IF('[1]REAL IMAE(M)'!BJ42="","",'[1]REAL IMAE(M)'!BJ42) -> n.d. | I35: =IF('[1]REAL IMAE(M)'!BK42="","",'[1]REAL IMAE(M)'!BK42) -> n.d. | J35: =IF('[1]REAL IMAE(M)'!BN42="","",'[1]REAL IMAE(M)'!BN42) -> n.d. | K35: =IF('[1]REAL IMAE(M)'!BO42="","",'[1]REAL IMAE(M)'!BO42) -> n.d. | L35: =IF('[1]EXT RIN(M)'!$K42="","",'[1]EXT RIN(M)'!$K42) -> n.d. | N35: =IF('[1]EXT RIN(M)'!$L42="","",'[1]EXT RIN(M)'!$L42) -> n.d. | P35: =IF('[1]MONE(M)CARD'!EG42="","",'[1]MONE(M)CARD'!EG42) -> n.d. | Q35: =IF('[1]MONE(M)CARD'!EK42="","",'[1]MONE(M)CARD'!EK42) -> n.d. | R35: =IF('[1]MONE(M)CARD'!EP42="","",'[1]MONE(M)CARD'!EP42) -> n.d. | S35: =IF('[1]MONE(M)CARD'!ES42="","",'[1]MONE(M)CARD'!ES42) -> n.d. | T35: =IF('[1]MONE(M)CARD'!EV42="","",'[1]MONE(M)CARD'!EV42) -> n.d. | U35: =IF('[1]MONE(M)CARD'!EZ42="","",'[1]MONE(M)CARD'!EZ42) -> n.d. | V35: =IF('[1]MONE(M)CAPARD'!FC42="","",'[1]MONE(M)CAPARD'!FC42) -> n.d. | W35: =IF('[1]MONE(M)CAPARD'!FG42="","",'[1]MONE(M)CAPARD'!FG42) -> n.d. | X35: =IF('[1]MONE(M)CAPARD'!FL42="","",'[1]MONE(M)CAPARD'!FL42) -> n.d. | Y35: =IF('[1]MONE(M)CAPARD'!FO42="","",'[1]MONE(M)CAPARD'!FO42) -> n.d. | Z35: =IF('[1]MONE(M)CAPARD'!FR42="","",'[1]MONE(M)CAPARD'!FR42) -> n.d. | AA35: =IF('[1]MONE(M)CAPARD'!FV42="","",'[1]MONE(M)CAPARD'!FV42) -> n.d. | AB35: =IF('[1]MONE(M)CARD'!FV42="","",'[1]MONE(M)CARD'!FV42) ->  | AC35: =IF('[1]MONE(M)CARD'!GD42="","",'[1]MONE(M)CARD'!GD42) -> n.d. | AD35: =IF('[1]MONE(M)CARD'!GE42="","",'[1]MONE(M)CARD'!GE42) -> n.d. | AE35: n.d. | AF35: n.d. | AG35: n.d. | AH35: n.d. | AI35: n.d. | AJ35: n.d. | AK35: n.d. | AL35: n.d. | AN35: n.d. | AO35: n.d. | AP35: n.d. | AQ35: n.d. | AR35: n.d. | AS35: =IF('[1]MONE(M)CAPARD'!GS42="","",'[1]MONE(M)CAPARD'!GS42) -> n.d. | AT35: =IF('[1]MONE(M)CARD'!HA42="","",'[1]MONE(M)CAPARD'!HA42) -> n.d. | AU35: =IF('[1]MONE(M)CAPARD'!HB42="","",'[1]MONE(M)CAPARD'!HB42) -> n.d. | AV35: n.d. | AW35: n.d. | AX35: n.d. | AY35: n.d. | AZ35: n.d. | BA35: n.d. | BB35: n.d. | BC35: n.d. | BD35: n.d. | BE35: n.d. | BF35: n.d. | BG35: n.d. | BH35: n.d. | BI35: n.d. | BJ35: =IF('[1]MONE(M)CAPARD'!AS42="","",'[1]MONE(M)CAPARD'!AS42) -> n.d. | BK35: =IF('[1]MONE(M)CAPARD'!AT42="","",'[1]MONE(M)CAPARD'!AT42) -> n.a. | BL35: =IF('[1]MONE(M)CAPARD'!AU42="","",'[1]MONE(M)CAPARD'!AU42) -> n.d. | BM35: =IF('[1]MONE(M)CAPARD'!AV42="","",'[1]MONE(M)CAPARD'!AV42) -> n.d. | BN35: =IF('[1]MONE(M)CAPARD'!AW42="","",'[1]MONE(M)CAPARD'!AW42) -> n.a. | BO35: =IF('[1]MONE(M)CAPARD'!AX42="","",'[1]MONE(M)CAPARD'!AX42) -> n.d. | BP35: =IF('[1]MONE(M)CAPARD'!AY42="","",'[1]MONE(M)CAPARD'!AY42) -> n.a. | BQ35: =IF('[1]FISCAL(M)'!$K42="","",'[1]FISCAL(M)'!$K42) -> n.d. | BR35: =IF('[1]FISCAL(M)'!$L42="","",'[1]FISCAL(M)'!$L42) -> n.d. | BS35: =IF('[1]FISCAL(M)'!$AY42="","",'[1]FISCAL(M)'!$AY42) -> n.d. | BT35: =IF('[1]FISCAL(M)'!$BI42="","",'[1]FISCAL(M)'!$BI42) -> n.d. | BU35: =IF('[1]FISCAL(M)'!$BS42="","",'[1]FISCAL(M)'!$BS42) -> n.d. | BV35: =IF('[1]FISCAL(M)'!$AZ42="","",'[1]FISCAL(M)'!$AZ42) -> n.d. | BW35: =IF('[1]FISCAL(M)'!$BJ42="","",'[1]FISCAL(M)'!$BJ42) -> n.d. | BX35: =IF('[1]FISCAL(M)'!$BT42="","",'[1]FISCAL(M)'!$BT42) -> n.d. | BY35: =IF('[2]MONE(M)'!$AO42="","",'[2]MONE(M)'!$AO42) -> n.d. | BZ35: =IF('[3]MONE(M)'!$AO42="","",'[3]MONE(M)'!$AO42) -> n.d. | CA35: =IF('[4]MONE(M)'!$AO42="","",'[4]MONE(M)'!$AO42) -> n.d. | CB35: =+'[5]MONE(M)'!$AO42 -> n.d. | CC35: =IF('[6]MONE(M)'!$AO42="","",'[6]MONE(M)'!$AO42) -> n.d. | CD35: =IF('[7]MONE(M)'!$AO42="","",'[7]MONE(M)'!$AO42) -> n.d. | CE35: =IF('[8]MONE(M)'!$AO42="","",'[8]MONE(M)'!$AO42) -> n.d. | CF35: n.d. | CG35: n.d. | CH35: n.d. | CI35: n.d. | CJ35: n.d. | CK35: n.d. | CL35: n.d. | CM35: =IF('[1]FISCAL(M)'!$K42="","",'[1]FISCAL(M)'!$K42) -> n.d. | CN35: n.d. | CO35: n.d. | CP35: =IF('[1]FISCAL(M)'!$L42="","",'[1]FISCAL(M)'!$L42) -> n.d. | CQ35: n.d. | CR35: n.d. | CS35: n.d. | CT35: n.d. | CU35: n.d. | CV35: n.d. | CW35: n.d. | CX35: n.d. | CY35: n.d. | CZ35: n.d. | DA35: n.d. | DB35: n.d. | DC35: n.d. | DD35: n.d. | DE35: n.d. | DF35: n.d. | DG35: n.d. | DH35: n.d.
A36: 1992 | B36: octubre | C36: 1992-octubre | D36: =IF('[1]REAL IPC(M)'!$AL43="","",+'[1]REAL IPC(M)'!$AL43) -> n.d. | E36: =IF('[1]REAL IPC(M)'!$BE43="","",+'[1]REAL IPC(M)'!$BE43) -> n.d. | F36: =IF('[1]REAL IPC(M)'!$AM43="","",+'[1]REAL IPC(M)'!$AM43) -> n.d. | G36: =IF('[1]REAL IPC(M)'!$BI43="","",+'[1]REAL IPC(M)'!$BI43) -> n.d. | H36: =IF('[1]REAL IMAE(M)'!BJ43="","",'[1]REAL IMAE(M)'!BJ43) -> n.d. | I36: =IF('[1]REAL IMAE(M)'!BK43="","",'[1]REAL IMAE(M)'!BK43) -> n.d. | J36: =IF('[1]REAL IMAE(M)'!BN43="","",'[1]REAL IMAE(M)'!BN43) -> n.d. | K36: =IF('[1]REAL IMAE(M)'!BO43="","",'[1]REAL IMAE(M)'!BO43) -> n.d. | L36: =IF('[1]EXT RIN(M)'!$K43="","",'[1]EXT RIN(M)'!$K43) -> n.d. | N36: =IF('[1]EXT RIN(M)'!$L43="","",'[1]EXT RIN(M)'!$L43) -> n.d. | P36: =IF('[1]MONE(M)CARD'!EG43="","",'[1]MONE(M)CARD'!EG43) -> n.d. | Q36: =IF('[1]MONE(M)CARD'!EK43="","",'[1]MONE(M)CARD'!EK43) -> n.d. | R36: =IF('[1]MONE(M)CARD'!EP43="","",'[1]MONE(M)CARD'!EP43) -> n.d. | S36: =IF('[1]MONE(M)CARD'!ES43="","",'[1]MONE(M)CARD'!ES43) -> n.d. | T36: =IF('[1]MONE(M)CARD'!EV43="","",'[1]MONE(M)CARD'!EV43) -> n.d. | U36: =IF('[1]MONE(M)CARD'!EZ43="","",'[1]MONE(M)CARD'!EZ43) -> n.d. | V36: =IF('[1]MONE(M)CAPARD'!FC43="","",'[1]MONE(M)CAPARD'!FC43) -> n.d. | W36: =IF('[1]MONE(M)CAPARD'!FG43="","",'[1]MONE(M)CAPARD'!FG43) -> n.d. | X36: =IF('[1]MONE(M)CAPARD'!FL43="","",'[1]MONE(M)CAPARD'!FL43) -> n.d. | Y36: =IF('[1]MONE(M)CAPARD'!FO43="","",'[1]MONE(M)CAPARD'!FO43) -> n.d. | Z36: =IF('[1]MONE(M)CAPARD'!FR43="","",'[1]MONE(M)CAPARD'!FR43) -> n.d. | AA36: =IF('[1]MONE(M)CAPARD'!FV43="","",'[1]MONE(M)CAPARD'!FV43) -> n.d. | AB36: =IF('[1]MONE(M)CARD'!FV43="","",'[1]MONE(M)CARD'!FV43) ->  | AC36: =IF('[1]MONE(M)CARD'!GD43="","",'[1]MONE(M)CARD'!GD43) -> n.d. | AD36: =IF('[1]MONE(M)CARD'!GE43="","",'[1]MONE(M)CARD'!GE43) -> n.d. | AE36: n.d. | AF36: n.d. | AG36: n.d. | AH36: n.d. | AI36: n.d. | AJ36: n.d. | AK36: n.d. | AL36: n.d. | AN36: n.d. | AO36: n.d. | AP36: n.d. | AQ36: n.d. | AR36: n.d. | AS36: =IF('[1]MONE(M)CAPARD'!GS43="","",'[1]MONE(M)CAPARD'!GS43) -> n.d. | AT36: =IF('[1]MONE(M)CARD'!HA43="","",'[1]MONE(M)CAPARD'!HA43) -> n.d. | AU36: =IF('[1]MONE(M)CAPARD'!HB43="","",'[1]MONE(M)CAPARD'!HB43) -> n.d. | AV36: n.d. | AW36: n.d. | AX36: n.d. | AY36: n.d. | AZ36: n.d. | BA36: n.d. | BB36: n.d. | BC36: n.d. | BD36: n.d. | BE36: n.d. | BF36: n.d. | BG36: n.d. | BH36: n.d. | BI36: n.d. | BJ36: =IF('[1]MONE(M)CAPARD'!AS43="","",'[1]MONE(M)CAPARD'!AS43) -> n.d. | BK36: =IF('[1]MONE(M)CAPARD'!AT43="","",'[1]MONE(M)CAPARD'!AT43) -> n.a. | BL36: =IF('[1]MONE(M)CAPARD'!AU43="","",'[1]MONE(M)CAPARD'!AU43) -> n.d. | BM36: =IF('[1]MONE(M)CAPARD'!AV43="","",'[1]MONE(M)CAPARD'!AV43) -> n.d. | BN36: =IF('[1]MONE(M)CAPARD'!AW43="","",'[1]MONE(M)CAPARD'!AW43) -> n.a. | BO36: =IF('[1]MONE(M)CAPARD'!AX43="","",'[1]MONE(M)CAPARD'!AX43) -> n.d. | BP36: =IF('[1]MONE(M)CAPARD'!AY43="","",'[1]MONE(M)CAPARD'!AY43) -> n.a. | BQ36: =IF('[1]FISCAL(M)'!$K43="","",'[1]FISCAL(M)'!$K43) -> n.d. | BR36: =IF('[1]FISCAL(M)'!$L43="","",'[1]FISCAL(M)'!$L43) -> n.d. | BS36: =IF('[1]FISCAL(M)'!$AY43="","",'[1]FISCAL(M)'!$AY43) -> n.d. | BT36: =IF('[1]FISCAL(M)'!$BI43="","",'[1]FISCAL(M)'!$BI43) -> n.d. | BU36: =IF('[1]FISCAL(M)'!$BS43="","",'[1]FISCAL(M)'!$BS43) -> n.d. | BV36: =IF('[1]FISCAL(M)'!$AZ43="","",'[1]FISCAL(M)'!$AZ43) -> n.d. | BW36: =IF('[1]FISCAL(M)'!$BJ43="","",'[1]FISCAL(M)'!$BJ43) -> n.d. | BX36: =IF('[1]FISCAL(M)'!$BT43="","",'[1]FISCAL(M)'!$BT43) -> n.d. | BY36: =IF('[2]MONE(M)'!$AO43="","",'[2]MONE(M)'!$AO43) -> n.d. | BZ36: =IF('[3]MONE(M)'!$AO43="","",'[3]MONE(M)'!$AO43) -> n.d. | CA36: =IF('[4]MONE(M)'!$AO43="","",'[4]MONE(M)'!$AO43) -> n.d. | CB36: =+'[5]MONE(M)'!$AO43 -> n.d. | CC36: =IF('[6]MONE(M)'!$AO43="","",'[6]MONE(M)'!$AO43) -> n.d. | CD36: =IF('[7]MONE(M)'!$AO43="","",'[7]MONE(M)'!$AO43) -> n.d. | CE36: =IF('[8]MONE(M)'!$AO43="","",'[8]MONE(M)'!$AO43) -> n.d. | CF36: n.d. | CG36: n.d. | CH36: n.d. | CI36: n.d. | CJ36: n.d. | CK36: n.d. | CL36: n.d. | CM36: =IF('[1]FISCAL(M)'!$K43="","",'[1]FISCAL(M)'!$K43) -> n.d. | CN36: n.d. | CO36: n.d. | CP36: =IF('[1]FISCAL(M)'!$L43="","",'[1]FISCAL(M)'!$L43) -> n.d. | CQ36: n.d. | CR36: n.d. | CS36: n.d. | CT36: n.d. | CU36: n.d. | CV36: n.d. | CW36: n.d. | CX36: n.d. | CY36: n.d. | CZ36: n.d. | DA36: n.d. | DB36: n.d. | DC36: n.d. | DD36: n.d. | DE36: n.d. | DF36: n.d. | DG36: n.d. | DH36: n.d.
